Workbook

Sheet Projects & Portfolios
A1: project | B1: title | C1: cost | D1: states | E1: taxa_groups | F1: A_Marshbird_portfolio | G1: B_Shorebird_portfolio | H1: C_All_states_portfolio | I1: D_No_proj_over_halfM | J1: E_Texas_portfolio
A2: 1 | B2: NFWF-A | C2: 700000 | D2: All | E2: Shorebirds | F2: 0 | G2: 1 | H2: 0 | I2: 0 | J2: 0
A3: 2 | B3: NFWF-B | C3: 5400000 | D3: MS, AL | E3: All | F3: 0 | G3: 0 | H3: 0 | I3: 0 | J3: 0
A4: 3 | B4: NFWF-C | C4: 250000 | D4: LA | E4: All | F4: 0 | G4: 0 | H4: 0 | I4: 1 | J4: 0
A5: 4 | B5: NFWF-D | C5: 150000 | D5: LA | E5: Shorebirds | F5: 0 | G5: 1 | H5: 0 | I5: 0 | J5: 0
A6: 5 | B6: NFWF-E | C6: 220000 | D6: TX,LA,MS | E6: Shorebirds | F6: 0 | G6: 1 | H6: 0 | I6: 1 | J6: 0
A7: 6 | B7: NFWF-F | C7: 110000 | D7: AL,FL | E7: Shorebirds | F7: 0 | G7: 1 | H7: 0 | I7: 0 | J7: 1
A8: 7 | B8: Omnibus Monitoring In Response to Sea Level Rise | C8: 1000000 | D8: All | E8: All Minus Seabirds | F8: 0 | G8: 0 | H8: 1 | I8: 0 | J8: 0
A9: 8 | B9: The effectiveness of island creation in Mobile Bay for island nesting species | C9: 5000000 | D9: AL | E9: wading, Seabirds | F9: 0 | G9: 0 | H9: 0 | I9: 0 | J9: 0
A10: 9 | B10: the impact of wind development on migrating raptors in the GoM | C10: 25000 | D10: All | E10: Raptors | F10: 0 | G10: 0 | H10: 0 | I10: 0 | J10: 0
A11: 10 | B11: Do hurricanes impact survival of migratory/wintering waterfowl? Does stress/movement to avoid hurricanes impact migratory/wintering waterfowl survival? | C11: 900000 | D11: TX,AL | E11: Waterfowl | F11: 0 | G11: 0 | H11: 0 | I11: 0 | J11: 1
A12: 11 | B12: How does increase in salinity impact habitat quality/quantity, and does it impact the population trend of wetland associated birds? | C12: 1500000 | D12: All | E12: waterfowl, marshbirds, wadingbirds | F12: 0 | G12: 0 | H12: 1 | I12: 0 | J12: 0
A13: 12 | B13: The impact of rice agriculture on nesting King Rails and wintering Yellow Rails in Louisiana | C13: 100000 | D13: TX | E13: marshbird, landbird | F13: 1 | G13: 0 | H13: 0 | I13: 0 | J13: 0
A14: 13 | B14: How do hurricanes impact forage quality for nesting wadingbirds? | C14: 250000 | D14: All | E14: Wading | F14: 0 | G14: 0 | H14: 0 | I14: 1 | J14: 0
A15: 14 | B15: How do hurriances impact forest management rotations, and nesting landbirds and raptors in those forests? | C15: 500000 | D15: LA | E15: Landbird,Raptor | F15: 0 | G15: 0 | H15: 0 | I15: 0 | J15: 0
A16: 15 | B16: Using adaptive managgement to learn about how we should manage grasslands using prescribed fire in the face of climage change | C16: 800000 | D16: LA,MS | E16: Landbirds,Marshbird,Raptor | F16: 0 | G16: 0 | H16: 0 | I16: 0 | J16: 0
A17: 16 | B17: Long-term monitoring of GoM raptors | C17: 2000000 | D17: AL,FL | E17: Raptors | F17: 0 | G17: 0 | H17: 0 | I17: 0 | J17: 0
A18: 17 | B18: Learning more about how perscribed fire increases habitat quantity in forested systems through adapative management? | C18: 500000 | D18: MS,AL | E18: Landbirds | F18: 0 | G18: 0 | H18: 0 | I18: 0 | J18: 0
A19: 18 | B19: How do hurriances impact the survival of marshbirds | C19: 300000 | D19: All | E19: Marshbirds | F19: 1 | G19: 0 | H19: 0 | I19: 1 | J19: 0
A20: 19 | B20: How can prescribed fire be used to manage scrubland habitats for a greater diversity of migratory birds in the face of climate change? | C20: 750000 | D20: All | E20: Landbirds | F20: 0 | G20: 0 | H20: 0 | I20: 0 | J20: 0
A21: 20 | B21: Comparison of the impacts of forested habitat cover change on population dynamics of long and short distance migrants | C21: 1500000 | D21: All | E21: Landbirds | F21: 0 | G21: 0 | H21: 0 | I21: 0 | J21: 0
A22: 21 | B22: How do open ocean currents, surface temperature and seasonality impact seabird use off the GoM? | C22: 900000 | D22: All | E22: Seabirds | F22: 0 | G22: 0 | H22: 0 | I22: 0 | J22: 0
A23: 22 | B23: What has a larger impact on X seabird populations in the gulf, plastic consumption, accidental take, or weather patterns? | C23: 750000 | D23: All | E23: Seabirds | F23: 0 | G23: 0 | H23: 0 | I23: 0 | J23: 0
A24: 23 | B24: How does water management, including the flooding of wetlands and cropfields, impact overwinter waterfowl surival? | C24: 1000000 | D24: All | E24: Waterfowl | F24: 0 | G24: 0 | H24: 0 | I24: 0 | J24: 0
A25: 24 | B25: What kind of signage is most effective for decreasing human disturbance impacts on beach nesting birds? | C25: 150000 | D25: All | E25: Shorebirds | F25: 0 | G25: 0 | H25: 0 | I25: 0 | J25: 0
A26: 25 | B26: How does invasive species control impact marshbird use? | C26: 250000 | D26: All | E26: Marshbirds | F26: 1 | G26: 0 | H26: 0 | I26: 0 | J26: 1
A27: 26 | B27: How does human disturbance impact the nest survival and fledging rate of nesting wading and marshbirds | C27: 500000 | D27: All | E27: Marshbirds, Wadingbirds | F27: 0 | G27: 0 | H27: 0 | I27: 0 | J27: 0
A28: 27 | B28: How does beach renourishment impact the invertebrate communities which are used by migratory and wintering shorebirds? | C28: 1200000 | D28: TX,LA,MS | E28: Shorebirds | F28: 0 | G28: 1 | H28: 0 | I28: 0 | J28: 0
A29: 28 | B29: Learning about how beach renourishment after oil contamination can increase habitat quantity for 3 declining shorebirds | C29: 500000 | D29: MS,AL,FL | E29: Shorebirds | F29: 0 | G29: 0 | H29: 0 | I29: 0 | J29: 0
A30: 29 | B30: When restoring wetlands and grasslands, but unable to restore very large patches, is there an advantage to restoring the two habitat types near each other for species in each habitat type, versus cropfields | C30: 2000000 | D30: All | E30: Marshbirds, Landbirds, Raptors | F30: 0 | G30: 0 | H30: 0 | I30: 0 | J30: 1
A31: 30 | B31: How does prescribed fire impact marshbird habitat quanitity? | C31: 250000 | D31: All | E31: Marshbirds | F31: 1 | G31: 0 | H31: 0 | I31: 0 | J31: 0
A32: 31 | B32: How does fresh water management impact the quantity of wetland habitat available to wintering marshbirds? | C32: 650000 | D32: TX,MS | E32: Marshbirds | F32: 1 | G32: 0 | H32: 0 | I32: 0 | J32: 1
A33: 32 | B33: Learning about how management of scrub shrub succession impacts habitat quantity and quantity as well as population trends for migratory landbirds through adpative management | C33: 200000 | D33: LA | E33: Landbirds | F33: 0 | G33: 0 | H33: 0 | I33: 0 | J33: 0
A34: 33 | B34: The impacts of offshore oil development on wintering seabirds and lesser scaup | C34: 400000 | D34: All | E34: Seabirds, Waterfowl | F34: 0 | G34: 0 | H34: 1 | I34: 1 | J34: 0
A35: 34 | B35: long-term monitoring of the reddish egret | C35: 900000 | D35: All | E35: Wading | F35: 0 | G35: 0 | H35: 1 | I35: 0 | J35: 0
A36: 35 | B36: The impacts of sealevel rise and stormwater management on the habitat quantity , food resources and use by wadingbirds | C36: 900000 | D36: All | E36: Wading | F36: 0 | G36: 0 | H36: 1 | I36: 0 | J36: 0
E38: Number of proposals | F38: =SUM(F2:F36) -> 5 | G38: =SUM(G2:G36) -> 5 | H38: =SUM(H2:H36) -> 5 | I38: =SUM(I2:I36) -> 5 | J38: =SUM(J2:J36) -> 5
E39: Benefit | F39: 1.993851714 | G39: 1.938068233 | H39: 2.380451917 | I39: 1.983997541 | J39: 1.972769414
E40: Cost | F40: 1550000 | G40: 2380000 | H40: 4700000 | I40: 1420000 | J40: 3910000
F41: =SUMPRODUCT($C$2:$C$36,F$2:F$36) -> 1550000 | G41: =SUMPRODUCT($C$2:$C$36,G$2:G$36) -> 2380000 | H41: =SUMPRODUCT($C$2:$C$36,H$2:H$36) -> 4700000 | I41: 1420000 | J41: 3910000

Sheet Scores & Costs
A1: project | B1: manage_species | C1: manage_spatial | D1: manage_uncertainty | E1: manage_currentpractices | F1: manage_adaptivemanagement | G1: pop_a | H1: pop_b | I1: pop_spatialscope | J1: pop_temporalscope | K1: hab_quantity | L1: hab_quality | M1: hab_temporal | N1: ecoprocess_spp | O1: ecoprocess_uncertainty | P1: datasharing | Q1: broaderimpacts | R1: exisitingpriorities | S1: partners | T1: leverage | U1: alignment | V1: objhyp | W1: response | X1: targettaxa | Y1: surveydesign | Z1: stats | AA1: datamanagement | AB1: budget | AC1: timeline | AD1: cost | AF1: Project | AG1: title | AH1: states | AI1: taxa_groups | AJ1: A_Marshbird_portfolio | AK1: B_Shorebird_portfolio | AL1: C_All_states_portfolio | AM1: D_No_proj_over_halfM | AN1: E_Texas_portfolio
A2: 1 | B2: 9 | C2: 6.25 | D2: 2 | E2: 2 | F2: 0 | G2: 186 | H2: 1054 | I2: 75 | J2: 5 | K2: 0 | L2: 2 | M2: 0 | N2: 0 | O2: 0 | P2: 4 | Q2: 0 | R2: 2 | S2: 3 | T2: 0 | U2: 0 | V2: 2 | W2: 3 | X2: 3 | Y2: 3 | Z2: 2 | AA2: 3 | AB2: 2 | AC2: 2 | AD2: 700000 | AF2: 1 | AG2: NFWF-A | AH2: NA | AI2: Shorebirds | AJ2: 0 | AK2: 1 | AL2: 0 | AM2: 0 | AN2: 0
A3: 2 | B3: 3 | C3: 28.2 | D3: 1 | E3: 0 | F3: 0 | G3: 0 | H3: 0 | I3: 0 | J3: 0 | K3: 0 | L3: 2 | M3: 0 | N3: 4 | O3: 1 | P3: 0 | Q3: 0 | R3: 3 | S3: 3 | T3: 0 | U3: 0 | V3: 2 | W3: 3 | X3: 3 | Y3: 3 | Z3: 2 | AA3: 3 | AB3: 2 | AC3: 2 | AD3: 5400000 | AF3: 2 | AG3: NFWF-B | AH3: NA | AI3: NA | AJ3: 0 | AK3: 0 | AL3: 0 | AM3: 0 | AN3: 0
A4: 3 | B4: 8 | C4: 28.2 | D4: 2 | E4: 0 | F4: 0 | G4: 0 | H4: 0 | I4: 0 | J4: 0 | K4: 0 | L4: 2 | M4: 0 | N4: 5 | O4: 1 | P4: 0 | Q4: 2 | R4: 0 | S4: 0 | T4: 0 | U4: 1 | V4: 2 | W4: 3 | X4: 3 | Y4: 3 | Z4: 2 | AA4: 1 | AB4: 2 | AC4: 2 | AD4: 250000 | AF4: 3 | AG4: NFWF-C | AH4: NA | AI4: NA | AJ4: 0 | AK4: 0 | AL4: 0 | AM4: 1 | AN4: 0
A5: 4 | B5: 1 | C5: 6.25 | D5: 2 | E5: 0 | F5: 0 | G5: 0 | H5: 0 | I5: 0 | J5: 0 | K5: 0 | L5: 2 | M5: 0 | N5: 4 | O5: 1 | P5: 0 | Q5: 1 | R5: 3 | S5: 3 | T5: 4 | U5: 0 | V5: 1 | W5: 3 | X5: 3 | Y5: 1 | Z5: 0 | AA5: 0 | AB5: 2 | AC5: 1 | AD5: 150000 | AF5: 4 | AG5: NFWF-D | AH5: LA | AI5: Shorebirds | AJ5: 0 | AK5: 1 | AL5: 0 | AM5: 0 | AN5: 0
A6: 5 | B6: 4 | C6: 3.1 | D6: 2 | E6: 0 | F6: 0 | G6: 0 | H6: 0 | I6: 50 | J6: 2 | K6: 0 | L6: 2 | M6: 0 | N6: 0 | O6: 0 | P6: 0 | Q6: 1 | R6: 3 | S6: 3 | T6: 4 | U6: 1 | V6: 0 | W6: 3 | X6: 3 | Y6: 2 | Z6: 0 | AA6: 0 | AB6: 2 | AC6: 1 | AD6: 220000 | AF6: 5 | AG6: NFWF-E | AH6: MS,FL | AI6: Shorebirds | AJ6: 0 | AK6: 1 | AL6: 0 | AM6: 1 | AN6: 0
A7: 6 | B7: 10 | C7: 0.062 | D7: 2 | E7: 0 | F7: 0 | G7: 0 | H7: 0 | I7: 10 | J7: 2 | K7: 0 | L7: 2 | M7: 0 | N7: 0 | O7: 0 | P7: 0 | Q7: 1 | R7: 0 | S7: 3 | T7: 3 | U7: 0 | V7: 0 | W7: 0 | X7: 3 | Y7: 0 | Z7: 0 | AA7: 0 | AB7: 2 | AC7: 1 | AD7: 110000 | AF7: 6 | AG7: NFWF-F | AH7: TX,LA | AI7: Shorebirds | AJ7: 0 | AK7: 1 | AL7: 0 | AM7: 0 | AN7: 1
A8: 7 | B8: 52 | C8: 18.8 | D8: 0 | E8: 2 | F8: 0 | G8: 0 | H8: 0 | I8: 85 | J8: 12 | K8: 85 | L8: 8 | M8: 12 | N8: 8 | O8: 1 | P8: 0 | Q8: 0 | R8: 3 | S8: 3 | T8: 0 | U8: 0 | V8: 2 | W8: 0 | X8: 1 | Y8: 3 | Z8: 2 | AA8: 2 | AB8: 0 | AC8: 2 | AD8: 1000000 | AF8: 7 | AG8: Omnibus Monitoring In Response to Sea Level Rise | AH8: All | AI8: All Minus Seabirds | AJ8: 0 | AK8: 0 | AL8: 1 | AM8: 0 | AN8: 0
A9: 8 | B9: 3 | C9: 18.8 | D9: 2 | E9: 1 | F9: 1 | G9: 0 | H9: 0 | I9: 14 | J9: 14 | K9: 14 | L9: 8 | M9: 14 | N9: 0 | O9: 0 | P9: 0 | Q9: 3 | R9: 1 | S9: 3 | T9: 0 | U9: 0 | V9: 2 | W9: 3 | X9: 3 | Y9: 3 | Z9: 2 | AA9: 0 | AB9: 1 | AC9: 1 | AD9: 5000000 | AF9: 8 | AG9: The effectiveness of island creation in Mobile Bay for island nesting species | AH9: AL | AI9: wading, Seabirds | AJ9: 0 | AK9: 0 | AL9: 0 | AM9: 0 | AN9: 0
A10: 9 | B10: 9 | C10: 15.6 | D10: 2 | E10: 1 | F10: 0 | G10: 70 | H10: 140 | I10: 0 | J10: 0 | K10: 0 | L10: 2 | M10: 0 | N10: 0 | O10: 0 | P10: 3 | Q10: 0 | R10: 3 | S10: 2 | T10: 1 | U10: 0 | V10: 2 | W10: 3 | X10: 3 | Y10: 1 | Z10: 2 | AA10: 1 | AB10: 1 | AC10: 2 | AD10: 25000 | AF10: 9 | AG10: the impact of wind development on migrating raptors in the GoM | AH10: All | AI10: Raptors | AJ10: 0 | AK10: 0 | AL10: 0 | AM10: 0 | AN10: 0
A11: 10 | B11: 0 | C11: 0 | D11: 0 | E11: 0 | F11: 0 | G11: 0 | H11: 0 | I11: 0 | J11: 0 | K11: 0 | L11: 2 | M11: 0 | N11: 6 | O11: 2 | P11: 1 | Q11: 2 | R11: 3 | S11: 2 | T11: 2 | U11: 0 | V11: 0 | W11: 2 | X11: 3 | Y11: 3 | Z11: 1 | AA11: 1 | AB11: 0 | AC11: 2 | AD11: 900000 | AF11: 10 | AG11: Do hurricanes impact survival of migratory/wintering waterfowl? Does stress/movement to avoid hurricanes impact migratory/wintering waterfowl survival? | AH11: Texas | AI11: Waterfowl | AJ11: 0 | AK11: 0 | AL11: 0 | AM11: 0 | AN11: 1
A12: 11 | B12: 0 | C12: 0 | D12: 0 | E12: 0 | F12: 0 | G12: 6 | H12: 102 | I12: 52 | J12: 15 | K12: 52 | L12: 8 | M12: 15 | N12: 3 | O12: 1 | P12: 1 | Q12: 0 | R12: 3 | S12: 3 | T12: 2 | U12: 2 | V12: 2 | W12: 1 | X12: 3 | Y12: 3 | Z12: 1 | AA12: 2 | AB12: 0 | AC12: 1 | AD12: 1500000 | AF12: 11 | AG12: How does increase in salinity impact habitat quality/quantity, and does it impact the population trend of wetland associated birds? | AH12: All | AI12: waterfowl, marshbirds, wadingbirds | AJ12: 0 | AK12: 0 | AL12: 1 | AM12: 0 | AN12: 0
A13: 12 | B13: 2 | C13: 15.6 | D13: 2 | E13: 1 | F13: 0 | G13: 0 | H13: 0 | I13: 0 | J13: 0 | K13: 0 | L13: 2 | M13: 0 | N13: 0 | O13: 0 | P13: 0 | Q13: 1 | R13: 3 | S13: 3 | T13: 3 | U13: 0 | V13: 1 | W13: 1 | X13: 3 | Y13: 1 | Z13: 2 | AA13: 1 | AB13: 2 | AC13: 0 | AD13: 100000 | AF13: 12 | AG13: The impact of rice agriculture on nesting King Rails and wintering Yellow Rails in Louisiana | AH13: LA | AI13: marshbird, landbird | AJ13: 1 | AK13: 0 | AL13: 0 | AM13: 0 | AN13: 0
A14: 13 | B14: 0 | C14: 0 | D14: 0 | E14: 0 | F14: 0 | G14: 0 | H14: 12 | I14: 39 | J14: 2 | K14: 39 | L14: 8 | M14: 2 | N14: 7 | O14: 1 | P14: 1 | Q14: 0 | R14: 3 | S14: 3 | T14: 0 | U14: 0 | V14: 1 | W14: 0 | X14: 1 | Y14: 0 | Z14: 2 | AA14: 1 | AB14: 1 | AC14: 1 | AD14: 250000 | AF14: 13 | AG14: How do hurricanes impact forage quality for nesting wadingbirds? | AH14: Fl, AL | AI14: Wading | AJ14: 0 | AK14: 0 | AL14: 0 | AM14: 1 | AN14: 0
A15: 14 | B15: 6 | C15: 15.6 | D15: 1 | E15: 1 | F15: 0 | G15: 0 | H15: 0 | I15: 0 | J15: 0 | K15: 0 | L15: 2 | M15: 0 | N15: 6 | O15: 1 | P15: 1 | Q15: 0 | R15: 3 | S15: 3 | T15: 0 | U15: 0 | V15: 1 | W15: 1 | X15: 3 | Y15: 3 | Z15: 1 | AA15: 2 | AB15: 1 | AC15: 1 | AD15: 500000 | AF15: 14 | AG15: How do hurriances impact forest management rotations, and nesting landbirds and raptors in those forests? | AH15: MS, AL | AI15: Landbird,Raptor | AJ15: 0 | AK15: 0 | AL15: 0 | AM15: 0 | AN15: 0
A16: 15 | B16: 23 | C16: 12.5 | D16: 2 | E16: 1 | F16: 1 | G16: 0 | H16: 0 | I16: 23 | J16: 3 | K16: 23 | L16: 8 | M16: 3 | N16: 1 | O16: 2 | P16: 2 | Q16: 0 | R16: 2 | S16: 3 | T16: 3 | U16: 2 | V16: 0 | W16: 3 | X16: 1 | Y16: 1 | Z16: 2 | AA16: 3 | AB16: 2 | AC16: 1 | AD16: 800000 | AF16: 15 | AG16: Using adaptive managgement to learn about how we should manage grasslands using prescribed fire in the face of climage change | AH16: All | AI16: Landbirds,Marshbird,Raptor | AJ16: 0 | AK16: 0 | AL16: 0 | AM16: 0 | AN16: 0
A17: 16 | B17: 0 | C17: 0 | D17: 0 | E17: 0 | F17: 0 | G17: 0 | H17: 0 | I17: 100 | J17: 15 | K17: 100 | L17: 7 | M17: 15 | N17: 0 | O17: 0 | P17: 3 | Q17: 0 | R17: 3 | S17: 3 | T17: 5 | U17: 0 | V17: 2 | W17: 2 | X17: 2 | Y17: 1 | Z17: 2 | AA17: 3 | AB17: 2 | AC17: 2 | AD17: 2000000 | AF17: 16 | AG17: Long-term monitoring of GoM raptors | AH17: All | AI17: Raptors | AJ17: 0 | AK17: 0 | AL17: 0 | AM17: 0 | AN17: 0
A18: 17 | B18: 2 | C18: 15.6 | D18: 2 | E18: 1 | F18: 1 | G18: 58 | H18: 290 | I18: 0 | J18: 0 | K18: 0 | L18: 8 | M18: 3 | N18: 0 | O18: 0 | P18: 0 | Q18: 0 | R18: 3 | S18: 2 | T18: 0 | U18: 0 | V18: 2 | W18: 3 | X18: 1 | Y18: 0 | Z18: 1 | AA18: 0 | AB18: 2 | AC18: 1 | AD18: 500000 | AF18: 17 | AG18: Learning more about how perscribed fire increases habitat quantity in forested systems through adapative management? | AH18: MS,AL | AI18: Landbirds | AJ18: 0 | AK18: 0 | AL18: 0 | AM18: 0 | AN18: 0
A19: 18 | B19: 0 | C19: 0 | D19: 0 | E19: 0 | F19: 0 | G19: 0 | H19: 30 | I19: 0 | J19: 0 | K19: 0 | L19: 2 | M19: 0 | N19: 8 | O19: 1 | P19: 1 | Q19: 3 | R19: 3 | S19: 3 | T19: 5 | U19: 1 | V19: 2 | W19: 2 | X19: 1 | Y19: 2 | Z19: 1 | AA19: 2 | AB19: 1 | AC19: 0 | AD19: 300000 | AF19: 18 | AG19: How do hurriances impact the survival of marshbirds | AH19: All | AI19: Marshbirds | AJ19: 1 | AK19: 0 | AL19: 0 | AM19: 1 | AN19: 0
A20: 19 | B20: 8 | C20: 3.125 | D20: 1 | E20: 2 | F20: 0 | G20: 0 | H20: 0 | I20: 0 | J20: 0 | K20: 0 | L20: 2 | M20: 0 | N20: 8 | O20: 2 | P20: 0 | Q20: 0 | R20: 2 | S20: 3 | T20: 0 | U20: 0 | V20: 1 | W20: 1 | X20: 3 | Y20: 2 | Z20: 0 | AA20: 1 | AB20: 0 | AC20: 1 | AD20: 750000 | AF20: 19 | AG20: How can prescribed fire be used to manage scrubland habitats for a greater diversity of migratory birds in the face of climate change? | AH20: ALl | AI20: Landbirds | AJ20: 0 | AK20: 0 | AL20: 0 | AM20: 0 | AN20: 0
A21: 20 | B21: 9 | C21: 15.6 | D21: 1 | E21: 2 | F21: 0 | G21: 0 | H21: 435 | I21: 76 | J21: 10 | K21: 76 | L21: 6 | M21: 10 | N21: 8 | O21: 2 | P21: 1 | Q21: 0 | R21: 3 | S21: 3 | T21: 3 | U21: 2 | V21: 1 | W21: 0 | X21: 0 | Y21: 1 | Z21: 2 | AA21: 1 | AB21: 0 | AC21: 1 | AD21: 1500000 | AF21: 20 | AG21: Comparison of the impacts of forested habitat cover change on population dynamics of long and short distance migrants | AH21: All | AI21: Landbirds | AJ21: 0 | AK21: 0 | AL21: 0 | AM21: 0 | AN21: 0
A22: 21 | B22: 0 | C22: 0 | D22: 0 | E22: 0 | F22: 0 | G22: 0 | H22: 0 | I22: 0 | J22: 0 | K22: 0 | L22: 2 | M22: 0 | N22: 8 | O22: 2 | P22: 0 | Q22: 1 | R22: 3 | S22: 3 | T22: 5 | U22: 1 | V22: 0 | W22: 2 | X22: 3 | Y22: 1 | Z22: 0 | AA22: 3 | AB22: 1 | AC22: 2 | AD22: 900000 | AF22: 21 | AG22: How do open ocean currents, surface temperature and seasonality impact seabird use off the GoM? | AH22: All | AI22: Seabirds | AJ22: 0 | AK22: 0 | AL22: 0 | AM22: 0 | AN22: 0
A23: 22 | B23: 0 | C23: 0 | D23: 0 | E23: 0 | F23: 0 | G23: 16 | H23: 64 | I23: 0 | J23: 0 | K23: 0 | L23: 2 | M23: 0 | N23: 1 | O23: 2 | P23: 4 | Q23: 2 | R23: 2 | S23: 3 | T23: 5 | U23: 0 | V23: 1 | W23: 2 | X23: 1 | Y23: 0 | Z23: 2 | AA23: 1 | AB23: 2 | AC23: 1 | AD23: 750000 | AF23: 22 | AG23: What has a larger impact on X seabird populations in the gulf, plastic consumption, accidental take, or weather patterns? | AH23: ALl | AI23: Seabirds | AJ23: 0 | AK23: 0 | AL23: 0 | AM23: 0 | AN23: 0
A24: 23 | B24: 9 | C24: 18.8 | D24: 2 | E24: 0 | F24: 0 | G24: 0 | H24: 0 | I24: 0 | J24: 0 | K24: 0 | L24: 2 | M24: 0 | N24: 0 | O24: 0 | P24: 3 | Q24: 0 | R24: 3 | S24: 3 | T24: 5 | U24: 0 | V24: 2 | W24: 1 | X24: 2 | Y24: 1 | Z24: 1 | AA24: 1 | AB24: 0 | AC24: 1 | AD24: 1000000 | AF24: 23 | AG24: How does water management, including the flooding of wetlands and cropfields, impact overwinter waterfowl surival? | AH24: All | AI24: Waterfowl | AJ24: 0 | AK24: 0 | AL24: 0 | AM24: 0 | AN24: 0
A25: 24 | B25: 5 | C25: 6.25 | D25: 2 | E25: 0 | F25: 0 | G25: 0 | H25: 0 | I25: 0 | J25: 0 | K25: 0 | L25: 2 | M25: 0 | N25: 0 | O25: 0 | P25: 0 | Q25: 0 | R25: 3 | S25: 3 | T25: 5 | U25: 0 | V25: 0 | W25: 3 | X25: 1 | Y25: 3 | Z25: 2 | AA25: 1 | AB25: 0 | AC25: 2 | AD25: 150000 | AF25: 24 | AG25: What kind of signage is most effective for decreasing human disturbance impacts on beach nesting birds? | AH25: All | AI25: Shorebirds | AJ25: 0 | AK25: 0 | AL25: 0 | AM25: 0 | AN25: 0
A26: 25 | B26: 9 | C26: 18.8 | D26: 2 | E26: 0 | F26: 0 | G26: 176 | H26: 308 | I26: 0 | J26: 0 | K26: 0 | L26: 2 | M26: 0 | N26: 8 | O26: 1 | P26: 2 | Q26: 2 | R26: 3 | S26: 3 | T26: 0 | U26: 0 | V26: 2 | W26: 1 | X26: 3 | Y26: 2 | Z26: 1 | AA26: 1 | AB26: 2 | AC26: 2 | AD26: 250000 | AF26: 25 | AG26: How does invasive species control impact marshbird use? | AH26: TX,LA,MS | AI26: Marshbirds | AJ26: 1 | AK26: 0 | AL26: 0 | AM26: 0 | AN26: 1
A27: 26 | B27: 17 | C27: 18.8 | D27: 2 | E27: 1 | F27: 0 | G27: 0 | H27: 0 | I27: 0 | J27: 0 | K27: 0 | L27: 2 | M27: 0 | N27: 0 | O27: 0 | P27: 3 | Q27: 0 | R27: 3 | S27: 3 | T27: 4 | U27: 0 | V27: 2 | W27: 1 | X27: 0 | Y27: 2 | Z27: 0 | AA27: 1 | AB27: 2 | AC27: 2 | AD27: 500000 | AF27: 26 | AG27: How does human disturbance impact the nest survival and fledging rate of nesting wading and marshbirds | AH27: Al,MS,FL | AI27: Marshbirds, Wadingbirds | AJ27: 0 | AK27: 0 | AL27: 0 | AM27: 0 | AN27: 0
A28: 27 | B28: 0 | C28: 6.25 | D28: 2 | E28: 0 | F28: 0 | G28: 0 | H28: 0 | I28: 0 | J28: 0 | K28: 80 | L28: 2 | M28: 5 | N28: 0 | O28: 0 | P28: 2 | Q28: 2 | R28: 3 | S28: 3 | T28: 5 | U28: 0 | V28: 1 | W28: 2 | X28: 3 | Y28: 1 | Z28: 0 | AA28: 0 | AB28: 0 | AC28: 0 | AD28: 1200000 | AF28: 27 | AG28: How does beach renourishment impact the invertebrate communities which are used by migratory and wintering shorebirds? | AH28: All | AI28: Shorebirds | AJ28: 0 | AK28: 1 | AL28: 0 | AM28: 0 | AN28: 0
A29: 28 | B29: 3 | C29: 6.25 | D29: 2 | E29: 0 | F29: 1 | G29: 0 | H29: 0 | I29: 0 | J29: 0 | K29: 0 | L29: 4 | M29: 5 | N29: 0 | O29: 0 | P29: 4 | Q29: 0 | R29: 3 | S29: 3 | T29: 4 | U29: 0 | V29: 2 | W29: 3 | X29: 3 | Y29: 1 | Z29: 0 | AA29: 2 | AB29: 2 | AC29: 1 | AD29: 500000 | AF29: 28 | AG29: Learning about how beach renourishment after oil contamination can increase habitat quantity for 3 declining shorebirds | AH29: LA | AI29: Shorebirds | AJ29: 0 | AK29: 0 | AL29: 0 | AM29: 0 | AN29: 0
A30: 29 | B30: 9 | C30: 12.5 | D30: 2 | E30: 1 | F30: 0 | G30: 0 | H30: 0 | I30: 15 | J30: 12 | K30: 15 | L30: 8 | M30: 12 | N30: 0 | O30: 0 | P30: 1 | Q30: 0 | R30: 3 | S30: 3 | T30: 4 | U30: 0 | V30: 2 | W30: 1 | X30: 0 | Y30: 2 | Z30: 1 | AA30: 1 | AB30: 1 | AC30: 2 | AD30: 2000000 | AF30: 29 | AG30: When restoring wetlands and grasslands, but unable to restore very large patches, is there an advantage to restoring the two habitat types near each other for species in each habitat type, versus cropfields | AH30: ALl | AI30: Marshbirds, Landbirds, Raptors | AJ30: 0 | AK30: 0 | AL30: 0 | AM30: 0 | AN30: 1
A31: 30 | B31: 33 | C31: 18.8 | D31: 2 | E31: 0 | F31: 0 | G31: 0 | H31: 0 | I31: 0 | J31: 0 | K31: 0 | L31: 4 | M31: 2 | N31: 0 | O31: 0 | P31: 0 | Q31: 0 | R31: 1 | S31: 1 | T31: 0 | U31: 0 | V31: 0 | W31: 3 | X31: 1 | Y31: 2 | Z31: 0 | AA31: 2 | AB31: 2 | AC31: 0 | AD31: 250000 | AF31: 30 | AG31: How does prescribed fire impact marshbird habitat quanitity? | AH31: LA | AI31: Marshbirds | AJ31: 1 | AK31: 0 | AL31: 0 | AM31: 0 | AN31: 0
A32: 31 | B32: 4 | C32: 18.8 | D32: 1 | E32: 0 | F32: 0 | G32: 0 | H32: 0 | I32: 65 | J32: 4 | K32: 0 | L32: 4 | M32: 4 | N32: 0 | O32: 0 | P32: 2 | Q32: 0 | R32: 3 | S32: 2 | T32: 3 | U32: 0 | V32: 1 | W32: 0 | X32: 1 | Y32: 1 | Z32: 2 | AA32: 2 | AB32: 1 | AC32: 1 | AD32: 650000 | AF32: 31 | AG32: How does fresh water management impact the quantity of wetland habitat available to wintering marshbirds? | AH32: TX,LA,MS | AI32: Marshbirds | AJ32: 1 | AK32: 0 | AL32: 0 | AM32: 0 | AN32: 1
A33: 32 | B33: 5 | C33: 3.125 | D33: 2 | E33: 2 | F33: 1 | G33: 6 | H33: 102 | I33: 40 | J33: 16 | K33: 40 | L33: 8 | M33: 16 | N33: 0 | O33: 0 | P33: 2 | Q33: 3 | R33: 3 | S33: 0 | T33: 4 | U33: 0 | V33: 0 | W33: 2 | X33: 1 | Y33: 2 | Z33: 1 | AA33: 0 | AB33: 2 | AC33: 1 | AD33: 200000 | AF33: 32 | AG33: Learning about how management of scrub shrub succession impacts habitat quantity and quantity as well as population trends for migratory landbirds through adpative management | AH33: FL, Al | AI33: Landbirds | AJ33: 0 | AK33: 0 | AL33: 0 | AM33: 0 | AN33: 0
A34: 33 | B34: 14 | C34: 18.8 | D34: 2 | E34: 1 | F34: 0 | G34: 0 | H34: 0 | I34: 0 | J34: 0 | K34: 0 | L34: 5 | M34: 0 | N34: 0 | O34: 0 | P34: 2 | Q34: 0 | R34: 3 | S34: 2 | T34: 0 | U34: 0 | V34: 1 | W34: 3 | X34: 0 | Y34: 2 | Z34: 2 | AA34: 3 | AB34: 0 | AC34: 0 | AD34: 400000 | AF34: 33 | AG34: The impacts of offshore oil development on wintering seabirds and lesser scaup | AH34: All | AI34: Seabirds, Waterfowl | AJ34: 0 | AK34: 0 | AL34: 1 | AM34: 1 | AN34: 0
A35: 34 | B35: 0 | C35: 0 | D35: 0 | E35: 0 | F35: 0 | G35: 0 | H35: 12 | I35: 100 | J35: 15 | K35: 100 | L35: 8 | M35: 15 | N35: 0 | O35: 0 | P35: 2 | Q35: 0 | R35: 3 | S35: 3 | T35: 4 | U35: 0 | V35: 2 | W35: 3 | X35: 3 | Y35: 0 | Z35: 2 | AA35: 2 | AB35: 1 | AC35: 0 | AD35: 900000 | AF35: 34 | AG35: long-term monitoring of the reddish egret | AH35: All | AI35: Wading | AJ35: 0 | AK35: 0 | AL35: 1 | AM35: 0 | AN35: 0
A36: 35 | B36: 8 | C36: 9.4 | D36: 1 | E36: 1 | F36: 1 | G36: 0 | H36: 0 | I36: 0 | J36: 0 | K36: 100 | L36: 6 | M36: 5 | N36: 8 | O36: 0 | P36: 0 | Q36: 0 | R36: 3 | S36: 3 | T36: 3 | U36: 0 | V36: 2 | W36: 2 | X36: 0 | Y36: 1 | Z36: 2 | AA36: 0 | AB36: 1 | AC36: 1 | AD36: 900000 | AF36: 35 | AG36: The impacts of sealevel rise and stormwater management on the habitat quantity , food resources and use by wadingbirds | AH36: All | AI36: Wading | AJ36: 0 | AK36: 0 | AL36: 1 | AM36: 0 | AN36: 0
B38: =B1 -> manage_species | C38: =C1 -> manage_spatial | D38: manage_uncertainty | E38: manage_currentpractices | F38: manage_adaptivemanagement | G38: pop_a | H38: pop_b | I38: pop_spatialscope | J38: pop_temporalscope | K38: hab_quantity | L38: hab_quality | M38: hab_temporal | N38: ecoprocess_spp | O38: ecoprocess_uncertainty | P38: datasharing | Q38: broaderimpacts | R38: exisitingpriorities | S38: partners | T38: leverage | U38: alignment | V38: objhyp | W38: response | X38: targettaxa | Y38: surveydesign | Z38: stats | AA38: datamanagement | AB38: budget | AC38: timeline
B39: Metric 1 | C39: Metric 2 | D39: Metric 3 | E39: Metric 4 | F39: Metric 5 | G39: Metric 6a | H39: Metric 6b | I39: Metric 7 | J39: Metric 8 | K39: Metric 9 | L39: Metric 10 | M39: Metric 11 | N39: Metric 12 | O39: Metric 13 | P39: Metric 14 | Q39: Metric 15 | R39: Metric 16 | S39: Metric 17 | T39: Metric 18 | U39: Metric 19 | V39: Metric 20 | W39: Metric 21 | X39: Metric 22 | Y39: Metric 23 | Z39: Metric 24 | AA39: Metric 25 | AB39: Metric 26 | AC39: Metric 27
A40: Weights | B40: 0.03 | C40: 0.03 | D40: 0.03 | E40: 0.03 | F40: 0.04 | G40: 0.015 | H40: 0.015 | I40: 0.03 | J40: 0.02 | K40: 0.02 | L40: 0.02 | M40: 0.02 | N40: 0.03 | O40: 0.09 | P40: 0.04 | Q40: 0.04 | R40: 0.05 | S40: 0.05 | T40: 0.03 | U40: 0.03 | V40: 0.05 | W40: 0.04 | X40: 0.04 | Y40: 0.05 | Z40: 0.05 | AA40: 0.04 | AB40: 0.04 | AC40: 0.03
A42: Project | AD42: total | AE42: sdm_tool_excel after corrections | AG42: management | AH42: status | AI42: ep | AJ42: integration | AK42: rigor
A43: =A2 -> 1 | B43: =$B$40*(valueE(B2,'Utility Functions'!$B$3,'Utility Functions'!$B$4,'Utility Functions'!$B$5,'Utility Functions'!$B$6)) -> 0.02504107129 | C43: =$C$40*(valueE(C2,'Utility Functions'!$D$3,'Utility Functions'!$D$4,'Utility Functions'!$D$5,'Utility Functions'!$D$6)) -> 0.01394279015 | D43: =$D$40*(valuePL(D2,'Utility Functions'!$E$3:$E$5,'Utility Functions'!$F$3:$F$5)) -> 0.03 | E43: =$E$40*(valuePL(E2,'Utility Functions'!$G$3:$G$5,'Utility Functions'!$H$3:$H$5)) -> 0.03 | F43: =$F$40*(valuePL(F2,'Utility Functions'!$I$3:$I$4,'Utility Functions'!$J$3:$J$5)) -> 0 | G43: =$G$40*(valueE(G2,'Utility Functions'!$L$3,'Utility Functions'!$L$4,'Utility Functions'!$L$5,'Utility Functions'!$L$6)) -> 0.015 | H43: =$H$40*(valueE(H2,'Utility Functions'!$N$3,'Utility Functions'!$N$4,'Utility Functions'!$N$5,'Utility Functions'!$N$6)) -> 0.015 | I43: =$I$40*valuePL(I2,'Utility Functions'!$O$3:$O$6,'Utility Functions'!$P$3:$P$6) -> 0.02754545455 | J43: =$J$40*valuePL(J2,'Utility Functions'!$Q$3:$Q$6,'Utility Functions'!$R$3:$R$6) -> 0.002 | K43: =$K$40*(valuePL(K2,'Utility Functions'!$S$3:$S$7,'Utility Functions'!$T$3:$T$7)) -> 0 | L43: =$L$40*(valueE(L2,'Utility Functions'!$V$3,'Utility Functions'!$V$4,'Utility Functions'!$V$5,'Utility Functions'!$V$6)) -> 0 | M43: =$M$40*valuePL(M2,'Utility Functions'!$W$3:$W$6,'Utility Functions'!$X$3:$X$6) -> 0 | N43: =$N$40*valueE(N2,'Utility Functions'!$Z$3,'Utility Functions'!$Z$4,'Utility Functions'!$Z$5,'Utility Functions'!$Z$6) -> 0 | O43: =$O$40*valuePL(O2,'Utility Functions'!$AA$3:$AA$5,'Utility Functions'!$AB$3:$AB$5) -> 0 | P43: =$P$40*valuePL(P2,'Utility Functions'!$AC$3:$AC$7,'Utility Functions'!$AD$3:$AD$7) -> 0.04 | Q43: =$Q$40*valuePL(Q2,'Utility Functions'!$AE$3:$AE$6,'Utility Functions'!$AF$3:$AF$6) -> 0 | R43: =$R$40*valuePL(R2,'Utility Functions'!$AG$3:$AG$6,'Utility Functions'!$AH$3:$AH$6) -> 0.04 | S43: =$S$40*valuePL(S2,'Utility Functions'!$AI$3:$AI$6,'Utility Functions'!$AJ$3:$AJ$6) -> 0.05 | T43: =$T$40*valuePL(T2,'Utility Functions'!$AK$3:$AK$8,'Utility Functions'!$AL$3:$AL$8) -> 0 | U43: =$U$40*valuePL(U2,'Utility Functions'!$AM$3:$AM$5,'Utility Functions'!$AN$3:$AN$5) -> 0 | V43: =$V$40*valuePL(V2,'Utility Functions'!$AO$3:$AO$5,'Utility Functions'!$AP$3:$AP$5) -> 0.05 | W43: =$W$40*valuePL(W2,'Utility Functions'!$AQ$3:$AQ$6,'Utility Functions'!$AR$3:$AR$6) -> 0.04 | X43: =$X$40*valuePL(X2,'Utility Functions'!$AS$3:$AS$6,'Utility Functions'!$AT$3:$AT$6) -> 0.04 | Y43: =$Y$40*valuePL(Y2,'Utility Functions'!$AU$3:$AU$6,'Utility Functions'!$AV$3:$AV$6) -> 0.05 | Z43: =$Z$40*valuePL(Z2,'Utility Functions'!$AW$3:$AW$5,'Utility Functions'!$AX$3:$AX$5) -> 0.05 | AA43: =$AA$40*valuePL(AA2,'Utility Functions'!$AY$3:$AY$6,'Utility Functions'!$AZ$3:$AZ$6) -> 0.04 | AB43: =$AB$40*valuePL(AB2,'Utility Functions'!$BA$3:$BA$5,'Utility Functions'!$BB$3:$BB$5) -> 0.04 | AC43: =$AC$40*valuePL(AC2,'Utility Functions'!$BC$3:$BC$5,'Utility Functions'!$BD$3:$BD$5) -> 0.03 | AD43: =SUM(B43:AC43) -> 0.628529316 | AE43: 0.6267946694 | AG43: =SUM(B43:F43) -> 0.09898386144 | AH43: =SUM(G43:M43) -> 0.05954545455 | AI43: =SUM(N43:O43) -> 0 | AJ43: =SUM(P43:U43) -> 0.13 | AK43: =SUM(V43:AC43) -> 0.34
A44: =A3 -> 2 | B44: =$B$40*(valueE(B3,'Utility Functions'!$B$3,'Utility Functions'!$B$4,'Utility Functions'!$B$5,'Utility Functions'!$B$6)) -> 0.01353567143 | C44: =$C$40*(valueE(C3,'Utility Functions'!$D$3,'Utility Functions'!$D$4,'Utility Functions'!$D$5,'Utility Functions'!$D$6)) -> 0.02821310259 | D44: =$D$40*(valuePL(D3,'Utility Functions'!$E$3:$E$5,'Utility Functions'!$F$3:$F$5)) -> 0.015 | E44: =$E$40*(valuePL(E3,'Utility Functions'!$G$3:$G$5,'Utility Functions'!$H$3:$H$5)) -> 0 | F44: =$F$40*(valuePL(F3,'Utility Functions'!$I$3:$I$4,'Utility Functions'!$J$3:$J$5)) -> 0 | G44: =$G$40*(valueE(G3,'Utility Functions'!$L$3,'Utility Functions'!$L$4,'Utility Functions'!$L$5,'Utility Functions'!$L$6)) -> 0 | H44: =$H$40*(valueE(H3,'Utility Functions'!$N$3,'Utility Functions'!$N$4,'Utility Functions'!$N$5,'Utility Functions'!$N$6)) -> 0 | I44: =$I$40*valuePL(I3,'Utility Functions'!$O$3:$O$6,'Utility Functions'!$P$3:$P$6) -> 0 | J44: =$J$40*valuePL(J3,'Utility Functions'!$Q$3:$Q$6,'Utility Functions'!$R$3:$R$6) -> 0 | K44: =$K$40*(valuePL(K3,'Utility Functions'!$S$3:$S$7,'Utility Functions'!$T$3:$T$7)) -> 0 | L44: =$L$40*(valueE(L3,'Utility Functions'!$V$3,'Utility Functions'!$V$4,'Utility Functions'!$V$5,'Utility Functions'!$V$6)) -> 0 | M44: =$M$40*valuePL(M3,'Utility Functions'!$W$3:$W$6,'Utility Functions'!$X$3:$X$6) -> 0 | N44: =$N$40*valueE(N3,'Utility Functions'!$Z$3,'Utility Functions'!$Z$4,'Utility Functions'!$Z$5,'Utility Functions'!$Z$6) -> 0.015 | O44: =$O$40*valuePL(O3,'Utility Functions'!$AA$3:$AA$5,'Utility Functions'!$AB$3:$AB$5) -> 0.0225 | P44: =$P$40*valuePL(P3,'Utility Functions'!$AC$3:$AC$7,'Utility Functions'!$AD$3:$AD$7) -> 0 | Q44: =$Q$40*valuePL(Q3,'Utility Functions'!$AE$3:$AE$6,'Utility Functions'!$AF$3:$AF$6) -> 0 | R44: =$R$40*valuePL(R3,'Utility Functions'!$AG$3:$AG$6,'Utility Functions'!$AH$3:$AH$6) -> 0.05 | S44: =$S$40*valuePL(S3,'Utility Functions'!$AI$3:$AI$6,'Utility Functions'!$AJ$3:$AJ$6) -> 0.05 | T44: =$T$40*valuePL(T3,'Utility Functions'!$AK$3:$AK$8,'Utility Functions'!$AL$3:$AL$8) -> 0 | U44: =$U$40*valuePL(U3,'Utility Functions'!$AM$3:$AM$5,'Utility Functions'!$AN$3:$AN$5) -> 0 | V44: =$V$40*valuePL(V3,'Utility Functions'!$AO$3:$AO$5,'Utility Functions'!$AP$3:$AP$5) -> 0.05 | W44: =$W$40*valuePL(W3,'Utility Functions'!$AQ$3:$AQ$6,'Utility Functions'!$AR$3:$AR$6) -> 0.04 | X44: =$X$40*valuePL(X3,'Utility Functions'!$AS$3:$AS$6,'Utility Functions'!$AT$3:$AT$6) -> 0.04 | Y44: =$Y$40*valuePL(Y3,'Utility Functions'!$AU$3:$AU$6,'Utility Functions'!$AV$3:$AV$6) -> 0.05 | Z44: =$Z$40*valuePL(Z3,'Utility Functions'!$AW$3:$AW$5,'Utility Functions'!$AX$3:$AX$5) -> 0.05 | AA44: =$AA$40*valuePL(AA3,'Utility Functions'!$AY$3:$AY$6,'Utility Functions'!$AZ$3:$AZ$6) -> 0.04 | AB44: =$AB$40*valuePL(AB3,'Utility Functions'!$BA$3:$BA$5,'Utility Functions'!$BB$3:$BB$5) -> 0.04 | AC44: =$AC$40*valuePL(AC3,'Utility Functions'!$BC$3:$BC$5,'Utility Functions'!$BD$3:$BD$5) -> 0.03 | AD44: =SUM(B44:AC44) -> 0.534248774 | AE44: 0.5325173497 | AG44: =SUM(B44:F44) -> 0.05674877402 | AH44: =SUM(G44:M44) -> 0 | AI44: =SUM(N44:O44) -> 0.0375 | AJ44: =SUM(P44:U44) -> 0.1 | AK44: =SUM(V44:AC44) -> 0.34
A45: 3 | B45: =$B$40*(valueE(B4,'Utility Functions'!$B$3,'Utility Functions'!$B$4,'Utility Functions'!$B$5,'Utility Functions'!$B$6)) -> 0.02394314074 | C45: =$C$40*(valueE(C4,'Utility Functions'!$D$3,'Utility Functions'!$D$4,'Utility Functions'!$D$5,'Utility Functions'!$D$6)) -> 0.02821310259 | D45: =$D$40*(valuePL(D4,'Utility Functions'!$E$3:$E$5,'Utility Functions'!$F$3:$F$5)) -> 0.03 | E45: =$E$40*(valuePL(E4,'Utility Functions'!$G$3:$G$5,'Utility Functions'!$H$3:$H$5)) -> 0 | F45: =$F$40*(valuePL(F4,'Utility Functions'!$I$3:$I$4,'Utility Functions'!$J$3:$J$5)) -> 0 | G45: =$G$40*(valueE(G4,'Utility Functions'!$L$3,'Utility Functions'!$L$4,'Utility Functions'!$L$5,'Utility Functions'!$L$6)) -> 0 | H45: =$H$40*(valueE(H4,'Utility Functions'!$N$3,'Utility Functions'!$N$4,'Utility Functions'!$N$5,'Utility Functions'!$N$6)) -> 0 | I45: =$I$40*valuePL(I4,'Utility Functions'!$O$3:$O$6,'Utility Functions'!$P$3:$P$6) -> 0 | J45: =$J$40*valuePL(J4,'Utility Functions'!$Q$3:$Q$6,'Utility Functions'!$R$3:$R$6) -> 0 | K45: =$K$40*(valuePL(K4,'Utility Functions'!$S$3:$S$7,'Utility Functions'!$T$3:$T$7)) -> 0 | L45: =$L$40*(valueE(L4,'Utility Functions'!$V$3,'Utility Functions'!$V$4,'Utility Functions'!$V$5,'Utility Functions'!$V$6)) -> 0 | M45: =$M$40*valuePL(M4,'Utility Functions'!$W$3:$W$6,'Utility Functions'!$X$3:$X$6) -> 0 | N45: =$N$40*valueE(N4,'Utility Functions'!$Z$3,'Utility Functions'!$Z$4,'Utility Functions'!$Z$5,'Utility Functions'!$Z$6) -> 0.01875 | O45: =$O$40*valuePL(O4,'Utility Functions'!$AA$3:$AA$5,'Utility Functions'!$AB$3:$AB$5) -> 0.0225 | P45: =$P$40*valuePL(P4,'Utility Functions'!$AC$3:$AC$7,'Utility Functions'!$AD$3:$AD$7) -> 0 | Q45: =$Q$40*valuePL(Q4,'Utility Functions'!$AE$3:$AE$6,'Utility Functions'!$AF$3:$AF$6) -> 0.02 | R45: =$R$40*valuePL(R4,'Utility Functions'!$AG$3:$AG$6,'Utility Functions'!$AH$3:$AH$6) -> 0 | S45: =$S$40*valuePL(S4,'Utility Functions'!$AI$3:$AI$6,'Utility Functions'!$AJ$3:$AJ$6) -> 0 | T45: =$T$40*valuePL(T4,'Utility Functions'!$AK$3:$AK$8,'Utility Functions'!$AL$3:$AL$8) -> 0 | U45: =$U$40*valuePL(U4,'Utility Functions'!$AM$3:$AM$5,'Utility Functions'!$AN$3:$AN$5) -> 0.0075 | V45: =$V$40*valuePL(V4,'Utility Functions'!$AO$3:$AO$5,'Utility Functions'!$AP$3:$AP$5) -> 0.05 | W45: =$W$40*valuePL(W4,'Utility Functions'!$AQ$3:$AQ$6,'Utility Functions'!$AR$3:$AR$6) -> 0.04 | X45: =$X$40*valuePL(X4,'Utility Functions'!$AS$3:$AS$6,'Utility Functions'!$AT$3:$AT$6) -> 0.04 | Y45: =$Y$40*valuePL(Y4,'Utility Functions'!$AU$3:$AU$6,'Utility Functions'!$AV$3:$AV$6) -> 0.05 | Z45: =$Z$40*valuePL(Z4,'Utility Functions'!$AW$3:$AW$5,'Utility Functions'!$AX$3:$AX$5) -> 0.05 | AA45: =$AA$40*valuePL(AA4,'Utility Functions'!$AY$3:$AY$6,'Utility Functions'!$AZ$3:$AZ$6) -> 0.008 | AB45: =$AB$40*valuePL(AB4,'Utility Functions'!$BA$3:$BA$5,'Utility Functions'!$BB$3:$BB$5) -> 0.04 | AC45: =$AC$40*valuePL(AC4,'Utility Functions'!$BC$3:$BC$5,'Utility Functions'!$BD$3:$BD$5) -> 0.03 | AD45: 0.4589062433 | AE45: 0.4570555008 | AG45: 0.08215624333 | AH45: 0 | AI45: 0.04125 | AJ45: 0.0275 | AK45: 0.308
A46: 4 | B46: =$B$40*(valueE(B5,'Utility Functions'!$B$3,'Utility Functions'!$B$4,'Utility Functions'!$B$5,'Utility Functions'!$B$6)) -> 0.005438085647 | C46: =$C$40*(valueE(C5,'Utility Functions'!$D$3,'Utility Functions'!$D$4,'Utility Functions'!$D$5,'Utility Functions'!$D$6)) -> 0.01394279015 | D46: =$D$40*(valuePL(D5,'Utility Functions'!$E$3:$E$5,'Utility Functions'!$F$3:$F$5)) -> 0.03 | E46: =$E$40*(valuePL(E5,'Utility Functions'!$G$3:$G$5,'Utility Functions'!$H$3:$H$5)) -> 0 | F46: =$F$40*(valuePL(F5,'Utility Functions'!$I$3:$I$4,'Utility Functions'!$J$3:$J$5)) -> 0 | G46: =$G$40*(valueE(G5,'Utility Functions'!$L$3,'Utility Functions'!$L$4,'Utility Functions'!$L$5,'Utility Functions'!$L$6)) -> 0 | H46: =$H$40*(valueE(H5,'Utility Functions'!$N$3,'Utility Functions'!$N$4,'Utility Functions'!$N$5,'Utility Functions'!$N$6)) -> 0 | I46: =$I$40*valuePL(I5,'Utility Functions'!$O$3:$O$6,'Utility Functions'!$P$3:$P$6) -> 0 | J46: =$J$40*valuePL(J5,'Utility Functions'!$Q$3:$Q$6,'Utility Functions'!$R$3:$R$6) -> 0 | K46: =$K$40*(valuePL(K5,'Utility Functions'!$S$3:$S$7,'Utility Functions'!$T$3:$T$7)) -> 0 | L46: =$L$40*(valueE(L5,'Utility Functions'!$V$3,'Utility Functions'!$V$4,'Utility Functions'!$V$5,'Utility Functions'!$V$6)) -> 0 | M46: =$M$40*valuePL(M5,'Utility Functions'!$W$3:$W$6,'Utility Functions'!$X$3:$X$6) -> 0 | N46: =$N$40*valueE(N5,'Utility Functions'!$Z$3,'Utility Functions'!$Z$4,'Utility Functions'!$Z$5,'Utility Functions'!$Z$6) -> 0.015 | O46: =$O$40*valuePL(O5,'Utility Functions'!$AA$3:$AA$5,'Utility Functions'!$AB$3:$AB$5) -> 0.0225 | P46: =$P$40*valuePL(P5,'Utility Functions'!$AC$3:$AC$7,'Utility Functions'!$AD$3:$AD$7) -> 0 | Q46: =$Q$40*valuePL(Q5,'Utility Functions'!$AE$3:$AE$6,'Utility Functions'!$AF$3:$AF$6) -> 0.004 | R46: =$R$40*valuePL(R5,'Utility Functions'!$AG$3:$AG$6,'Utility Functions'!$AH$3:$AH$6) -> 0.05 | S46: =$S$40*valuePL(S5,'Utility Functions'!$AI$3:$AI$6,'Utility Functions'!$AJ$3:$AJ$6) -> 0.05 | T46: =$T$40*valuePL(T5,'Utility Functions'!$AK$3:$AK$8,'Utility Functions'!$AL$3:$AL$8) -> 0.024 | U46: =$U$40*valuePL(U5,'Utility Functions'!$AM$3:$AM$5,'Utility Functions'!$AN$3:$AN$5) -> 0 | V46: =$V$40*valuePL(V5,'Utility Functions'!$AO$3:$AO$5,'Utility Functions'!$AP$3:$AP$5) -> 0.025 | W46: =$W$40*valuePL(W5,'Utility Functions'!$AQ$3:$AQ$6,'Utility Functions'!$AR$3:$AR$6) -> 0.04 | X46: =$X$40*valuePL(X5,'Utility Functions'!$AS$3:$AS$6,'Utility Functions'!$AT$3:$AT$6) -> 0.04 | Y46: =$Y$40*valuePL(Y5,'Utility Functions'!$AU$3:$AU$6,'Utility Functions'!$AV$3:$AV$6) -> 0.01 | Z46: =$Z$40*valuePL(Z5,'Utility Functions'!$AW$3:$AW$5,'Utility Functions'!$AX$3:$AX$5) -> 0 | AA46: =$AA$40*valuePL(AA5,'Utility Functions'!$AY$3:$AY$6,'Utility Functions'!$AZ$3:$AZ$6) -> 0 | AB46: =$AB$40*valuePL(AB5,'Utility Functions'!$BA$3:$BA$5,'Utility Functions'!$BB$3:$BB$5) -> 0.04 | AC46: =$AC$40*valuePL(AC5,'Utility Functions'!$BC$3:$BC$5,'Utility Functions'!$BD$3:$BD$5) -> 0.0075 | AD46: 0.3773808758 | AE46: 0.3765484035 | AG46: 0.04938087579 | AH46: 0 | AI46: 0.0375 | AJ46: 0.128 | AK46: 0.1625
A47: 5 | B47: =$B$40*(valueE(B6,'Utility Functions'!$B$3,'Utility Functions'!$B$4,'Utility Functions'!$B$5,'Utility Functions'!$B$6)) -> 0.01652015611 | C47: =$C$40*(valueE(C6,'Utility Functions'!$D$3,'Utility Functions'!$D$4,'Utility Functions'!$D$5,'Utility Functions'!$D$6)) -> 0.007996954374 | D47: =$D$40*(valuePL(D6,'Utility Functions'!$E$3:$E$5,'Utility Functions'!$F$3:$F$5)) -> 0.03 | E47: =$E$40*(valuePL(E6,'Utility Functions'!$G$3:$G$5,'Utility Functions'!$H$3:$H$5)) -> 0 | F47: =$F$40*(valuePL(F6,'Utility Functions'!$I$3:$I$4,'Utility Functions'!$J$3:$J$5)) -> 0 | G47: =$G$40*(valueE(G6,'Utility Functions'!$L$3,'Utility Functions'!$L$4,'Utility Functions'!$L$5,'Utility Functions'!$L$6)) -> 0 | H47: =$H$40*(valueE(H6,'Utility Functions'!$N$3,'Utility Functions'!$N$4,'Utility Functions'!$N$5,'Utility Functions'!$N$6)) -> 0 | I47: =$I$40*valuePL(I6,'Utility Functions'!$O$3:$O$6,'Utility Functions'!$P$3:$P$6) -> 0.01527272727 | J47: =$J$40*valuePL(J6,'Utility Functions'!$Q$3:$Q$6,'Utility Functions'!$R$3:$R$6) -> 0.0008 | K47: =$K$40*(valuePL(K6,'Utility Functions'!$S$3:$S$7,'Utility Functions'!$T$3:$T$7)) -> 0 | L47: =$L$40*(valueE(L6,'Utility Functions'!$V$3,'Utility Functions'!$V$4,'Utility Functions'!$V$5,'Utility Functions'!$V$6)) -> 0 | M47: =$M$40*valuePL(M6,'Utility Functions'!$W$3:$W$6,'Utility Functions'!$X$3:$X$6) -> 0 | N47: =$N$40*valueE(N6,'Utility Functions'!$Z$3,'Utility Functions'!$Z$4,'Utility Functions'!$Z$5,'Utility Functions'!$Z$6) -> 0 | O47: =$O$40*valuePL(O6,'Utility Functions'!$AA$3:$AA$5,'Utility Functions'!$AB$3:$AB$5) -> 0 | P47: =$P$40*valuePL(P6,'Utility Functions'!$AC$3:$AC$7,'Utility Functions'!$AD$3:$AD$7) -> 0 | Q47: =$Q$40*valuePL(Q6,'Utility Functions'!$AE$3:$AE$6,'Utility Functions'!$AF$3:$AF$6) -> 0.004 | R47: =$R$40*valuePL(R6,'Utility Functions'!$AG$3:$AG$6,'Utility Functions'!$AH$3:$AH$6) -> 0.05 | S47: =$S$40*valuePL(S6,'Utility Functions'!$AI$3:$AI$6,'Utility Functions'!$AJ$3:$AJ$6) -> 0.05 | T47: =$T$40*valuePL(T6,'Utility Functions'!$AK$3:$AK$8,'Utility Functions'!$AL$3:$AL$8) -> 0.024 | U47: =$U$40*valuePL(U6,'Utility Functions'!$AM$3:$AM$5,'Utility Functions'!$AN$3:$AN$5) -> 0.0075 | V47: =$V$40*valuePL(V6,'Utility Functions'!$AO$3:$AO$5,'Utility Functions'!$AP$3:$AP$5) -> 0 | W47: =$W$40*valuePL(W6,'Utility Functions'!$AQ$3:$AQ$6,'Utility Functions'!$AR$3:$AR$6) -> 0.04 | X47: =$X$40*valuePL(X6,'Utility Functions'!$AS$3:$AS$6,'Utility Functions'!$AT$3:$AT$6) -> 0.04 | Y47: =$Y$40*valuePL(Y6,'Utility Functions'!$AU$3:$AU$6,'Utility Functions'!$AV$3:$AV$6) -> 0.04 | Z47: =$Z$40*valuePL(Z6,'Utility Functions'!$AW$3:$AW$5,'Utility Functions'!$AX$3:$AX$5) -> 0 | AA47: =$AA$40*valuePL(AA6,'Utility Functions'!$AY$3:$AY$6,'Utility Functions'!$AZ$3:$AZ$6) -> 0 | AB47: =$AB$40*valuePL(AB6,'Utility Functions'!$BA$3:$BA$5,'Utility Functions'!$BB$3:$BB$5) -> 0.04 | AC47: =$AC$40*valuePL(AC6,'Utility Functions'!$BC$3:$BC$5,'Utility Functions'!$BD$3:$BD$5) -> 0.0075 | AD47: 0.3735898378 | AE47: 0.3716673745 | AG47: 0.05451711048 | AH47: 0.01607272727 | AI47: 0 | AJ47: 0.1355 | AK47: 0.1675
A48: 6 | B48: =$B$40*(valueE(B7,'Utility Functions'!$B$3,'Utility Functions'!$B$4,'Utility Functions'!$B$5,'Utility Functions'!$B$6)) -> 0.02593998081 | C48: =$C$40*(valueE(C7,'Utility Functions'!$D$3,'Utility Functions'!$D$4,'Utility Functions'!$D$5,'Utility Functions'!$D$6)) -> 0.0001854330084 | D48: =$D$40*(valuePL(D7,'Utility Functions'!$E$3:$E$5,'Utility Functions'!$F$3:$F$5)) -> 0.03 | E48: =$E$40*(valuePL(E7,'Utility Functions'!$G$3:$G$5,'Utility Functions'!$H$3:$H$5)) -> 0 | F48: =$F$40*(valuePL(F7,'Utility Functions'!$I$3:$I$4,'Utility Functions'!$J$3:$J$5)) -> 0 | G48: =$G$40*(valueE(G7,'Utility Functions'!$L$3,'Utility Functions'!$L$4,'Utility Functions'!$L$5,'Utility Functions'!$L$6)) -> 0 | H48: =$H$40*(valueE(H7,'Utility Functions'!$N$3,'Utility Functions'!$N$4,'Utility Functions'!$N$5,'Utility Functions'!$N$6)) -> 0 | I48: =$I$40*valuePL(I7,'Utility Functions'!$O$3:$O$6,'Utility Functions'!$P$3:$P$6) -> 0.0012 | J48: =$J$40*valuePL(J7,'Utility Functions'!$Q$3:$Q$6,'Utility Functions'!$R$3:$R$6) -> 0.0008 | K48: =$K$40*(valuePL(K7,'Utility Functions'!$S$3:$S$7,'Utility Functions'!$T$3:$T$7)) -> 0 | L48: =$L$40*(valueE(L7,'Utility Functions'!$V$3,'Utility Functions'!$V$4,'Utility Functions'!$V$5,'Utility Functions'!$V$6)) -> 0 | M48: =$M$40*valuePL(M7,'Utility Functions'!$W$3:$W$6,'Utility Functions'!$X$3:$X$6) -> 0 | N48: =$N$40*valueE(N7,'Utility Functions'!$Z$3,'Utility Functions'!$Z$4,'Utility Functions'!$Z$5,'Utility Functions'!$Z$6) -> 0 | O48: =$O$40*valuePL(O7,'Utility Functions'!$AA$3:$AA$5,'Utility Functions'!$AB$3:$AB$5) -> 0 | P48: =$P$40*valuePL(P7,'Utility Functions'!$AC$3:$AC$7,'Utility Functions'!$AD$3:$AD$7) -> 0 | Q48: =$Q$40*valuePL(Q7,'Utility Functions'!$AE$3:$AE$6,'Utility Functions'!$AF$3:$AF$6) -> 0.004 | R48: =$R$40*valuePL(R7,'Utility Functions'!$AG$3:$AG$6,'Utility Functions'!$AH$3:$AH$6) -> 0 | S48: =$S$40*valuePL(S7,'Utility Functions'!$AI$3:$AI$6,'Utility Functions'!$AJ$3:$AJ$6) -> 0.05 | T48: =$T$40*valuePL(T7,'Utility Functions'!$AK$3:$AK$8,'Utility Functions'!$AL$3:$AL$8) -> 0.018 | U48: =$U$40*valuePL(U7,'Utility Functions'!$AM$3:$AM$5,'Utility Functions'!$AN$3:$AN$5) -> 0 | V48: =$V$40*valuePL(V7,'Utility Functions'!$AO$3:$AO$5,'Utility Functions'!$AP$3:$AP$5) -> 0 | W48: =$W$40*valuePL(W7,'Utility Functions'!$AQ$3:$AQ$6,'Utility Functions'!$AR$3:$AR$6) -> 0 | X48: =$X$40*valuePL(X7,'Utility Functions'!$AS$3:$AS$6,'Utility Functions'!$AT$3:$AT$6) -> 0.04 | Y48: =$Y$40*valuePL(Y7,'Utility Functions'!$AU$3:$AU$6,'Utility Functions'!$AV$3:$AV$6) -> 0 | Z48: =$Z$40*valuePL(Z7,'Utility Functions'!$AW$3:$AW$5,'Utility Functions'!$AX$3:$AX$5) -> 0 | AA48: =$AA$40*valuePL(AA7,'Utility Functions'!$AY$3:$AY$6,'Utility Functions'!$AZ$3:$AZ$6) -> 0 | AB48: =$AB$40*valuePL(AB7,'Utility Functions'!$BA$3:$BA$5,'Utility Functions'!$BB$3:$BB$5) -> 0.04 | AC48: =$AC$40*valuePL(AC7,'Utility Functions'!$BC$3:$BC$5,'Utility Functions'!$BD$3:$BD$5) -> 0.0075 | AD48: 0.2176254138 | AE48: 0.216019509 | AG48: 0.05612541381 | AH48: 0.002 | AI48: 0 | AJ48: 0.072 | AK48: 0.0875
A49: 7 | B49: =$B$40*(valueE(B8,'Utility Functions'!$B$3,'Utility Functions'!$B$4,'Utility Functions'!$B$5,'Utility Functions'!$B$6)) -> 0.02999913248 | C49: =$C$40*(valueE(C8,'Utility Functions'!$D$3,'Utility Functions'!$D$4,'Utility Functions'!$D$5,'Utility Functions'!$D$6)) -> 0.02542345105 | D49: =$D$40*(valuePL(D8,'Utility Functions'!$E$3:$E$5,'Utility Functions'!$F$3:$F$5)) -> 0 | E49: =$E$40*(valuePL(E8,'Utility Functions'!$G$3:$G$5,'Utility Functions'!$H$3:$H$5)) -> 0.03 | F49: =$F$40*(valuePL(F8,'Utility Functions'!$I$3:$I$4,'Utility Functions'!$J$3:$J$5)) -> 0 | G49: =$G$40*(valueE(G8,'Utility Functions'!$L$3,'Utility Functions'!$L$4,'Utility Functions'!$L$5,'Utility Functions'!$L$6)) -> 0 | H49: =$H$40*(valueE(H8,'Utility Functions'!$N$3,'Utility Functions'!$N$4,'Utility Functions'!$N$5,'Utility Functions'!$N$6)) -> 0 | I49: =$I$40*valuePL(I8,'Utility Functions'!$O$3:$O$6,'Utility Functions'!$P$3:$P$6) -> 0.03 | J49: =$J$40*valuePL(J8,'Utility Functions'!$Q$3:$Q$6,'Utility Functions'!$R$3:$R$6) -> 0.01345454545 | K49: =$K$40*(valuePL(K8,'Utility Functions'!$S$3:$S$7,'Utility Functions'!$T$3:$T$7)) -> 0.02 | L49: =$L$40*(valueE(L8,'Utility Functions'!$V$3,'Utility Functions'!$V$4,'Utility Functions'!$V$5,'Utility Functions'!$V$6)) -> 0.02 | M49: =$M$40*valuePL(M8,'Utility Functions'!$W$3:$W$6,'Utility Functions'!$X$3:$X$6) -> 0.01345454545 | N49: =$N$40*valueE(N8,'Utility Functions'!$Z$3,'Utility Functions'!$Z$4,'Utility Functions'!$Z$5,'Utility Functions'!$Z$6) -> 0.03 | O49: =$O$40*valuePL(O8,'Utility Functions'!$AA$3:$AA$5,'Utility Functions'!$AB$3:$AB$5) -> 0.0225 | P49: =$P$40*valuePL(P8,'Utility Functions'!$AC$3:$AC$7,'Utility Functions'!$AD$3:$AD$7) -> 0 | Q49: =$Q$40*valuePL(Q8,'Utility Functions'!$AE$3:$AE$6,'Utility Functions'!$AF$3:$AF$6) -> 0 | R49: =$R$40*valuePL(R8,'Utility Functions'!$AG$3:$AG$6,'Utility Functions'!$AH$3:$AH$6) -> 0.05 | S49: =$S$40*valuePL(S8,'Utility Functions'!$AI$3:$AI$6,'Utility Functions'!$AJ$3:$AJ$6) -> 0.05 | T49: =$T$40*valuePL(T8,'Utility Functions'!$AK$3:$AK$8,'Utility Functions'!$AL$3:$AL$8) -> 0 | U49: =$U$40*valuePL(U8,'Utility Functions'!$AM$3:$AM$5,'Utility Functions'!$AN$3:$AN$5) -> 0 | V49: =$V$40*valuePL(V8,'Utility Functions'!$AO$3:$AO$5,'Utility Functions'!$AP$3:$AP$5) -> 0.05 | W49: =$W$40*valuePL(W8,'Utility Functions'!$AQ$3:$AQ$6,'Utility Functions'!$AR$3:$AR$6) -> 0 | X49: =$X$40*valuePL(X8,'Utility Functions'!$AS$3:$AS$6,'Utility Functions'!$AT$3:$AT$6) -> 0.008 | Y49: =$Y$40*valuePL(Y8,'Utility Functions'!$AU$3:$AU$6,'Utility Functions'!$AV$3:$AV$6) -> 0.05 | Z49: =$Z$40*valuePL(Z8,'Utility Functions'!$AW$3:$AW$5,'Utility Functions'!$AX$3:$AX$5) -> 0.05 | AA49: =$AA$40*valuePL(AA8,'Utility Functions'!$AY$3:$AY$6,'Utility Functions'!$AZ$3:$AZ$6) -> 0.036 | AB49: =$AB$40*valuePL(AB8,'Utility Functions'!$BA$3:$BA$5,'Utility Functions'!$BB$3:$BB$5) -> 0 | AC49: =$AC$40*valuePL(AC8,'Utility Functions'!$BC$3:$BC$5,'Utility Functions'!$BD$3:$BD$5) -> 0.03 | AD49: 0.5588316744 | AE49: 0.5588277991 | AG49: 0.08542258353 | AH49: 0.09690909091 | AI49: 0.0525 | AJ49: 0.1 | AK49: 0.224
A50: 8 | B50: =$B$40*(valueE(B9,'Utility Functions'!$B$3,'Utility Functions'!$B$4,'Utility Functions'!$B$5,'Utility Functions'!$B$6)) -> 0.01353567143 | C50: =$C$40*(valueE(C9,'Utility Functions'!$D$3,'Utility Functions'!$D$4,'Utility Functions'!$D$5,'Utility Functions'!$D$6)) -> 0.02542345105 | D50: =$D$40*(valuePL(D9,'Utility Functions'!$E$3:$E$5,'Utility Functions'!$F$3:$F$5)) -> 0.03 | E50: =$E$40*(valuePL(E9,'Utility Functions'!$G$3:$G$5,'Utility Functions'!$H$3:$H$5)) -> 0.015 | F50: =$F$40*(valuePL(F9,'Utility Functions'!$I$3:$I$4,'Utility Functions'!$J$3:$J$5)) -> 0.04 | G50: =$G$40*(valueE(G9,'Utility Functions'!$L$3,'Utility Functions'!$L$4,'Utility Functions'!$L$5,'Utility Functions'!$L$6)) -> 0 | H50: =$H$40*(valueE(H9,'Utility Functions'!$N$3,'Utility Functions'!$N$4,'Utility Functions'!$N$5,'Utility Functions'!$N$6)) -> 0 | I50: =$I$40*valuePL(I9,'Utility Functions'!$O$3:$O$6,'Utility Functions'!$P$3:$P$6) -> 0.00168 | J50: =$J$40*valuePL(J9,'Utility Functions'!$Q$3:$Q$6,'Utility Functions'!$R$3:$R$6) -> 0.01672727273 | K50: =$K$40*(valuePL(K9,'Utility Functions'!$S$3:$S$7,'Utility Functions'!$T$3:$T$7)) -> 0 | L50: =$L$40*(valueE(L9,'Utility Functions'!$V$3,'Utility Functions'!$V$4,'Utility Functions'!$V$5,'Utility Functions'!$V$6)) -> 0.02 | M50: =$M$40*valuePL(M9,'Utility Functions'!$W$3:$W$6,'Utility Functions'!$X$3:$X$6) -> 0.01672727273 | N50: =$N$40*valueE(N9,'Utility Functions'!$Z$3,'Utility Functions'!$Z$4,'Utility Functions'!$Z$5,'Utility Functions'!$Z$6) -> 0 | O50: =$O$40*valuePL(O9,'Utility Functions'!$AA$3:$AA$5,'Utility Functions'!$AB$3:$AB$5) -> 0 | P50: =$P$40*valuePL(P9,'Utility Functions'!$AC$3:$AC$7,'Utility Functions'!$AD$3:$AD$7) -> 0 | Q50: =$Q$40*valuePL(Q9,'Utility Functions'!$AE$3:$AE$6,'Utility Functions'!$AF$3:$AF$6) -> 0.04 | R50: =$R$40*valuePL(R9,'Utility Functions'!$AG$3:$AG$6,'Utility Functions'!$AH$3:$AH$6) -> 0.01 | S50: =$S$40*valuePL(S9,'Utility Functions'!$AI$3:$AI$6,'Utility Functions'!$AJ$3:$AJ$6) -> 0.05 | T50: =$T$40*valuePL(T9,'Utility Functions'!$AK$3:$AK$8,'Utility Functions'!$AL$3:$AL$8) -> 0 | U50: =$U$40*valuePL(U9,'Utility Functions'!$AM$3:$AM$5,'Utility Functions'!$AN$3:$AN$5) -> 0 | V50: =$V$40*valuePL(V9,'Utility Functions'!$AO$3:$AO$5,'Utility Functions'!$AP$3:$AP$5) -> 0.05 | W50: =$W$40*valuePL(W9,'Utility Functions'!$AQ$3:$AQ$6,'Utility Functions'!$AR$3:$AR$6) -> 0.04 | X50: =$X$40*valuePL(X9,'Utility Functions'!$AS$3:$AS$6,'Utility Functions'!$AT$3:$AT$6) -> 0.04 | Y50: =$Y$40*valuePL(Y9,'Utility Functions'!$AU$3:$AU$6,'Utility Functions'!$AV$3:$AV$6) -> 0.05 | Z50: =$Z$40*valuePL(Z9,'Utility Functions'!$AW$3:$AW$5,'Utility Functions'!$AX$3:$AX$5) -> 0.05 | AA50: =$AA$40*valuePL(AA9,'Utility Functions'!$AY$3:$AY$6,'Utility Functions'!$AZ$3:$AZ$6) -> 0 | AB50: =$AB$40*valuePL(AB9,'Utility Functions'!$BA$3:$BA$5,'Utility Functions'!$BB$3:$BB$5) -> 0.01 | AC50: =$AC$40*valuePL(AC9,'Utility Functions'!$BC$3:$BC$5,'Utility Functions'!$BD$3:$BD$5) -> 0.0075 | AD50: 0.5265936679 | AE50: 0.5248622436 | AG50: 0.1239591225 | AH50: 0.05513454545 | AI50: 0 | AJ50: 0.1 | AK50: 0.2475
A51: 9 | B51: =$B$40*(valueE(B10,'Utility Functions'!$B$3,'Utility Functions'!$B$4,'Utility Functions'!$B$5,'Utility Functions'!$B$6)) -> 0.02504107129 | C51: =$C$40*(valueE(C10,'Utility Functions'!$D$3,'Utility Functions'!$D$4,'Utility Functions'!$D$5,'Utility Functions'!$D$6)) -> 0.02369699371 | D51: =$D$40*(valuePL(D10,'Utility Functions'!$E$3:$E$5,'Utility Functions'!$F$3:$F$5)) -> 0.03 | E51: =$E$40*(valuePL(E10,'Utility Functions'!$G$3:$G$5,'Utility Functions'!$H$3:$H$5)) -> 0.015 | F51: =$F$40*(valuePL(F10,'Utility Functions'!$I$3:$I$4,'Utility Functions'!$J$3:$J$5)) -> 0 | G51: =$G$40*(valueE(G10,'Utility Functions'!$L$3,'Utility Functions'!$L$4,'Utility Functions'!$L$5,'Utility Functions'!$L$6)) -> 0.00564516129 | H51: =$H$40*(valueE(H10,'Utility Functions'!$N$3,'Utility Functions'!$N$4,'Utility Functions'!$N$5,'Utility Functions'!$N$6)) -> 0.001992409867 | I51: =$I$40*valuePL(I10,'Utility Functions'!$O$3:$O$6,'Utility Functions'!$P$3:$P$6) -> 0 | J51: =$J$40*valuePL(J10,'Utility Functions'!$Q$3:$Q$6,'Utility Functions'!$R$3:$R$6) -> 0 | K51: =$K$40*(valuePL(K10,'Utility Functions'!$S$3:$S$7,'Utility Functions'!$T$3:$T$7)) -> 0 | L51: =$L$40*(valueE(L10,'Utility Functions'!$V$3,'Utility Functions'!$V$4,'Utility Functions'!$V$5,'Utility Functions'!$V$6)) -> 0 | M51: =$M$40*valuePL(M10,'Utility Functions'!$W$3:$W$6,'Utility Functions'!$X$3:$X$6) -> 0 | N51: =$N$40*valueE(N10,'Utility Functions'!$Z$3,'Utility Functions'!$Z$4,'Utility Functions'!$Z$5,'Utility Functions'!$Z$6) -> 0 | O51: =$O$40*valuePL(O10,'Utility Functions'!$AA$3:$AA$5,'Utility Functions'!$AB$3:$AB$5) -> 0 | P51: =$P$40*valuePL(P10,'Utility Functions'!$AC$3:$AC$7,'Utility Functions'!$AD$3:$AD$7) -> 0.03 | Q51: =$Q$40*valuePL(Q10,'Utility Functions'!$AE$3:$AE$6,'Utility Functions'!$AF$3:$AF$6) -> 0 | R51: =$R$40*valuePL(R10,'Utility Functions'!$AG$3:$AG$6,'Utility Functions'!$AH$3:$AH$6) -> 0.05 | S51: =$S$40*valuePL(S10,'Utility Functions'!$AI$3:$AI$6,'Utility Functions'!$AJ$3:$AJ$6) -> 0.033 | T51: =$T$40*valuePL(T10,'Utility Functions'!$AK$3:$AK$8,'Utility Functions'!$AL$3:$AL$8) -> 0.006 | U51: =$U$40*valuePL(U10,'Utility Functions'!$AM$3:$AM$5,'Utility Functions'!$AN$3:$AN$5) -> 0 | V51: =$V$40*valuePL(V10,'Utility Functions'!$AO$3:$AO$5,'Utility Functions'!$AP$3:$AP$5) -> 0.05 | W51: =$W$40*valuePL(W10,'Utility Functions'!$AQ$3:$AQ$6,'Utility Functions'!$AR$3:$AR$6) -> 0.04 | X51: =$X$40*valuePL(X10,'Utility Functions'!$AS$3:$AS$6,'Utility Functions'!$AT$3:$AT$6) -> 0.04 | Y51: =$Y$40*valuePL(Y10,'Utility Functions'!$AU$3:$AU$6,'Utility Functions'!$AV$3:$AV$6) -> 0.01 | Z51: =$Z$40*valuePL(Z10,'Utility Functions'!$AW$3:$AW$5,'Utility Functions'!$AX$3:$AX$5) -> 0.05 | AA51: =$AA$40*valuePL(AA10,'Utility Functions'!$AY$3:$AY$6,'Utility Functions'!$AZ$3:$AZ$6) -> 0.008 | AB51: =$AB$40*valuePL(AB10,'Utility Functions'!$BA$3:$BA$5,'Utility Functions'!$BB$3:$BB$5) -> 0.01 | AC51: =$AC$40*valuePL(AC10,'Utility Functions'!$BC$3:$BC$5,'Utility Functions'!$BD$3:$BD$5) -> 0.03 | AD51: 0.4583756362 | AE51: 0.4566409896 | AG51: 0.093738065 | AH51: 0.007637571157 | AI51: 0 | AJ51: 0.119 | AK51: 0.238
A52: 10 | B52: =$B$40*(valueE(B11,'Utility Functions'!$B$3,'Utility Functions'!$B$4,'Utility Functions'!$B$5,'Utility Functions'!$B$6)) -> 0 | C52: =$C$40*(valueE(C11,'Utility Functions'!$D$3,'Utility Functions'!$D$4,'Utility Functions'!$D$5,'Utility Functions'!$D$6)) -> 0 | D52: =$D$40*(valuePL(D11,'Utility Functions'!$E$3:$E$5,'Utility Functions'!$F$3:$F$5)) -> 0 | E52: =$E$40*(valuePL(E11,'Utility Functions'!$G$3:$G$5,'Utility Functions'!$H$3:$H$5)) -> 0 | F52: =$F$40*(valuePL(F11,'Utility Functions'!$I$3:$I$4,'Utility Functions'!$J$3:$J$5)) -> 0 | G52: =$G$40*(valueE(G11,'Utility Functions'!$L$3,'Utility Functions'!$L$4,'Utility Functions'!$L$5,'Utility Functions'!$L$6)) -> 0 | H52: =$H$40*(valueE(H11,'Utility Functions'!$N$3,'Utility Functions'!$N$4,'Utility Functions'!$N$5,'Utility Functions'!$N$6)) -> 0 | I52: =$I$40*valuePL(I11,'Utility Functions'!$O$3:$O$6,'Utility Functions'!$P$3:$P$6) -> 0 | J52: =$J$40*valuePL(J11,'Utility Functions'!$Q$3:$Q$6,'Utility Functions'!$R$3:$R$6) -> 0 | K52: =$K$40*(valuePL(K11,'Utility Functions'!$S$3:$S$7,'Utility Functions'!$T$3:$T$7)) -> 0 | L52: =$L$40*(valueE(L11,'Utility Functions'!$V$3,'Utility Functions'!$V$4,'Utility Functions'!$V$5,'Utility Functions'!$V$6)) -> 0 | M52: =$M$40*valuePL(M11,'Utility Functions'!$W$3:$W$6,'Utility Functions'!$X$3:$X$6) -> 0 | N52: =$N$40*valueE(N11,'Utility Functions'!$Z$3,'Utility Functions'!$Z$4,'Utility Functions'!$Z$5,'Utility Functions'!$Z$6) -> 0.0225 | O52: =$O$40*valuePL(O11,'Utility Functions'!$AA$3:$AA$5,'Utility Functions'!$AB$3:$AB$5) -> 0.09 | P52: =$P$40*valuePL(P11,'Utility Functions'!$AC$3:$AC$7,'Utility Functions'!$AD$3:$AD$7) -> 0.01 | Q52: =$Q$40*valuePL(Q11,'Utility Functions'!$AE$3:$AE$6,'Utility Functions'!$AF$3:$AF$6) -> 0.02 | R52: =$R$40*valuePL(R11,'Utility Functions'!$AG$3:$AG$6,'Utility Functions'!$AH$3:$AH$6) -> 0.05 | S52: =$S$40*valuePL(S11,'Utility Functions'!$AI$3:$AI$6,'Utility Functions'!$AJ$3:$AJ$6) -> 0.033 | T52: =$T$40*valuePL(T11,'Utility Functions'!$AK$3:$AK$8,'Utility Functions'!$AL$3:$AL$8) -> 0.012 | U52: =$U$40*valuePL(U11,'Utility Functions'!$AM$3:$AM$5,'Utility Functions'!$AN$3:$AN$5) -> 0 | V52: =$V$40*valuePL(V11,'Utility Functions'!$AO$3:$AO$5,'Utility Functions'!$AP$3:$AP$5) -> 0 | W52: =$W$40*valuePL(W11,'Utility Functions'!$AQ$3:$AQ$6,'Utility Functions'!$AR$3:$AR$6) -> 0.03 | X52: =$X$40*valuePL(X11,'Utility Functions'!$AS$3:$AS$6,'Utility Functions'!$AT$3:$AT$6) -> 0.04 | Y52: =$Y$40*valuePL(Y11,'Utility Functions'!$AU$3:$AU$6,'Utility Functions'!$AV$3:$AV$6) -> 0.05 | Z52: =$Z$40*valuePL(Z11,'Utility Functions'!$AW$3:$AW$5,'Utility Functions'!$AX$3:$AX$5) -> 0.025 | AA52: =$AA$40*valuePL(AA11,'Utility Functions'!$AY$3:$AY$6,'Utility Functions'!$AZ$3:$AZ$6) -> 0.008 | AB52: =$AB$40*valuePL(AB11,'Utility Functions'!$BA$3:$BA$5,'Utility Functions'!$BB$3:$BB$5) -> 0 | AC52: =$AC$40*valuePL(AC11,'Utility Functions'!$BC$3:$BC$5,'Utility Functions'!$BD$3:$BD$5) -> 0.03 | AD52: 0.4205 | AE52: 0.4205 | AG52: 0 | AH52: 0 | AI52: 0.1125 | AJ52: 0.125 | AK52: 0.183
A53: 11 | B53: =$B$40*(valueE(B12,'Utility Functions'!$B$3,'Utility Functions'!$B$4,'Utility Functions'!$B$5,'Utility Functions'!$B$6)) -> 0 | C53: =$C$40*(valueE(C12,'Utility Functions'!$D$3,'Utility Functions'!$D$4,'Utility Functions'!$D$5,'Utility Functions'!$D$6)) -> 0 | D53: =$D$40*(valuePL(D12,'Utility Functions'!$E$3:$E$5,'Utility Functions'!$F$3:$F$5)) -> 0 | E53: =$E$40*(valuePL(E12,'Utility Functions'!$G$3:$G$5,'Utility Functions'!$H$3:$H$5)) -> 0 | F53: =$F$40*(valuePL(F12,'Utility Functions'!$I$3:$I$4,'Utility Functions'!$J$3:$J$5)) -> 0 | G53: =$G$40*(valueE(G12,'Utility Functions'!$L$3,'Utility Functions'!$L$4,'Utility Functions'!$L$5,'Utility Functions'!$L$6)) -> 0.0004838709677 | H53: =$H$40*(valueE(H12,'Utility Functions'!$N$3,'Utility Functions'!$N$4,'Utility Functions'!$N$5,'Utility Functions'!$N$6)) -> 0.001451612903 | I53: =$I$40*valuePL(I12,'Utility Functions'!$O$3:$O$6,'Utility Functions'!$P$3:$P$6) -> 0.01625454545 | J53: =$J$40*valuePL(J12,'Utility Functions'!$Q$3:$Q$6,'Utility Functions'!$R$3:$R$6) -> 0.01836363636 | K53: =$K$40*(valuePL(K12,'Utility Functions'!$S$3:$S$7,'Utility Functions'!$T$3:$T$7)) -> 0.01083636364 | L53: =$L$40*(valueE(L12,'Utility Functions'!$V$3,'Utility Functions'!$V$4,'Utility Functions'!$V$5,'Utility Functions'!$V$6)) -> 0.02 | M53: =$M$40*valuePL(M12,'Utility Functions'!$W$3:$W$6,'Utility Functions'!$X$3:$X$6) -> 0.01836363636 | N53: =$N$40*valueE(N12,'Utility Functions'!$Z$3,'Utility Functions'!$Z$4,'Utility Functions'!$Z$5,'Utility Functions'!$Z$6) -> 0.01125 | O53: =$O$40*valuePL(O12,'Utility Functions'!$AA$3:$AA$5,'Utility Functions'!$AB$3:$AB$5) -> 0.0225 | P53: =$P$40*valuePL(P12,'Utility Functions'!$AC$3:$AC$7,'Utility Functions'!$AD$3:$AD$7) -> 0.01 | Q53: =$Q$40*valuePL(Q12,'Utility Functions'!$AE$3:$AE$6,'Utility Functions'!$AF$3:$AF$6) -> 0 | R53: =$R$40*valuePL(R12,'Utility Functions'!$AG$3:$AG$6,'Utility Functions'!$AH$3:$AH$6) -> 0.05 | S53: =$S$40*valuePL(S12,'Utility Functions'!$AI$3:$AI$6,'Utility Functions'!$AJ$3:$AJ$6) -> 0.05 | T53: =$T$40*valuePL(T12,'Utility Functions'!$AK$3:$AK$8,'Utility Functions'!$AL$3:$AL$8) -> 0.012 | U53: =$U$40*valuePL(U12,'Utility Functions'!$AM$3:$AM$5,'Utility Functions'!$AN$3:$AN$5) -> 0.03 | V53: =$V$40*valuePL(V12,'Utility Functions'!$AO$3:$AO$5,'Utility Functions'!$AP$3:$AP$5) -> 0.05 | W53: =$W$40*valuePL(W12,'Utility Functions'!$AQ$3:$AQ$6,'Utility Functions'!$AR$3:$AR$6) -> 0.008 | X53: =$X$40*valuePL(X12,'Utility Functions'!$AS$3:$AS$6,'Utility Functions'!$AT$3:$AT$6) -> 0.04 | Y53: =$Y$40*valuePL(Y12,'Utility Functions'!$AU$3:$AU$6,'Utility Functions'!$AV$3:$AV$6) -> 0.05 | Z53: =$Z$40*valuePL(Z12,'Utility Functions'!$AW$3:$AW$5,'Utility Functions'!$AX$3:$AX$5) -> 0.025 | AA53: =$AA$40*valuePL(AA12,'Utility Functions'!$AY$3:$AY$6,'Utility Functions'!$AZ$3:$AZ$6) -> 0.036 | AB53: =$AB$40*valuePL(AB12,'Utility Functions'!$BA$3:$BA$5,'Utility Functions'!$BB$3:$BB$5) -> 0 | AC53: =$AC$40*valuePL(AC12,'Utility Functions'!$BC$3:$BC$5,'Utility Functions'!$BD$3:$BD$5) -> 0.0075 | AD53: 0.4880036657 | AE53: 0.4880036657 | AG53: 0 | AH53: 0.08575366569 | AI53: 0.03375 | AJ53: 0.152 | AK53: 0.2165
A54: 12 | B54: =$B$40*(valueE(B13,'Utility Functions'!$B$3,'Utility Functions'!$B$4,'Utility Functions'!$B$5,'Utility Functions'!$B$6)) -> 0.009890413604 | C54: =$C$40*(valueE(C13,'Utility Functions'!$D$3,'Utility Functions'!$D$4,'Utility Functions'!$D$5,'Utility Functions'!$D$6)) -> 0.02369699371 | D54: =$D$40*(valuePL(D13,'Utility Functions'!$E$3:$E$5,'Utility Functions'!$F$3:$F$5)) -> 0.03 | E54: =$E$40*(valuePL(E13,'Utility Functions'!$G$3:$G$5,'Utility Functions'!$H$3:$H$5)) -> 0.015 | F54: =$F$40*(valuePL(F13,'Utility Functions'!$I$3:$I$4,'Utility Functions'!$J$3:$J$5)) -> 0 | G54: =$G$40*(valueE(G13,'Utility Functions'!$L$3,'Utility Functions'!$L$4,'Utility Functions'!$L$5,'Utility Functions'!$L$6)) -> 0 | H54: =$H$40*(valueE(H13,'Utility Functions'!$N$3,'Utility Functions'!$N$4,'Utility Functions'!$N$5,'Utility Functions'!$N$6)) -> 0 | I54: =$I$40*valuePL(I13,'Utility Functions'!$O$3:$O$6,'Utility Functions'!$P$3:$P$6) -> 0 | J54: =$J$40*valuePL(J13,'Utility Functions'!$Q$3:$Q$6,'Utility Functions'!$R$3:$R$6) -> 0 | K54: =$K$40*(valuePL(K13,'Utility Functions'!$S$3:$S$7,'Utility Functions'!$T$3:$T$7)) -> 0 | L54: =$L$40*(valueE(L13,'Utility Functions'!$V$3,'Utility Functions'!$V$4,'Utility Functions'!$V$5,'Utility Functions'!$V$6)) -> 0 | M54: =$M$40*valuePL(M13,'Utility Functions'!$W$3:$W$6,'Utility Functions'!$X$3:$X$6) -> 0 | N54: =$N$40*valueE(N13,'Utility Functions'!$Z$3,'Utility Functions'!$Z$4,'Utility Functions'!$Z$5,'Utility Functions'!$Z$6) -> 0 | O54: =$O$40*valuePL(O13,'Utility Functions'!$AA$3:$AA$5,'Utility Functions'!$AB$3:$AB$5) -> 0 | P54: =$P$40*valuePL(P13,'Utility Functions'!$AC$3:$AC$7,'Utility Functions'!$AD$3:$AD$7) -> 0 | Q54: =$Q$40*valuePL(Q13,'Utility Functions'!$AE$3:$AE$6,'Utility Functions'!$AF$3:$AF$6) -> 0.004 | R54: =$R$40*valuePL(R13,'Utility Functions'!$AG$3:$AG$6,'Utility Functions'!$AH$3:$AH$6) -> 0.05 | S54: =$S$40*valuePL(S13,'Utility Functions'!$AI$3:$AI$6,'Utility Functions'!$AJ$3:$AJ$6) -> 0.05 | T54: =$T$40*valuePL(T13,'Utility Functions'!$AK$3:$AK$8,'Utility Functions'!$AL$3:$AL$8) -> 0.018 | U54: =$U$40*valuePL(U13,'Utility Functions'!$AM$3:$AM$5,'Utility Functions'!$AN$3:$AN$5) -> 0 | V54: =$V$40*valuePL(V13,'Utility Functions'!$AO$3:$AO$5,'Utility Functions'!$AP$3:$AP$5) -> 0.025 | W54: =$W$40*valuePL(W13,'Utility Functions'!$AQ$3:$AQ$6,'Utility Functions'!$AR$3:$AR$6) -> 0.008 | X54: =$X$40*valuePL(X13,'Utility Functions'!$AS$3:$AS$6,'Utility Functions'!$AT$3:$AT$6) -> 0.04 | Y54: =$Y$40*valuePL(Y13,'Utility Functions'!$AU$3:$AU$6,'Utility Functions'!$AV$3:$AV$6) -> 0.01 | Z54: =$Z$40*valuePL(Z13,'Utility Functions'!$AW$3:$AW$5,'Utility Functions'!$AX$3:$AX$5) -> 0.05 | AA54: =$AA$40*valuePL(AA13,'Utility Functions'!$AY$3:$AY$6,'Utility Functions'!$AZ$3:$AZ$6) -> 0.008 | AB54: =$AB$40*valuePL(AB13,'Utility Functions'!$BA$3:$BA$5,'Utility Functions'!$BB$3:$BB$5) -> 0.04 | AC54: =$AC$40*valuePL(AC13,'Utility Functions'!$BC$3:$BC$5,'Utility Functions'!$BD$3:$BD$5) -> 0 | AD54: 0.3815874073 | AE54: 0.3802011746 | AG54: 0.07858740731 | AH54: 0 | AI54: 0 | AJ54: 0.122 | AK54: 0.181
A55: 13 | B55: =$B$40*(valueE(B14,'Utility Functions'!$B$3,'Utility Functions'!$B$4,'Utility Functions'!$B$5,'Utility Functions'!$B$6)) -> 0 | C55: =$C$40*(valueE(C14,'Utility Functions'!$D$3,'Utility Functions'!$D$4,'Utility Functions'!$D$5,'Utility Functions'!$D$6)) -> 0 | D55: =$D$40*(valuePL(D14,'Utility Functions'!$E$3:$E$5,'Utility Functions'!$F$3:$F$5)) -> 0 | E55: =$E$40*(valuePL(E14,'Utility Functions'!$G$3:$G$5,'Utility Functions'!$H$3:$H$5)) -> 0 | F55: =$F$40*(valuePL(F14,'Utility Functions'!$I$3:$I$4,'Utility Functions'!$J$3:$J$5)) -> 0 | G55: =$G$40*(valueE(G14,'Utility Functions'!$L$3,'Utility Functions'!$L$4,'Utility Functions'!$L$5,'Utility Functions'!$L$6)) -> 0 | H55: =$H$40*(valueE(H14,'Utility Functions'!$N$3,'Utility Functions'!$N$4,'Utility Functions'!$N$5,'Utility Functions'!$N$6)) -> 0.0001707779886 | I55: =$I$40*valuePL(I14,'Utility Functions'!$O$3:$O$6,'Utility Functions'!$P$3:$P$6) -> 0.009872727273 | J55: =$J$40*valuePL(J14,'Utility Functions'!$Q$3:$Q$6,'Utility Functions'!$R$3:$R$6) -> 0.0008 | K55: =$K$40*(valuePL(K14,'Utility Functions'!$S$3:$S$7,'Utility Functions'!$T$3:$T$7)) -> 0.006581818182 | L55: =$L$40*(valueE(L14,'Utility Functions'!$V$3,'Utility Functions'!$V$4,'Utility Functions'!$V$5,'Utility Functions'!$V$6)) -> 0.02 | M55: =$M$40*valuePL(M14,'Utility Functions'!$W$3:$W$6,'Utility Functions'!$X$3:$X$6) -> 0.0008 | N55: =$N$40*valueE(N14,'Utility Functions'!$Z$3,'Utility Functions'!$Z$4,'Utility Functions'!$Z$5,'Utility Functions'!$Z$6) -> 0.02625 | O55: =$O$40*valuePL(O14,'Utility Functions'!$AA$3:$AA$5,'Utility Functions'!$AB$3:$AB$5) -> 0.0225 | P55: =$P$40*valuePL(P14,'Utility Functions'!$AC$3:$AC$7,'Utility Functions'!$AD$3:$AD$7) -> 0.01 | Q55: =$Q$40*valuePL(Q14,'Utility Functions'!$AE$3:$AE$6,'Utility Functions'!$AF$3:$AF$6) -> 0 | R55: =$R$40*valuePL(R14,'Utility Functions'!$AG$3:$AG$6,'Utility Functions'!$AH$3:$AH$6) -> 0.05 | S55: =$S$40*valuePL(S14,'Utility Functions'!$AI$3:$AI$6,'Utility Functions'!$AJ$3:$AJ$6) -> 0.05 | T55: =$T$40*valuePL(T14,'Utility Functions'!$AK$3:$AK$8,'Utility Functions'!$AL$3:$AL$8) -> 0 | U55: =$U$40*valuePL(U14,'Utility Functions'!$AM$3:$AM$5,'Utility Functions'!$AN$3:$AN$5) -> 0 | V55: =$V$40*valuePL(V14,'Utility Functions'!$AO$3:$AO$5,'Utility Functions'!$AP$3:$AP$5) -> 0.025 | W55: =$W$40*valuePL(W14,'Utility Functions'!$AQ$3:$AQ$6,'Utility Functions'!$AR$3:$AR$6) -> 0 | X55: =$X$40*valuePL(X14,'Utility Functions'!$AS$3:$AS$6,'Utility Functions'!$AT$3:$AT$6) -> 0.008 | Y55: =$Y$40*valuePL(Y14,'Utility Functions'!$AU$3:$AU$6,'Utility Functions'!$AV$3:$AV$6) -> 0 | Z55: =$Z$40*valuePL(Z14,'Utility Functions'!$AW$3:$AW$5,'Utility Functions'!$AX$3:$AX$5) -> 0.05 | AA55: =$AA$40*valuePL(AA14,'Utility Functions'!$AY$3:$AY$6,'Utility Functions'!$AZ$3:$AZ$6) -> 0.008 | AB55: =$AB$40*valuePL(AB14,'Utility Functions'!$BA$3:$BA$5,'Utility Functions'!$BB$3:$BB$5) -> 0.01 | AC55: =$AC$40*valuePL(AC14,'Utility Functions'!$BC$3:$BC$5,'Utility Functions'!$BD$3:$BD$5) -> 0.0075 | AD55: 0.3054753234 | AE55: 0.3054753234 | AG55: 0 | AH55: 0.03822532344 | AI55: 0.04875 | AJ55: 0.11 | AK55: 0.1085
A56: 14 | B56: =$B$40*(valueE(B15,'Utility Functions'!$B$3,'Utility Functions'!$B$4,'Utility Functions'!$B$5,'Utility Functions'!$B$6)) -> 0.02096420541 | C56: =$C$40*(valueE(C15,'Utility Functions'!$D$3,'Utility Functions'!$D$4,'Utility Functions'!$D$5,'Utility Functions'!$D$6)) -> 0.02369699371 | D56: =$D$40*(valuePL(D15,'Utility Functions'!$E$3:$E$5,'Utility Functions'!$F$3:$F$5)) -> 0.015 | E56: =$E$40*(valuePL(E15,'Utility Functions'!$G$3:$G$5,'Utility Functions'!$H$3:$H$5)) -> 0.015 | F56: =$F$40*(valuePL(F15,'Utility Functions'!$I$3:$I$4,'Utility Functions'!$J$3:$J$5)) -> 0 | G56: =$G$40*(valueE(G15,'Utility Functions'!$L$3,'Utility Functions'!$L$4,'Utility Functions'!$L$5,'Utility Functions'!$L$6)) -> 0 | H56: =$H$40*(valueE(H15,'Utility Functions'!$N$3,'Utility Functions'!$N$4,'Utility Functions'!$N$5,'Utility Functions'!$N$6)) -> 0 | I56: =$I$40*valuePL(I15,'Utility Functions'!$O$3:$O$6,'Utility Functions'!$P$3:$P$6) -> 0 | J56: =$J$40*valuePL(J15,'Utility Functions'!$Q$3:$Q$6,'Utility Functions'!$R$3:$R$6) -> 0 | K56: =$K$40*(valuePL(K15,'Utility Functions'!$S$3:$S$7,'Utility Functions'!$T$3:$T$7)) -> 0 | L56: =$L$40*(valueE(L15,'Utility Functions'!$V$3,'Utility Functions'!$V$4,'Utility Functions'!$V$5,'Utility Functions'!$V$6)) -> 0 | M56: =$M$40*valuePL(M15,'Utility Functions'!$W$3:$W$6,'Utility Functions'!$X$3:$X$6) -> 0 | N56: =$N$40*valueE(N15,'Utility Functions'!$Z$3,'Utility Functions'!$Z$4,'Utility Functions'!$Z$5,'Utility Functions'!$Z$6) -> 0.0225 | O56: =$O$40*valuePL(O15,'Utility Functions'!$AA$3:$AA$5,'Utility Functions'!$AB$3:$AB$5) -> 0.0225 | P56: =$P$40*valuePL(P15,'Utility Functions'!$AC$3:$AC$7,'Utility Functions'!$AD$3:$AD$7) -> 0.01 | Q56: =$Q$40*valuePL(Q15,'Utility Functions'!$AE$3:$AE$6,'Utility Functions'!$AF$3:$AF$6) -> 0 | R56: =$R$40*valuePL(R15,'Utility Functions'!$AG$3:$AG$6,'Utility Functions'!$AH$3:$AH$6) -> 0.05 | S56: =$S$40*valuePL(S15,'Utility Functions'!$AI$3:$AI$6,'Utility Functions'!$AJ$3:$AJ$6) -> 0.05 | T56: =$T$40*valuePL(T15,'Utility Functions'!$AK$3:$AK$8,'Utility Functions'!$AL$3:$AL$8) -> 0 | U56: =$U$40*valuePL(U15,'Utility Functions'!$AM$3:$AM$5,'Utility Functions'!$AN$3:$AN$5) -> 0 | V56: =$V$40*valuePL(V15,'Utility Functions'!$AO$3:$AO$5,'Utility Functions'!$AP$3:$AP$5) -> 0.025 | W56: =$W$40*valuePL(W15,'Utility Functions'!$AQ$3:$AQ$6,'Utility Functions'!$AR$3:$AR$6) -> 0.008 | X56: =$X$40*valuePL(X15,'Utility Functions'!$AS$3:$AS$6,'Utility Functions'!$AT$3:$AT$6) -> 0.04 | Y56: =$Y$40*valuePL(Y15,'Utility Functions'!$AU$3:$AU$6,'Utility Functions'!$AV$3:$AV$6) -> 0.05 | Z56: =$Z$40*valuePL(Z15,'Utility Functions'!$AW$3:$AW$5,'Utility Functions'!$AX$3:$AX$5) -> 0.025 | AA56: =$AA$40*valuePL(AA15,'Utility Functions'!$AY$3:$AY$6,'Utility Functions'!$AZ$3:$AZ$6) -> 0.036 | AB56: =$AB$40*valuePL(AB15,'Utility Functions'!$BA$3:$BA$5,'Utility Functions'!$BB$3:$BB$5) -> 0.01 | AC56: =$AC$40*valuePL(AC15,'Utility Functions'!$BC$3:$BC$5,'Utility Functions'!$BD$3:$BD$5) -> 0.0075 | AD56: 0.4311611991 | AE56: 0.4291608786 | AG56: 0.07466119911 | AH56: 0 | AI56: 0.045 | AJ56: 0.11 | AK56: 0.2015
A57: 15 | B57: =$B$40*(valueE(B16,'Utility Functions'!$B$3,'Utility Functions'!$B$4,'Utility Functions'!$B$5,'Utility Functions'!$B$6)) -> 0.02969848993 | C57: =$C$40*(valueE(C16,'Utility Functions'!$D$3,'Utility Functions'!$D$4,'Utility Functions'!$D$5,'Utility Functions'!$D$6)) -> 0.02140582792 | D57: =$D$40*(valuePL(D16,'Utility Functions'!$E$3:$E$5,'Utility Functions'!$F$3:$F$5)) -> 0.03 | E57: =$E$40*(valuePL(E16,'Utility Functions'!$G$3:$G$5,'Utility Functions'!$H$3:$H$5)) -> 0.015 | F57: =$F$40*(valuePL(F16,'Utility Functions'!$I$3:$I$4,'Utility Functions'!$J$3:$J$5)) -> 0.04 | G57: =$G$40*(valueE(G16,'Utility Functions'!$L$3,'Utility Functions'!$L$4,'Utility Functions'!$L$5,'Utility Functions'!$L$6)) -> 0 | H57: =$H$40*(valueE(H16,'Utility Functions'!$N$3,'Utility Functions'!$N$4,'Utility Functions'!$N$5,'Utility Functions'!$N$6)) -> 0 | I57: =$I$40*valuePL(I16,'Utility Functions'!$O$3:$O$6,'Utility Functions'!$P$3:$P$6) -> 0.00276 | J57: =$J$40*valuePL(J16,'Utility Functions'!$Q$3:$Q$6,'Utility Functions'!$R$3:$R$6) -> 0.0012 | K57: =$K$40*(valuePL(K16,'Utility Functions'!$S$3:$S$7,'Utility Functions'!$T$3:$T$7)) -> 0.0012 | L57: =$L$40*(valueE(L16,'Utility Functions'!$V$3,'Utility Functions'!$V$4,'Utility Functions'!$V$5,'Utility Functions'!$V$6)) -> 0.02 | M57: =$M$40*valuePL(M16,'Utility Functions'!$W$3:$W$6,'Utility Functions'!$X$3:$X$6) -> 0.0012 | N57: =$N$40*valueE(N16,'Utility Functions'!$Z$3,'Utility Functions'!$Z$4,'Utility Functions'!$Z$5,'Utility Functions'!$Z$6) -> 0.00375 | O57: =$O$40*valuePL(O16,'Utility Functions'!$AA$3:$AA$5,'Utility Functions'!$AB$3:$AB$5) -> 0.09 | P57: =$P$40*valuePL(P16,'Utility Functions'!$AC$3:$AC$7,'Utility Functions'!$AD$3:$AD$7) -> 0.02 | Q57: =$Q$40*valuePL(Q16,'Utility Functions'!$AE$3:$AE$6,'Utility Functions'!$AF$3:$AF$6) -> 0 | R57: =$R$40*valuePL(R16,'Utility Functions'!$AG$3:$AG$6,'Utility Functions'!$AH$3:$AH$6) -> 0.04 | S57: =$S$40*valuePL(S16,'Utility Functions'!$AI$3:$AI$6,'Utility Functions'!$AJ$3:$AJ$6) -> 0.05 | T57: =$T$40*valuePL(T16,'Utility Functions'!$AK$3:$AK$8,'Utility Functions'!$AL$3:$AL$8) -> 0.018 | U57: =$U$40*valuePL(U16,'Utility Functions'!$AM$3:$AM$5,'Utility Functions'!$AN$3:$AN$5) -> 0.03 | V57: =$V$40*valuePL(V16,'Utility Functions'!$AO$3:$AO$5,'Utility Functions'!$AP$3:$AP$5) -> 0 | W57: =$W$40*valuePL(W16,'Utility Functions'!$AQ$3:$AQ$6,'Utility Functions'!$AR$3:$AR$6) -> 0.04 | X57: =$X$40*valuePL(X16,'Utility Functions'!$AS$3:$AS$6,'Utility Functions'!$AT$3:$AT$6) -> 0.008 | Y57: =$Y$40*valuePL(Y16,'Utility Functions'!$AU$3:$AU$6,'Utility Functions'!$AV$3:$AV$6) -> 0.01 | Z57: =$Z$40*valuePL(Z16,'Utility Functions'!$AW$3:$AW$5,'Utility Functions'!$AX$3:$AX$5) -> 0.05 | AA57: =$AA$40*valuePL(AA16,'Utility Functions'!$AY$3:$AY$6,'Utility Functions'!$AZ$3:$AZ$6) -> 0.04 | AB57: =$AB$40*valuePL(AB16,'Utility Functions'!$BA$3:$BA$5,'Utility Functions'!$BB$3:$BB$5) -> 0.04 | AC57: =$AC$40*valuePL(AC16,'Utility Functions'!$BC$3:$BC$5,'Utility Functions'!$BD$3:$BD$5) -> 0.0075 | AD57: 0.6097143178 | AE57: 0.6093671218 | AG57: 0.1361043178 | AH57: 0.02636 | AI57: 0.09375 | AJ57: 0.158 | AK57: 0.1955
A58: 16 | B58: =$B$40*(valueE(B17,'Utility Functions'!$B$3,'Utility Functions'!$B$4,'Utility Functions'!$B$5,'Utility Functions'!$B$6)) -> 0 | C58: =$C$40*(valueE(C17,'Utility Functions'!$D$3,'Utility Functions'!$D$4,'Utility Functions'!$D$5,'Utility Functions'!$D$6)) -> 0 | D58: =$D$40*(valuePL(D17,'Utility Functions'!$E$3:$E$5,'Utility Functions'!$F$3:$F$5)) -> 0 | E58: =$E$40*(valuePL(E17,'Utility Functions'!$G$3:$G$5,'Utility Functions'!$H$3:$H$5)) -> 0 | F58: =$F$40*(valuePL(F17,'Utility Functions'!$I$3:$I$4,'Utility Functions'!$J$3:$J$5)) -> 0 | G58: =$G$40*(valueE(G17,'Utility Functions'!$L$3,'Utility Functions'!$L$4,'Utility Functions'!$L$5,'Utility Functions'!$L$6)) -> 0 | H58: =$H$40*(valueE(H17,'Utility Functions'!$N$3,'Utility Functions'!$N$4,'Utility Functions'!$N$5,'Utility Functions'!$N$6)) -> 0 | I58: =$I$40*valuePL(I17,'Utility Functions'!$O$3:$O$6,'Utility Functions'!$P$3:$P$6) -> 0.03 | J58: =$J$40*valuePL(J17,'Utility Functions'!$Q$3:$Q$6,'Utility Functions'!$R$3:$R$6) -> 0.01836363636 | K58: =$K$40*(valuePL(K17,'Utility Functions'!$S$3:$S$7,'Utility Functions'!$T$3:$T$7)) -> 0.02 | L58: =$L$40*(valueE(L17,'Utility Functions'!$V$3,'Utility Functions'!$V$4,'Utility Functions'!$V$5,'Utility Functions'!$V$6)) -> 0.01666666667 | M58: =$M$40*valuePL(M17,'Utility Functions'!$W$3:$W$6,'Utility Functions'!$X$3:$X$6) -> 0.01836363636 | N58: =$N$40*valueE(N17,'Utility Functions'!$Z$3,'Utility Functions'!$Z$4,'Utility Functions'!$Z$5,'Utility Functions'!$Z$6) -> 0 | O58: =$O$40*valuePL(O17,'Utility Functions'!$AA$3:$AA$5,'Utility Functions'!$AB$3:$AB$5) -> 0 | P58: =$P$40*valuePL(P17,'Utility Functions'!$AC$3:$AC$7,'Utility Functions'!$AD$3:$AD$7) -> 0.03 | Q58: =$Q$40*valuePL(Q17,'Utility Functions'!$AE$3:$AE$6,'Utility Functions'!$AF$3:$AF$6) -> 0 | R58: =$R$40*valuePL(R17,'Utility Functions'!$AG$3:$AG$6,'Utility Functions'!$AH$3:$AH$6) -> 0.05 | S58: =$S$40*valuePL(S17,'Utility Functions'!$AI$3:$AI$6,'Utility Functions'!$AJ$3:$AJ$6) -> 0.05 | T58: =$T$40*valuePL(T17,'Utility Functions'!$AK$3:$AK$8,'Utility Functions'!$AL$3:$AL$8) -> 0.03 | U58: =$U$40*valuePL(U17,'Utility Functions'!$AM$3:$AM$5,'Utility Functions'!$AN$3:$AN$5) -> 0 | V58: =$V$40*valuePL(V17,'Utility Functions'!$AO$3:$AO$5,'Utility Functions'!$AP$3:$AP$5) -> 0.05 | W58: =$W$40*valuePL(W17,'Utility Functions'!$AQ$3:$AQ$6,'Utility Functions'!$AR$3:$AR$6) -> 0.03 | X58: =$X$40*valuePL(X17,'Utility Functions'!$AS$3:$AS$6,'Utility Functions'!$AT$3:$AT$6) -> 0.03 | Y58: =$Y$40*valuePL(Y17,'Utility Functions'!$AU$3:$AU$6,'Utility Functions'!$AV$3:$AV$6) -> 0.01 | Z58: =$Z$40*valuePL(Z17,'Utility Functions'!$AW$3:$AW$5,'Utility Functions'!$AX$3:$AX$5) -> 0.05 | AA58: =$AA$40*valuePL(AA17,'Utility Functions'!$AY$3:$AY$6,'Utility Functions'!$AZ$3:$AZ$6) -> 0.04 | AB58: =$AB$40*valuePL(AB17,'Utility Functions'!$BA$3:$BA$5,'Utility Functions'!$BB$3:$BB$5) -> 0.04 | AC58: =$AC$40*valuePL(AC17,'Utility Functions'!$BC$3:$BC$5,'Utility Functions'!$BD$3:$BD$5) -> 0.03 | AD58: 0.5433939394 | AE58: 0.5433939394 | AG58: 0 | AH58: 0.1033939394 | AI58: 0 | AJ58: 0.16 | AK58: 0.28
A59: 17 | B59: =$B$40*(valueE(B18,'Utility Functions'!$B$3,'Utility Functions'!$B$4,'Utility Functions'!$B$5,'Utility Functions'!$B$6)) -> 0.009890413604 | C59: =$C$40*(valueE(C18,'Utility Functions'!$D$3,'Utility Functions'!$D$4,'Utility Functions'!$D$5,'Utility Functions'!$D$6)) -> 0.02369699371 | D59: =$D$40*(valuePL(D18,'Utility Functions'!$E$3:$E$5,'Utility Functions'!$F$3:$F$5)) -> 0.03 | E59: =$E$40*(valuePL(E18,'Utility Functions'!$G$3:$G$5,'Utility Functions'!$H$3:$H$5)) -> 0.015 | F59: =$F$40*(valuePL(F18,'Utility Functions'!$I$3:$I$4,'Utility Functions'!$J$3:$J$5)) -> 0.04 | G59: =$G$40*(valueE(G18,'Utility Functions'!$L$3,'Utility Functions'!$L$4,'Utility Functions'!$L$5,'Utility Functions'!$L$6)) -> 0.004677419355 | H59: =$H$40*(valueE(H18,'Utility Functions'!$N$3,'Utility Functions'!$N$4,'Utility Functions'!$N$5,'Utility Functions'!$N$6)) -> 0.004127134725 | I59: =$I$40*valuePL(I18,'Utility Functions'!$O$3:$O$6,'Utility Functions'!$P$3:$P$6) -> 0 | J59: =$J$40*valuePL(J18,'Utility Functions'!$Q$3:$Q$6,'Utility Functions'!$R$3:$R$6) -> 0 | K59: =$K$40*(valuePL(K18,'Utility Functions'!$S$3:$S$7,'Utility Functions'!$T$3:$T$7)) -> 0 | L59: =$L$40*(valueE(L18,'Utility Functions'!$V$3,'Utility Functions'!$V$4,'Utility Functions'!$V$5,'Utility Functions'!$V$6)) -> 0.02 | M59: =$M$40*valuePL(M18,'Utility Functions'!$W$3:$W$6,'Utility Functions'!$X$3:$X$6) -> 0.0012 | N59: =$N$40*valueE(N18,'Utility Functions'!$Z$3,'Utility Functions'!$Z$4,'Utility Functions'!$Z$5,'Utility Functions'!$Z$6) -> 0 | O59: =$O$40*valuePL(O18,'Utility Functions'!$AA$3:$AA$5,'Utility Functions'!$AB$3:$AB$5) -> 0 | P59: =$P$40*valuePL(P18,'Utility Functions'!$AC$3:$AC$7,'Utility Functions'!$AD$3:$AD$7) -> 0 | Q59: =$Q$40*valuePL(Q18,'Utility Functions'!$AE$3:$AE$6,'Utility Functions'!$AF$3:$AF$6) -> 0 | R59: =$R$40*valuePL(R18,'Utility Functions'!$AG$3:$AG$6,'Utility Functions'!$AH$3:$AH$6) -> 0.05 | S59: =$S$40*valuePL(S18,'Utility Functions'!$AI$3:$AI$6,'Utility Functions'!$AJ$3:$AJ$6) -> 0.033 | T59: =$T$40*valuePL(T18,'Utility Functions'!$AK$3:$AK$8,'Utility Functions'!$AL$3:$AL$8) -> 0 | U59: =$U$40*valuePL(U18,'Utility Functions'!$AM$3:$AM$5,'Utility Functions'!$AN$3:$AN$5) -> 0 | V59: =$V$40*valuePL(V18,'Utility Functions'!$AO$3:$AO$5,'Utility Functions'!$AP$3:$AP$5) -> 0.05 | W59: =$W$40*valuePL(W18,'Utility Functions'!$AQ$3:$AQ$6,'Utility Functions'!$AR$3:$AR$6) -> 0.04 | X59: =$X$40*valuePL(X18,'Utility Functions'!$AS$3:$AS$6,'Utility Functions'!$AT$3:$AT$6) -> 0.008 | Y59: =$Y$40*valuePL(Y18,'Utility Functions'!$AU$3:$AU$6,'Utility Functions'!$AV$3:$AV$6) -> 0 | Z59: =$Z$40*valuePL(Z18,'Utility Functions'!$AW$3:$AW$5,'Utility Functions'!$AX$3:$AX$5) -> 0.025 | AA59: =$AA$40*valuePL(AA18,'Utility Functions'!$AY$3:$AY$6,'Utility Functions'!$AZ$3:$AZ$6) -> 0 | AB59: =$AB$40*valuePL(AB18,'Utility Functions'!$BA$3:$BA$5,'Utility Functions'!$BB$3:$BB$5) -> 0.04 | AC59: =$AC$40*valuePL(AC18,'Utility Functions'!$BC$3:$BC$5,'Utility Functions'!$BD$3:$BD$5) -> 0.0075 | AD59: 0.4020919614 | AE59: 0.4007057287 | AG59: 0.1185874073 | AH59: 0.03000455408 | AI59: 0 | AJ59: 0.083 | AK59: 0.1705
A60: 18 | B60: =$B$40*(valueE(B19,'Utility Functions'!$B$3,'Utility Functions'!$B$4,'Utility Functions'!$B$5,'Utility Functions'!$B$6)) -> 0 | C60: =$C$40*(valueE(C19,'Utility Functions'!$D$3,'Utility Functions'!$D$4,'Utility Functions'!$D$5,'Utility Functions'!$D$6)) -> 0 | D60: =$D$40*(valuePL(D19,'Utility Functions'!$E$3:$E$5,'Utility Functions'!$F$3:$F$5)) -> 0 | E60: =$E$40*(valuePL(E19,'Utility Functions'!$G$3:$G$5,'Utility Functions'!$H$3:$H$5)) -> 0 | F60: =$F$40*(valuePL(F19,'Utility Functions'!$I$3:$I$4,'Utility Functions'!$J$3:$J$5)) -> 0 | G60: =$G$40*(valueE(G19,'Utility Functions'!$L$3,'Utility Functions'!$L$4,'Utility Functions'!$L$5,'Utility Functions'!$L$6)) -> 0 | H60: =$H$40*(valueE(H19,'Utility Functions'!$N$3,'Utility Functions'!$N$4,'Utility Functions'!$N$5,'Utility Functions'!$N$6)) -> 0.0004269449715 | I60: =$I$40*valuePL(I19,'Utility Functions'!$O$3:$O$6,'Utility Functions'!$P$3:$P$6) -> 0 | J60: =$J$40*valuePL(J19,'Utility Functions'!$Q$3:$Q$6,'Utility Functions'!$R$3:$R$6) -> 0 | K60: =$K$40*(valuePL(K19,'Utility Functions'!$S$3:$S$7,'Utility Functions'!$T$3:$T$7)) -> 0 | L60: =$L$40*(valueE(L19,'Utility Functions'!$V$3,'Utility Functions'!$V$4,'Utility Functions'!$V$5,'Utility Functions'!$V$6)) -> 0 | M60: =$M$40*valuePL(M19,'Utility Functions'!$W$3:$W$6,'Utility Functions'!$X$3:$X$6) -> 0 | N60: =$N$40*valueE(N19,'Utility Functions'!$Z$3,'Utility Functions'!$Z$4,'Utility Functions'!$Z$5,'Utility Functions'!$Z$6) -> 0.03 | O60: =$O$40*valuePL(O19,'Utility Functions'!$AA$3:$AA$5,'Utility Functions'!$AB$3:$AB$5) -> 0.0225 | P60: =$P$40*valuePL(P19,'Utility Functions'!$AC$3:$AC$7,'Utility Functions'!$AD$3:$AD$7) -> 0.01 | Q60: =$Q$40*valuePL(Q19,'Utility Functions'!$AE$3:$AE$6,'Utility Functions'!$AF$3:$AF$6) -> 0.04 | R60: =$R$40*valuePL(R19,'Utility Functions'!$AG$3:$AG$6,'Utility Functions'!$AH$3:$AH$6) -> 0.05 | S60: =$S$40*valuePL(S19,'Utility Functions'!$AI$3:$AI$6,'Utility Functions'!$AJ$3:$AJ$6) -> 0.05 | T60: =$T$40*valuePL(T19,'Utility Functions'!$AK$3:$AK$8,'Utility Functions'!$AL$3:$AL$8) -> 0.03 | U60: =$U$40*valuePL(U19,'Utility Functions'!$AM$3:$AM$5,'Utility Functions'!$AN$3:$AN$5) -> 0.0075 | V60: =$V$40*valuePL(V19,'Utility Functions'!$AO$3:$AO$5,'Utility Functions'!$AP$3:$AP$5) -> 0.05 | W60: =$W$40*valuePL(W19,'Utility Functions'!$AQ$3:$AQ$6,'Utility Functions'!$AR$3:$AR$6) -> 0.03 | X60: =$X$40*valuePL(X19,'Utility Functions'!$AS$3:$AS$6,'Utility Functions'!$AT$3:$AT$6) -> 0.008 | Y60: =$Y$40*valuePL(Y19,'Utility Functions'!$AU$3:$AU$6,'Utility Functions'!$AV$3:$AV$6) -> 0.04 | Z60: =$Z$40*valuePL(Z19,'Utility Functions'!$AW$3:$AW$5,'Utility Functions'!$AX$3:$AX$5) -> 0.025 | AA60: =$AA$40*valuePL(AA19,'Utility Functions'!$AY$3:$AY$6,'Utility Functions'!$AZ$3:$AZ$6) -> 0.036 | AB60: =$AB$40*valuePL(AB19,'Utility Functions'!$BA$3:$BA$5,'Utility Functions'!$BB$3:$BB$5) -> 0.01 | AC60: =$AC$40*valuePL(AC19,'Utility Functions'!$BC$3:$BC$5,'Utility Functions'!$BD$3:$BD$5) -> 0 | AD60: 0.439426945 | AE60: 0.439426945 | AG60: 0 | AH60: 0.0004269449715 | AI60: 0.0525 | AJ60: 0.1875 | AK60: 0.199
A61: 19 | B61: =$B$40*(valueE(B20,'Utility Functions'!$B$3,'Utility Functions'!$B$4,'Utility Functions'!$B$5,'Utility Functions'!$B$6)) -> 0.02394314074 | C61: =$C$40*(valueE(C20,'Utility Functions'!$D$3,'Utility Functions'!$D$4,'Utility Functions'!$D$5,'Utility Functions'!$D$6)) -> 0.008051896687 | D61: =$D$40*(valuePL(D20,'Utility Functions'!$E$3:$E$5,'Utility Functions'!$F$3:$F$5)) -> 0.015 | E61: =$E$40*(valuePL(E20,'Utility Functions'!$G$3:$G$5,'Utility Functions'!$H$3:$H$5)) -> 0.03 | F61: =$F$40*(valuePL(F20,'Utility Functions'!$I$3:$I$4,'Utility Functions'!$J$3:$J$5)) -> 0 | G61: =$G$40*(valueE(G20,'Utility Functions'!$L$3,'Utility Functions'!$L$4,'Utility Functions'!$L$5,'Utility Functions'!$L$6)) -> 0 | H61: =$H$40*(valueE(H20,'Utility Functions'!$N$3,'Utility Functions'!$N$4,'Utility Functions'!$N$5,'Utility Functions'!$N$6)) -> 0 | I61: =$I$40*valuePL(I20,'Utility Functions'!$O$3:$O$6,'Utility Functions'!$P$3:$P$6) -> 0 | J61: =$J$40*valuePL(J20,'Utility Functions'!$Q$3:$Q$6,'Utility Functions'!$R$3:$R$6) -> 0 | K61: =$K$40*(valuePL(K20,'Utility Functions'!$S$3:$S$7,'Utility Functions'!$T$3:$T$7)) -> 0 | L61: =$L$40*(valueE(L20,'Utility Functions'!$V$3,'Utility Functions'!$V$4,'Utility Functions'!$V$5,'Utility Functions'!$V$6)) -> 0 | M61: =$M$40*valuePL(M20,'Utility Functions'!$W$3:$W$6,'Utility Functions'!$X$3:$X$6) -> 0 | N61: =$N$40*valueE(N20,'Utility Functions'!$Z$3,'Utility Functions'!$Z$4,'Utility Functions'!$Z$5,'Utility Functions'!$Z$6) -> 0.03 | O61: =$O$40*valuePL(O20,'Utility Functions'!$AA$3:$AA$5,'Utility Functions'!$AB$3:$AB$5) -> 0.09 | P61: =$P$40*valuePL(P20,'Utility Functions'!$AC$3:$AC$7,'Utility Functions'!$AD$3:$AD$7) -> 0 | Q61: =$Q$40*valuePL(Q20,'Utility Functions'!$AE$3:$AE$6,'Utility Functions'!$AF$3:$AF$6) -> 0 | R61: =$R$40*valuePL(R20,'Utility Functions'!$AG$3:$AG$6,'Utility Functions'!$AH$3:$AH$6) -> 0.04 | S61: =$S$40*valuePL(S20,'Utility Functions'!$AI$3:$AI$6,'Utility Functions'!$AJ$3:$AJ$6) -> 0.05 | T61: =$T$40*valuePL(T20,'Utility Functions'!$AK$3:$AK$8,'Utility Functions'!$AL$3:$AL$8) -> 0 | U61: =$U$40*valuePL(U20,'Utility Functions'!$AM$3:$AM$5,'Utility Functions'!$AN$3:$AN$5) -> 0 | V61: =$V$40*valuePL(V20,'Utility Functions'!$AO$3:$AO$5,'Utility Functions'!$AP$3:$AP$5) -> 0.025 | W61: =$W$40*valuePL(W20,'Utility Functions'!$AQ$3:$AQ$6,'Utility Functions'!$AR$3:$AR$6) -> 0.008 | X61: =$X$40*valuePL(X20,'Utility Functions'!$AS$3:$AS$6,'Utility Functions'!$AT$3:$AT$6) -> 0.04 | Y61: =$Y$40*valuePL(Y20,'Utility Functions'!$AU$3:$AU$6,'Utility Functions'!$AV$3:$AV$6) -> 0.04 | Z61: =$Z$40*valuePL(Z20,'Utility Functions'!$AW$3:$AW$5,'Utility Functions'!$AX$3:$AX$5) -> 0 | AA61: =$AA$40*valuePL(AA20,'Utility Functions'!$AY$3:$AY$6,'Utility Functions'!$AZ$3:$AZ$6) -> 0.008 | AB61: =$AB$40*valuePL(AB20,'Utility Functions'!$BA$3:$BA$5,'Utility Functions'!$BB$3:$BB$5) -> 0 | AC61: =$AC$40*valuePL(AC20,'Utility Functions'!$BC$3:$BC$5,'Utility Functions'!$BD$3:$BD$5) -> 0.0075 | AD61: 0.4154950374 | AE61: 0.4136442949 | AG61: 0.07699503742 | AH61: 0 | AI61: 0.12 | AJ61: 0.09 | AK61: 0.1285
A62: 20 | B62: =$B$40*(valueE(B21,'Utility Functions'!$B$3,'Utility Functions'!$B$4,'Utility Functions'!$B$5,'Utility Functions'!$B$6)) -> 0.02504107129 | C62: =$C$40*(valueE(C21,'Utility Functions'!$D$3,'Utility Functions'!$D$4,'Utility Functions'!$D$5,'Utility Functions'!$D$6)) -> 0.02369699371 | D62: =$D$40*(valuePL(D21,'Utility Functions'!$E$3:$E$5,'Utility Functions'!$F$3:$F$5)) -> 0.015 | E62: =$E$40*(valuePL(E21,'Utility Functions'!$G$3:$G$5,'Utility Functions'!$H$3:$H$5)) -> 0.03 | F62: =$F$40*(valuePL(F21,'Utility Functions'!$I$3:$I$4,'Utility Functions'!$J$3:$J$5)) -> 0 | G62: =$G$40*(valueE(G21,'Utility Functions'!$L$3,'Utility Functions'!$L$4,'Utility Functions'!$L$5,'Utility Functions'!$L$6)) -> 0 | H62: =$H$40*(valueE(H21,'Utility Functions'!$N$3,'Utility Functions'!$N$4,'Utility Functions'!$N$5,'Utility Functions'!$N$6)) -> 0.006190702087 | I62: =$I$40*valuePL(I21,'Utility Functions'!$O$3:$O$6,'Utility Functions'!$P$3:$P$6) -> 0.02803636364 | J62: =$J$40*valuePL(J21,'Utility Functions'!$Q$3:$Q$6,'Utility Functions'!$R$3:$R$6) -> 0.01018181818 | K62: =$K$40*(valuePL(K21,'Utility Functions'!$S$3:$S$7,'Utility Functions'!$T$3:$T$7)) -> 0.01869090909 | L62: =$L$40*(valueE(L21,'Utility Functions'!$V$3,'Utility Functions'!$V$4,'Utility Functions'!$V$5,'Utility Functions'!$V$6)) -> 0.01333333333 | M62: =$M$40*valuePL(M21,'Utility Functions'!$W$3:$W$6,'Utility Functions'!$X$3:$X$6) -> 0.01018181818 | N62: =$N$40*valueE(N21,'Utility Functions'!$Z$3,'Utility Functions'!$Z$4,'Utility Functions'!$Z$5,'Utility Functions'!$Z$6) -> 0.03 | O62: =$O$40*valuePL(O21,'Utility Functions'!$AA$3:$AA$5,'Utility Functions'!$AB$3:$AB$5) -> 0.09 | P62: =$P$40*valuePL(P21,'Utility Functions'!$AC$3:$AC$7,'Utility Functions'!$AD$3:$AD$7) -> 0.01 | Q62: =$Q$40*valuePL(Q21,'Utility Functions'!$AE$3:$AE$6,'Utility Functions'!$AF$3:$AF$6) -> 0 | R62: =$R$40*valuePL(R21,'Utility Functions'!$AG$3:$AG$6,'Utility Functions'!$AH$3:$AH$6) -> 0.05 | S62: =$S$40*valuePL(S21,'Utility Functions'!$AI$3:$AI$6,'Utility Functions'!$AJ$3:$AJ$6) -> 0.05 | T62: =$T$40*valuePL(T21,'Utility Functions'!$AK$3:$AK$8,'Utility Functions'!$AL$3:$AL$8) -> 0.018 | U62: =$U$40*valuePL(U21,'Utility Functions'!$AM$3:$AM$5,'Utility Functions'!$AN$3:$AN$5) -> 0.03 | V62: =$V$40*valuePL(V21,'Utility Functions'!$AO$3:$AO$5,'Utility Functions'!$AP$3:$AP$5) -> 0.025 | W62: =$W$40*valuePL(W21,'Utility Functions'!$AQ$3:$AQ$6,'Utility Functions'!$AR$3:$AR$6) -> 0 | X62: =$X$40*valuePL(X21,'Utility Functions'!$AS$3:$AS$6,'Utility Functions'!$AT$3:$AT$6) -> 0 | Y62: =$Y$40*valuePL(Y21,'Utility Functions'!$AU$3:$AU$6,'Utility Functions'!$AV$3:$AV$6) -> 0.01 | Z62: =$Z$40*valuePL(Z21,'Utility Functions'!$AW$3:$AW$5,'Utility Functions'!$AX$3:$AX$5) -> 0.05 | AA62: =$AA$40*valuePL(AA21,'Utility Functions'!$AY$3:$AY$6,'Utility Functions'!$AZ$3:$AZ$6) -> 0.008 | AB62: =$AB$40*valuePL(AB21,'Utility Functions'!$BA$3:$BA$5,'Utility Functions'!$BB$3:$BB$5) -> 0 | AC62: =$AC$40*valuePL(AC21,'Utility Functions'!$BC$3:$BC$5,'Utility Functions'!$BD$3:$BD$5) -> 0.0075 | AD62: 0.5588530095 | AE62: 0.5571183629 | AG62: 0.093738065 | AH62: 0.08661494451 | AI62: 0.12 | AJ62: 0.158 | AK62: 0.1005
A63: =A22 -> 21 | B63: =$B$40*(valueE(B22,'Utility Functions'!$B$3,'Utility Functions'!$B$4,'Utility Functions'!$B$5,'Utility Functions'!$B$6)) -> 0 | C63: =$C$40*(valueE(C22,'Utility Functions'!$D$3,'Utility Functions'!$D$4,'Utility Functions'!$D$5,'Utility Functions'!$D$6)) -> 0 | D63: =$D$40*(valuePL(D22,'Utility Functions'!$E$3:$E$5,'Utility Functions'!$F$3:$F$5)) -> 0 | E63: =$E$40*(valuePL(E22,'Utility Functions'!$G$3:$G$5,'Utility Functions'!$H$3:$H$5)) -> 0 | F63: =$F$40*(valuePL(F22,'Utility Functions'!$I$3:$I$4,'Utility Functions'!$J$3:$J$5)) -> 0 | G63: =$G$40*(valueE(G22,'Utility Functions'!$L$3,'Utility Functions'!$L$4,'Utility Functions'!$L$5,'Utility Functions'!$L$6)) -> 0 | H63: =$H$40*(valueE(H22,'Utility Functions'!$N$3,'Utility Functions'!$N$4,'Utility Functions'!$N$5,'Utility Functions'!$N$6)) -> 0 | I63: =$I$40*valuePL(I22,'Utility Functions'!$O$3:$O$6,'Utility Functions'!$P$3:$P$6) -> 0 | J63: =$J$40*valuePL(J22,'Utility Functions'!$Q$3:$Q$6,'Utility Functions'!$R$3:$R$6) -> 0 | K63: =$K$40*(valuePL(K22,'Utility Functions'!$S$3:$S$7,'Utility Functions'!$T$3:$T$7)) -> 0 | L63: =$L$40*(valueE(L22,'Utility Functions'!$V$3,'Utility Functions'!$V$4,'Utility Functions'!$V$5,'Utility Functions'!$V$6)) -> 0 | M63: =$M$40*valuePL(M22,'Utility Functions'!$W$3:$W$6,'Utility Functions'!$X$3:$X$6) -> 0 | N63: =$N$40*valueE(N22,'Utility Functions'!$Z$3,'Utility Functions'!$Z$4,'Utility Functions'!$Z$5,'Utility Functions'!$Z$6) -> 0.03 | O63: =$O$40*valuePL(O22,'Utility Functions'!$AA$3:$AA$5,'Utility Functions'!$AB$3:$AB$5) -> 0.09 | P63: =$P$40*valuePL(P22,'Utility Functions'!$AC$3:$AC$7,'Utility Functions'!$AD$3:$AD$7) -> 0 | Q63: =$Q$40*valuePL(Q22,'Utility Functions'!$AE$3:$AE$6,'Utility Functions'!$AF$3:$AF$6) -> 0.004 | R63: =$R$40*valuePL(R22,'Utility Functions'!$AG$3:$AG$6,'Utility Functions'!$AH$3:$AH$6) -> 0.05 | S63: =$S$40*valuePL(S22,'Utility Functions'!$AI$3:$AI$6,'Utility Functions'!$AJ$3:$AJ$6) -> 0.05 | T63: =$T$40*valuePL(T22,'Utility Functions'!$AK$3:$AK$8,'Utility Functions'!$AL$3:$AL$8) -> 0.03 | U63: =$U$40*valuePL(U22,'Utility Functions'!$AM$3:$AM$5,'Utility Functions'!$AN$3:$AN$5) -> 0.0075 | V63: =$V$40*valuePL(V22,'Utility Functions'!$AO$3:$AO$5,'Utility Functions'!$AP$3:$AP$5) -> 0 | W63: =$W$40*valuePL(W22,'Utility Functions'!$AQ$3:$AQ$6,'Utility Functions'!$AR$3:$AR$6) -> 0.03 | X63: =$X$40*valuePL(X22,'Utility Functions'!$AS$3:$AS$6,'Utility Functions'!$AT$3:$AT$6) -> 0.04 | Y63: =$Y$40*valuePL(Y22,'Utility Functions'!$AU$3:$AU$6,'Utility Functions'!$AV$3:$AV$6) -> 0.01 | Z63: =$Z$40*valuePL(Z22,'Utility Functions'!$AW$3:$AW$5,'Utility Functions'!$AX$3:$AX$5) -> 0 | AA63: =$AA$40*valuePL(AA22,'Utility Functions'!$AY$3:$AY$6,'Utility Functions'!$AZ$3:$AZ$6) -> 0.04 | AB63: =$AB$40*valuePL(AB22,'Utility Functions'!$BA$3:$BA$5,'Utility Functions'!$BB$3:$BB$5) -> 0.01 | AC63: =$AC$40*valuePL(AC22,'Utility Functions'!$BC$3:$BC$5,'Utility Functions'!$BD$3:$BD$5) -> 0.03 | AD63: 0.4215 | AE63: 0.4215 | AG63: 0 | AH63: 0 | AI63: 0.12 | AJ63: 0.1415 | AK63: 0.16
A64: 22 | B64: =$B$40*(valueE(B23,'Utility Functions'!$B$3,'Utility Functions'!$B$4,'Utility Functions'!$B$5,'Utility Functions'!$B$6)) -> 0 | C64: =$C$40*(valueE(C23,'Utility Functions'!$D$3,'Utility Functions'!$D$4,'Utility Functions'!$D$5,'Utility Functions'!$D$6)) -> 0 | D64: =$D$40*(valuePL(D23,'Utility Functions'!$E$3:$E$5,'Utility Functions'!$F$3:$F$5)) -> 0 | E64: =$E$40*(valuePL(E23,'Utility Functions'!$G$3:$G$5,'Utility Functions'!$H$3:$H$5)) -> 0 | F64: =$F$40*(valuePL(F23,'Utility Functions'!$I$3:$I$4,'Utility Functions'!$J$3:$J$5)) -> 0 | G64: =$G$40*(valueE(G23,'Utility Functions'!$L$3,'Utility Functions'!$L$4,'Utility Functions'!$L$5,'Utility Functions'!$L$6)) -> 0.001290322581 | H64: =$H$40*(valueE(H23,'Utility Functions'!$N$3,'Utility Functions'!$N$4,'Utility Functions'!$N$5,'Utility Functions'!$N$6)) -> 0.0009108159393 | I64: =$I$40*valuePL(I23,'Utility Functions'!$O$3:$O$6,'Utility Functions'!$P$3:$P$6) -> 0 | J64: =$J$40*valuePL(J23,'Utility Functions'!$Q$3:$Q$6,'Utility Functions'!$R$3:$R$6) -> 0 | K64: =$K$40*(valuePL(K23,'Utility Functions'!$S$3:$S$7,'Utility Functions'!$T$3:$T$7)) -> 0 | L64: =$L$40*(valueE(L23,'Utility Functions'!$V$3,'Utility Functions'!$V$4,'Utility Functions'!$V$5,'Utility Functions'!$V$6)) -> 0 | M64: =$M$40*valuePL(M23,'Utility Functions'!$W$3:$W$6,'Utility Functions'!$X$3:$X$6) -> 0 | N64: =$N$40*valueE(N23,'Utility Functions'!$Z$3,'Utility Functions'!$Z$4,'Utility Functions'!$Z$5,'Utility Functions'!$Z$6) -> 0.00375 | O64: =$O$40*valuePL(O23,'Utility Functions'!$AA$3:$AA$5,'Utility Functions'!$AB$3:$AB$5) -> 0.09 | P64: =$P$40*valuePL(P23,'Utility Functions'!$AC$3:$AC$7,'Utility Functions'!$AD$3:$AD$7) -> 0.04 | Q64: =$Q$40*valuePL(Q23,'Utility Functions'!$AE$3:$AE$6,'Utility Functions'!$AF$3:$AF$6) -> 0.02 | R64: =$R$40*valuePL(R23,'Utility Functions'!$AG$3:$AG$6,'Utility Functions'!$AH$3:$AH$6) -> 0.04 | S64: =$S$40*valuePL(S23,'Utility Functions'!$AI$3:$AI$6,'Utility Functions'!$AJ$3:$AJ$6) -> 0.05 | T64: =$T$40*valuePL(T23,'Utility Functions'!$AK$3:$AK$8,'Utility Functions'!$AL$3:$AL$8) -> 0.03 | U64: =$U$40*valuePL(U23,'Utility Functions'!$AM$3:$AM$5,'Utility Functions'!$AN$3:$AN$5) -> 0 | V64: =$V$40*valuePL(V23,'Utility Functions'!$AO$3:$AO$5,'Utility Functions'!$AP$3:$AP$5) -> 0.025 | W64: =$W$40*valuePL(W23,'Utility Functions'!$AQ$3:$AQ$6,'Utility Functions'!$AR$3:$AR$6) -> 0.03 | X64: =$X$40*valuePL(X23,'Utility Functions'!$AS$3:$AS$6,'Utility Functions'!$AT$3:$AT$6) -> 0.008 | Y64: =$Y$40*valuePL(Y23,'Utility Functions'!$AU$3:$AU$6,'Utility Functions'!$AV$3:$AV$6) -> 0 | Z64: =$Z$40*valuePL(Z23,'Utility Functions'!$AW$3:$AW$5,'Utility Functions'!$AX$3:$AX$5) -> 0.05 | AA64: =$AA$40*valuePL(AA23,'Utility Functions'!$AY$3:$AY$6,'Utility Functions'!$AZ$3:$AZ$6) -> 0.008 | AB64: =$AB$40*valuePL(AB23,'Utility Functions'!$BA$3:$BA$5,'Utility Functions'!$BB$3:$BB$5) -> 0.04 | AC64: =$AC$40*valuePL(AC23,'Utility Functions'!$BC$3:$BC$5,'Utility Functions'!$BD$3:$BD$5) -> 0.0075 | AD64: 0.4444511385 | AE64: 0.4444511385 | AG64: 0 | AH64: 0.00220113852 | AI64: 0.09375 | AJ64: 0.18 | AK64: 0.1685
A65: 23 | B65: =$B$40*(valueE(B24,'Utility Functions'!$B$3,'Utility Functions'!$B$4,'Utility Functions'!$B$5,'Utility Functions'!$B$6)) -> 0.02504107129 | C65: =$C$40*(valueE(C24,'Utility Functions'!$D$3,'Utility Functions'!$D$4,'Utility Functions'!$D$5,'Utility Functions'!$D$6)) -> 0.02542345105 | D65: =$D$40*(valuePL(D24,'Utility Functions'!$E$3:$E$5,'Utility Functions'!$F$3:$F$5)) -> 0.03 | E65: =$E$40*(valuePL(E24,'Utility Functions'!$G$3:$G$5,'Utility Functions'!$H$3:$H$5)) -> 0 | F65: =$F$40*(valuePL(F24,'Utility Functions'!$I$3:$I$4,'Utility Functions'!$J$3:$J$5)) -> 0 | G65: =$G$40*(valueE(G24,'Utility Functions'!$L$3,'Utility Functions'!$L$4,'Utility Functions'!$L$5,'Utility Functions'!$L$6)) -> 0 | H65: =$H$40*(valueE(H24,'Utility Functions'!$N$3,'Utility Functions'!$N$4,'Utility Functions'!$N$5,'Utility Functions'!$N$6)) -> 0 | I65: =$I$40*valuePL(I24,'Utility Functions'!$O$3:$O$6,'Utility Functions'!$P$3:$P$6) -> 0 | J65: =$J$40*valuePL(J24,'Utility Functions'!$Q$3:$Q$6,'Utility Functions'!$R$3:$R$6) -> 0 | K65: =$K$40*(valuePL(K24,'Utility Functions'!$S$3:$S$7,'Utility Functions'!$T$3:$T$7)) -> 0 | L65: =$L$40*(valueE(L24,'Utility Functions'!$V$3,'Utility Functions'!$V$4,'Utility Functions'!$V$5,'Utility Functions'!$V$6)) -> 0 | M65: =$M$40*valuePL(M24,'Utility Functions'!$W$3:$W$6,'Utility Functions'!$X$3:$X$6) -> 0 | N65: =$N$40*valueE(N24,'Utility Functions'!$Z$3,'Utility Functions'!$Z$4,'Utility Functions'!$Z$5,'Utility Functions'!$Z$6) -> 0 | O65: =$O$40*valuePL(O24,'Utility Functions'!$AA$3:$AA$5,'Utility Functions'!$AB$3:$AB$5) -> 0 | P65: =$P$40*valuePL(P24,'Utility Functions'!$AC$3:$AC$7,'Utility Functions'!$AD$3:$AD$7) -> 0.03 | Q65: =$Q$40*valuePL(Q24,'Utility Functions'!$AE$3:$AE$6,'Utility Functions'!$AF$3:$AF$6) -> 0 | R65: =$R$40*valuePL(R24,'Utility Functions'!$AG$3:$AG$6,'Utility Functions'!$AH$3:$AH$6) -> 0.05 | S65: =$S$40*valuePL(S24,'Utility Functions'!$AI$3:$AI$6,'Utility Functions'!$AJ$3:$AJ$6) -> 0.05 | T65: =$T$40*valuePL(T24,'Utility Functions'!$AK$3:$AK$8,'Utility Functions'!$AL$3:$AL$8) -> 0.03 | U65: =$U$40*valuePL(U24,'Utility Functions'!$AM$3:$AM$5,'Utility Functions'!$AN$3:$AN$5) -> 0 | V65: =$V$40*valuePL(V24,'Utility Functions'!$AO$3:$AO$5,'Utility Functions'!$AP$3:$AP$5) -> 0.05 | W65: =$W$40*valuePL(W24,'Utility Functions'!$AQ$3:$AQ$6,'Utility Functions'!$AR$3:$AR$6) -> 0.008 | X65: =$X$40*valuePL(X24,'Utility Functions'!$AS$3:$AS$6,'Utility Functions'!$AT$3:$AT$6) -> 0.03 | Y65: =$Y$40*valuePL(Y24,'Utility Functions'!$AU$3:$AU$6,'Utility Functions'!$AV$3:$AV$6) -> 0.01 | Z65: =$Z$40*valuePL(Z24,'Utility Functions'!$AW$3:$AW$5,'Utility Functions'!$AX$3:$AX$5) -> 0.025 | AA65: =$AA$40*valuePL(AA24,'Utility Functions'!$AY$3:$AY$6,'Utility Functions'!$AZ$3:$AZ$6) -> 0.008 | AB65: =$AB$40*valuePL(AB24,'Utility Functions'!$BA$3:$BA$5,'Utility Functions'!$BB$3:$BB$5) -> 0 | AC65: =$AC$40*valuePL(AC24,'Utility Functions'!$BC$3:$BC$5,'Utility Functions'!$BD$3:$BD$5) -> 0.0075 | AD65: 0.3789645223 | AE65: 0.3772298757 | AG65: 0.08046452234 | AH65: 0 | AI65: 0 | AJ65: 0.16 | AK65: 0.1385
A66: 24 | B66: =$B$40*(valueE(B25,'Utility Functions'!$B$3,'Utility Functions'!$B$4,'Utility Functions'!$B$5,'Utility Functions'!$B$6)) -> 0.0189636455 | C66: =$C$40*(valueE(C25,'Utility Functions'!$D$3,'Utility Functions'!$D$4,'Utility Functions'!$D$5,'Utility Functions'!$D$6)) -> 0.01394279015 | D66: =$D$40*(valuePL(D25,'Utility Functions'!$E$3:$E$5,'Utility Functions'!$F$3:$F$5)) -> 0.03 | E66: =$E$40*(valuePL(E25,'Utility Functions'!$G$3:$G$5,'Utility Functions'!$H$3:$H$5)) -> 0 | F66: =$F$40*(valuePL(F25,'Utility Functions'!$I$3:$I$4,'Utility Functions'!$J$3:$J$5)) -> 0 | G66: =$G$40*(valueE(G25,'Utility Functions'!$L$3,'Utility Functions'!$L$4,'Utility Functions'!$L$5,'Utility Functions'!$L$6)) -> 0 | H66: =$H$40*(valueE(H25,'Utility Functions'!$N$3,'Utility Functions'!$N$4,'Utility Functions'!$N$5,'Utility Functions'!$N$6)) -> 0 | I66: =$I$40*valuePL(I25,'Utility Functions'!$O$3:$O$6,'Utility Functions'!$P$3:$P$6) -> 0 | J66: =$J$40*valuePL(J25,'Utility Functions'!$Q$3:$Q$6,'Utility Functions'!$R$3:$R$6) -> 0 | K66: =$K$40*(valuePL(K25,'Utility Functions'!$S$3:$S$7,'Utility Functions'!$T$3:$T$7)) -> 0 | L66: =$L$40*(valueE(L25,'Utility Functions'!$V$3,'Utility Functions'!$V$4,'Utility Functions'!$V$5,'Utility Functions'!$V$6)) -> 0 | M66: =$M$40*valuePL(M25,'Utility Functions'!$W$3:$W$6,'Utility Functions'!$X$3:$X$6) -> 0 | N66: =$N$40*valueE(N25,'Utility Functions'!$Z$3,'Utility Functions'!$Z$4,'Utility Functions'!$Z$5,'Utility Functions'!$Z$6) -> 0 | O66: =$O$40*valuePL(O25,'Utility Functions'!$AA$3:$AA$5,'Utility Functions'!$AB$3:$AB$5) -> 0 | P66: =$P$40*valuePL(P25,'Utility Functions'!$AC$3:$AC$7,'Utility Functions'!$AD$3:$AD$7) -> 0 | Q66: =$Q$40*valuePL(Q25,'Utility Functions'!$AE$3:$AE$6,'Utility Functions'!$AF$3:$AF$6) -> 0 | R66: =$R$40*valuePL(R25,'Utility Functions'!$AG$3:$AG$6,'Utility Functions'!$AH$3:$AH$6) -> 0.05 | S66: =$S$40*valuePL(S25,'Utility Functions'!$AI$3:$AI$6,'Utility Functions'!$AJ$3:$AJ$6) -> 0.05 | T66: =$T$40*valuePL(T25,'Utility Functions'!$AK$3:$AK$8,'Utility Functions'!$AL$3:$AL$8) -> 0.03 | U66: =$U$40*valuePL(U25,'Utility Functions'!$AM$3:$AM$5,'Utility Functions'!$AN$3:$AN$5) -> 0 | V66: =$V$40*valuePL(V25,'Utility Functions'!$AO$3:$AO$5,'Utility Functions'!$AP$3:$AP$5) -> 0 | W66: =$W$40*valuePL(W25,'Utility Functions'!$AQ$3:$AQ$6,'Utility Functions'!$AR$3:$AR$6) -> 0.04 | X66: =$X$40*valuePL(X25,'Utility Functions'!$AS$3:$AS$6,'Utility Functions'!$AT$3:$AT$6) -> 0.008 | Y66: =$Y$40*valuePL(Y25,'Utility Functions'!$AU$3:$AU$6,'Utility Functions'!$AV$3:$AV$6) -> 0.05 | Z66: =$Z$40*valuePL(Z25,'Utility Functions'!$AW$3:$AW$5,'Utility Functions'!$AX$3:$AX$5) -> 0.05 | AA66: =$AA$40*valuePL(AA25,'Utility Functions'!$AY$3:$AY$6,'Utility Functions'!$AZ$3:$AZ$6) -> 0.008 | AB66: =$AB$40*valuePL(AB25,'Utility Functions'!$BA$3:$BA$5,'Utility Functions'!$BB$3:$BB$5) -> 0 | AC66: =$AC$40*valuePL(AC25,'Utility Functions'!$BC$3:$BC$5,'Utility Functions'!$BD$3:$BD$5) -> 0.03 | AD66: 0.3789064356 | AE66: 0.3769050837 | AG66: 0.06290643564 | AH66: 0 | AI66: 0 | AJ66: 0.13 | AK66: 0.186
A67: 25 | B67: =$B$40*(valueE(B26,'Utility Functions'!$B$3,'Utility Functions'!$B$4,'Utility Functions'!$B$5,'Utility Functions'!$B$6)) -> 0.02504107129 | C67: =$C$40*(valueE(C26,'Utility Functions'!$D$3,'Utility Functions'!$D$4,'Utility Functions'!$D$5,'Utility Functions'!$D$6)) -> 0.02542345105 | D67: =$D$40*(valuePL(D26,'Utility Functions'!$E$3:$E$5,'Utility Functions'!$F$3:$F$5)) -> 0.03 | E67: =$E$40*(valuePL(E26,'Utility Functions'!$G$3:$G$5,'Utility Functions'!$H$3:$H$5)) -> 0 | F67: =$F$40*(valuePL(F26,'Utility Functions'!$I$3:$I$4,'Utility Functions'!$J$3:$J$5)) -> 0 | G67: =$G$40*(valueE(G26,'Utility Functions'!$L$3,'Utility Functions'!$L$4,'Utility Functions'!$L$5,'Utility Functions'!$L$6)) -> 0.01419354839 | H67: =$H$40*(valueE(H26,'Utility Functions'!$N$3,'Utility Functions'!$N$4,'Utility Functions'!$N$5,'Utility Functions'!$N$6)) -> 0.004383301708 | I67: =$I$40*valuePL(I26,'Utility Functions'!$O$3:$O$6,'Utility Functions'!$P$3:$P$6) -> 0 | J67: =$J$40*valuePL(J26,'Utility Functions'!$Q$3:$Q$6,'Utility Functions'!$R$3:$R$6) -> 0 | K67: =$K$40*(valuePL(K26,'Utility Functions'!$S$3:$S$7,'Utility Functions'!$T$3:$T$7)) -> 0 | L67: =$L$40*(valueE(L26,'Utility Functions'!$V$3,'Utility Functions'!$V$4,'Utility Functions'!$V$5,'Utility Functions'!$V$6)) -> 0 | M67: =$M$40*valuePL(M26,'Utility Functions'!$W$3:$W$6,'Utility Functions'!$X$3:$X$6) -> 0 | N67: =$N$40*valueE(N26,'Utility Functions'!$Z$3,'Utility Functions'!$Z$4,'Utility Functions'!$Z$5,'Utility Functions'!$Z$6) -> 0.03 | O67: =$O$40*valuePL(O26,'Utility Functions'!$AA$3:$AA$5,'Utility Functions'!$AB$3:$AB$5) -> 0.0225 | P67: =$P$40*valuePL(P26,'Utility Functions'!$AC$3:$AC$7,'Utility Functions'!$AD$3:$AD$7) -> 0.02 | Q67: =$Q$40*valuePL(Q26,'Utility Functions'!$AE$3:$AE$6,'Utility Functions'!$AF$3:$AF$6) -> 0.02 | R67: =$R$40*valuePL(R26,'Utility Functions'!$AG$3:$AG$6,'Utility Functions'!$AH$3:$AH$6) -> 0.05 | S67: =$S$40*valuePL(S26,'Utility Functions'!$AI$3:$AI$6,'Utility Functions'!$AJ$3:$AJ$6) -> 0.05 | T67: =$T$40*valuePL(T26,'Utility Functions'!$AK$3:$AK$8,'Utility Functions'!$AL$3:$AL$8) -> 0 | U67: =$U$40*valuePL(U26,'Utility Functions'!$AM$3:$AM$5,'Utility Functions'!$AN$3:$AN$5) -> 0 | V67: =$V$40*valuePL(V26,'Utility Functions'!$AO$3:$AO$5,'Utility Functions'!$AP$3:$AP$5) -> 0.05 | W67: =$W$40*valuePL(W26,'Utility Functions'!$AQ$3:$AQ$6,'Utility Functions'!$AR$3:$AR$6) -> 0.008 | X67: =$X$40*valuePL(X26,'Utility Functions'!$AS$3:$AS$6,'Utility Functions'!$AT$3:$AT$6) -> 0.04 | Y67: =$Y$40*valuePL(Y26,'Utility Functions'!$AU$3:$AU$6,'Utility Functions'!$AV$3:$AV$6) -> 0.04 | Z67: =$Z$40*valuePL(Z26,'Utility Functions'!$AW$3:$AW$5,'Utility Functions'!$AX$3:$AX$5) -> 0.025 | AA67: =$AA$40*valuePL(AA26,'Utility Functions'!$AY$3:$AY$6,'Utility Functions'!$AZ$3:$AZ$6) -> 0.008 | AB67: =$AB$40*valuePL(AB26,'Utility Functions'!$BA$3:$BA$5,'Utility Functions'!$BB$3:$BB$5) -> 0.04 | AC67: =$AC$40*valuePL(AC26,'Utility Functions'!$BC$3:$BC$5,'Utility Functions'!$BD$3:$BD$5) -> 0.03 | AD67: 0.5325413724 | AE67: 0.5308067258 | AG67: 0.08046452234 | AH67: 0.01857685009 | AI67: 0.0525 | AJ67: 0.14 | AK67: 0.241
A68: 26 | B68: =$B$40*(valueE(B27,'Utility Functions'!$B$3,'Utility Functions'!$B$4,'Utility Functions'!$B$5,'Utility Functions'!$B$6)) -> 0.02899884584 | C68: =$C$40*(valueE(C27,'Utility Functions'!$D$3,'Utility Functions'!$D$4,'Utility Functions'!$D$5,'Utility Functions'!$D$6)) -> 0.02542345105 | D68: =$D$40*(valuePL(D27,'Utility Functions'!$E$3:$E$5,'Utility Functions'!$F$3:$F$5)) -> 0.03 | E68: =$E$40*(valuePL(E27,'Utility Functions'!$G$3:$G$5,'Utility Functions'!$H$3:$H$5)) -> 0.015 | F68: =$F$40*(valuePL(F27,'Utility Functions'!$I$3:$I$4,'Utility Functions'!$J$3:$J$5)) -> 0 | G68: =$G$40*(valueE(G27,'Utility Functions'!$L$3,'Utility Functions'!$L$4,'Utility Functions'!$L$5,'Utility Functions'!$L$6)) -> 0 | H68: =$H$40*(valueE(H27,'Utility Functions'!$N$3,'Utility Functions'!$N$4,'Utility Functions'!$N$5,'Utility Functions'!$N$6)) -> 0 | I68: =$I$40*valuePL(I27,'Utility Functions'!$O$3:$O$6,'Utility Functions'!$P$3:$P$6) -> 0 | J68: =$J$40*valuePL(J27,'Utility Functions'!$Q$3:$Q$6,'Utility Functions'!$R$3:$R$6) -> 0 | K68: =$K$40*(valuePL(K27,'Utility Functions'!$S$3:$S$7,'Utility Functions'!$T$3:$T$7)) -> 0 | L68: =$L$40*(valueE(L27,'Utility Functions'!$V$3,'Utility Functions'!$V$4,'Utility Functions'!$V$5,'Utility Functions'!$V$6)) -> 0 | M68: =$M$40*valuePL(M27,'Utility Functions'!$W$3:$W$6,'Utility Functions'!$X$3:$X$6) -> 0 | N68: =$N$40*valueE(N27,'Utility Functions'!$Z$3,'Utility Functions'!$Z$4,'Utility Functions'!$Z$5,'Utility Functions'!$Z$6) -> 0 | O68: =$O$40*valuePL(O27,'Utility Functions'!$AA$3:$AA$5,'Utility Functions'!$AB$3:$AB$5) -> 0 | P68: =$P$40*valuePL(P27,'Utility Functions'!$AC$3:$AC$7,'Utility Functions'!$AD$3:$AD$7) -> 0.03 | Q68: =$Q$40*valuePL(Q27,'Utility Functions'!$AE$3:$AE$6,'Utility Functions'!$AF$3:$AF$6) -> 0 | R68: =$R$40*valuePL(R27,'Utility Functions'!$AG$3:$AG$6,'Utility Functions'!$AH$3:$AH$6) -> 0.05 | S68: =$S$40*valuePL(S27,'Utility Functions'!$AI$3:$AI$6,'Utility Functions'!$AJ$3:$AJ$6) -> 0.05 | T68: =$T$40*valuePL(T27,'Utility Functions'!$AK$3:$AK$8,'Utility Functions'!$AL$3:$AL$8) -> 0.024 | U68: =$U$40*valuePL(U27,'Utility Functions'!$AM$3:$AM$5,'Utility Functions'!$AN$3:$AN$5) -> 0 | V68: =$V$40*valuePL(V27,'Utility Functions'!$AO$3:$AO$5,'Utility Functions'!$AP$3:$AP$5) -> 0.05 | W68: =$W$40*valuePL(W27,'Utility Functions'!$AQ$3:$AQ$6,'Utility Functions'!$AR$3:$AR$6) -> 0.008 | X68: =$X$40*valuePL(X27,'Utility Functions'!$AS$3:$AS$6,'Utility Functions'!$AT$3:$AT$6) -> 0 | Y68: =$Y$40*valuePL(Y27,'Utility Functions'!$AU$3:$AU$6,'Utility Functions'!$AV$3:$AV$6) -> 0.04 | Z68: =$Z$40*valuePL(Z27,'Utility Functions'!$AW$3:$AW$5,'Utility Functions'!$AX$3:$AX$5) -> 0 | AA68: =$AA$40*valuePL(AA27,'Utility Functions'!$AY$3:$AY$6,'Utility Functions'!$AZ$3:$AZ$6) -> 0.008 | AB68: =$AB$40*valuePL(AB27,'Utility Functions'!$BA$3:$BA$5,'Utility Functions'!$BB$3:$BB$5) -> 0.04 | AC68: =$AC$40*valuePL(AC27,'Utility Functions'!$BC$3:$BC$5,'Utility Functions'!$BD$3:$BD$5) -> 0.03 | AD68: 0.4294222969 | AE68: 0.4286593561 | AG68: 0.09942229689 | AH68: 0 | AI68: 0 | AJ68: 0.154 | AK68: 0.176
A69: 27 | B69: =$B$40*(valueE(B28,'Utility Functions'!$B$3,'Utility Functions'!$B$4,'Utility Functions'!$B$5,'Utility Functions'!$B$6)) -> 0 | C69: =$C$40*(valueE(C28,'Utility Functions'!$D$3,'Utility Functions'!$D$4,'Utility Functions'!$D$5,'Utility Functions'!$D$6)) -> 0.01394279015 | D69: =$D$40*(valuePL(D28,'Utility Functions'!$E$3:$E$5,'Utility Functions'!$F$3:$F$5)) -> 0.03 | E69: =$E$40*(valuePL(E28,'Utility Functions'!$G$3:$G$5,'Utility Functions'!$H$3:$H$5)) -> 0 | F69: =$F$40*(valuePL(F28,'Utility Functions'!$I$3:$I$4,'Utility Functions'!$J$3:$J$5)) -> 0 | G69: =$G$40*(valueE(G28,'Utility Functions'!$L$3,'Utility Functions'!$L$4,'Utility Functions'!$L$5,'Utility Functions'!$L$6)) -> 0 | H69: =$H$40*(valueE(H28,'Utility Functions'!$N$3,'Utility Functions'!$N$4,'Utility Functions'!$N$5,'Utility Functions'!$N$6)) -> 0 | I69: =$I$40*valuePL(I28,'Utility Functions'!$O$3:$O$6,'Utility Functions'!$P$3:$P$6) -> 0 | J69: =$J$40*valuePL(J28,'Utility Functions'!$Q$3:$Q$6,'Utility Functions'!$R$3:$R$6) -> 0 | K69: =$K$40*(valuePL(K28,'Utility Functions'!$S$3:$S$7,'Utility Functions'!$T$3:$T$7)) -> 0.02 | L69: =$L$40*(valueE(L28,'Utility Functions'!$V$3,'Utility Functions'!$V$4,'Utility Functions'!$V$5,'Utility Functions'!$V$6)) -> 0 | M69: =$M$40*valuePL(M28,'Utility Functions'!$W$3:$W$6,'Utility Functions'!$X$3:$X$6) -> 0.002 | N69: =$N$40*valueE(N28,'Utility Functions'!$Z$3,'Utility Functions'!$Z$4,'Utility Functions'!$Z$5,'Utility Functions'!$Z$6) -> 0 | O69: =$O$40*valuePL(O28,'Utility Functions'!$AA$3:$AA$5,'Utility Functions'!$AB$3:$AB$5) -> 0 | P69: =$P$40*valuePL(P28,'Utility Functions'!$AC$3:$AC$7,'Utility Functions'!$AD$3:$AD$7) -> 0.02 | Q69: =$Q$40*valuePL(Q28,'Utility Functions'!$AE$3:$AE$6,'Utility Functions'!$AF$3:$AF$6) -> 0.02 | R69: =$R$40*valuePL(R28,'Utility Functions'!$AG$3:$AG$6,'Utility Functions'!$AH$3:$AH$6) -> 0.05 | S69: =$S$40*valuePL(S28,'Utility Functions'!$AI$3:$AI$6,'Utility Functions'!$AJ$3:$AJ$6) -> 0.05 | T69: =$T$40*valuePL(T28,'Utility Functions'!$AK$3:$AK$8,'Utility Functions'!$AL$3:$AL$8) -> 0.03 | U69: =$U$40*valuePL(U28,'Utility Functions'!$AM$3:$AM$5,'Utility Functions'!$AN$3:$AN$5) -> 0 | V69: =$V$40*valuePL(V28,'Utility Functions'!$AO$3:$AO$5,'Utility Functions'!$AP$3:$AP$5) -> 0.025 | W69: =$W$40*valuePL(W28,'Utility Functions'!$AQ$3:$AQ$6,'Utility Functions'!$AR$3:$AR$6) -> 0.03 | X69: =$X$40*valuePL(X28,'Utility Functions'!$AS$3:$AS$6,'Utility Functions'!$AT$3:$AT$6) -> 0.04 | Y69: =$Y$40*valuePL(Y28,'Utility Functions'!$AU$3:$AU$6,'Utility Functions'!$AV$3:$AV$6) -> 0.01 | Z69: =$Z$40*valuePL(Z28,'Utility Functions'!$AW$3:$AW$5,'Utility Functions'!$AX$3:$AX$5) -> 0 | AA69: =$AA$40*valuePL(AA28,'Utility Functions'!$AY$3:$AY$6,'Utility Functions'!$AZ$3:$AZ$6) -> 0 | AB69: =$AB$40*valuePL(AB28,'Utility Functions'!$BA$3:$BA$5,'Utility Functions'!$BB$3:$BB$5) -> 0 | AC69: =$AC$40*valuePL(AC28,'Utility Functions'!$BC$3:$BC$5,'Utility Functions'!$BD$3:$BD$5) -> 0 | AD69: 0.3409427901 | AE69: 0.3409427901 | AG69: 0.04394279015 | AH69: 0.022 | AI69: 0 | AJ69: 0.17 | AK69: 0.105
A70: =A29 -> 28 | B70: =$B$40*(valueE(B29,'Utility Functions'!$B$3,'Utility Functions'!$B$4,'Utility Functions'!$B$5,'Utility Functions'!$B$6)) -> 0.01353567143 | C70: =$C$40*(valueE(C29,'Utility Functions'!$D$3,'Utility Functions'!$D$4,'Utility Functions'!$D$5,'Utility Functions'!$D$6)) -> 0.01394279015 | D70: =$D$40*(valuePL(D29,'Utility Functions'!$E$3:$E$5,'Utility Functions'!$F$3:$F$5)) -> 0.03 | E70: =$E$40*(valuePL(E29,'Utility Functions'!$G$3:$G$5,'Utility Functions'!$H$3:$H$5)) -> 0 | F70: =$F$40*(valuePL(F29,'Utility Functions'!$I$3:$I$4,'Utility Functions'!$J$3:$J$5)) -> 0.04 | G70: =$G$40*(valueE(G29,'Utility Functions'!$L$3,'Utility Functions'!$L$4,'Utility Functions'!$L$5,'Utility Functions'!$L$6)) -> 0 | H70: =$H$40*(valueE(H29,'Utility Functions'!$N$3,'Utility Functions'!$N$4,'Utility Functions'!$N$5,'Utility Functions'!$N$6)) -> 0 | I70: =$I$40*valuePL(I29,'Utility Functions'!$O$3:$O$6,'Utility Functions'!$P$3:$P$6) -> 0 | J70: =$J$40*valuePL(J29,'Utility Functions'!$Q$3:$Q$6,'Utility Functions'!$R$3:$R$6) -> 0 | K70: =$K$40*(valuePL(K29,'Utility Functions'!$S$3:$S$7,'Utility Functions'!$T$3:$T$7)) -> 0 | L70: =$L$40*(valueE(L29,'Utility Functions'!$V$3,'Utility Functions'!$V$4,'Utility Functions'!$V$5,'Utility Functions'!$V$6)) -> 0.006666666667 | M70: =$M$40*valuePL(M29,'Utility Functions'!$W$3:$W$6,'Utility Functions'!$X$3:$X$6) -> 0.002 | N70: =$N$40*valueE(N29,'Utility Functions'!$Z$3,'Utility Functions'!$Z$4,'Utility Functions'!$Z$5,'Utility Functions'!$Z$6) -> 0 | O70: =$O$40*valuePL(O29,'Utility Functions'!$AA$3:$AA$5,'Utility Functions'!$AB$3:$AB$5) -> 0 | P70: =$P$40*valuePL(P29,'Utility Functions'!$AC$3:$AC$7,'Utility Functions'!$AD$3:$AD$7) -> 0.04 | Q70: =$Q$40*valuePL(Q29,'Utility Functions'!$AE$3:$AE$6,'Utility Functions'!$AF$3:$AF$6) -> 0 | R70: =$R$40*valuePL(R29,'Utility Functions'!$AG$3:$AG$6,'Utility Functions'!$AH$3:$AH$6) -> 0.05 | S70: =$S$40*valuePL(S29,'Utility Functions'!$AI$3:$AI$6,'Utility Functions'!$AJ$3:$AJ$6) -> 0.05 | T70: =$T$40*valuePL(T29,'Utility Functions'!$AK$3:$AK$8,'Utility Functions'!$AL$3:$AL$8) -> 0.024 | U70: =$U$40*valuePL(U29,'Utility Functions'!$AM$3:$AM$5,'Utility Functions'!$AN$3:$AN$5) -> 0 | V70: =$V$40*valuePL(V29,'Utility Functions'!$AO$3:$AO$5,'Utility Functions'!$AP$3:$AP$5) -> 0.05 | W70: =$W$40*valuePL(W29,'Utility Functions'!$AQ$3:$AQ$6,'Utility Functions'!$AR$3:$AR$6) -> 0.04 | X70: =$X$40*valuePL(X29,'Utility Functions'!$AS$3:$AS$6,'Utility Functions'!$AT$3:$AT$6) -> 0.04 | Y70: =$Y$40*valuePL(Y29,'Utility Functions'!$AU$3:$AU$6,'Utility Functions'!$AV$3:$AV$6) -> 0.01 | Z70: =$Z$40*valuePL(Z29,'Utility Functions'!$AW$3:$AW$5,'Utility Functions'!$AX$3:$AX$5) -> 0 | AA70: =$AA$40*valuePL(AA29,'Utility Functions'!$AY$3:$AY$6,'Utility Functions'!$AZ$3:$AZ$6) -> 0.036 | AB70: =$AB$40*valuePL(AB29,'Utility Functions'!$BA$3:$BA$5,'Utility Functions'!$BB$3:$BB$5) -> 0.04 | AC70: =$AC$40*valuePL(AC29,'Utility Functions'!$BC$3:$BC$5,'Utility Functions'!$BD$3:$BD$5) -> 0.0075 | AD70: 0.4936451282 | AE70: 0.4919137039 | AG70: 0.09747846157 | AH70: 0.008666666667 | AI70: 0 | AJ70: 0.164 | AK70: 0.2235
A71: 29 | B71: =$B$40*(valueE(B30,'Utility Functions'!$B$3,'Utility Functions'!$B$4,'Utility Functions'!$B$5,'Utility Functions'!$B$6)) -> 0.02504107129 | C71: =$C$40*(valueE(C30,'Utility Functions'!$D$3,'Utility Functions'!$D$4,'Utility Functions'!$D$5,'Utility Functions'!$D$6)) -> 0.02140582792 | D71: =$D$40*(valuePL(D30,'Utility Functions'!$E$3:$E$5,'Utility Functions'!$F$3:$F$5)) -> 0.03 | E71: =$E$40*(valuePL(E30,'Utility Functions'!$G$3:$G$5,'Utility Functions'!$H$3:$H$5)) -> 0.015 | F71: =$F$40*(valuePL(F30,'Utility Functions'!$I$3:$I$4,'Utility Functions'!$J$3:$J$5)) -> 0 | G71: =$G$40*(valueE(G30,'Utility Functions'!$L$3,'Utility Functions'!$L$4,'Utility Functions'!$L$5,'Utility Functions'!$L$6)) -> 0 | H71: =$H$40*(valueE(H30,'Utility Functions'!$N$3,'Utility Functions'!$N$4,'Utility Functions'!$N$5,'Utility Functions'!$N$6)) -> 0 | I71: =$I$40*valuePL(I30,'Utility Functions'!$O$3:$O$6,'Utility Functions'!$P$3:$P$6) -> 0.0018 | J71: =$J$40*valuePL(J30,'Utility Functions'!$Q$3:$Q$6,'Utility Functions'!$R$3:$R$6) -> 0.01345454545 | K71: =$K$40*(valuePL(K30,'Utility Functions'!$S$3:$S$7,'Utility Functions'!$T$3:$T$7)) -> 0 | L71: =$L$40*(valueE(L30,'Utility Functions'!$V$3,'Utility Functions'!$V$4,'Utility Functions'!$V$5,'Utility Functions'!$V$6)) -> 0.02 | M71: =$M$40*valuePL(M30,'Utility Functions'!$W$3:$W$6,'Utility Functions'!$X$3:$X$6) -> 0.01345454545 | N71: =$N$40*valueE(N30,'Utility Functions'!$Z$3,'Utility Functions'!$Z$4,'Utility Functions'!$Z$5,'Utility Functions'!$Z$6) -> 0 | O71: =$O$40*valuePL(O30,'Utility Functions'!$AA$3:$AA$5,'Utility Functions'!$AB$3:$AB$5) -> 0 | P71: =$P$40*valuePL(P30,'Utility Functions'!$AC$3:$AC$7,'Utility Functions'!$AD$3:$AD$7) -> 0.01 | Q71: =$Q$40*valuePL(Q30,'Utility Functions'!$AE$3:$AE$6,'Utility Functions'!$AF$3:$AF$6) -> 0 | R71: =$R$40*valuePL(R30,'Utility Functions'!$AG$3:$AG$6,'Utility Functions'!$AH$3:$AH$6) -> 0.05 | S71: =$S$40*valuePL(S30,'Utility Functions'!$AI$3:$AI$6,'Utility Functions'!$AJ$3:$AJ$6) -> 0.05 | T71: =$T$40*valuePL(T30,'Utility Functions'!$AK$3:$AK$8,'Utility Functions'!$AL$3:$AL$8) -> 0.024 | U71: =$U$40*valuePL(U30,'Utility Functions'!$AM$3:$AM$5,'Utility Functions'!$AN$3:$AN$5) -> 0 | V71: =$V$40*valuePL(V30,'Utility Functions'!$AO$3:$AO$5,'Utility Functions'!$AP$3:$AP$5) -> 0.05 | W71: =$W$40*valuePL(W30,'Utility Functions'!$AQ$3:$AQ$6,'Utility Functions'!$AR$3:$AR$6) -> 0.008 | X71: =$X$40*valuePL(X30,'Utility Functions'!$AS$3:$AS$6,'Utility Functions'!$AT$3:$AT$6) -> 0 | Y71: =$Y$40*valuePL(Y30,'Utility Functions'!$AU$3:$AU$6,'Utility Functions'!$AV$3:$AV$6) -> 0.04 | Z71: =$Z$40*valuePL(Z30,'Utility Functions'!$AW$3:$AW$5,'Utility Functions'!$AX$3:$AX$5) -> 0.025 | AA71: =$AA$40*valuePL(AA30,'Utility Functions'!$AY$3:$AY$6,'Utility Functions'!$AZ$3:$AZ$6) -> 0.008 | AB71: =$AB$40*valuePL(AB30,'Utility Functions'!$BA$3:$BA$5,'Utility Functions'!$BB$3:$BB$5) -> 0.01 | AC71: =$AC$40*valuePL(AC30,'Utility Functions'!$BC$3:$BC$5,'Utility Functions'!$BD$3:$BD$5) -> 0.03 | AD71: 0.4451559901 | AE71: 0.4434213435 | AG71: 0.09144689921 | AH71: 0.04870909091 | AI71: 0 | AJ71: 0.134 | AK71: 0.171
A72: 30 | B72: =$B$40*(valueE(B31,'Utility Functions'!$B$3,'Utility Functions'!$B$4,'Utility Functions'!$B$5,'Utility Functions'!$B$6)) -> 0.02995923435 | C72: =$C$40*(valueE(C31,'Utility Functions'!$D$3,'Utility Functions'!$D$4,'Utility Functions'!$D$5,'Utility Functions'!$D$6)) -> 0.02542345105 | D72: =$D$40*(valuePL(D31,'Utility Functions'!$E$3:$E$5,'Utility Functions'!$F$3:$F$5)) -> 0.03 | E72: =$E$40*(valuePL(E31,'Utility Functions'!$G$3:$G$5,'Utility Functions'!$H$3:$H$5)) -> 0 | F72: =$F$40*(valuePL(F31,'Utility Functions'!$I$3:$I$4,'Utility Functions'!$J$3:$J$5)) -> 0 | G72: =$G$40*(valueE(G31,'Utility Functions'!$L$3,'Utility Functions'!$L$4,'Utility Functions'!$L$5,'Utility Functions'!$L$6)) -> 0 | H72: =$H$40*(valueE(H31,'Utility Functions'!$N$3,'Utility Functions'!$N$4,'Utility Functions'!$N$5,'Utility Functions'!$N$6)) -> 0 | I72: =$I$40*valuePL(I31,'Utility Functions'!$O$3:$O$6,'Utility Functions'!$P$3:$P$6) -> 0 | J72: =$J$40*valuePL(J31,'Utility Functions'!$Q$3:$Q$6,'Utility Functions'!$R$3:$R$6) -> 0 | K72: =$K$40*(valuePL(K31,'Utility Functions'!$S$3:$S$7,'Utility Functions'!$T$3:$T$7)) -> 0 | L72: =$L$40*(valueE(L31,'Utility Functions'!$V$3,'Utility Functions'!$V$4,'Utility Functions'!$V$5,'Utility Functions'!$V$6)) -> 0.006666666667 | M72: =$M$40*valuePL(M31,'Utility Functions'!$W$3:$W$6,'Utility Functions'!$X$3:$X$6) -> 0.0008 | N72: =$N$40*valueE(N31,'Utility Functions'!$Z$3,'Utility Functions'!$Z$4,'Utility Functions'!$Z$5,'Utility Functions'!$Z$6) -> 0 | O72: =$O$40*valuePL(O31,'Utility Functions'!$AA$3:$AA$5,'Utility Functions'!$AB$3:$AB$5) -> 0 | P72: =$P$40*valuePL(P31,'Utility Functions'!$AC$3:$AC$7,'Utility Functions'!$AD$3:$AD$7) -> 0 | Q72: =$Q$40*valuePL(Q31,'Utility Functions'!$AE$3:$AE$6,'Utility Functions'!$AF$3:$AF$6) -> 0 | R72: =$R$40*valuePL(R31,'Utility Functions'!$AG$3:$AG$6,'Utility Functions'!$AH$3:$AH$6) -> 0.01 | S72: =$S$40*valuePL(S31,'Utility Functions'!$AI$3:$AI$6,'Utility Functions'!$AJ$3:$AJ$6) -> 0.0165 | T72: =$T$40*valuePL(T31,'Utility Functions'!$AK$3:$AK$8,'Utility Functions'!$AL$3:$AL$8) -> 0 | U72: =$U$40*valuePL(U31,'Utility Functions'!$AM$3:$AM$5,'Utility Functions'!$AN$3:$AN$5) -> 0 | V72: =$V$40*valuePL(V31,'Utility Functions'!$AO$3:$AO$5,'Utility Functions'!$AP$3:$AP$5) -> 0 | W72: =$W$40*valuePL(W31,'Utility Functions'!$AQ$3:$AQ$6,'Utility Functions'!$AR$3:$AR$6) -> 0.04 | X72: =$X$40*valuePL(X31,'Utility Functions'!$AS$3:$AS$6,'Utility Functions'!$AT$3:$AT$6) -> 0.008 | Y72: =$Y$40*valuePL(Y31,'Utility Functions'!$AU$3:$AU$6,'Utility Functions'!$AV$3:$AV$6) -> 0.04 | Z72: =$Z$40*valuePL(Z31,'Utility Functions'!$AW$3:$AW$5,'Utility Functions'!$AX$3:$AX$5) -> 0 | AA72: =$AA$40*valuePL(AA31,'Utility Functions'!$AY$3:$AY$6,'Utility Functions'!$AZ$3:$AZ$6) -> 0.036 | AB72: =$AB$40*valuePL(AB31,'Utility Functions'!$BA$3:$BA$5,'Utility Functions'!$BB$3:$BB$5) -> 0.04 | AC72: =$AC$40*valuePL(AC31,'Utility Functions'!$BC$3:$BC$5,'Utility Functions'!$BD$3:$BD$5) -> 0 | AD72: 0.2833493521 | AE72: 0.283267937 | AG72: 0.0853826854 | AH72: 0.007466666667 | AI72: 0 | AJ72: 0.0265 | AK72: 0.164
A73: 31 | B73: =$B$40*(valueE(B32,'Utility Functions'!$B$3,'Utility Functions'!$B$4,'Utility Functions'!$B$5,'Utility Functions'!$B$6)) -> 0.01652015611 | C73: =$C$40*(valueE(C32,'Utility Functions'!$D$3,'Utility Functions'!$D$4,'Utility Functions'!$D$5,'Utility Functions'!$D$6)) -> 0.02542345105 | D73: =$D$40*(valuePL(D32,'Utility Functions'!$E$3:$E$5,'Utility Functions'!$F$3:$F$5)) -> 0.015 | E73: =$E$40*(valuePL(E32,'Utility Functions'!$G$3:$G$5,'Utility Functions'!$H$3:$H$5)) -> 0 | F73: =$F$40*(valuePL(F32,'Utility Functions'!$I$3:$I$4,'Utility Functions'!$J$3:$J$5)) -> 0 | G73: =$G$40*(valueE(G32,'Utility Functions'!$L$3,'Utility Functions'!$L$4,'Utility Functions'!$L$5,'Utility Functions'!$L$6)) -> 0 | H73: =$H$40*(valueE(H32,'Utility Functions'!$N$3,'Utility Functions'!$N$4,'Utility Functions'!$N$5,'Utility Functions'!$N$6)) -> 0 | I73: =$I$40*valuePL(I32,'Utility Functions'!$O$3:$O$6,'Utility Functions'!$P$3:$P$6) -> 0.02263636364 | J73: =$J$40*valuePL(J32,'Utility Functions'!$Q$3:$Q$6,'Utility Functions'!$R$3:$R$6) -> 0.0016 | K73: =$K$40*(valuePL(K32,'Utility Functions'!$S$3:$S$7,'Utility Functions'!$T$3:$T$7)) -> 0 | L73: =$L$40*(valueE(L32,'Utility Functions'!$V$3,'Utility Functions'!$V$4,'Utility Functions'!$V$5,'Utility Functions'!$V$6)) -> 0.006666666667 | M73: =$M$40*valuePL(M32,'Utility Functions'!$W$3:$W$6,'Utility Functions'!$X$3:$X$6) -> 0.0016 | N73: =$N$40*valueE(N32,'Utility Functions'!$Z$3,'Utility Functions'!$Z$4,'Utility Functions'!$Z$5,'Utility Functions'!$Z$6) -> 0 | O73: =$O$40*valuePL(O32,'Utility Functions'!$AA$3:$AA$5,'Utility Functions'!$AB$3:$AB$5) -> 0 | P73: =$P$40*valuePL(P32,'Utility Functions'!$AC$3:$AC$7,'Utility Functions'!$AD$3:$AD$7) -> 0.02 | Q73: =$Q$40*valuePL(Q32,'Utility Functions'!$AE$3:$AE$6,'Utility Functions'!$AF$3:$AF$6) -> 0 | R73: =$R$40*valuePL(R32,'Utility Functions'!$AG$3:$AG$6,'Utility Functions'!$AH$3:$AH$6) -> 0.05 | S73: =$S$40*valuePL(S32,'Utility Functions'!$AI$3:$AI$6,'Utility Functions'!$AJ$3:$AJ$6) -> 0.033 | T73: =$T$40*valuePL(T32,'Utility Functions'!$AK$3:$AK$8,'Utility Functions'!$AL$3:$AL$8) -> 0.018 | U73: =$U$40*valuePL(U32,'Utility Functions'!$AM$3:$AM$5,'Utility Functions'!$AN$3:$AN$5) -> 0 | V73: =$V$40*valuePL(V32,'Utility Functions'!$AO$3:$AO$5,'Utility Functions'!$AP$3:$AP$5) -> 0.025 | W73: =$W$40*valuePL(W32,'Utility Functions'!$AQ$3:$AQ$6,'Utility Functions'!$AR$3:$AR$6) -> 0 | X73: =$X$40*valuePL(X32,'Utility Functions'!$AS$3:$AS$6,'Utility Functions'!$AT$3:$AT$6) -> 0.008 | Y73: =$Y$40*valuePL(Y32,'Utility Functions'!$AU$3:$AU$6,'Utility Functions'!$AV$3:$AV$6) -> 0.01 | Z73: =$Z$40*valuePL(Z32,'Utility Functions'!$AW$3:$AW$5,'Utility Functions'!$AX$3:$AX$5) -> 0.05 | AA73: =$AA$40*valuePL(AA32,'Utility Functions'!$AY$3:$AY$6,'Utility Functions'!$AZ$3:$AZ$6) -> 0.036 | AB73: =$AB$40*valuePL(AB32,'Utility Functions'!$BA$3:$BA$5,'Utility Functions'!$BB$3:$BB$5) -> 0.01 | AC73: =$AC$40*valuePL(AC32,'Utility Functions'!$BC$3:$BC$5,'Utility Functions'!$BD$3:$BD$5) -> 0.0075 | AD73: 0.3569466375 | AE73: 0.3550241742 | AG73: 0.05694360716 | AH73: 0.0325030303 | AI73: 0 | AJ73: 0.121 | AK73: 0.1465
A74: =A33 -> 32 | B74: =$B$40*(valueE(B33,'Utility Functions'!$B$3,'Utility Functions'!$B$4,'Utility Functions'!$B$5,'Utility Functions'!$B$6)) -> 0.0189636455 | C74: =$C$40*(valueE(C33,'Utility Functions'!$D$3,'Utility Functions'!$D$4,'Utility Functions'!$D$5,'Utility Functions'!$D$6)) -> 0.008051896687 | D74: =$D$40*(valuePL(D33,'Utility Functions'!$E$3:$E$5,'Utility Functions'!$F$3:$F$5)) -> 0.03 | E74: =$E$40*(valuePL(E33,'Utility Functions'!$G$3:$G$5,'Utility Functions'!$H$3:$H$5)) -> 0.03 | F74: =$F$40*(valuePL(F33,'Utility Functions'!$I$3:$I$4,'Utility Functions'!$J$3:$J$5)) -> 0.04 | G74: =$G$40*(valueE(G33,'Utility Functions'!$L$3,'Utility Functions'!$L$4,'Utility Functions'!$L$5,'Utility Functions'!$L$6)) -> 0.0004838709677 | H74: =$H$40*(valueE(H33,'Utility Functions'!$N$3,'Utility Functions'!$N$4,'Utility Functions'!$N$5,'Utility Functions'!$N$6)) -> 0.001451612903 | I74: =$I$40*valuePL(I33,'Utility Functions'!$O$3:$O$6,'Utility Functions'!$P$3:$P$6) -> 0.01036363636 | J74: =$J$40*valuePL(J33,'Utility Functions'!$Q$3:$Q$6,'Utility Functions'!$R$3:$R$6) -> 0.02 | K74: =$K$40*(valuePL(K33,'Utility Functions'!$S$3:$S$7,'Utility Functions'!$T$3:$T$7)) -> 0.006909090909 | L74: =$L$40*(valueE(L33,'Utility Functions'!$V$3,'Utility Functions'!$V$4,'Utility Functions'!$V$5,'Utility Functions'!$V$6)) -> 0.02 | M74: =$M$40*valuePL(M33,'Utility Functions'!$W$3:$W$6,'Utility Functions'!$X$3:$X$6) -> 0.02 | N74: =$N$40*valueE(N33,'Utility Functions'!$Z$3,'Utility Functions'!$Z$4,'Utility Functions'!$Z$5,'Utility Functions'!$Z$6) -> 0 | O74: =$O$40*valuePL(O33,'Utility Functions'!$AA$3:$AA$5,'Utility Functions'!$AB$3:$AB$5) -> 0 | P74: =$P$40*valuePL(P33,'Utility Functions'!$AC$3:$AC$7,'Utility Functions'!$AD$3:$AD$7) -> 0.02 | Q74: =$Q$40*valuePL(Q33,'Utility Functions'!$AE$3:$AE$6,'Utility Functions'!$AF$3:$AF$6) -> 0.04 | R74: =$R$40*valuePL(R33,'Utility Functions'!$AG$3:$AG$6,'Utility Functions'!$AH$3:$AH$6) -> 0.05 | S74: =$S$40*valuePL(S33,'Utility Functions'!$AI$3:$AI$6,'Utility Functions'!$AJ$3:$AJ$6) -> 0 | T74: =$T$40*valuePL(T33,'Utility Functions'!$AK$3:$AK$8,'Utility Functions'!$AL$3:$AL$8) -> 0.024 | U74: =$U$40*valuePL(U33,'Utility Functions'!$AM$3:$AM$5,'Utility Functions'!$AN$3:$AN$5) -> 0 | V74: =$V$40*valuePL(V33,'Utility Functions'!$AO$3:$AO$5,'Utility Functions'!$AP$3:$AP$5) -> 0 | W74: =$W$40*valuePL(W33,'Utility Functions'!$AQ$3:$AQ$6,'Utility Functions'!$AR$3:$AR$6) -> 0.03 | X74: =$X$40*valuePL(X33,'Utility Functions'!$AS$3:$AS$6,'Utility Functions'!$AT$3:$AT$6) -> 0.008 | Y74: =$Y$40*valuePL(Y33,'Utility Functions'!$AU$3:$AU$6,'Utility Functions'!$AV$3:$AV$6) -> 0.04 | Z74: =$Z$40*valuePL(Z33,'Utility Functions'!$AW$3:$AW$5,'Utility Functions'!$AX$3:$AX$5) -> 0.025 | AA74: =$AA$40*valuePL(AA33,'Utility Functions'!$AY$3:$AY$6,'Utility Functions'!$AZ$3:$AZ$6) -> 0 | AB74: =$AB$40*valuePL(AB33,'Utility Functions'!$BA$3:$BA$5,'Utility Functions'!$BB$3:$BB$5) -> 0.04 | AC74: =$AC$40*valuePL(AC33,'Utility Functions'!$BC$3:$BC$5,'Utility Functions'!$BD$3:$BD$5) -> 0.0075 | AD74: 0.4907237533 | AE74: 0.4887224014 | AG74: 0.1270155422 | AH74: 0.07920821114 | AI74: 0 | AJ74: 0.134 | AK74: 0.1505
A75: 33 | B75: =$B$40*(valueE(B34,'Utility Functions'!$B$3,'Utility Functions'!$B$4,'Utility Functions'!$B$5,'Utility Functions'!$B$6)) -> 0.02817574081 | C75: =$C$40*(valueE(C34,'Utility Functions'!$D$3,'Utility Functions'!$D$4,'Utility Functions'!$D$5,'Utility Functions'!$D$6)) -> 0.02542345105 | D75: =$D$40*(valuePL(D34,'Utility Functions'!$E$3:$E$5,'Utility Functions'!$F$3:$F$5)) -> 0.03 | E75: =$E$40*(valuePL(E34,'Utility Functions'!$G$3:$G$5,'Utility Functions'!$H$3:$H$5)) -> 0.015 | F75: =$F$40*(valuePL(F34,'Utility Functions'!$I$3:$I$4,'Utility Functions'!$J$3:$J$5)) -> 0 | G75: =$G$40*(valueE(G34,'Utility Functions'!$L$3,'Utility Functions'!$L$4,'Utility Functions'!$L$5,'Utility Functions'!$L$6)) -> 0 | H75: =$H$40*(valueE(H34,'Utility Functions'!$N$3,'Utility Functions'!$N$4,'Utility Functions'!$N$5,'Utility Functions'!$N$6)) -> 0 | I75: =$I$40*valuePL(I34,'Utility Functions'!$O$3:$O$6,'Utility Functions'!$P$3:$P$6) -> 0 | J75: =$J$40*valuePL(J34,'Utility Functions'!$Q$3:$Q$6,'Utility Functions'!$R$3:$R$6) -> 0 | K75: =$K$40*(valuePL(K34,'Utility Functions'!$S$3:$S$7,'Utility Functions'!$T$3:$T$7)) -> 0 | L75: =$L$40*(valueE(L34,'Utility Functions'!$V$3,'Utility Functions'!$V$4,'Utility Functions'!$V$5,'Utility Functions'!$V$6)) -> 0.01 | M75: =$M$40*valuePL(M34,'Utility Functions'!$W$3:$W$6,'Utility Functions'!$X$3:$X$6) -> 0 | N75: =$N$40*valueE(N34,'Utility Functions'!$Z$3,'Utility Functions'!$Z$4,'Utility Functions'!$Z$5,'Utility Functions'!$Z$6) -> 0 | O75: =$O$40*valuePL(O34,'Utility Functions'!$AA$3:$AA$5,'Utility Functions'!$AB$3:$AB$5) -> 0 | P75: =$P$40*valuePL(P34,'Utility Functions'!$AC$3:$AC$7,'Utility Functions'!$AD$3:$AD$7) -> 0.02 | Q75: =$Q$40*valuePL(Q34,'Utility Functions'!$AE$3:$AE$6,'Utility Functions'!$AF$3:$AF$6) -> 0 | R75: =$R$40*valuePL(R34,'Utility Functions'!$AG$3:$AG$6,'Utility Functions'!$AH$3:$AH$6) -> 0.05 | S75: =$S$40*valuePL(S34,'Utility Functions'!$AI$3:$AI$6,'Utility Functions'!$AJ$3:$AJ$6) -> 0.033 | T75: =$T$40*valuePL(T34,'Utility Functions'!$AK$3:$AK$8,'Utility Functions'!$AL$3:$AL$8) -> 0 | U75: =$U$40*valuePL(U34,'Utility Functions'!$AM$3:$AM$5,'Utility Functions'!$AN$3:$AN$5) -> 0 | V75: =$V$40*valuePL(V34,'Utility Functions'!$AO$3:$AO$5,'Utility Functions'!$AP$3:$AP$5) -> 0.025 | W75: =$W$40*valuePL(W34,'Utility Functions'!$AQ$3:$AQ$6,'Utility Functions'!$AR$3:$AR$6) -> 0.04 | X75: =$X$40*valuePL(X34,'Utility Functions'!$AS$3:$AS$6,'Utility Functions'!$AT$3:$AT$6) -> 0 | Y75: =$Y$40*valuePL(Y34,'Utility Functions'!$AU$3:$AU$6,'Utility Functions'!$AV$3:$AV$6) -> 0.04 | Z75: =$Z$40*valuePL(Z34,'Utility Functions'!$AW$3:$AW$5,'Utility Functions'!$AX$3:$AX$5) -> 0.05 | AA75: =$AA$40*valuePL(AA34,'Utility Functions'!$AY$3:$AY$6,'Utility Functions'!$AZ$3:$AZ$6) -> 0.04 | AB75: =$AB$40*valuePL(AB34,'Utility Functions'!$BA$3:$BA$5,'Utility Functions'!$BB$3:$BB$5) -> 0 | AC75: =$AC$40*valuePL(AC34,'Utility Functions'!$BC$3:$BC$5,'Utility Functions'!$BD$3:$BD$5) -> 0 | AD75: 0.4065991919 | AE75: 0.405514675 | AG75: 0.09859919186 | AH75: 0.01 | AI75: 0 | AJ75: 0.103 | AK75: 0.195
A76: 34 | B76: =$B$40*(valueE(B35,'Utility Functions'!$B$3,'Utility Functions'!$B$4,'Utility Functions'!$B$5,'Utility Functions'!$B$6)) -> 0 | C76: =$C$40*(valueE(C35,'Utility Functions'!$D$3,'Utility Functions'!$D$4,'Utility Functions'!$D$5,'Utility Functions'!$D$6)) -> 0 | D76: =$D$40*(valuePL(D35,'Utility Functions'!$E$3:$E$5,'Utility Functions'!$F$3:$F$5)) -> 0 | E76: =$E$40*(valuePL(E35,'Utility Functions'!$G$3:$G$5,'Utility Functions'!$H$3:$H$5)) -> 0 | F76: =$F$40*(valuePL(F35,'Utility Functions'!$I$3:$I$4,'Utility Functions'!$J$3:$J$5)) -> 0 | G76: =$G$40*(valueE(G35,'Utility Functions'!$L$3,'Utility Functions'!$L$4,'Utility Functions'!$L$5,'Utility Functions'!$L$6)) -> 0 | H76: =$H$40*(valueE(H35,'Utility Functions'!$N$3,'Utility Functions'!$N$4,'Utility Functions'!$N$5,'Utility Functions'!$N$6)) -> 0.0001707779886 | I76: =$I$40*valuePL(I35,'Utility Functions'!$O$3:$O$6,'Utility Functions'!$P$3:$P$6) -> 0.03 | J76: =$J$40*valuePL(J35,'Utility Functions'!$Q$3:$Q$6,'Utility Functions'!$R$3:$R$6) -> 0.01836363636 | K76: =$K$40*(valuePL(K35,'Utility Functions'!$S$3:$S$7,'Utility Functions'!$T$3:$T$7)) -> 0.02 | L76: =$L$40*(valueE(L35,'Utility Functions'!$V$3,'Utility Functions'!$V$4,'Utility Functions'!$V$5,'Utility Functions'!$V$6)) -> 0.02 | M76: =$M$40*valuePL(M35,'Utility Functions'!$W$3:$W$6,'Utility Functions'!$X$3:$X$6) -> 0.01836363636 | N76: =$N$40*valueE(N35,'Utility Functions'!$Z$3,'Utility Functions'!$Z$4,'Utility Functions'!$Z$5,'Utility Functions'!$Z$6) -> 0 | O76: =$O$40*valuePL(O35,'Utility Functions'!$AA$3:$AA$5,'Utility Functions'!$AB$3:$AB$5) -> 0 | P76: =$P$40*valuePL(P35,'Utility Functions'!$AC$3:$AC$7,'Utility Functions'!$AD$3:$AD$7) -> 0.02 | Q76: =$Q$40*valuePL(Q35,'Utility Functions'!$AE$3:$AE$6,'Utility Functions'!$AF$3:$AF$6) -> 0 | R76: =$R$40*valuePL(R35,'Utility Functions'!$AG$3:$AG$6,'Utility Functions'!$AH$3:$AH$6) -> 0.05 | S76: =$S$40*valuePL(S35,'Utility Functions'!$AI$3:$AI$6,'Utility Functions'!$AJ$3:$AJ$6) -> 0.05 | T76: =$T$40*valuePL(T35,'Utility Functions'!$AK$3:$AK$8,'Utility Functions'!$AL$3:$AL$8) -> 0.024 | U76: =$U$40*valuePL(U35,'Utility Functions'!$AM$3:$AM$5,'Utility Functions'!$AN$3:$AN$5) -> 0 | V76: =$V$40*valuePL(V35,'Utility Functions'!$AO$3:$AO$5,'Utility Functions'!$AP$3:$AP$5) -> 0.05 | W76: =$W$40*valuePL(W35,'Utility Functions'!$AQ$3:$AQ$6,'Utility Functions'!$AR$3:$AR$6) -> 0.04 | X76: =$X$40*valuePL(X35,'Utility Functions'!$AS$3:$AS$6,'Utility Functions'!$AT$3:$AT$6) -> 0.04 | Y76: =$Y$40*valuePL(Y35,'Utility Functions'!$AU$3:$AU$6,'Utility Functions'!$AV$3:$AV$6) -> 0 | Z76: =$Z$40*valuePL(Z35,'Utility Functions'!$AW$3:$AW$5,'Utility Functions'!$AX$3:$AX$5) -> 0.05 | AA76: =$AA$40*valuePL(AA35,'Utility Functions'!$AY$3:$AY$6,'Utility Functions'!$AZ$3:$AZ$6) -> 0.036 | AB76: =$AB$40*valuePL(AB35,'Utility Functions'!$BA$3:$BA$5,'Utility Functions'!$BB$3:$BB$5) -> 0.01 | AC76: =$AC$40*valuePL(AC35,'Utility Functions'!$BC$3:$BC$5,'Utility Functions'!$BD$3:$BD$5) -> 0 | AD76: 0.4768980507 | AE76: 0.4768980507 | AG76: 0 | AH76: 0.1068980507 | AI76: 0 | AJ76: 0.144 | AK76: 0.226
A77: 35 | B77: =$B$40*(valueE(B36,'Utility Functions'!$B$3,'Utility Functions'!$B$4,'Utility Functions'!$B$5,'Utility Functions'!$B$6)) -> 0.02394314074 | C77: =$C$40*(valueE(C36,'Utility Functions'!$D$3,'Utility Functions'!$D$4,'Utility Functions'!$D$5,'Utility Functions'!$D$6)) -> 0.01828199494 | D77: =$D$40*(valuePL(D36,'Utility Functions'!$E$3:$E$5,'Utility Functions'!$F$3:$F$5)) -> 0.015 | E77: =$E$40*(valuePL(E36,'Utility Functions'!$G$3:$G$5,'Utility Functions'!$H$3:$H$5)) -> 0.015 | F77: =$F$40*(valuePL(F36,'Utility Functions'!$I$3:$I$4,'Utility Functions'!$J$3:$J$5)) -> 0.04 | G77: =$G$40*(valueE(G36,'Utility Functions'!$L$3,'Utility Functions'!$L$4,'Utility Functions'!$L$5,'Utility Functions'!$L$6)) -> 0 | H77: =$H$40*(valueE(H36,'Utility Functions'!$N$3,'Utility Functions'!$N$4,'Utility Functions'!$N$5,'Utility Functions'!$N$6)) -> 0 | I77: =$I$40*valuePL(I36,'Utility Functions'!$O$3:$O$6,'Utility Functions'!$P$3:$P$6) -> 0 | J77: =$J$40*valuePL(J36,'Utility Functions'!$Q$3:$Q$6,'Utility Functions'!$R$3:$R$6) -> 0 | K77: =$K$40*(valuePL(K36,'Utility Functions'!$S$3:$S$7,'Utility Functions'!$T$3:$T$7)) -> 0.02 | L77: =$L$40*(valueE(L36,'Utility Functions'!$V$3,'Utility Functions'!$V$4,'Utility Functions'!$V$5,'Utility Functions'!$V$6)) -> 0.01333333333 | M77: =$M$40*valuePL(M36,'Utility Functions'!$W$3:$W$6,'Utility Functions'!$X$3:$X$6) -> 0.002 | N77: =$N$40*valueE(N36,'Utility Functions'!$Z$3,'Utility Functions'!$Z$4,'Utility Functions'!$Z$5,'Utility Functions'!$Z$6) -> 0.03 | O77: =$O$40*valuePL(O36,'Utility Functions'!$AA$3:$AA$5,'Utility Functions'!$AB$3:$AB$5) -> 0 | P77: =$P$40*valuePL(P36,'Utility Functions'!$AC$3:$AC$7,'Utility Functions'!$AD$3:$AD$7) -> 0 | Q77: =$Q$40*valuePL(Q36,'Utility Functions'!$AE$3:$AE$6,'Utility Functions'!$AF$3:$AF$6) -> 0 | R77: =$R$40*valuePL(R36,'Utility Functions'!$AG$3:$AG$6,'Utility Functions'!$AH$3:$AH$6) -> 0.05 | S77: =$S$40*valuePL(S36,'Utility Functions'!$AI$3:$AI$6,'Utility Functions'!$AJ$3:$AJ$6) -> 0.05 | T77: =$T$40*valuePL(T36,'Utility Functions'!$AK$3:$AK$8,'Utility Functions'!$AL$3:$AL$8) -> 0.018 | U77: =$U$40*valuePL(U36,'Utility Functions'!$AM$3:$AM$5,'Utility Functions'!$AN$3:$AN$5) -> 0 | V77: =$V$40*valuePL(V36,'Utility Functions'!$AO$3:$AO$5,'Utility Functions'!$AP$3:$AP$5) -> 0.05 | W77: =$W$40*valuePL(W36,'Utility Functions'!$AQ$3:$AQ$6,'Utility Functions'!$AR$3:$AR$6) -> 0.03 | X77: =$X$40*valuePL(X36,'Utility Functions'!$AS$3:$AS$6,'Utility Functions'!$AT$3:$AT$6) -> 0 | Y77: =$Y$40*valuePL(Y36,'Utility Functions'!$AU$3:$AU$6,'Utility Functions'!$AV$3:$AV$6) -> 0.01 | Z77: =$Z$40*valuePL(Z36,'Utility Functions'!$AW$3:$AW$5,'Utility Functions'!$AX$3:$AX$5) -> 0.05 | AA77: =$AA$40*valuePL(AA36,'Utility Functions'!$AY$3:$AY$6,'Utility Functions'!$AZ$3:$AZ$6) -> 0 | AB77: =$AB$40*valuePL(AB36,'Utility Functions'!$BA$3:$BA$5,'Utility Functions'!$BB$3:$BB$5) -> 0.01 | AC77: =$AC$40*valuePL(AC36,'Utility Functions'!$BC$3:$BC$5,'Utility Functions'!$BD$3:$BD$5) -> 0.0075 | AD77: 0.453058469 | AE77: 0.4512077265 | AG77: 0.1122251357 | AH77: 0.03533333333 | AI77: 0.03 | AJ77: 0.118 | AK77: 0.1575
B81: Decision variable | C81: Benefit | D81: Cost
A82: =A2 -> 1 | B82: 0 | C82: =AD43 -> 0.628529316 | D82: =AD2 -> 700000 | E82: =(C82/D82)*1000000 -> 0.8978990228
A83: =A3 -> 2 | B83: 0 | C83: =AD44 -> 0.534248774 | D83: =AD3 -> 5400000 | E83: =(C83/D83)*1000000 -> 0.09893495815
A84: 3 | B84: 0 | C84: 0.4589062433 | D84: 250000 | E84: 1.835624973
A85: 4 | B85: 0 | C85: 0.3773808758 | D85: 150000 | E85: 2.515872505
A86: 5 | B86: 0 | C86: 0.3735898378 | D86: 220000 | E86: 1.698135626
A87: 6 | B87: 0 | C87: 0.2176254138 | D87: 110000 | E87: 1.978412853
A88: 7 | B88: 1 | C88: 0.5588316744 | D88: 1000000 | E88: 0.5588316744
A89: 8 | B89: 0 | C89: 0.5265936679 | D89: 5000000 | E89: 0.1053187336
A90: 9 | B90: 0 | C90: 0.4583756362 | D90: 25000 | E90: 18.33502545
A91: 10 | B91: 0 | C91: 0.4205 | D91: 900000 | E91: 0.4672222222
A92: 11 | B92: 1 | C92: 0.4880036657 | D92: 1500000 | E92: 0.3253357771
A93: 12 | B93: 0 | C93: 0.3815874073 | D93: 100000 | E93: 3.815874073
A94: 13 | B94: 0 | C94: 0.3054753234 | D94: 250000 | E94: 1.221901294
A95: 14 | B95: 0 | C95: 0.4311611991 | D95: 500000 | E95: 0.8623223982
A96: 15 | B96: 0 | C96: 0.6097143178 | D96: 800000 | E96: 0.7621428973
A97: 16 | B97: 0 | C97: 0.5433939394 | D97: 2000000 | E97: 0.2716969697
A98: 17 | B98: 0 | C98: 0.4020919614 | D98: 500000 | E98: 0.8041839228
A99: =A19 -> 18 | B99: 0 | C99: 0.439426945 | D99: 300000 | E99: 1.464756483
A100: 19 | B100: 0 | C100: 0.4154950374 | D100: 750000 | E100: 0.5539933832
A101: 20 | B101: 0 | C101: 0.5588530095 | D101: 1500000 | E101: 0.372568673
A102: 21 | B102: 0 | C102: 0.4215 | D102: 900000 | E102: 0.4683333333
A103: 22 | B103: 0 | C103: 0.4444511385 | D103: 750000 | E103: 0.592601518
A104: 23 | B104: 0 | C104: 0.3789645223 | D104: 1000000 | E104: 0.3789645223
A105: 24 | B105: 0 | C105: 0.3789064356 | D105: 150000 | E105: 2.526042904
A106: 25 | B106: 0 | C106: 0.5325413724 | D106: 250000 | E106: 2.13016549
A107: 26 | B107: 0 | C107: 0.4294222969 | D107: 500000 | E107: 0.8588445938
A108: 27 | B108: 0 | C108: 0.3409427901 | D108: 1200000 | E108: 0.2841189918
A109: 28 | B109: 0 | C109: 0.4936451282 | D109: 500000 | E109: 0.9872902565
A110: =A30 -> 29 | B110: 0 | C110: 0.4451559901 | D110: 2000000 | E110: 0.2225779951
A111: 30 | B111: 0 | C111: 0.2833493521 | D111: 250000 | E111: 1.133397408
A112: 31 | B112: 0 | C112: 0.3569466375 | D112: 650000 | E112: 0.549148673
A113: 32 | B113: 0 | C113: 0.4907237533 | D113: 200000 | E113: 2.453618767
A114: =A34 -> 33 | B114: 1 | C114: 0.4065991919 | D114: 400000 | E114: 1.01649798
A115: 34 | B115: 1 | C115: 0.4768980507 | D115: 900000 | E115: 0.529886723
A116: =A36 -> 35 | B116: 1 | C116: 0.453058469 | D116: 900000 | E116: 0.5033982989
B117: =SUM(B82:B116) -> 5 | C117: =SUMPRODUCT(B82:B116,C82:C116) -> 2.383391052 | D117: =SUMPRODUCT(B82:B116,D82:D116) -> 4700000
C119: Cost constraint | D119: 4000000
D121: FL proposals | E121: Seabird Proposals
C122: User Constraint | D122: 11 | E122: 2
C123: Result in Portfolio | D123: =SUMPRODUCT(B82:B116,sdmtool_State_Vectors!I2:I36) -> 3 | E123: =SUMPRODUCT(B82:B116,sdmtool_State_Vectors!J2:J36) -> 1

Sheet Utility Functions
A1: metric 1 | C1: metric 2 | E1: metric 3 | G1: metric 4 | I1: metric 5 | K1: metric 6a | M1: metric 6b | O1: metric 7 | Q1: metric 8 | S1: metric 9 | U1: metric 10 | W1: metric 11 | Y1: metric 12 | AA1: metric 13 | AC1: metric 14 | AE1: metric 15 | AG1: metric 16 | AI1: metric 17 | AK1: metric 18 | AM1: metric 19 | AO1: metric 20 | AQ1: metric 21 | AS1: metric 22 | AU1: metric 23 | AW1: metric 24 | AY1: metric 25 | BA1: metric 26 | BC1: metric 27 | BE1: cost
A2: Taxa | B2: f(x) | C2: Spatial | D2: f(x) | E2: Uncert (x) | F2: y | G2: Freq (x) | H2: y | I2: ARM (x) | J2: y | K2: Trend (x) | L2: f(x) | M2: SumCS (x) | N2: f(x) | O2: PopSpatial | P2: y | Q2: PopTime (x) | R2: y | S2: HabSpat (x) | T2: y | U2: HabQual (x) | V2: f(x) | W2: HabTime (x) | X2: y | Y2: EPTaxa (x) | Z2: f(x) | AA2: EPUncert (x) | AB2: y | AC2: Share (x) | AD2: y | AE2: Impacts (x) | AF2: y | AG2: ExPriorities (x) | AH2: y | AI2: Partners (x) | AJ2: y | AK2: Leverage (x) | AL2: y | AM2: Alignment (x) | AN2: y | AO2: Objectives (x) | AP2: y | AQ2: Response (x) | AR2: y | AS2: Taxa (x) | AT2: y | AU2: Design (x) | AV2: y | AW2: Stats (x) | AX2: y | AY2: Data Plan (x) | AZ2: y | BA2: Budget (x) | BB2: y | BC2: Timeline (x) | BD2: y
A3: Low | B3: 0 | C3: Low | D3: 0 | E3: 0 | F3: 0 | G3: 0 | H3: 0 | I3: 0 | J3: 0 | K3: Low | L3: 0 | M3: Low | N3: 0 | O3: 0 | P3: 0 | Q3: 0 | R3: 0 | S3: 0 | T3: 0 | U3: Low | V3: 2 | W3: 0 | X3: 0 | Y3: Low | Z3: 0 | AA3: 0 | AB3: 0 | AC3: 0 | AD3: 0 | AE3: 0 | AF3: 0 | AG3: 0 | AH3: 0 | AI3: 0 | AJ3: 0 | AK3: 0 | AL3: 0 | AM3: 0 | AN3: 0 | AO3: 0 | AP3: 0 | AQ3: 0 | AR3: 0 | AS3: 0 | AT3: 0 | AU3: 0 | AV3: 0 | AW3: 0 | AX3: 0 | AY3: 0 | AZ3: 0 | BA3: 0 | BB3: 0 | BC3: 0 | BD3: 0
A4: High | B4: 67 | C4: High | D4: 100 | E4: 1 | F4: 0.5 | G4: 1 | H4: 0.5 | I4: 1 | J4: 1 | K4: High | L4: =MAX('Scores & Costs'!G2:G36) -> 186 | M4: High | N4: =MAX('Scores & Costs'!H2:H36) -> 1054 | O4: 25 | P4: 0.1 | Q4: 5 | R4: 0.1 | S4: 20 | T4: 0 | U4: High | V4: 8 | W4: 5 | X4: 0.1 | Y4: High | Z4: 8 | AA4: 1 | AB4: 0.25 | AC4: 1 | AD4: 0.25 | AE4: 1 | AF4: 0.1 | AG4: 1 | AH4: 0.2 | AI4: 1 | AJ4: 0.33 | AK4: 1 | AL4: 0.2 | AM4: 1 | AN4: 0.25 | AO4: 1 | AP4: 0.5 | AQ4: 1 | AR4: 0.2 | AS4: 1 | AT4: 0.2 | AU4: 1 | AV4: 0.2 | AW4: 1 | AX4: 0.5 | AY4: 1 | AZ4: 0.2 | BA4: 1 | BB4: 0.25 | BC4: 1 | BD4: 0.25
A5: Mono | B5: increasing | C5: Mono | D5: increasing | E5: 2 | F5: 1 | G5: 2 | H5: 1 | K5: Mono | L5: increasing | M5: Mono | N5: increasing | O5: 80 | P5: 1 | Q5: 16 | R5: 1 | S5: 25 | T5: 0.1 | U5: Mono | V5: increasing | W5: 16 | X5: 1 | Y5: Mono | Z5: increasing | AA5: 2 | AB5: 1 | AC5: 2 | AD5: 0.5 | AE5: 2 | AF5: 0.5 | AG5: 2 | AH5: 0.8 | AI5: 2 | AJ5: 0.66 | AK5: 2 | AL5: 0.4 | AM5: 2 | AN5: 1 | AO5: 2 | AP5: 1 | AQ5: 2 | AR5: 0.75 | AS5: 2 | AT5: 0.75 | AU5: 2 | AV5: 0.8 | AW5: 2 | AX5: 1 | AY5: 2 | AZ5: 0.9 | BA5: 2 | BB5: 1 | BC5: 2 | BD5: 1
A6: Rho | B6: 5 | C6: Rho | D6: 10 | K6: Rho | L6: infinity | M6: Rho | N6: infinity | O6: 100 | P6: 1 | Q6: 20 | R6: 1 | S6: 80 | T6: 1 | U6: Rho | V6: infinity | W6: 20 | X6: 1 | Y6: Rho | Z6: infinity | AC6: 3 | AD6: 0.75 | AE6: 3 | AF6: 1 | AG6: 3 | AH6: 1 | AI6: 3 | AJ6: 1 | AK6: 3 | AL6: 0.6 | AQ6: 3 | AR6: 1 | AS6: 3 | AT6: 1 | AU6: 3 | AV6: 1 | AY6: 3 | AZ6: 1
S7: 100 | T7: 1 | AC7: 4 | AD7: 1 | AK7: 4 | AL7: 0.8
AK8: 5 | AL8: 1
A10: min | B10: =MIN('Scores & Costs'!B2:B36) -> 0 | D10: =MIN('Scores & Costs'!C2:C36) -> 0 | E10: =MIN('Scores & Costs'!D2:D36) -> 0 | G10: =MIN('Scores & Costs'!E2:E36) -> 0 | I10: =MIN('Scores & Costs'!F2:F36) -> 0 | L10: =MIN('Scores & Costs'!G2:G36) -> 0 | N10: =MIN('Scores & Costs'!H2:H36) -> 0 | O10: =MIN('Scores & Costs'!I2:I36) -> 0 | Q10: =MIN('Scores & Costs'!J2:J36) -> 0 | S10: =MIN('Scores & Costs'!K2:K36) -> 0 | V10: =MIN('Scores & Costs'!L2:L36) -> 2 | W10: =MIN('Scores & Costs'!M2:M36) -> 0 | Z10: =MIN('Scores & Costs'!N2:N36) -> 0 | AA10: =MIN('Scores & Costs'!O2:O36) -> 0 | AC10: =MIN('Scores & Costs'!P2:P36) -> 0 | AE10: =MIN('Scores & Costs'!Q2:Q36) -> 0 | AG10: =MIN('Scores & Costs'!R2:R36) -> 0 | AI10: =MIN('Scores & Costs'!S2:S36) -> 0 | AK10: =MIN('Scores & Costs'!T2:T36) -> 0 | AM10: =MIN('Scores & Costs'!U2:U36) -> 0 | AO10: =MIN('Scores & Costs'!V2:V36) -> 0 | AQ10: =MIN('Scores & Costs'!W2:W36) -> 0 | AS10: =MIN('Scores & Costs'!X2:X36) -> 0 | AU10: =MIN('Scores & Costs'!Y2:Y36) -> 0 | AW10: =MIN('Scores & Costs'!Z2:Z36) -> 0 | AY10: =MIN('Scores & Costs'!AA2:AA36) -> 0 | BA10: =MIN('Scores & Costs'!AB2:AB36) -> 0 | BC10: =MIN('Scores & Costs'!AC2:AC36) -> 0 | BE10: =MIN('Scores & Costs'!AD2:AD36) -> 25000
A11: max | B11: =MAX('Scores & Costs'!B2:B36) -> 52 | D11: =MAX('Scores & Costs'!C2:C36) -> 28.2 | E11: =MAX('Scores & Costs'!D2:D36) -> 2 | G11: =MAX('Scores & Costs'!E2:E36) -> 2 | I11: =MAX('Scores & Costs'!F2:F36) -> 1 | L11: =MAX('Scores & Costs'!G2:G36) -> 186 | N11: =MAX('Scores & Costs'!H2:H36) -> 1054 | O11: =MAX('Scores & Costs'!I2:I36) -> 100 | Q11: =MAX('Scores & Costs'!J2:J36) -> 16 | S11: =MAX('Scores & Costs'!K2:K36) -> 100 | V11: =MAX('Scores & Costs'!L2:L36) -> 8 | W11: =MAX('Scores & Costs'!M2:M36) -> 16 | Z11: =MAX('Scores & Costs'!N2:N36) -> 8 | AA11: =MAX('Scores & Costs'!O2:O36) -> 2 | AC11: =MAX('Scores & Costs'!P2:P36) -> 4 | AE11: =MAX('Scores & Costs'!Q2:Q36) -> 3 | AG11: =MAX('Scores & Costs'!R2:R36) -> 3 | AI11: =MAX('Scores & Costs'!S2:S36) -> 3 | AK11: =MAX('Scores & Costs'!T2:T36) -> 5 | AM11: =MAX('Scores & Costs'!U2:U36) -> 2 | AO11: =MAX('Scores & Costs'!V2:V36) -> 2 | AQ11: =MAX('Scores & Costs'!W2:W36) -> 3 | AS11: =MAX('Scores & Costs'!X2:X36) -> 3 | AU11: =MAX('Scores & Costs'!Y2:Y36) -> 3 | AW11: =MAX('Scores & Costs'!Z2:Z36) -> 2 | AY11: =MAX('Scores & Costs'!AA2:AA36) -> 3 | BA11: =MAX('Scores & Costs'!AB2:AB36) -> 2 | BC11: =MAX('Scores & Costs'!AC2:AC36) -> 2 | BE11: =MAX('Scores & Costs'!AD2:AD36) -> 5400000
A14: Metric 1 - Mgmt. Taxa
A16: 0 | B16: =valueE(A16,$B$3,$B$4,$B$5,$B$6) -> 0
A17: 10 | B17: =valueE(A17,$B$3,$B$4,$B$5,$B$6) -> 0.8646660269
A18: 18 | B18: 0.9726777513
A19: 19 | B19: 0.9776307094
A20: 20 | B20: 0.9816858485
A21: 21 | B21: 0.9850059156
A22: 30 | B22: 0.9975227592
A23: 40 | B23: 0.999666052
A24: 50 | B24: 0.9999561151
A25: 67 | B25: 1
A29: Metric 2 - Mgmt. Spatial
A31: 0 | B31: =valueE(A31,$D$3,$D$4,$D$5,$D$6) -> 0
A32: 1 | B32: =valueE(A32,$D$3,$D$4,$D$5,$D$6) -> 0.09516690253
A33: 2 | B33: 0.1812774769
A34: 3 | B34: 0.2591935467
A35: 4 | B35: 0.3296949221
A36: 5 | B36: =valueE(A36,$D$3,$D$4,$D$5,$D$6) -> 0.3934872046
A37: 6 | B37: 0.4512088488
A38: 7 | B38: 0.5034375522
A39: 8 | B39: 0.5506960374
A40: 9 | B40: 0.5934572832
A41: 10 | B41: 0.6321492584
A42: 12 | B42: 0.6988375153
A43: 15 | B43: 0.7769051113
A44: 17 | B44: 0.8173535837
A45: 20 | B45: =valueE(A45,$D$3,$D$4,$D$5,$D$6) -> 0.8647039743
A46: 25 | B46: 0.9179566765
A47: 40 | B47: 0.9817289315
A48: 80 | B48: 0.9997099241
A49: 100 | B49: 1
A52: Metric 3 - Uncertainty
A54: Low
A55: Med
A56: High
A69: Metric 4 - Mgmt. Frequency
A71: <50
A72: 50-100
A73: >100
A84: Metric 5 - ARM
A86: No
A87: Yes
A101: Metric 6a - Trend
A102: 0 | B102: =valueE(A102,$L$3,$L$4,$L$5,$L$6) -> 0
A103: 186 | B103: =valueE(A103,$L$3,$L$4,$L$5,$L$6) -> 1
A118: Metric 6b - Sum Conservation Scores
A120: 0 | B120: =valueE(A120,$N$3,$N$4,$N$5,$N$6) -> 0
A121: 1054 | B121: =valueE(A121,$N$3,$N$4,$N$5,$N$6) -> 1
A135: Metric 7 - PopSpatial
A152: Metric 8 - PopTime
A170: Metric 9 - HabQuant
A189: Metric 10 - HabQual
A191: 2 | B191: =valueE(A191,$V$3,$V$4,$V$5,$V$6) -> 0
A192: 3 | B192: 0.1666666667
A193: 4 | B193: 0.3333333333
A194: 5 | B194: 0.5
A195: 6 | B195: 0.6666666667
A196: 7 | B196: 0.8333333333
A197: 8 | B197: 1
A206: Metric 11 - HabTime
A223: Metric 12 - EPTaxaSumOfScores
A225: 0 | B225: =valueE(A225,$Z$3,$Z$4,$Z$5,$Z$6) -> 0
A226: 1 | B226: =valueE(A226,$Z$3,$Z$4,$Z$5,$Z$6) -> 0.125
A227: 2 | B227: 0.25
A228: 3 | B228: 0.375
A229: 4 | B229: 0.5
A230: 5 | B230: 0.625
A231: 6 | B231: 0.75
A232: 7 | B232: 0.875
A233: 8 | B233: 1
A241: Metric 13 - EPUncertainty
A259: Metric 14 - Data sharing
A276: Metric 15 - Impacts (Other Uses)
A295: Metric 16 - Existing Priorities
A313: Metric 17 - Partners
A332: Metric 18 - Leverage
A349: Metric 19 - Alignment
A366: Metric 20 - Obj/Hypoth
A383: Metric 21 - Response Variable
A401: Metric 22 - Target taxa
A418: Metric 23 - Study Design
A435: Metric 24 - Stats
A452: Metric 25 - Data plan
A468: Metric 26 - Budget
A482: Metric 27 - Timeline

Sheet sdmtool_State_Vectors
A1: proposal | B1: title | C1: cost | D1: taxa_groups | E1: TX | F1: LA | G1: MS | H1: AL | I1: FL | J1: seabird | K1: sdmtool_states | L1: proposal
A2: 1 | B2: NFWF-A | C2: 700000 | D2: Shorebirds | E2: 1 | F2: 1 | G2: 1 | H2: 1 | I2: 1 | J2: 0 | K2: All | L2: =A2 -> 1
A3: 2 | B3: NFWF-B | C3: 5400000 | D3: All | E3: 0 | F3: 0 | G3: 1 | H3: 1 | I3: 0 | J3: 1 | K3: MS, AL | L3: 2
A4: 3 | B4: NFWF-C | C4: 250000 | D4: All | E4: 0 | F4: 1 | G4: 0 | H4: 0 | I4: 0 | J4: 1 | K4: LA | L4: 3
A5: 4 | B5: NFWF-D | C5: 150000 | D5: Shorebirds | E5: 0 | F5: 1 | G5: 0 | H5: 0 | I5: 0 | J5: 0 | K5: LA | L5: 4
A6: 5 | B6: NFWF-E | C6: 220000 | D6: Shorebirds | E6: 1 | F6: 1 | G6: 1 | H6: 0 | I6: 0 | J6: 0 | K6: TX,LA,MS | L6: 5
A7: 6 | B7: NFWF-F | C7: 110000 | D7: Shorebirds | E7: 0 | F7: 0 | G7: 0 | H7: 1 | I7: 1 | J7: 0 | K7: AL,FL | L7: 6
A8: 7 | B8: Omnibus Monitoring In Response to Sea Level Rise | C8: 1000000 | D8: All Minus Seabirds | E8: 1 | F8: 1 | G8: 1 | H8: 1 | I8: 1 | J8: 0 | K8: All | L8: 7
A9: 8 | B9: The effectiveness of island creation in Mobile Bay for island nesting species | C9: 5000000 | D9: wading, Seabirds | E9: 1 | F9: 1 | G9: 1 | H9: 1 | I9: 1 | J9: 0 | K9: AL | L9: 8
A10: 9 | B10: the impact of wind development on migrating raptors in the GoM | C10: 25000 | D10: Raptors | E10: 1 | F10: 1 | G10: 1 | H10: 1 | I10: 1 | J10: 0 | K10: All | L10: 9
A11: 10 | B11: Do hurricanes impact survival of migratory/wintering waterfowl? Does stress/movement to avoid hurricanes impact migratory/wintering waterfowl survival? | C11: 900000 | D11: Waterfowl | E11: 0 | F11: 0 | G11: 0 | H11: 1 | I11: 0 | J11: 0 | K11: AL | L11: 10
A12: 11 | B12: How does increase in salinity impact habitat quality/quantity, and does it impact the population trend of wetland associated birds? | C12: 1500000 | D12: waterfowl, marshbirds, wadingbirds | E12: 1 | F12: 1 | G12: 1 | H12: 1 | I12: 1 | J12: 0 | K12: All | L12: 11
A13: 12 | B13: The impact of rice agriculture on nesting King Rails and wintering Yellow Rails in Louisiana | C13: 100000 | D13: marshbird, landbird | E13: 1 | F13: 0 | G13: 0 | H13: 0 | I13: 0 | J13: 0 | K13: TX | L13: 12
A14: 13 | B14: How do hurricanes impact forage quality for nesting wadingbirds? | C14: 250000 | D14: Wading | E14: 1 | F14: 1 | G14: 1 | H14: 1 | I14: 1 | J14: 0 | K14: All | L14: 13
A15: 14 | B15: How do hurriances impact forest management rotations, and nesting landbirds and raptors in those forests? | C15: 500000 | D15: Landbird,Raptor | E15: 0 | F15: 1 | G15: 0 | H15: 0 | I15: 0 | J15: 0 | K15: LA | L15: 14
A16: 15 | B16: Using adaptive managgement to learn about how we should manage grasslands using prescribed fire in the face of climage change | C16: 800000 | D16: Landbirds,Marshbird,Raptor | E16: 0 | F16: 1 | G16: 1 | H16: 0 | I16: 0 | J16: 0 | K16: LA,MS | L16: 15
A17: 16 | B17: Long-term monitoring of GoM raptors | C17: 2000000 | D17: Raptors | E17: 0 | F17: 0 | G17: 0 | H17: 1 | I17: 1 | J17: 0 | K17: AL,FL | L17: 16
A18: 17 | B18: Learning more about how perscribed fire increases habitat quantity in forested systems through adapative management? | C18: 500000 | D18: Landbirds | E18: 0 | F18: 0 | G18: 1 | H18: 1 | I18: 0 | J18: 0 | K18: MS,AL | L18: 17
A19: 18 | B19: How do hurriances impact the survival of marshbirds | C19: 300000 | D19: Marshbirds | E19: 1 | F19: 1 | G19: 1 | H19: 1 | I19: 1 | J19: 0 | K19: All | L19: 18
A20: 19 | B20: How can prescribed fire be used to manage scrubland habitats for a greater diversity of migratory birds in the face of climate change? | C20: 750000 | D20: Landbirds | E20: 1 | F20: 1 | G20: 1 | H20: 1 | I20: 1 | J20: 0 | K20: All | L20: 19
A21: 20 | B21: Comparison of the impacts of forested habitat cover change on population dynamics of long and short distance migrants | C21: 1500000 | D21: Landbirds | E21: 1 | F21: 1 | G21: 1 | H21: 1 | I21: 1 | J21: 0 | K21: All | L21: 20
A22: 21 | B22: How do open ocean currents, surface temperature and seasonality impact seabird use off the GoM? | C22: 900000 | D22: Seabirds | E22: 1 | F22: 1 | G22: 1 | H22: 1 | I22: 1 | J22: 1 | K22: All | L22: 21
A23: 22 | B23: What has a larger impact on X seabird populations in the gulf, plastic consumption, accidental take, or weather patterns? | C23: 750000 | D23: Seabirds | E23: 1 | F23: 1 | G23: 1 | H23: 1 | I23: 1 | J23: 1 | K23: All | L23: 22
A24: 23 | B24: How does water management, including the flooding of wetlands and cropfields, impact overwinter waterfowl surival? | C24: 1000000 | D24: Waterfowl | E24: 1 | F24: 1 | G24: 1 | H24: 1 | I24: 1 | J24: 0 | K24: All | L24: 23
A25: 24 | B25: What kind of signage is most effective for decreasing human disturbance impacts on beach nesting birds? | C25: 150000 | D25: Shorebirds | E25: 1 | F25: 1 | G25: 1 | H25: 1 | I25: 1 | J25: 0 | K25: All | L25: 24
A26: 25 | B26: How does invasive species control impact marshbird use? | C26: 250000 | D26: Marshbirds | E26: 1 | F26: 1 | G26: 1 | H26: 1 | I26: 1 | J26: 0 | K26: All | L26: 25
A27: 26 | B27: How does human disturbance impact the nest survival and fledging rate of nesting wading and marshbirds | C27: 500000 | D27: Marshbirds, Wadingbirds | E27: 1 | F27: 1 | G27: 1 | H27: 1 | I27: 1 | J27: 0 | K27: All | L27: 26
A28: 27 | B28: How does beach renourishment impact the invertebrate communities which are used by migratory and wintering shorebirds? | C28: 1200000 | D28: Shorebirds | E28: 1 | F28: 1 | G28: 1 | H28: 0 | I28: 0 | J28: 0 | K28: TX,LA,MS | L28: 27
A29: 28 | B29: Learning about how beach renourishment after oil contamination can increase habitat quantity for 3 declining shorebirds | C29: 500000 | D29: Shorebirds | E29: 0 | F29: 0 | G29: 1 | H29: 1 | I29: 1 | J29: 0 | K29: MS,AL,FL | L29: 28
A30: 29 | B30: When restoring wetlands and grasslands, but unable to restore very large patches, is there an advantage to restoring the two habitat types near each other for species in each habitat type, versus cropfields | C30: 2000000 | D30: Marshbirds, Landbirds, Raptors | E30: 1 | F30: 1 | G30: 1 | H30: 1 | I30: 1 | J30: 0 | K30: All | L30: 29
A31: 30 | B31: How does prescribed fire impact marshbird habitat quanitity? | C31: 250000 | D31: Marshbirds | E31: 1 | F31: 1 | G31: 1 | H31: 1 | I31: 1 | J31: 0 | K31: All | L31: 30
A32: 31 | B32: How does fresh water management impact the quantity of wetland habitat available to wintering marshbirds? | C32: 650000 | D32: Marshbirds | E32: 0 | F32: 0 | G32: 1 | H32: 0 | I32: 0 | J32: 0 | K32: MS | L32: 31
A33: 32 | B33: Learning about how management of scrub shrub succession impacts habitat quantity and quantity as well as population trends for migratory landbirds through adpative management | C33: 200000 | D33: Landbirds | E33: 0 | F33: 1 | G33: 0 | H33: 0 | I33: 0 | J33: 0 | K33: LA | L33: 32
A34: 33 | B34: The impacts of offshore oil development on wintering seabirds and lesser scaup | C34: 400000 | D34: Seabirds, Waterfowl | E34: 0 | F34: 0 | G34: 1 | H34: 0 | I34: 0 | J34: 1 | K34: MS | L34: 33
A35: 34 | B35: long-term monitoring of the reddish egret | C35: 900000 | D35: Wading | E35: 0 | F35: 1 | G35: 0 | H35: 0 | I35: 0 | J35: 0 | K35: LA | L35: 34
A36: 35 | B36: The impacts of sealevel rise and stormwater management on the habitat quantity , food resources and use by wadingbirds | C36: 900000 | D36: Wading | E36: 0 | F36: 0 | G36: 1 | H36: 0 | I36: 1 | J36: 0 | K36: MS,FL | L36: 35
C37: =SUM(C2:C36) -> 32505000 | E37: =SUM(E2:E36) -> 20 | F37: 25 | G37: 26 | H37: 23 | I37: 21 | J37: =SUM(J2:J36) -> 5

Sheet 0_WeightElicitation
D4: Ave. weight | E4: Min | F4: Median | G4: Max
C6: Fundamental Objectives
C7: Relevance of data | D7: 0.42 | E7: 0.3461538462 | F7: 0.4166666667 | G7: 0.5882352941 | H7: =D7 -> 0.42
C8: Integration of efforts | D8: 0.24 | E8: 0.1 | F8: 0.2222222222 | G8: 0.3846153846 | H8: =D8 -> 0.24
C9: Scientific rigor | D9: 0.34 | E9: 0.2692307692 | F9: 0.3333333333 | G9: 0.4651162791 | H9: 0.34
C11: Sub-objective: Relevance of data
C12: Management effectiveness | D12: 0.3669401176 | E12: 0.1219512195 | F12: 0.3575 | G12: 0.5780346821 | H12: =D12 -> 0.3669401176
C13: Status and trends | D13: 0.3395062766 | E13: 0.09090909091 | F13: 0.3809869376 | G13: 0.5555555556 | H13: =D13 -> 0.3395062766
C14: Ecological processes | D14: 0.2935536058 | E14: 0 | F14: 0.3038461538 | G14: 0.4545454545 | H14: 0.2935536058
C16: Sub-objective: Integration of efforts
C17: Data Sharing | D17: 0.1647393329 | E17: 0.03636363636 | F17: 0.1685393258 | G17: 0.2051282051 | H17: =D17 -> 0.1647393329
C18: Broad Impacts | D18: 0.1815943213 | E18: 0.09302325581 | F18: 0.1785714286 | G18: 0.3454545455 | H18: =D18 -> 0.1815943213
C19: Existing Priorities | D19: 0.2078616378 | E19: 0.1666666667 | F19: 0.2 | G19: 0.3636363636 | H19: 0.2078616378
C20: Partners | D20: 0.1820560122 | E20: 0.1536885246 | F20: 0.191011236 | G20: 0.2181818182 | H20: 0.1820560122
C21: Leverage | D21: 0.1325138366 | E21: 0.01818181818 | F21: 0.1495901639 | G21: 0.1860465116 | H21: 0.1325138366
C22: Alignment | D22: 0.1312348592 | E22: 0.01818181818 | F22: 0.1346153846 | G22: 0.2307692308 | H22: 0.1312348592
C24: Sub-objective: Scientific Rigor
C25: Objectives/Hypotheses | D25: 0.1601657877 | E25: 0.1324503311 | F25: 0.1538461538 | G25: 0.2469135802 | H25: =D25 -> 0.1601657877
C26: Response Variable | D26: 0.1155069811 | E26: 0.02469135802 | F26: 0.1230769231 | G26: 0.1388888889 | H26: =D26 -> 0.1155069811
C27: Target Taxa | D27: 0.1235276955 | E27: 0.02469135802 | F27: 0.1279069767 | G27: 0.1724137931 | H27: 0.1235276955
C28: Survey Design | D28: 0.1535045469 | E28: 0.1324503311 | F28: 0.1438848921 | G28: 0.2222222222 | H28: 0.1535045469
C29: Statistical Rigor | D29: 0.1330080059 | E29: 0.1 | F29: 0.1324503311 | G29: 0.2098765432 | H29: 0.1330080059
C30: Data Management | D30: 0.1030609208 | E30: 0.04938271605 | F30: 0.1076923077 | G30: 0.1388888889 | H30: 0.1030609208
C31: Budget | D31: 0.1092980048 | E31: 0.08720930233 | F31: 0.1076923077 | G31: 0.1388888889 | H31: 0.1092980048
C32: Timeline | D32: 0.1019280574 | E32: 0.08333333333 | F32: 0.1 | G32: 0.1324503311 | H32: 0.1019280574
C34: Sub-objective: Relevance-Management effectiveness
C35: Birds of Conservation Concern | D35: 0.198208706 | E35: 0.125 | F35: 0.202020202 | G35: 0.28125 | H35: =D35 -> 0.198208706
C36: Spatial Scope | D36: 0.1873716063 | E36: 0.078125 | F36: 0.2 | G36: 0.2469135802 | H36: =D36 -> 0.1873716063
C37: Uncertainty Reduction | D37: 0.1897576803 | E37: 0.078125 | F37: 0.1976744186 | G37: 0.25 | H37: 0.1897576803
C38: Current Managemetn Practices | D38: 0.1848721898 | E38: 0.115942029 | F38: 0.1818181818 | G38: 0.3125 | H38: 0.1848721898
C39: Adaptive Management | D39: 0.2397898176 | E39: 0.1538461538 | F39: 0.2150537634 | G39: 0.5 | H39: 0.2397898176
C41: Sub-objective: Relevance-Status and trends
C42: Populations | D42: 0.567475096 | E42: 0.5 | F42: 0.5263157895 | G42: 0.8 | H42: =D42 -> 0.567475096
C43: Habitats | D43: 0.432524904 | E43: 0.2 | F43: 0.4736842105 | G43: 0.5 | H43: =D43 -> 0.432524904
C45: Sub-objective: Relevance-Ecological processes
C46: Birds of Conservation Concern | D46: =0.03/0.12 -> 0.25 | E46: − | F46: − | G46: − | H46: =D46 -> 0.25
C47: Uncertainty Reduction | D47: =0.09/0.12 -> 0.75 | E47: − | F47: − | G47: − | H47: =D47 -> 0.75
C49: Sub-objective: Relevance-Status and trends-Populations
C50: Conservation Need | D50: 0.3737195645 | E50: 0.2857142857 | F50: 0.3773584906 | G50: 0.5769230769 | H50: =D50 -> 0.3737195645 | K50: 0.2120765457 | L50: 0.1060382729
C51: Spatial Scope of Population Monitoring | D51: 0.3171923569 | E51: 0.2403846154 | F51: 0.32 | G51: 0.3888888889 | H51: =D51 -> 0.3171923569 | K51: 0.1799987632
C52: Temporal Scope of Population Monitoring | D52: 0.3090880786 | E52: 0.1826923077 | F52: 0.3144654088 | G52: 0.3571428571 | H52: 0.3090880786 | K52: 0.1753997871
K53: 0.154534562
C54: Sub-objective: Relevance-Status and trends-Habitats | K54: 0.1583922001
C55: Spatial Scope of Habitat Quant. | D55: 0.3572847726 | E55: 0.306122449 | F55: 0.3390804598 | G55: 0.4444444444 | H55: =D55 -> 0.3572847726 | K55: 0.1195981419
C56: Spatial Scope of Habitat Qual. | D56: 0.3662036536 | E56: 0.2692307692 | F56: 0.3703703704 | G56: 0.4444444444 | H56: =D56 -> 0.3662036536
C57: Temporal Scope of Habitat Monitoring | D57: 0.2765115738 | E57: 0.2 | F57: 0.291005291 | G57: 0.3461538462 | H57: =D57 -> 0.2765115738
K58: =SUM(K50:K55) -> 1

Sheet Portfolio_A
A1: Project | B1: manage_species | C1: manage_spatial | D1: manage_uncertainty | E1: manage_currentpractices | F1: manage_adaptivemanagement | G1: pop_a | H1: pop_b | I1: pop_spatialscope | J1: pop_temporalscope | K1: hab_quantity | L1: hab_quality | M1: hab_temporal | N1: ecoprocess_spp | O1: ecoprocess_uncertainty | P1: datasharing | Q1: broaderimpacts | R1: exisitingpriorities | S1: partners | T1: leverage | U1: alignment | V1: objhyp | W1: response | X1: targettaxa | Y1: surveydesign | Z1: stats | AA1: datamanagement | AB1: budget | AC1: timeline | AD1: cost
A2: 1 | B2: 9 | C2: 6.25 | D2: 2 | E2: 2 | F2: 0 | G2: 186 | H2: 1054 | I2: 75 | J2: 5 | K2: 0 | L2: 2 | M2: 0 | N2: 0 | O2: 0 | P2: 4 | Q2: 0 | R2: 2 | S2: 3 | T2: 0 | U2: 0 | V2: 2 | W2: 3 | X2: 3 | Y2: 3 | Z2: 2 | AA2: 3 | AB2: 2 | AC2: 2 | AD2: 700000
A3: 2 | B3: 3 | C3: 28.2 | D3: 1 | E3: 0 | F3: 0 | G3: 0 | H3: 0 | I3: 0 | J3: 0 | K3: 0 | L3: 2 | M3: 0 | N3: 4 | O3: 1 | P3: 0 | Q3: 0 | R3: 3 | S3: 3 | T3: 0 | U3: 0 | V3: 2 | W3: 3 | X3: 3 | Y3: 3 | Z3: 2 | AA3: 3 | AB3: 2 | AC3: 2 | AD3: 5400000
A4: 3 | B4: 8 | C4: 28.2 | D4: 2 | E4: 0 | F4: 0 | G4: 0 | H4: 0 | I4: 0 | J4: 0 | K4: 0 | L4: 2 | M4: 0 | N4: 5 | O4: 1 | P4: 0 | Q4: 2 | R4: 0 | S4: 0 | T4: 0 | U4: 1 | V4: 2 | W4: 3 | X4: 3 | Y4: 3 | Z4: 2 | AA4: 1 | AB4: 2 | AC4: 2 | AD4: 250000
A5: 4 | B5: 1 | C5: 6.25 | D5: 2 | E5: 0 | F5: 0 | G5: 0 | H5: 0 | I5: 0 | J5: 0 | K5: 0 | L5: 2 | M5: 0 | N5: 4 | O5: 1 | P5: 0 | Q5: 1 | R5: 3 | S5: 3 | T5: 4 | U5: 0 | V5: 1 | W5: 3 | X5: 3 | Y5: 1 | Z5: 0 | AA5: 0 | AB5: 2 | AC5: 1 | AD5: 150000
A6: 5 | B6: 4 | C6: 3.1 | D6: 2 | E6: 0 | F6: 0 | G6: 0 | H6: 0 | I6: 50 | J6: 2 | K6: 0 | L6: 2 | M6: 0 | N6: 0 | O6: 0 | P6: 0 | Q6: 1 | R6: 3 | S6: 3 | T6: 4 | U6: 1 | V6: 0 | W6: 3 | X6: 3 | Y6: 2 | Z6: 0 | AA6: 0 | AB6: 2 | AC6: 1 | AD6: 220000
A7: 6 | B7: 10 | C7: 0.062 | D7: 2 | E7: 0 | F7: 0 | G7: 0 | H7: 0 | I7: 10 | J7: 2 | K7: 0 | L7: 2 | M7: 0 | N7: 0 | O7: 0 | P7: 0 | Q7: 1 | R7: 0 | S7: 3 | T7: 3 | U7: 0 | V7: 0 | W7: 0 | X7: 3 | Y7: 0 | Z7: 0 | AA7: 0 | AB7: 2 | AC7: 1 | AD7: 110000
A8: 7 | B8: 52 | C8: 18.8 | D8: 0 | E8: 2 | F8: 0 | G8: 0 | H8: 0 | I8: 85 | J8: 12 | K8: 85 | L8: 8 | M8: 12 | N8: 8 | O8: 1 | P8: 0 | Q8: 0 | R8: 3 | S8: 3 | T8: 0 | U8: 0 | V8: 2 | W8: 0 | X8: 1 | Y8: 3 | Z8: 2 | AA8: 2 | AB8: 0 | AC8: 2 | AD8: 1000000
A9: 8 | B9: 3 | C9: 18.8 | D9: 2 | E9: 1 | F9: 1 | G9: 0 | H9: 0 | I9: 14 | J9: 14 | K9: 14 | L9: 8 | M9: 14 | N9: 0 | O9: 0 | P9: 0 | Q9: 3 | R9: 1 | S9: 3 | T9: 0 | U9: 0 | V9: 2 | W9: 3 | X9: 3 | Y9: 3 | Z9: 2 | AA9: 0 | AB9: 1 | AC9: 1 | AD9: 5000000
A10: 9 | B10: 9 | C10: 15.6 | D10: 2 | E10: 1 | F10: 0 | G10: 70 | H10: 140 | I10: 0 | J10: 0 | K10: 0 | L10: 2 | M10: 0 | N10: 0 | O10: 0 | P10: 3 | Q10: 0 | R10: 3 | S10: 2 | T10: 1 | U10: 0 | V10: 2 | W10: 3 | X10: 3 | Y10: 1 | Z10: 2 | AA10: 1 | AB10: 1 | AC10: 2 | AD10: 25000
A11: 10 | B11: 0 | C11: 0 | D11: 0 | E11: 0 | F11: 0 | G11: 0 | H11: 0 | I11: 0 | J11: 0 | K11: 0 | L11: 2 | M11: 0 | N11: 6 | O11: 2 | P11: 1 | Q11: 2 | R11: 3 | S11: 2 | T11: 2 | U11: 0 | V11: 0 | W11: 2 | X11: 3 | Y11: 3 | Z11: 1 | AA11: 1 | AB11: 0 | AC11: 2 | AD11: 900000
A12: 11 | B12: 0 | C12: 0 | D12: 0 | E12: 0 | F12: 0 | G12: 6 | H12: 102 | I12: 52 | J12: 15 | K12: 52 | L12: 8 | M12: 15 | N12: 3 | O12: 1 | P12: 1 | Q12: 0 | R12: 3 | S12: 3 | T12: 2 | U12: 2 | V12: 2 | W12: 1 | X12: 3 | Y12: 3 | Z12: 1 | AA12: 2 | AB12: 0 | AC12: 1 | AD12: 1500000
A13: 12 | B13: 2 | C13: 15.6 | D13: 2 | E13: 1 | F13: 0 | G13: 0 | H13: 0 | I13: 0 | J13: 0 | K13: 0 | L13: 2 | M13: 0 | N13: 0 | O13: 0 | P13: 0 | Q13: 1 | R13: 3 | S13: 3 | T13: 3 | U13: 0 | V13: 1 | W13: 1 | X13: 3 | Y13: 1 | Z13: 2 | AA13: 1 | AB13: 2 | AC13: 0 | AD13: 100000
A14: 13 | B14: 0 | C14: 0 | D14: 0 | E14: 0 | F14: 0 | G14: 0 | H14: 12 | I14: 39 | J14: 2 | K14: 39 | L14: 8 | M14: 2 | N14: 7 | O14: 1 | P14: 1 | Q14: 0 | R14: 3 | S14: 3 | T14: 0 | U14: 0 | V14: 1 | W14: 0 | X14: 1 | Y14: 0 | Z14: 2 | AA14: 1 | AB14: 1 | AC14: 1 | AD14: 250000
A15: 14 | B15: 6 | C15: 15.6 | D15: 1 | E15: 1 | F15: 0 | G15: 0 | H15: 0 | I15: 0 | J15: 0 | K15: 0 | L15: 2 | M15: 0 | N15: 6 | O15: 1 | P15: 1 | Q15: 0 | R15: 3 | S15: 3 | T15: 0 | U15: 0 | V15: 1 | W15: 1 | X15: 3 | Y15: 3 | Z15: 1 | AA15: 2 | AB15: 1 | AC15: 1 | AD15: 500000
A16: 15 | B16: 23 | C16: 12.5 | D16: 2 | E16: 1 | F16: 1 | G16: 0 | H16: 0 | I16: 23 | J16: 3 | K16: 23 | L16: 8 | M16: 3 | N16: 1 | O16: 2 | P16: 2 | Q16: 0 | R16: 2 | S16: 3 | T16: 3 | U16: 2 | V16: 0 | W16: 3 | X16: 1 | Y16: 1 | Z16: 2 | AA16: 3 | AB16: 2 | AC16: 1 | AD16: 800000
A17: 16 | B17: 0 | C17: 0 | D17: 0 | E17: 0 | F17: 0 | G17: 0 | H17: 0 | I17: 100 | J17: 15 | K17: 100 | L17: 7 | M17: 15 | N17: 0 | O17: 0 | P17: 3 | Q17: 0 | R17: 3 | S17: 3 | T17: 5 | U17: 0 | V17: 2 | W17: 2 | X17: 2 | Y17: 1 | Z17: 2 | AA17: 3 | AB17: 2 | AC17: 2 | AD17: 2000000
A18: 17 | B18: 2 | C18: 15.6 | D18: 2 | E18: 1 | F18: 1 | G18: 58 | H18: 290 | I18: 0 | J18: 0 | K18: 0 | L18: 8 | M18: 3 | N18: 0 | O18: 0 | P18: 0 | Q18: 0 | R18: 3 | S18: 2 | T18: 0 | U18: 0 | V18: 2 | W18: 3 | X18: 1 | Y18: 0 | Z18: 1 | AA18: 0 | AB18: 2 | AC18: 1 | AD18: 500000
A19: 18 | B19: 0 | C19: 0 | D19: 0 | E19: 0 | F19: 0 | G19: 0 | H19: 30 | I19: 0 | J19: 0 | K19: 0 | L19: 2 | M19: 0 | N19: 8 | O19: 1 | P19: 1 | Q19: 3 | R19: 3 | S19: 3 | T19: 5 | U19: 1 | V19: 2 | W19: 2 | X19: 1 | Y19: 2 | Z19: 1 | AA19: 2 | AB19: 1 | AC19: 0 | AD19: 300000
A20: 19 | B20: 8 | C20: 3.125 | D20: 1 | E20: 2 | F20: 0 | G20: 0 | H20: 0 | I20: 0 | J20: 0 | K20: 0 | L20: 2 | M20: 0 | N20: 8 | O20: 2 | P20: 0 | Q20: 0 | R20: 2 | S20: 3 | T20: 0 | U20: 0 | V20: 1 | W20: 1 | X20: 3 | Y20: 2 | Z20: 0 | AA20: 1 | AB20: 0 | AC20: 1 | AD20: 750000
A21: 20 | B21: 9 | C21: 15.6 | D21: 1 | E21: 2 | F21: 0 | G21: 0 | H21: 435 | I21: 76 | J21: 10 | K21: 76 | L21: 6 | M21: 10 | N21: 8 | O21: 2 | P21: 1 | Q21: 0 | R21: 3 | S21: 3 | T21: 3 | U21: 2 | V21: 1 | W21: 0 | X21: 0 | Y21: 1 | Z21: 2 | AA21: 1 | AB21: 0 | AC21: 1 | AD21: 1500000
A22: 21 | B22: 0 | C22: 0 | D22: 0 | E22: 0 | F22: 0 | G22: 0 | H22: 0 | I22: 0 | J22: 0 | K22: 0 | L22: 2 | M22: 0 | N22: 8 | O22: 2 | P22: 0 | Q22: 1 | R22: 3 | S22: 3 | T22: 5 | U22: 1 | V22: 0 | W22: 2 | X22: 3 | Y22: 1 | Z22: 0 | AA22: 3 | AB22: 1 | AC22: 2 | AD22: 900000
A23: 22 | B23: 0 | C23: 0 | D23: 0 | E23: 0 | F23: 0 | G23: 16 | H23: 64 | I23: 0 | J23: 0 | K23: 0 | L23: 2 | M23: 0 | N23: 1 | O23: 2 | P23: 4 | Q23: 2 | R23: 2 | S23: 3 | T23: 5 | U23: 0 | V23: 1 | W23: 2 | X23: 1 | Y23: 0 | Z23: 2 | AA23: 1 | AB23: 2 | AC23: 1 | AD23: 750000
A24: 23 | B24: 9 | C24: 18.8 | D24: 2 | E24: 0 | F24: 0 | G24: 0 | H24: 0 | I24: 0 | J24: 0 | K24: 0 | L24: 2 | M24: 0 | N24: 0 | O24: 0 | P24: 3 | Q24: 0 | R24: 3 | S24: 3 | T24: 5 | U24: 0 | V24: 2 | W24: 1 | X24: 2 | Y24: 1 | Z24: 1 | AA24: 1 | AB24: 0 | AC24: 1 | AD24: 1000000
A25: 24 | B25: 5 | C25: 6.25 | D25: 2 | E25: 0 | F25: 0 | G25: 0 | H25: 0 | I25: 0 | J25: 0 | K25: 0 | L25: 2 | M25: 0 | N25: 0 | O25: 0 | P25: 0 | Q25: 0 | R25: 3 | S25: 3 | T25: 5 | U25: 0 | V25: 0 | W25: 3 | X25: 1 | Y25: 3 | Z25: 2 | AA25: 1 | AB25: 0 | AC25: 2 | AD25: 150000
A26: 25 | B26: 9 | C26: 18.8 | D26: 2 | E26: 0 | F26: 0 | G26: 176 | H26: 308 | I26: 0 | J26: 0 | K26: 0 | L26: 2 | M26: 0 | N26: 8 | O26: 1 | P26: 2 | Q26: 2 | R26: 3 | S26: 3 | T26: 0 | U26: 0 | V26: 2 | W26: 1 | X26: 3 | Y26: 2 | Z26: 1 | AA26: 1 | AB26: 2 | AC26: 2 | AD26: 250000
A27: 26 | B27: 17 | C27: 18.8 | D27: 2 | E27: 1 | F27: 0 | G27: 0 | H27: 0 | I27: 0 | J27: 0 | K27: 0 | L27: 2 | M27: 0 | N27: 0 | O27: 0 | P27: 3 | Q27: 0 | R27: 3 | S27: 3 | T27: 4 | U27: 0 | V27: 2 | W27: 1 | X27: 0 | Y27: 2 | Z27: 0 | AA27: 1 | AB27: 2 | AC27: 2 | AD27: 500000
A28: 27 | B28: 0 | C28: 6.25 | D28: 2 | E28: 0 | F28: 0 | G28: 0 | H28: 0 | I28: 0 | J28: 0 | K28: 80 | L28: 2 | M28: 5 | N28: 0 | O28: 0 | P28: 2 | Q28: 2 | R28: 3 | S28: 3 | T28: 5 | U28: 0 | V28: 1 | W28: 2 | X28: 3 | Y28: 1 | Z28: 0 | AA28: 0 | AB28: 0 | AC28: 0 | AD28: 1200000
A29: 28 | B29: 3 | C29: 6.25 | D29: 2 | E29: 0 | F29: 1 | G29: 0 | H29: 0 | I29: 0 | J29: 0 | K29: 0 | L29: 4 | M29: 5 | N29: 0 | O29: 0 | P29: 4 | Q29: 0 | R29: 3 | S29: 3 | T29: 4 | U29: 0 | V29: 2 | W29: 3 | X29: 3 | Y29: 1 | Z29: 0 | AA29: 2 | AB29: 2 | AC29: 1 | AD29: 500000
A30: 29 | B30: 9 | C30: 12.5 | D30: 2 | E30: 1 | F30: 0 | G30: 0 | H30: 0 | I30: 15 | J30: 12 | K30: 15 | L30: 8 | M30: 12 | N30: 0 | O30: 0 | P30: 1 | Q30: 0 | R30: 3 | S30: 3 | T30: 4 | U30: 0 | V30: 2 | W30: 1 | X30: 0 | Y30: 2 | Z30: 1 | AA30: 1 | AB30: 1 | AC30: 2 | AD30: 2000000
A31: 30 | B31: 33 | C31: 18.8 | D31: 2 | E31: 0 | F31: 0 | G31: 0 | H31: 0 | I31: 0 | J31: 0 | K31: 0 | L31: 4 | M31: 2 | N31: 0 | O31: 0 | P31: 0 | Q31: 0 | R31: 1 | S31: 1 | T31: 0 | U31: 0 | V31: 0 | W31: 3 | X31: 1 | Y31: 2 | Z31: 0 | AA31: 2 | AB31: 2 | AC31: 0 | AD31: 250000
A32: 31 | B32: 4 | C32: 18.8 | D32: 1 | E32: 0 | F32: 0 | G32: 0 | H32: 0 | I32: 65 | J32: 4 | K32: 0 | L32: 4 | M32: 4 | N32: 0 | O32: 0 | P32: 2 | Q32: 0 | R32: 3 | S32: 2 | T32: 3 | U32: 0 | V32: 1 | W32: 0 | X32: 1 | Y32: 1 | Z32: 2 | AA32: 2 | AB32: 1 | AC32: 1 | AD32: 650000
A33: 32 | B33: 5 | C33: 3.125 | D33: 2 | E33: 2 | F33: 1 | G33: 6 | H33: 102 | I33: 40 | J33: 16 | K33: 40 | L33: 8 | M33: 16 | N33: 0 | O33: 0 | P33: 2 | Q33: 3 | R33: 3 | S33: 0 | T33: 4 | U33: 0 | V33: 0 | W33: 2 | X33: 1 | Y33: 2 | Z33: 1 | AA33: 0 | AB33: 2 | AC33: 1 | AD33: 200000
A34: 33 | B34: 14 | C34: 18.8 | D34: 2 | E34: 1 | F34: 0 | G34: 0 | H34: 0 | I34: 0 | J34: 0 | K34: 0 | L34: 5 | M34: 0 | N34: 0 | O34: 0 | P34: 2 | Q34: 0 | R34: 3 | S34: 2 | T34: 0 | U34: 0 | V34: 1 | W34: 3 | X34: 0 | Y34: 2 | Z34: 2 | AA34: 3 | AB34: 0 | AC34: 0 | AD34: 400000
A35: 34 | B35: 0 | C35: 0 | D35: 0 | E35: 0 | F35: 0 | G35: 0 | H35: 12 | I35: 100 | J35: 15 | K35: 100 | L35: 8 | M35: 15 | N35: 0 | O35: 0 | P35: 2 | Q35: 0 | R35: 3 | S35: 3 | T35: 4 | U35: 0 | V35: 2 | W35: 3 | X35: 3 | Y35: 0 | Z35: 2 | AA35: 2 | AB35: 1 | AC35: 0 | AD35: 900000
A36: 35 | B36: 8 | C36: 9.4 | D36: 1 | E36: 1 | F36: 1 | G36: 0 | H36: 0 | I36: 0 | J36: 0 | K36: 100 | L36: 6 | M36: 5 | N36: 8 | O36: 0 | P36: 0 | Q36: 0 | R36: 3 | S36: 3 | T36: 3 | U36: 0 | V36: 2 | W36: 2 | X36: 0 | Y36: 1 | Z36: 2 | AA36: 0 | AB36: 1 | AC36: 1 | AD36: 900000
B37: =SUM(B2:B36) -> 265 | C37: =SUM(C2:C36) -> 359.862 | D37: 46 | E37: 20 | F37: 6 | G37: 518 | H37: 2549 | I37: 744 | J37: 127 | K37: 724 | L37: 146 | M37: 138 | N37: 93 | O37: 21 | P37: 45 | Q37: 24 | R37: 91 | S37: 92 | T37: 86 | U37: 10 | V37: 44 | W37: 66 | X37: 68 | Y37: 57 | Z37: 43 | AA37: 47 | AB37: 42 | AC37: 41
B38: =B1 -> manage_species | C38: =C1 -> manage_spatial | D38: manage_uncertainty | E38: manage_currentpractices | F38: manage_adaptivemanagement | G38: pop_a | H38: pop_b | I38: pop_spatialscope | J38: pop_temporalscope | K38: hab_quantity | L38: hab_quality | M38: hab_temporal | N38: ecoprocess_spp | O38: ecoprocess_uncertainty | P38: datasharing | Q38: broaderimpacts | R38: exisitingpriorities | S38: partners | T38: leverage | U38: alignment | V38: objhyp | W38: response | X38: targettaxa | Y38: surveydesign | Z38: stats | AA38: datamanagement | AB38: budget | AC38: timeline
B39: Metric 1 | C39: Metric 2 | D39: Metric 3 | E39: Metric 4 | F39: Metric 5 | G39: Metric 6a | H39: Metric 6b | I39: Metric 7 | J39: Metric 8 | K39: Metric 9 | L39: Metric 10 | M39: Metric 11 | N39: Metric 12 | O39: Metric 13 | P39: Metric 14 | Q39: Metric 15 | R39: Metric 16 | S39: Metric 17 | T39: Metric 18 | U39: Metric 19 | V39: Metric 20 | W39: Metric 21 | X39: Metric 22 | Y39: Metric 23 | Z39: Metric 24 | AA39: Metric 25 | AB39: Metric 26 | AC39: Metric 27
A40: Weights | B40: 0.03 | C40: 0.03 | D40: 0.03 | E40: 0.03 | F40: 0.04 | G40: 0.015 | H40: 0.015 | I40: 0.03 | J40: 0.02 | K40: 0.02 | L40: 0.02 | M40: 0.02 | N40: 0.03 | O40: 0.09 | P40: 0.04 | Q40: 0.04 | R40: 0.05 | S40: 0.05 | T40: 0.03 | U40: 0.03 | V40: 0.05 | W40: 0.04 | X40: 0.04 | Y40: 0.05 | Z40: 0.05 | AA40: 0.04 | AB40: 0.04 | AC40: 0.03
A42: Project | AD42: total | AE42: sdm_tool_excel
A43: =A2 -> 1 | B43: =$B$40*(valueE(B2,'Utility Functions'!$B$3,'Utility Functions'!$B$4,'Utility Functions'!$B$5,'Utility Functions'!$B$6)) -> 0.02504107129 | C43: =$C$40*(valueE(C2,'Utility Functions'!$D$3,'Utility Functions'!$D$4,'Utility Functions'!$D$5,'Utility Functions'!$D$6)) -> 0.01394279015 | D43: =$D$40*(valuePL(D2,'Utility Functions'!$E$3:$E$5,'Utility Functions'!$F$3:$F$5)) -> 0.03 | E43: =$E$40*(valuePL(E2,'Utility Functions'!$G$3:$G$5,'Utility Functions'!$H$3:$H$5)) -> 0.03 | F43: =$F$40*(valuePL(F2,'Utility Functions'!$I$3:$I$4,'Utility Functions'!$J$3:$J$5)) -> 0 | G43: =$G$40*(valueE(G2,'Utility Functions'!$L$3,'Utility Functions'!$L$4,'Utility Functions'!$L$5,'Utility Functions'!$L$6)) -> 0.015 | H43: =$H$40*(valueE(H2,'Utility Functions'!$N$3,'Utility Functions'!$N$4,'Utility Functions'!$N$5,'Utility Functions'!$N$6)) -> 0.015 | I43: =$I$40*valuePL(I2,'Utility Functions'!$O$3:$O$6,'Utility Functions'!$P$3:$P$6) -> 0.02754545455 | J43: =$J$40*valuePL(J2,'Utility Functions'!$Q$3:$Q$6,'Utility Functions'!$R$3:$R$6) -> 0.002 | K43: =$K$40*(valuePL(K2,'Utility Functions'!$S$3:$S$7,'Utility Functions'!$T$3:$T$7)) -> 0 | L43: =$L$40*(valueE(L2,'Utility Functions'!$V$3,'Utility Functions'!$V$4,'Utility Functions'!$V$5,'Utility Functions'!$V$6)) -> 0 | M43: =$M$40*valuePL(M2,'Utility Functions'!$W$3:$W$6,'Utility Functions'!$X$3:$X$6) -> 0 | N43: =$N$40*valueE(N2,'Utility Functions'!$Z$3,'Utility Functions'!$Z$4,'Utility Functions'!$Z$5,'Utility Functions'!$Z$6) -> 0 | O43: =$O$40*valuePL(O2,'Utility Functions'!$AA$3:$AA$5,'Utility Functions'!$AB$3:$AB$5) -> 0 | P43: =$P$40*valuePL(P2,'Utility Functions'!$AC$3:$AC$7,'Utility Functions'!$AD$3:$AD$7) -> 0.04 | Q43: =$Q$40*valuePL(Q2,'Utility Functions'!$AE$3:$AE$6,'Utility Functions'!$AF$3:$AF$6) -> 0 | R43: =$R$40*valuePL(R2,'Utility Functions'!$AG$3:$AG$6,'Utility Functions'!$AH$3:$AH$6) -> 0.04 | S43: =$S$40*valuePL(S2,'Utility Functions'!$AI$3:$AI$6,'Utility Functions'!$AJ$3:$AJ$6) -> 0.05 | T43: =$T$40*valuePL(T2,'Utility Functions'!$AK$3:$AK$8,'Utility Functions'!$AL$3:$AL$8) -> 0 | U43: =$U$40*valuePL(U2,'Utility Functions'!$AM$3:$AM$5,'Utility Functions'!$AN$3:$AN$5) -> 0 | V43: =$V$40*valuePL(V2,'Utility Functions'!$AO$3:$AO$5,'Utility Functions'!$AP$3:$AP$5) -> 0.05 | W43: =$W$40*valuePL(W2,'Utility Functions'!$AQ$3:$AQ$6,'Utility Functions'!$AR$3:$AR$6) -> 0.04 | X43: =$X$40*valuePL(X2,'Utility Functions'!$AS$3:$AS$6,'Utility Functions'!$AT$3:$AT$6) -> 0.04 | Y43: =$Y$40*valuePL(Y2,'Utility Functions'!$AU$3:$AU$6,'Utility Functions'!$AV$3:$AV$6) -> 0.05 | Z43: =$Z$40*valuePL(Z2,'Utility Functions'!$AW$3:$AW$5,'Utility Functions'!$AX$3:$AX$5) -> 0.05 | AA43: =$AA$40*valuePL(AA2,'Utility Functions'!$AY$3:$AY$6,'Utility Functions'!$AZ$3:$AZ$6) -> 0.04 | AB43: =$AB$40*valuePL(AB2,'Utility Functions'!$BA$3:$BA$5,'Utility Functions'!$BB$3:$BB$5) -> 0.04 | AC43: =$AC$40*valuePL(AC2,'Utility Functions'!$BC$3:$BC$5,'Utility Functions'!$BD$3:$BD$5) -> 0.03 | AD43: =SUM(B43:AC43) -> 0.628529316 | AE43: 0.6267946694
A44: =A3 -> 2 | B44: =$B$40*(valueE(B3,'Utility Functions'!$B$3,'Utility Functions'!$B$4,'Utility Functions'!$B$5,'Utility Functions'!$B$6)) -> 0.01353567143 | C44: =$C$40*(valueE(C3,'Utility Functions'!$D$3,'Utility Functions'!$D$4,'Utility Functions'!$D$5,'Utility Functions'!$D$6)) -> 0.02821310259 | D44: =$D$40*(valuePL(D3,'Utility Functions'!$E$3:$E$5,'Utility Functions'!$F$3:$F$5)) -> 0.015 | E44: =$E$40*(valuePL(E3,'Utility Functions'!$G$3:$G$5,'Utility Functions'!$H$3:$H$5)) -> 0 | F44: =$F$40*(valuePL(F3,'Utility Functions'!$I$3:$I$4,'Utility Functions'!$J$3:$J$5)) -> 0 | G44: =$G$40*(valueE(G3,'Utility Functions'!$L$3,'Utility Functions'!$L$4,'Utility Functions'!$L$5,'Utility Functions'!$L$6)) -> 0 | H44: =$H$40*(valueE(H3,'Utility Functions'!$N$3,'Utility Functions'!$N$4,'Utility Functions'!$N$5,'Utility Functions'!$N$6)) -> 0 | I44: =$I$40*valuePL(I3,'Utility Functions'!$O$3:$O$6,'Utility Functions'!$P$3:$P$6) -> 0 | J44: =$J$40*valuePL(J3,'Utility Functions'!$Q$3:$Q$6,'Utility Functions'!$R$3:$R$6) -> 0 | K44: =$K$40*(valuePL(K3,'Utility Functions'!$S$3:$S$7,'Utility Functions'!$T$3:$T$7)) -> 0 | L44: =$L$40*(valueE(L3,'Utility Functions'!$V$3,'Utility Functions'!$V$4,'Utility Functions'!$V$5,'Utility Functions'!$V$6)) -> 0 | M44: =$M$40*valuePL(M3,'Utility Functions'!$W$3:$W$6,'Utility Functions'!$X$3:$X$6) -> 0 | N44: =$N$40*valueE(N3,'Utility Functions'!$Z$3,'Utility Functions'!$Z$4,'Utility Functions'!$Z$5,'Utility Functions'!$Z$6) -> 0.015 | O44: =$O$40*valuePL(O3,'Utility Functions'!$AA$3:$AA$5,'Utility Functions'!$AB$3:$AB$5) -> 0.0225 | P44: =$P$40*valuePL(P3,'Utility Functions'!$AC$3:$AC$7,'Utility Functions'!$AD$3:$AD$7) -> 0 | Q44: =$Q$40*valuePL(Q3,'Utility Functions'!$AE$3:$AE$6,'Utility Functions'!$AF$3:$AF$6) -> 0 | R44: =$R$40*valuePL(R3,'Utility Functions'!$AG$3:$AG$6,'Utility Functions'!$AH$3:$AH$6) -> 0.05 | S44: =$S$40*valuePL(S3,'Utility Functions'!$AI$3:$AI$6,'Utility Functions'!$AJ$3:$AJ$6) -> 0.05 | T44: =$T$40*valuePL(T3,'Utility Functions'!$AK$3:$AK$8,'Utility Functions'!$AL$3:$AL$8) -> 0 | U44: =$U$40*valuePL(U3,'Utility Functions'!$AM$3:$AM$5,'Utility Functions'!$AN$3:$AN$5) -> 0 | V44: =$V$40*valuePL(V3,'Utility Functions'!$AO$3:$AO$5,'Utility Functions'!$AP$3:$AP$5) -> 0.05 | W44: =$W$40*valuePL(W3,'Utility Functions'!$AQ$3:$AQ$6,'Utility Functions'!$AR$3:$AR$6) -> 0.04 | X44: =$X$40*valuePL(X3,'Utility Functions'!$AS$3:$AS$6,'Utility Functions'!$AT$3:$AT$6) -> 0.04 | Y44: =$Y$40*valuePL(Y3,'Utility Functions'!$AU$3:$AU$6,'Utility Functions'!$AV$3:$AV$6) -> 0.05 | Z44: =$Z$40*valuePL(Z3,'Utility Functions'!$AW$3:$AW$5,'Utility Functions'!$AX$3:$AX$5) -> 0.05 | AA44: =$AA$40*valuePL(AA3,'Utility Functions'!$AY$3:$AY$6,'Utility Functions'!$AZ$3:$AZ$6) -> 0.04 | AB44: =$AB$40*valuePL(AB3,'Utility Functions'!$BA$3:$BA$5,'Utility Functions'!$BB$3:$BB$5) -> 0.04 | AC44: =$AC$40*valuePL(AC3,'Utility Functions'!$BC$3:$BC$5,'Utility Functions'!$BD$3:$BD$5) -> 0.03 | AD44: =SUM(B44:AC44) -> 0.534248774 | AE44: 0.5325173497
A45: 3 | B45: =$B$40*(valueE(B4,'Utility Functions'!$B$3,'Utility Functions'!$B$4,'Utility Functions'!$B$5,'Utility Functions'!$B$6)) -> 0.02394314074 | C45: =$C$40*(valueE(C4,'Utility Functions'!$D$3,'Utility Functions'!$D$4,'Utility Functions'!$D$5,'Utility Functions'!$D$6)) -> 0.02821310259 | D45: =$D$40*(valuePL(D4,'Utility Functions'!$E$3:$E$5,'Utility Functions'!$F$3:$F$5)) -> 0.03 | E45: =$E$40*(valuePL(E4,'Utility Functions'!$G$3:$G$5,'Utility Functions'!$H$3:$H$5)) -> 0 | F45: =$F$40*(valuePL(F4,'Utility Functions'!$I$3:$I$4,'Utility Functions'!$J$3:$J$5)) -> 0 | G45: =$G$40*(valueE(G4,'Utility Functions'!$L$3,'Utility Functions'!$L$4,'Utility Functions'!$L$5,'Utility Functions'!$L$6)) -> 0 | H45: =$H$40*(valueE(H4,'Utility Functions'!$N$3,'Utility Functions'!$N$4,'Utility Functions'!$N$5,'Utility Functions'!$N$6)) -> 0 | I45: =$I$40*valuePL(I4,'Utility Functions'!$O$3:$O$6,'Utility Functions'!$P$3:$P$6) -> 0 | J45: =$J$40*valuePL(J4,'Utility Functions'!$Q$3:$Q$6,'Utility Functions'!$R$3:$R$6) -> 0 | K45: =$K$40*(valuePL(K4,'Utility Functions'!$S$3:$S$7,'Utility Functions'!$T$3:$T$7)) -> 0 | L45: =$L$40*(valueE(L4,'Utility Functions'!$V$3,'Utility Functions'!$V$4,'Utility Functions'!$V$5,'Utility Functions'!$V$6)) -> 0 | M45: =$M$40*valuePL(M4,'Utility Functions'!$W$3:$W$6,'Utility Functions'!$X$3:$X$6) -> 0 | N45: =$N$40*valueE(N4,'Utility Functions'!$Z$3,'Utility Functions'!$Z$4,'Utility Functions'!$Z$5,'Utility Functions'!$Z$6) -> 0.01875 | O45: =$O$40*valuePL(O4,'Utility Functions'!$AA$3:$AA$5,'Utility Functions'!$AB$3:$AB$5) -> 0.0225 | P45: =$P$40*valuePL(P4,'Utility Functions'!$AC$3:$AC$7,'Utility Functions'!$AD$3:$AD$7) -> 0 | Q45: =$Q$40*valuePL(Q4,'Utility Functions'!$AE$3:$AE$6,'Utility Functions'!$AF$3:$AF$6) -> 0.02 | R45: =$R$40*valuePL(R4,'Utility Functions'!$AG$3:$AG$6,'Utility Functions'!$AH$3:$AH$6) -> 0 | S45: =$S$40*valuePL(S4,'Utility Functions'!$AI$3:$AI$6,'Utility Functions'!$AJ$3:$AJ$6) -> 0 | T45: =$T$40*valuePL(T4,'Utility Functions'!$AK$3:$AK$8,'Utility Functions'!$AL$3:$AL$8) -> 0 | U45: =$U$40*valuePL(U4,'Utility Functions'!$AM$3:$AM$5,'Utility Functions'!$AN$3:$AN$5) -> 0.0075 | V45: =$V$40*valuePL(V4,'Utility Functions'!$AO$3:$AO$5,'Utility Functions'!$AP$3:$AP$5) -> 0.05 | W45: =$W$40*valuePL(W4,'Utility Functions'!$AQ$3:$AQ$6,'Utility Functions'!$AR$3:$AR$6) -> 0.04 | X45: =$X$40*valuePL(X4,'Utility Functions'!$AS$3:$AS$6,'Utility Functions'!$AT$3:$AT$6) -> 0.04 | Y45: =$Y$40*valuePL(Y4,'Utility Functions'!$AU$3:$AU$6,'Utility Functions'!$AV$3:$AV$6) -> 0.05 | Z45: =$Z$40*valuePL(Z4,'Utility Functions'!$AW$3:$AW$5,'Utility Functions'!$AX$3:$AX$5) -> 0.05 | AA45: =$AA$40*valuePL(AA4,'Utility Functions'!$AY$3:$AY$6,'Utility Functions'!$AZ$3:$AZ$6) -> 0.008 | AB45: =$AB$40*valuePL(AB4,'Utility Functions'!$BA$3:$BA$5,'Utility Functions'!$BB$3:$BB$5) -> 0.04 | AC45: =$AC$40*valuePL(AC4,'Utility Functions'!$BC$3:$BC$5,'Utility Functions'!$BD$3:$BD$5) -> 0.03 | AD45: 0.4589062433 | AE45: 0.4570555008
A46: 4 | B46: =$B$40*(valueE(B5,'Utility Functions'!$B$3,'Utility Functions'!$B$4,'Utility Functions'!$B$5,'Utility Functions'!$B$6)) -> 0.005438085647 | C46: =$C$40*(valueE(C5,'Utility Functions'!$D$3,'Utility Functions'!$D$4,'Utility Functions'!$D$5,'Utility Functions'!$D$6)) -> 0.01394279015 | D46: =$D$40*(valuePL(D5,'Utility Functions'!$E$3:$E$5,'Utility Functions'!$F$3:$F$5)) -> 0.03 | E46: =$E$40*(valuePL(E5,'Utility Functions'!$G$3:$G$5,'Utility Functions'!$H$3:$H$5)) -> 0 | F46: =$F$40*(valuePL(F5,'Utility Functions'!$I$3:$I$4,'Utility Functions'!$J$3:$J$5)) -> 0 | G46: =$G$40*(valueE(G5,'Utility Functions'!$L$3,'Utility Functions'!$L$4,'Utility Functions'!$L$5,'Utility Functions'!$L$6)) -> 0 | H46: =$H$40*(valueE(H5,'Utility Functions'!$N$3,'Utility Functions'!$N$4,'Utility Functions'!$N$5,'Utility Functions'!$N$6)) -> 0 | I46: =$I$40*valuePL(I5,'Utility Functions'!$O$3:$O$6,'Utility Functions'!$P$3:$P$6) -> 0 | J46: =$J$40*valuePL(J5,'Utility Functions'!$Q$3:$Q$6,'Utility Functions'!$R$3:$R$6) -> 0 | K46: =$K$40*(valuePL(K5,'Utility Functions'!$S$3:$S$7,'Utility Functions'!$T$3:$T$7)) -> 0 | L46: =$L$40*(valueE(L5,'Utility Functions'!$V$3,'Utility Functions'!$V$4,'Utility Functions'!$V$5,'Utility Functions'!$V$6)) -> 0 | M46: =$M$40*valuePL(M5,'Utility Functions'!$W$3:$W$6,'Utility Functions'!$X$3:$X$6) -> 0 | N46: =$N$40*valueE(N5,'Utility Functions'!$Z$3,'Utility Functions'!$Z$4,'Utility Functions'!$Z$5,'Utility Functions'!$Z$6) -> 0.015 | O46: =$O$40*valuePL(O5,'Utility Functions'!$AA$3:$AA$5,'Utility Functions'!$AB$3:$AB$5) -> 0.0225 | P46: =$P$40*valuePL(P5,'Utility Functions'!$AC$3:$AC$7,'Utility Functions'!$AD$3:$AD$7) -> 0 | Q46: =$Q$40*valuePL(Q5,'Utility Functions'!$AE$3:$AE$6,'Utility Functions'!$AF$3:$AF$6) -> 0.004 | R46: =$R$40*valuePL(R5,'Utility Functions'!$AG$3:$AG$6,'Utility Functions'!$AH$3:$AH$6) -> 0.05 | S46: =$S$40*valuePL(S5,'Utility Functions'!$AI$3:$AI$6,'Utility Functions'!$AJ$3:$AJ$6) -> 0.05 | T46: =$T$40*valuePL(T5,'Utility Functions'!$AK$3:$AK$8,'Utility Functions'!$AL$3:$AL$8) -> 0.024 | U46: =$U$40*valuePL(U5,'Utility Functions'!$AM$3:$AM$5,'Utility Functions'!$AN$3:$AN$5) -> 0 | V46: =$V$40*valuePL(V5,'Utility Functions'!$AO$3:$AO$5,'Utility Functions'!$AP$3:$AP$5) -> 0.025 | W46: =$W$40*valuePL(W5,'Utility Functions'!$AQ$3:$AQ$6,'Utility Functions'!$AR$3:$AR$6) -> 0.04 | X46: =$X$40*valuePL(X5,'Utility Functions'!$AS$3:$AS$6,'Utility Functions'!$AT$3:$AT$6) -> 0.04 | Y46: =$Y$40*valuePL(Y5,'Utility Functions'!$AU$3:$AU$6,'Utility Functions'!$AV$3:$AV$6) -> 0.01 | Z46: =$Z$40*valuePL(Z5,'Utility Functions'!$AW$3:$AW$5,'Utility Functions'!$AX$3:$AX$5) -> 0 | AA46: =$AA$40*valuePL(AA5,'Utility Functions'!$AY$3:$AY$6,'Utility Functions'!$AZ$3:$AZ$6) -> 0 | AB46: =$AB$40*valuePL(AB5,'Utility Functions'!$BA$3:$BA$5,'Utility Functions'!$BB$3:$BB$5) -> 0.04 | AC46: =$AC$40*valuePL(AC5,'Utility Functions'!$BC$3:$BC$5,'Utility Functions'!$BD$3:$BD$5) -> 0.0075 | AD46: 0.3773808758 | AE46: 0.3765484035
A47: 5 | B47: =$B$40*(valueE(B6,'Utility Functions'!$B$3,'Utility Functions'!$B$4,'Utility Functions'!$B$5,'Utility Functions'!$B$6)) -> 0.01652015611 | C47: =$C$40*(valueE(C6,'Utility Functions'!$D$3,'Utility Functions'!$D$4,'Utility Functions'!$D$5,'Utility Functions'!$D$6)) -> 0.007996954374 | D47: =$D$40*(valuePL(D6,'Utility Functions'!$E$3:$E$5,'Utility Functions'!$F$3:$F$5)) -> 0.03 | E47: =$E$40*(valuePL(E6,'Utility Functions'!$G$3:$G$5,'Utility Functions'!$H$3:$H$5)) -> 0 | F47: =$F$40*(valuePL(F6,'Utility Functions'!$I$3:$I$4,'Utility Functions'!$J$3:$J$5)) -> 0 | G47: =$G$40*(valueE(G6,'Utility Functions'!$L$3,'Utility Functions'!$L$4,'Utility Functions'!$L$5,'Utility Functions'!$L$6)) -> 0 | H47: =$H$40*(valueE(H6,'Utility Functions'!$N$3,'Utility Functions'!$N$4,'Utility Functions'!$N$5,'Utility Functions'!$N$6)) -> 0 | I47: =$I$40*valuePL(I6,'Utility Functions'!$O$3:$O$6,'Utility Functions'!$P$3:$P$6) -> 0.01527272727 | J47: =$J$40*valuePL(J6,'Utility Functions'!$Q$3:$Q$6,'Utility Functions'!$R$3:$R$6) -> 0.0008 | K47: =$K$40*(valuePL(K6,'Utility Functions'!$S$3:$S$7,'Utility Functions'!$T$3:$T$7)) -> 0 | L47: =$L$40*(valueE(L6,'Utility Functions'!$V$3,'Utility Functions'!$V$4,'Utility Functions'!$V$5,'Utility Functions'!$V$6)) -> 0 | M47: =$M$40*valuePL(M6,'Utility Functions'!$W$3:$W$6,'Utility Functions'!$X$3:$X$6) -> 0 | N47: =$N$40*valueE(N6,'Utility Functions'!$Z$3,'Utility Functions'!$Z$4,'Utility Functions'!$Z$5,'Utility Functions'!$Z$6) -> 0 | O47: =$O$40*valuePL(O6,'Utility Functions'!$AA$3:$AA$5,'Utility Functions'!$AB$3:$AB$5) -> 0 | P47: =$P$40*valuePL(P6,'Utility Functions'!$AC$3:$AC$7,'Utility Functions'!$AD$3:$AD$7) -> 0 | Q47: =$Q$40*valuePL(Q6,'Utility Functions'!$AE$3:$AE$6,'Utility Functions'!$AF$3:$AF$6) -> 0.004 | R47: =$R$40*valuePL(R6,'Utility Functions'!$AG$3:$AG$6,'Utility Functions'!$AH$3:$AH$6) -> 0.05 | S47: =$S$40*valuePL(S6,'Utility Functions'!$AI$3:$AI$6,'Utility Functions'!$AJ$3:$AJ$6) -> 0.05 | T47: =$T$40*valuePL(T6,'Utility Functions'!$AK$3:$AK$8,'Utility Functions'!$AL$3:$AL$8) -> 0.024 | U47: =$U$40*valuePL(U6,'Utility Functions'!$AM$3:$AM$5,'Utility Functions'!$AN$3:$AN$5) -> 0.0075 | V47: =$V$40*valuePL(V6,'Utility Functions'!$AO$3:$AO$5,'Utility Functions'!$AP$3:$AP$5) -> 0 | W47: =$W$40*valuePL(W6,'Utility Functions'!$AQ$3:$AQ$6,'Utility Functions'!$AR$3:$AR$6) -> 0.04 | X47: =$X$40*valuePL(X6,'Utility Functions'!$AS$3:$AS$6,'Utility Functions'!$AT$3:$AT$6) -> 0.04 | Y47: =$Y$40*valuePL(Y6,'Utility Functions'!$AU$3:$AU$6,'Utility Functions'!$AV$3:$AV$6) -> 0.04 | Z47: =$Z$40*valuePL(Z6,'Utility Functions'!$AW$3:$AW$5,'Utility Functions'!$AX$3:$AX$5) -> 0 | AA47: =$AA$40*valuePL(AA6,'Utility Functions'!$AY$3:$AY$6,'Utility Functions'!$AZ$3:$AZ$6) -> 0 | AB47: =$AB$40*valuePL(AB6,'Utility Functions'!$BA$3:$BA$5,'Utility Functions'!$BB$3:$BB$5) -> 0.04 | AC47: =$AC$40*valuePL(AC6,'Utility Functions'!$BC$3:$BC$5,'Utility Functions'!$BD$3:$BD$5) -> 0.0075 | AD47: 0.3735898378 | AE47: 0.3716673745
A48: 6 | B48: =$B$40*(valueE(B7,'Utility Functions'!$B$3,'Utility Functions'!$B$4,'Utility Functions'!$B$5,'Utility Functions'!$B$6)) -> 0.02593998081 | C48: =$C$40*(valueE(C7,'Utility Functions'!$D$3,'Utility Functions'!$D$4,'Utility Functions'!$D$5,'Utility Functions'!$D$6)) -> 0.0001854330084 | D48: =$D$40*(valuePL(D7,'Utility Functions'!$E$3:$E$5,'Utility Functions'!$F$3:$F$5)) -> 0.03 | E48: =$E$40*(valuePL(E7,'Utility Functions'!$G$3:$G$5,'Utility Functions'!$H$3:$H$5)) -> 0 | F48: =$F$40*(valuePL(F7,'Utility Functions'!$I$3:$I$4,'Utility Functions'!$J$3:$J$5)) -> 0 | G48: =$G$40*(valueE(G7,'Utility Functions'!$L$3,'Utility Functions'!$L$4,'Utility Functions'!$L$5,'Utility Functions'!$L$6)) -> 0 | H48: =$H$40*(valueE(H7,'Utility Functions'!$N$3,'Utility Functions'!$N$4,'Utility Functions'!$N$5,'Utility Functions'!$N$6)) -> 0 | I48: =$I$40*valuePL(I7,'Utility Functions'!$O$3:$O$6,'Utility Functions'!$P$3:$P$6) -> 0.0012 | J48: =$J$40*valuePL(J7,'Utility Functions'!$Q$3:$Q$6,'Utility Functions'!$R$3:$R$6) -> 0.0008 | K48: =$K$40*(valuePL(K7,'Utility Functions'!$S$3:$S$7,'Utility Functions'!$T$3:$T$7)) -> 0 | L48: =$L$40*(valueE(L7,'Utility Functions'!$V$3,'Utility Functions'!$V$4,'Utility Functions'!$V$5,'Utility Functions'!$V$6)) -> 0 | M48: =$M$40*valuePL(M7,'Utility Functions'!$W$3:$W$6,'Utility Functions'!$X$3:$X$6) -> 0 | N48: =$N$40*valueE(N7,'Utility Functions'!$Z$3,'Utility Functions'!$Z$4,'Utility Functions'!$Z$5,'Utility Functions'!$Z$6) -> 0 | O48: =$O$40*valuePL(O7,'Utility Functions'!$AA$3:$AA$5,'Utility Functions'!$AB$3:$AB$5) -> 0 | P48: =$P$40*valuePL(P7,'Utility Functions'!$AC$3:$AC$7,'Utility Functions'!$AD$3:$AD$7) -> 0 | Q48: =$Q$40*valuePL(Q7,'Utility Functions'!$AE$3:$AE$6,'Utility Functions'!$AF$3:$AF$6) -> 0.004 | R48: =$R$40*valuePL(R7,'Utility Functions'!$AG$3:$AG$6,'Utility Functions'!$AH$3:$AH$6) -> 0 | S48: =$S$40*valuePL(S7,'Utility Functions'!$AI$3:$AI$6,'Utility Functions'!$AJ$3:$AJ$6) -> 0.05 | T48: =$T$40*valuePL(T7,'Utility Functions'!$AK$3:$AK$8,'Utility Functions'!$AL$3:$AL$8) -> 0.018 | U48: =$U$40*valuePL(U7,'Utility Functions'!$AM$3:$AM$5,'Utility Functions'!$AN$3:$AN$5) -> 0 | V48: =$V$40*valuePL(V7,'Utility Functions'!$AO$3:$AO$5,'Utility Functions'!$AP$3:$AP$5) -> 0 | W48: =$W$40*valuePL(W7,'Utility Functions'!$AQ$3:$AQ$6,'Utility Functions'!$AR$3:$AR$6) -> 0 | X48: =$X$40*valuePL(X7,'Utility Functions'!$AS$3:$AS$6,'Utility Functions'!$AT$3:$AT$6) -> 0.04 | Y48: =$Y$40*valuePL(Y7,'Utility Functions'!$AU$3:$AU$6,'Utility Functions'!$AV$3:$AV$6) -> 0 | Z48: =$Z$40*valuePL(Z7,'Utility Functions'!$AW$3:$AW$5,'Utility Functions'!$AX$3:$AX$5) -> 0 | AA48: =$AA$40*valuePL(AA7,'Utility Functions'!$AY$3:$AY$6,'Utility Functions'!$AZ$3:$AZ$6) -> 0 | AB48: =$AB$40*valuePL(AB7,'Utility Functions'!$BA$3:$BA$5,'Utility Functions'!$BB$3:$BB$5) -> 0.04 | AC48: =$AC$40*valuePL(AC7,'Utility Functions'!$BC$3:$BC$5,'Utility Functions'!$BD$3:$BD$5) -> 0.0075 | AD48: 0.2176254138 | AE48: 0.216019509
A49: 7 | B49: =$B$40*(valueE(B8,'Utility Functions'!$B$3,'Utility Functions'!$B$4,'Utility Functions'!$B$5,'Utility Functions'!$B$6)) -> 0.02999913248 | C49: =$C$40*(valueE(C8,'Utility Functions'!$D$3,'Utility Functions'!$D$4,'Utility Functions'!$D$5,'Utility Functions'!$D$6)) -> 0.02542345105 | D49: =$D$40*(valuePL(D8,'Utility Functions'!$E$3:$E$5,'Utility Functions'!$F$3:$F$5)) -> 0 | E49: =$E$40*(valuePL(E8,'Utility Functions'!$G$3:$G$5,'Utility Functions'!$H$3:$H$5)) -> 0.03 | F49: =$F$40*(valuePL(F8,'Utility Functions'!$I$3:$I$4,'Utility Functions'!$J$3:$J$5)) -> 0 | G49: =$G$40*(valueE(G8,'Utility Functions'!$L$3,'Utility Functions'!$L$4,'Utility Functions'!$L$5,'Utility Functions'!$L$6)) -> 0 | H49: =$H$40*(valueE(H8,'Utility Functions'!$N$3,'Utility Functions'!$N$4,'Utility Functions'!$N$5,'Utility Functions'!$N$6)) -> 0 | I49: =$I$40*valuePL(I8,'Utility Functions'!$O$3:$O$6,'Utility Functions'!$P$3:$P$6) -> 0.03 | J49: =$J$40*valuePL(J8,'Utility Functions'!$Q$3:$Q$6,'Utility Functions'!$R$3:$R$6) -> 0.01345454545 | K49: =$K$40*(valuePL(K8,'Utility Functions'!$S$3:$S$7,'Utility Functions'!$T$3:$T$7)) -> 0.02 | L49: =$L$40*(valueE(L8,'Utility Functions'!$V$3,'Utility Functions'!$V$4,'Utility Functions'!$V$5,'Utility Functions'!$V$6)) -> 0.02 | M49: =$M$40*valuePL(M8,'Utility Functions'!$W$3:$W$6,'Utility Functions'!$X$3:$X$6) -> 0.01345454545 | N49: =$N$40*valueE(N8,'Utility Functions'!$Z$3,'Utility Functions'!$Z$4,'Utility Functions'!$Z$5,'Utility Functions'!$Z$6) -> 0.03 | O49: =$O$40*valuePL(O8,'Utility Functions'!$AA$3:$AA$5,'Utility Functions'!$AB$3:$AB$5) -> 0.0225 | P49: =$P$40*valuePL(P8,'Utility Functions'!$AC$3:$AC$7,'Utility Functions'!$AD$3:$AD$7) -> 0 | Q49: =$Q$40*valuePL(Q8,'Utility Functions'!$AE$3:$AE$6,'Utility Functions'!$AF$3:$AF$6) -> 0 | R49: =$R$40*valuePL(R8,'Utility Functions'!$AG$3:$AG$6,'Utility Functions'!$AH$3:$AH$6) -> 0.05 | S49: =$S$40*valuePL(S8,'Utility Functions'!$AI$3:$AI$6,'Utility Functions'!$AJ$3:$AJ$6) -> 0.05 | T49: =$T$40*valuePL(T8,'Utility Functions'!$AK$3:$AK$8,'Utility Functions'!$AL$3:$AL$8) -> 0 | U49: =$U$40*valuePL(U8,'Utility Functions'!$AM$3:$AM$5,'Utility Functions'!$AN$3:$AN$5) -> 0 | V49: =$V$40*valuePL(V8,'Utility Functions'!$AO$3:$AO$5,'Utility Functions'!$AP$3:$AP$5) -> 0.05 | W49: =$W$40*valuePL(W8,'Utility Functions'!$AQ$3:$AQ$6,'Utility Functions'!$AR$3:$AR$6) -> 0 | X49: =$X$40*valuePL(X8,'Utility Functions'!$AS$3:$AS$6,'Utility Functions'!$AT$3:$AT$6) -> 0.008 | Y49: =$Y$40*valuePL(Y8,'Utility Functions'!$AU$3:$AU$6,'Utility Functions'!$AV$3:$AV$6) -> 0.05 | Z49: =$Z$40*valuePL(Z8,'Utility Functions'!$AW$3:$AW$5,'Utility Functions'!$AX$3:$AX$5) -> 0.05 | AA49: =$AA$40*valuePL(AA8,'Utility Functions'!$AY$3:$AY$6,'Utility Functions'!$AZ$3:$AZ$6) -> 0.036 | AB49: =$AB$40*valuePL(AB8,'Utility Functions'!$BA$3:$BA$5,'Utility Functions'!$BB$3:$BB$5) -> 0 | AC49: =$AC$40*valuePL(AC8,'Utility Functions'!$BC$3:$BC$5,'Utility Functions'!$BD$3:$BD$5) -> 0.03 | AD49: 0.5588316744 | AE49: 0.5588277991
A50: 8 | B50: =$B$40*(valueE(B9,'Utility Functions'!$B$3,'Utility Functions'!$B$4,'Utility Functions'!$B$5,'Utility Functions'!$B$6)) -> 0.01353567143 | C50: =$C$40*(valueE(C9,'Utility Functions'!$D$3,'Utility Functions'!$D$4,'Utility Functions'!$D$5,'Utility Functions'!$D$6)) -> 0.02542345105 | D50: =$D$40*(valuePL(D9,'Utility Functions'!$E$3:$E$5,'Utility Functions'!$F$3:$F$5)) -> 0.03 | E50: =$E$40*(valuePL(E9,'Utility Functions'!$G$3:$G$5,'Utility Functions'!$H$3:$H$5)) -> 0.015 | F50: =$F$40*(valuePL(F9,'Utility Functions'!$I$3:$I$4,'Utility Functions'!$J$3:$J$5)) -> 0.04 | G50: =$G$40*(valueE(G9,'Utility Functions'!$L$3,'Utility Functions'!$L$4,'Utility Functions'!$L$5,'Utility Functions'!$L$6)) -> 0 | H50: =$H$40*(valueE(H9,'Utility Functions'!$N$3,'Utility Functions'!$N$4,'Utility Functions'!$N$5,'Utility Functions'!$N$6)) -> 0 | I50: =$I$40*valuePL(I9,'Utility Functions'!$O$3:$O$6,'Utility Functions'!$P$3:$P$6) -> 0.00168 | J50: =$J$40*valuePL(J9,'Utility Functions'!$Q$3:$Q$6,'Utility Functions'!$R$3:$R$6) -> 0.01672727273 | K50: =$K$40*(valuePL(K9,'Utility Functions'!$S$3:$S$7,'Utility Functions'!$T$3:$T$7)) -> 0 | L50: =$L$40*(valueE(L9,'Utility Functions'!$V$3,'Utility Functions'!$V$4,'Utility Functions'!$V$5,'Utility Functions'!$V$6)) -> 0.02 | M50: =$M$40*valuePL(M9,'Utility Functions'!$W$3:$W$6,'Utility Functions'!$X$3:$X$6) -> 0.01672727273 | N50: =$N$40*valueE(N9,'Utility Functions'!$Z$3,'Utility Functions'!$Z$4,'Utility Functions'!$Z$5,'Utility Functions'!$Z$6) -> 0 | O50: =$O$40*valuePL(O9,'Utility Functions'!$AA$3:$AA$5,'Utility Functions'!$AB$3:$AB$5) -> 0 | P50: =$P$40*valuePL(P9,'Utility Functions'!$AC$3:$AC$7,'Utility Functions'!$AD$3:$AD$7) -> 0 | Q50: =$Q$40*valuePL(Q9,'Utility Functions'!$AE$3:$AE$6,'Utility Functions'!$AF$3:$AF$6) -> 0.04 | R50: =$R$40*valuePL(R9,'Utility Functions'!$AG$3:$AG$6,'Utility Functions'!$AH$3:$AH$6) -> 0.01 | S50: =$S$40*valuePL(S9,'Utility Functions'!$AI$3:$AI$6,'Utility Functions'!$AJ$3:$AJ$6) -> 0.05 | T50: =$T$40*valuePL(T9,'Utility Functions'!$AK$3:$AK$8,'Utility Functions'!$AL$3:$AL$8) -> 0 | U50: =$U$40*valuePL(U9,'Utility Functions'!$AM$3:$AM$5,'Utility Functions'!$AN$3:$AN$5) -> 0 | V50: =$V$40*valuePL(V9,'Utility Functions'!$AO$3:$AO$5,'Utility Functions'!$AP$3:$AP$5) -> 0.05 | W50: =$W$40*valuePL(W9,'Utility Functions'!$AQ$3:$AQ$6,'Utility Functions'!$AR$3:$AR$6) -> 0.04 | X50: =$X$40*valuePL(X9,'Utility Functions'!$AS$3:$AS$6,'Utility Functions'!$AT$3:$AT$6) -> 0.04 | Y50: =$Y$40*valuePL(Y9,'Utility Functions'!$AU$3:$AU$6,'Utility Functions'!$AV$3:$AV$6) -> 0.05 | Z50: =$Z$40*valuePL(Z9,'Utility Functions'!$AW$3:$AW$5,'Utility Functions'!$AX$3:$AX$5) -> 0.05 | AA50: =$AA$40*valuePL(AA9,'Utility Functions'!$AY$3:$AY$6,'Utility Functions'!$AZ$3:$AZ$6) -> 0 | AB50: =$AB$40*valuePL(AB9,'Utility Functions'!$BA$3:$BA$5,'Utility Functions'!$BB$3:$BB$5) -> 0.01 | AC50: =$AC$40*valuePL(AC9,'Utility Functions'!$BC$3:$BC$5,'Utility Functions'!$BD$3:$BD$5) -> 0.0075 | AD50: 0.5265936679 | AE50: 0.5248622436
A51: 9 | B51: =$B$40*(valueE(B10,'Utility Functions'!$B$3,'Utility Functions'!$B$4,'Utility Functions'!$B$5,'Utility Functions'!$B$6)) -> 0.02504107129 | C51: =$C$40*(valueE(C10,'Utility Functions'!$D$3,'Utility Functions'!$D$4,'Utility Functions'!$D$5,'Utility Functions'!$D$6)) -> 0.02369699371 | D51: =$D$40*(valuePL(D10,'Utility Functions'!$E$3:$E$5,'Utility Functions'!$F$3:$F$5)) -> 0.03 | E51: =$E$40*(valuePL(E10,'Utility Functions'!$G$3:$G$5,'Utility Functions'!$H$3:$H$5)) -> 0.015 | F51: =$F$40*(valuePL(F10,'Utility Functions'!$I$3:$I$4,'Utility Functions'!$J$3:$J$5)) -> 0 | G51: =$G$40*(valueE(G10,'Utility Functions'!$L$3,'Utility Functions'!$L$4,'Utility Functions'!$L$5,'Utility Functions'!$L$6)) -> 0.00564516129 | H51: =$H$40*(valueE(H10,'Utility Functions'!$N$3,'Utility Functions'!$N$4,'Utility Functions'!$N$5,'Utility Functions'!$N$6)) -> 0.001992409867 | I51: =$I$40*valuePL(I10,'Utility Functions'!$O$3:$O$6,'Utility Functions'!$P$3:$P$6) -> 0 | J51: =$J$40*valuePL(J10,'Utility Functions'!$Q$3:$Q$6,'Utility Functions'!$R$3:$R$6) -> 0 | K51: =$K$40*(valuePL(K10,'Utility Functions'!$S$3:$S$7,'Utility Functions'!$T$3:$T$7)) -> 0 | L51: =$L$40*(valueE(L10,'Utility Functions'!$V$3,'Utility Functions'!$V$4,'Utility Functions'!$V$5,'Utility Functions'!$V$6)) -> 0 | M51: =$M$40*valuePL(M10,'Utility Functions'!$W$3:$W$6,'Utility Functions'!$X$3:$X$6) -> 0 | N51: =$N$40*valueE(N10,'Utility Functions'!$Z$3,'Utility Functions'!$Z$4,'Utility Functions'!$Z$5,'Utility Functions'!$Z$6) -> 0 | O51: =$O$40*valuePL(O10,'Utility Functions'!$AA$3:$AA$5,'Utility Functions'!$AB$3:$AB$5) -> 0 | P51: =$P$40*valuePL(P10,'Utility Functions'!$AC$3:$AC$7,'Utility Functions'!$AD$3:$AD$7) -> 0.03 | Q51: =$Q$40*valuePL(Q10,'Utility Functions'!$AE$3:$AE$6,'Utility Functions'!$AF$3:$AF$6) -> 0 | R51: =$R$40*valuePL(R10,'Utility Functions'!$AG$3:$AG$6,'Utility Functions'!$AH$3:$AH$6) -> 0.05 | S51: =$S$40*valuePL(S10,'Utility Functions'!$AI$3:$AI$6,'Utility Functions'!$AJ$3:$AJ$6) -> 0.033 | T51: =$T$40*valuePL(T10,'Utility Functions'!$AK$3:$AK$8,'Utility Functions'!$AL$3:$AL$8) -> 0.006 | U51: =$U$40*valuePL(U10,'Utility Functions'!$AM$3:$AM$5,'Utility Functions'!$AN$3:$AN$5) -> 0 | V51: =$V$40*valuePL(V10,'Utility Functions'!$AO$3:$AO$5,'Utility Functions'!$AP$3:$AP$5) -> 0.05 | W51: =$W$40*valuePL(W10,'Utility Functions'!$AQ$3:$AQ$6,'Utility Functions'!$AR$3:$AR$6) -> 0.04 | X51: =$X$40*valuePL(X10,'Utility Functions'!$AS$3:$AS$6,'Utility Functions'!$AT$3:$AT$6) -> 0.04 | Y51: =$Y$40*valuePL(Y10,'Utility Functions'!$AU$3:$AU$6,'Utility Functions'!$AV$3:$AV$6) -> 0.01 | Z51: =$Z$40*valuePL(Z10,'Utility Functions'!$AW$3:$AW$5,'Utility Functions'!$AX$3:$AX$5) -> 0.05 | AA51: =$AA$40*valuePL(AA10,'Utility Functions'!$AY$3:$AY$6,'Utility Functions'!$AZ$3:$AZ$6) -> 0.008 | AB51: =$AB$40*valuePL(AB10,'Utility Functions'!$BA$3:$BA$5,'Utility Functions'!$BB$3:$BB$5) -> 0.01 | AC51: =$AC$40*valuePL(AC10,'Utility Functions'!$BC$3:$BC$5,'Utility Functions'!$BD$3:$BD$5) -> 0.03 | AD51: 0.4583756362 | AE51: 0.4566409896
A52: 10 | B52: =$B$40*(valueE(B11,'Utility Functions'!$B$3,'Utility Functions'!$B$4,'Utility Functions'!$B$5,'Utility Functions'!$B$6)) -> 0 | C52: =$C$40*(valueE(C11,'Utility Functions'!$D$3,'Utility Functions'!$D$4,'Utility Functions'!$D$5,'Utility Functions'!$D$6)) -> 0 | D52: =$D$40*(valuePL(D11,'Utility Functions'!$E$3:$E$5,'Utility Functions'!$F$3:$F$5)) -> 0 | E52: =$E$40*(valuePL(E11,'Utility Functions'!$G$3:$G$5,'Utility Functions'!$H$3:$H$5)) -> 0 | F52: =$F$40*(valuePL(F11,'Utility Functions'!$I$3:$I$4,'Utility Functions'!$J$3:$J$5)) -> 0 | G52: =$G$40*(valueE(G11,'Utility Functions'!$L$3,'Utility Functions'!$L$4,'Utility Functions'!$L$5,'Utility Functions'!$L$6)) -> 0 | H52: =$H$40*(valueE(H11,'Utility Functions'!$N$3,'Utility Functions'!$N$4,'Utility Functions'!$N$5,'Utility Functions'!$N$6)) -> 0 | I52: =$I$40*valuePL(I11,'Utility Functions'!$O$3:$O$6,'Utility Functions'!$P$3:$P$6) -> 0 | J52: =$J$40*valuePL(J11,'Utility Functions'!$Q$3:$Q$6,'Utility Functions'!$R$3:$R$6) -> 0 | K52: =$K$40*(valuePL(K11,'Utility Functions'!$S$3:$S$7,'Utility Functions'!$T$3:$T$7)) -> 0 | L52: =$L$40*(valueE(L11,'Utility Functions'!$V$3,'Utility Functions'!$V$4,'Utility Functions'!$V$5,'Utility Functions'!$V$6)) -> 0 | M52: =$M$40*valuePL(M11,'Utility Functions'!$W$3:$W$6,'Utility Functions'!$X$3:$X$6) -> 0 | N52: =$N$40*valueE(N11,'Utility Functions'!$Z$3,'Utility Functions'!$Z$4,'Utility Functions'!$Z$5,'Utility Functions'!$Z$6) -> 0.0225 | O52: =$O$40*valuePL(O11,'Utility Functions'!$AA$3:$AA$5,'Utility Functions'!$AB$3:$AB$5) -> 0.09 | P52: =$P$40*valuePL(P11,'Utility Functions'!$AC$3:$AC$7,'Utility Functions'!$AD$3:$AD$7) -> 0.01 | Q52: =$Q$40*valuePL(Q11,'Utility Functions'!$AE$3:$AE$6,'Utility Functions'!$AF$3:$AF$6) -> 0.02 | R52: =$R$40*valuePL(R11,'Utility Functions'!$AG$3:$AG$6,'Utility Functions'!$AH$3:$AH$6) -> 0.05 | S52: =$S$40*valuePL(S11,'Utility Functions'!$AI$3:$AI$6,'Utility Functions'!$AJ$3:$AJ$6) -> 0.033 | T52: =$T$40*valuePL(T11,'Utility Functions'!$AK$3:$AK$8,'Utility Functions'!$AL$3:$AL$8) -> 0.012 | U52: =$U$40*valuePL(U11,'Utility Functions'!$AM$3:$AM$5,'Utility Functions'!$AN$3:$AN$5) -> 0 | V52: =$V$40*valuePL(V11,'Utility Functions'!$AO$3:$AO$5,'Utility Functions'!$AP$3:$AP$5) -> 0 | W52: =$W$40*valuePL(W11,'Utility Functions'!$AQ$3:$AQ$6,'Utility Functions'!$AR$3:$AR$6) -> 0.03 | X52: =$X$40*valuePL(X11,'Utility Functions'!$AS$3:$AS$6,'Utility Functions'!$AT$3:$AT$6) -> 0.04 | Y52: =$Y$40*valuePL(Y11,'Utility Functions'!$AU$3:$AU$6,'Utility Functions'!$AV$3:$AV$6) -> 0.05 | Z52: =$Z$40*valuePL(Z11,'Utility Functions'!$AW$3:$AW$5,'Utility Functions'!$AX$3:$AX$5) -> 0.025 | AA52: =$AA$40*valuePL(AA11,'Utility Functions'!$AY$3:$AY$6,'Utility Functions'!$AZ$3:$AZ$6) -> 0.008 | AB52: =$AB$40*valuePL(AB11,'Utility Functions'!$BA$3:$BA$5,'Utility Functions'!$BB$3:$BB$5) -> 0 | AC52: =$AC$40*valuePL(AC11,'Utility Functions'!$BC$3:$BC$5,'Utility Functions'!$BD$3:$BD$5) -> 0.03 | AD52: 0.4205 | AE52: 0.4205
A53: 11 | B53: =$B$40*(valueE(B12,'Utility Functions'!$B$3,'Utility Functions'!$B$4,'Utility Functions'!$B$5,'Utility Functions'!$B$6)) -> 0 | C53: =$C$40*(valueE(C12,'Utility Functions'!$D$3,'Utility Functions'!$D$4,'Utility Functions'!$D$5,'Utility Functions'!$D$6)) -> 0 | D53: =$D$40*(valuePL(D12,'Utility Functions'!$E$3:$E$5,'Utility Functions'!$F$3:$F$5)) -> 0 | E53: =$E$40*(valuePL(E12,'Utility Functions'!$G$3:$G$5,'Utility Functions'!$H$3:$H$5)) -> 0 | F53: =$F$40*(valuePL(F12,'Utility Functions'!$I$3:$I$4,'Utility Functions'!$J$3:$J$5)) -> 0 | G53: =$G$40*(valueE(G12,'Utility Functions'!$L$3,'Utility Functions'!$L$4,'Utility Functions'!$L$5,'Utility Functions'!$L$6)) -> 0.0004838709677 | H53: =$H$40*(valueE(H12,'Utility Functions'!$N$3,'Utility Functions'!$N$4,'Utility Functions'!$N$5,'Utility Functions'!$N$6)) -> 0.001451612903 | I53: =$I$40*valuePL(I12,'Utility Functions'!$O$3:$O$6,'Utility Functions'!$P$3:$P$6) -> 0.01625454545 | J53: =$J$40*valuePL(J12,'Utility Functions'!$Q$3:$Q$6,'Utility Functions'!$R$3:$R$6) -> 0.01836363636 | K53: =$K$40*(valuePL(K12,'Utility Functions'!$S$3:$S$7,'Utility Functions'!$T$3:$T$7)) -> 0.01083636364 | L53: =$L$40*(valueE(L12,'Utility Functions'!$V$3,'Utility Functions'!$V$4,'Utility Functions'!$V$5,'Utility Functions'!$V$6)) -> 0.02 | M53: =$M$40*valuePL(M12,'Utility Functions'!$W$3:$W$6,'Utility Functions'!$X$3:$X$6) -> 0.01836363636 | N53: =$N$40*valueE(N12,'Utility Functions'!$Z$3,'Utility Functions'!$Z$4,'Utility Functions'!$Z$5,'Utility Functions'!$Z$6) -> 0.01125 | O53: =$O$40*valuePL(O12,'Utility Functions'!$AA$3:$AA$5,'Utility Functions'!$AB$3:$AB$5) -> 0.0225 | P53: =$P$40*valuePL(P12,'Utility Functions'!$AC$3:$AC$7,'Utility Functions'!$AD$3:$AD$7) -> 0.01 | Q53: =$Q$40*valuePL(Q12,'Utility Functions'!$AE$3:$AE$6,'Utility Functions'!$AF$3:$AF$6) -> 0 | R53: =$R$40*valuePL(R12,'Utility Functions'!$AG$3:$AG$6,'Utility Functions'!$AH$3:$AH$6) -> 0.05 | S53: =$S$40*valuePL(S12,'Utility Functions'!$AI$3:$AI$6,'Utility Functions'!$AJ$3:$AJ$6) -> 0.05 | T53: =$T$40*valuePL(T12,'Utility Functions'!$AK$3:$AK$8,'Utility Functions'!$AL$3:$AL$8) -> 0.012 | U53: =$U$40*valuePL(U12,'Utility Functions'!$AM$3:$AM$5,'Utility Functions'!$AN$3:$AN$5) -> 0.03 | V53: =$V$40*valuePL(V12,'Utility Functions'!$AO$3:$AO$5,'Utility Functions'!$AP$3:$AP$5) -> 0.05 | W53: =$W$40*valuePL(W12,'Utility Functions'!$AQ$3:$AQ$6,'Utility Functions'!$AR$3:$AR$6) -> 0.008 | X53: =$X$40*valuePL(X12,'Utility Functions'!$AS$3:$AS$6,'Utility Functions'!$AT$3:$AT$6) -> 0.04 | Y53: =$Y$40*valuePL(Y12,'Utility Functions'!$AU$3:$AU$6,'Utility Functions'!$AV$3:$AV$6) -> 0.05 | Z53: =$Z$40*valuePL(Z12,'Utility Functions'!$AW$3:$AW$5,'Utility Functions'!$AX$3:$AX$5) -> 0.025 | AA53: =$AA$40*valuePL(AA12,'Utility Functions'!$AY$3:$AY$6,'Utility Functions'!$AZ$3:$AZ$6) -> 0.036 | AB53: =$AB$40*valuePL(AB12,'Utility Functions'!$BA$3:$BA$5,'Utility Functions'!$BB$3:$BB$5) -> 0 | AC53: =$AC$40*valuePL(AC12,'Utility Functions'!$BC$3:$BC$5,'Utility Functions'!$BD$3:$BD$5) -> 0.0075 | AD53: 0.4880036657 | AE53: 0.4880036657
A54: 12 | B54: =$B$40*(valueE(B13,'Utility Functions'!$B$3,'Utility Functions'!$B$4,'Utility Functions'!$B$5,'Utility Functions'!$B$6)) -> 0.009890413604 | C54: =$C$40*(valueE(C13,'Utility Functions'!$D$3,'Utility Functions'!$D$4,'Utility Functions'!$D$5,'Utility Functions'!$D$6)) -> 0.02369699371 | D54: =$D$40*(valuePL(D13,'Utility Functions'!$E$3:$E$5,'Utility Functions'!$F$3:$F$5)) -> 0.03 | E54: =$E$40*(valuePL(E13,'Utility Functions'!$G$3:$G$5,'Utility Functions'!$H$3:$H$5)) -> 0.015 | F54: =$F$40*(valuePL(F13,'Utility Functions'!$I$3:$I$4,'Utility Functions'!$J$3:$J$5)) -> 0 | G54: =$G$40*(valueE(G13,'Utility Functions'!$L$3,'Utility Functions'!$L$4,'Utility Functions'!$L$5,'Utility Functions'!$L$6)) -> 0 | H54: =$H$40*(valueE(H13,'Utility Functions'!$N$3,'Utility Functions'!$N$4,'Utility Functions'!$N$5,'Utility Functions'!$N$6)) -> 0 | I54: =$I$40*valuePL(I13,'Utility Functions'!$O$3:$O$6,'Utility Functions'!$P$3:$P$6) -> 0 | J54: =$J$40*valuePL(J13,'Utility Functions'!$Q$3:$Q$6,'Utility Functions'!$R$3:$R$6) -> 0 | K54: =$K$40*(valuePL(K13,'Utility Functions'!$S$3:$S$7,'Utility Functions'!$T$3:$T$7)) -> 0 | L54: =$L$40*(valueE(L13,'Utility Functions'!$V$3,'Utility Functions'!$V$4,'Utility Functions'!$V$5,'Utility Functions'!$V$6)) -> 0 | M54: =$M$40*valuePL(M13,'Utility Functions'!$W$3:$W$6,'Utility Functions'!$X$3:$X$6) -> 0 | N54: =$N$40*valueE(N13,'Utility Functions'!$Z$3,'Utility Functions'!$Z$4,'Utility Functions'!$Z$5,'Utility Functions'!$Z$6) -> 0 | O54: =$O$40*valuePL(O13,'Utility Functions'!$AA$3:$AA$5,'Utility Functions'!$AB$3:$AB$5) -> 0 | P54: =$P$40*valuePL(P13,'Utility Functions'!$AC$3:$AC$7,'Utility Functions'!$AD$3:$AD$7) -> 0 | Q54: =$Q$40*valuePL(Q13,'Utility Functions'!$AE$3:$AE$6,'Utility Functions'!$AF$3:$AF$6) -> 0.004 | R54: =$R$40*valuePL(R13,'Utility Functions'!$AG$3:$AG$6,'Utility Functions'!$AH$3:$AH$6) -> 0.05 | S54: =$S$40*valuePL(S13,'Utility Functions'!$AI$3:$AI$6,'Utility Functions'!$AJ$3:$AJ$6) -> 0.05 | T54: =$T$40*valuePL(T13,'Utility Functions'!$AK$3:$AK$8,'Utility Functions'!$AL$3:$AL$8) -> 0.018 | U54: =$U$40*valuePL(U13,'Utility Functions'!$AM$3:$AM$5,'Utility Functions'!$AN$3:$AN$5) -> 0 | V54: =$V$40*valuePL(V13,'Utility Functions'!$AO$3:$AO$5,'Utility Functions'!$AP$3:$AP$5) -> 0.025 | W54: =$W$40*valuePL(W13,'Utility Functions'!$AQ$3:$AQ$6,'Utility Functions'!$AR$3:$AR$6) -> 0.008 | X54: =$X$40*valuePL(X13,'Utility Functions'!$AS$3:$AS$6,'Utility Functions'!$AT$3:$AT$6) -> 0.04 | Y54: =$Y$40*valuePL(Y13,'Utility Functions'!$AU$3:$AU$6,'Utility Functions'!$AV$3:$AV$6) -> 0.01 | Z54: =$Z$40*valuePL(Z13,'Utility Functions'!$AW$3:$AW$5,'Utility Functions'!$AX$3:$AX$5) -> 0.05 | AA54: =$AA$40*valuePL(AA13,'Utility Functions'!$AY$3:$AY$6,'Utility Functions'!$AZ$3:$AZ$6) -> 0.008 | AB54: =$AB$40*valuePL(AB13,'Utility Functions'!$BA$3:$BA$5,'Utility Functions'!$BB$3:$BB$5) -> 0.04 | AC54: =$AC$40*valuePL(AC13,'Utility Functions'!$BC$3:$BC$5,'Utility Functions'!$BD$3:$BD$5) -> 0 | AD54: 0.3815874073 | AE54: 0.3802011746
A55: 13 | B55: =$B$40*(valueE(B14,'Utility Functions'!$B$3,'Utility Functions'!$B$4,'Utility Functions'!$B$5,'Utility Functions'!$B$6)) -> 0 | C55: =$C$40*(valueE(C14,'Utility Functions'!$D$3,'Utility Functions'!$D$4,'Utility Functions'!$D$5,'Utility Functions'!$D$6)) -> 0 | D55: =$D$40*(valuePL(D14,'Utility Functions'!$E$3:$E$5,'Utility Functions'!$F$3:$F$5)) -> 0 | E55: =$E$40*(valuePL(E14,'Utility Functions'!$G$3:$G$5,'Utility Functions'!$H$3:$H$5)) -> 0 | F55: =$F$40*(valuePL(F14,'Utility Functions'!$I$3:$I$4,'Utility Functions'!$J$3:$J$5)) -> 0 | G55: =$G$40*(valueE(G14,'Utility Functions'!$L$3,'Utility Functions'!$L$4,'Utility Functions'!$L$5,'Utility Functions'!$L$6)) -> 0 | H55: =$H$40*(valueE(H14,'Utility Functions'!$N$3,'Utility Functions'!$N$4,'Utility Functions'!$N$5,'Utility Functions'!$N$6)) -> 0.0001707779886 | I55: =$I$40*valuePL(I14,'Utility Functions'!$O$3:$O$6,'Utility Functions'!$P$3:$P$6) -> 0.009872727273 | J55: =$J$40*valuePL(J14,'Utility Functions'!$Q$3:$Q$6,'Utility Functions'!$R$3:$R$6) -> 0.0008 | K55: =$K$40*(valuePL(K14,'Utility Functions'!$S$3:$S$7,'Utility Functions'!$T$3:$T$7)) -> 0.006581818182 | L55: =$L$40*(valueE(L14,'Utility Functions'!$V$3,'Utility Functions'!$V$4,'Utility Functions'!$V$5,'Utility Functions'!$V$6)) -> 0.02 | M55: =$M$40*valuePL(M14,'Utility Functions'!$W$3:$W$6,'Utility Functions'!$X$3:$X$6) -> 0.0008 | N55: =$N$40*valueE(N14,'Utility Functions'!$Z$3,'Utility Functions'!$Z$4,'Utility Functions'!$Z$5,'Utility Functions'!$Z$6) -> 0.02625 | O55: =$O$40*valuePL(O14,'Utility Functions'!$AA$3:$AA$5,'Utility Functions'!$AB$3:$AB$5) -> 0.0225 | P55: =$P$40*valuePL(P14,'Utility Functions'!$AC$3:$AC$7,'Utility Functions'!$AD$3:$AD$7) -> 0.01 | Q55: =$Q$40*valuePL(Q14,'Utility Functions'!$AE$3:$AE$6,'Utility Functions'!$AF$3:$AF$6) -> 0 | R55: =$R$40*valuePL(R14,'Utility Functions'!$AG$3:$AG$6,'Utility Functions'!$AH$3:$AH$6) -> 0.05 | S55: =$S$40*valuePL(S14,'Utility Functions'!$AI$3:$AI$6,'Utility Functions'!$AJ$3:$AJ$6) -> 0.05 | T55: =$T$40*valuePL(T14,'Utility Functions'!$AK$3:$AK$8,'Utility Functions'!$AL$3:$AL$8) -> 0 | U55: =$U$40*valuePL(U14,'Utility Functions'!$AM$3:$AM$5,'Utility Functions'!$AN$3:$AN$5) -> 0 | V55: =$V$40*valuePL(V14,'Utility Functions'!$AO$3:$AO$5,'Utility Functions'!$AP$3:$AP$5) -> 0.025 | W55: =$W$40*valuePL(W14,'Utility Functions'!$AQ$3:$AQ$6,'Utility Functions'!$AR$3:$AR$6) -> 0 | X55: =$X$40*valuePL(X14,'Utility Functions'!$AS$3:$AS$6,'Utility Functions'!$AT$3:$AT$6) -> 0.008 | Y55: =$Y$40*valuePL(Y14,'Utility Functions'!$AU$3:$AU$6,'Utility Functions'!$AV$3:$AV$6) -> 0 | Z55: =$Z$40*valuePL(Z14,'Utility Functions'!$AW$3:$AW$5,'Utility Functions'!$AX$3:$AX$5) -> 0.05 | AA55: =$AA$40*valuePL(AA14,'Utility Functions'!$AY$3:$AY$6,'Utility Functions'!$AZ$3:$AZ$6) -> 0.008 | AB55: =$AB$40*valuePL(AB14,'Utility Functions'!$BA$3:$BA$5,'Utility Functions'!$BB$3:$BB$5) -> 0.01 | AC55: =$AC$40*valuePL(AC14,'Utility Functions'!$BC$3:$BC$5,'Utility Functions'!$BD$3:$BD$5) -> 0.0075 | AD55: 0.3054753234 | AE55: 0.3054753234
A56: 14 | B56: =$B$40*(valueE(B15,'Utility Functions'!$B$3,'Utility Functions'!$B$4,'Utility Functions'!$B$5,'Utility Functions'!$B$6)) -> 0.02096420541 | C56: =$C$40*(valueE(C15,'Utility Functions'!$D$3,'Utility Functions'!$D$4,'Utility Functions'!$D$5,'Utility Functions'!$D$6)) -> 0.02369699371 | D56: =$D$40*(valuePL(D15,'Utility Functions'!$E$3:$E$5,'Utility Functions'!$F$3:$F$5)) -> 0.015 | E56: =$E$40*(valuePL(E15,'Utility Functions'!$G$3:$G$5,'Utility Functions'!$H$3:$H$5)) -> 0.015 | F56: =$F$40*(valuePL(F15,'Utility Functions'!$I$3:$I$4,'Utility Functions'!$J$3:$J$5)) -> 0 | G56: =$G$40*(valueE(G15,'Utility Functions'!$L$3,'Utility Functions'!$L$4,'Utility Functions'!$L$5,'Utility Functions'!$L$6)) -> 0 | H56: =$H$40*(valueE(H15,'Utility Functions'!$N$3,'Utility Functions'!$N$4,'Utility Functions'!$N$5,'Utility Functions'!$N$6)) -> 0 | I56: =$I$40*valuePL(I15,'Utility Functions'!$O$3:$O$6,'Utility Functions'!$P$3:$P$6) -> 0 | J56: =$J$40*valuePL(J15,'Utility Functions'!$Q$3:$Q$6,'Utility Functions'!$R$3:$R$6) -> 0 | K56: =$K$40*(valuePL(K15,'Utility Functions'!$S$3:$S$7,'Utility Functions'!$T$3:$T$7)) -> 0 | L56: =$L$40*(valueE(L15,'Utility Functions'!$V$3,'Utility Functions'!$V$4,'Utility Functions'!$V$5,'Utility Functions'!$V$6)) -> 0 | M56: =$M$40*valuePL(M15,'Utility Functions'!$W$3:$W$6,'Utility Functions'!$X$3:$X$6) -> 0 | N56: =$N$40*valueE(N15,'Utility Functions'!$Z$3,'Utility Functions'!$Z$4,'Utility Functions'!$Z$5,'Utility Functions'!$Z$6) -> 0.0225 | O56: =$O$40*valuePL(O15,'Utility Functions'!$AA$3:$AA$5,'Utility Functions'!$AB$3:$AB$5) -> 0.0225 | P56: =$P$40*valuePL(P15,'Utility Functions'!$AC$3:$AC$7,'Utility Functions'!$AD$3:$AD$7) -> 0.01 | Q56: =$Q$40*valuePL(Q15,'Utility Functions'!$AE$3:$AE$6,'Utility Functions'!$AF$3:$AF$6) -> 0 | R56: =$R$40*valuePL(R15,'Utility Functions'!$AG$3:$AG$6,'Utility Functions'!$AH$3:$AH$6) -> 0.05 | S56: =$S$40*valuePL(S15,'Utility Functions'!$AI$3:$AI$6,'Utility Functions'!$AJ$3:$AJ$6) -> 0.05 | T56: =$T$40*valuePL(T15,'Utility Functions'!$AK$3:$AK$8,'Utility Functions'!$AL$3:$AL$8) -> 0 | U56: =$U$40*valuePL(U15,'Utility Functions'!$AM$3:$AM$5,'Utility Functions'!$AN$3:$AN$5) -> 0 | V56: =$V$40*valuePL(V15,'Utility Functions'!$AO$3:$AO$5,'Utility Functions'!$AP$3:$AP$5) -> 0.025 | W56: =$W$40*valuePL(W15,'Utility Functions'!$AQ$3:$AQ$6,'Utility Functions'!$AR$3:$AR$6) -> 0.008 | X56: =$X$40*valuePL(X15,'Utility Functions'!$AS$3:$AS$6,'Utility Functions'!$AT$3:$AT$6) -> 0.04 | Y56: =$Y$40*valuePL(Y15,'Utility Functions'!$AU$3:$AU$6,'Utility Functions'!$AV$3:$AV$6) -> 0.05 | Z56: =$Z$40*valuePL(Z15,'Utility Functions'!$AW$3:$AW$5,'Utility Functions'!$AX$3:$AX$5) -> 0.025 | AA56: =$AA$40*valuePL(AA15,'Utility Functions'!$AY$3:$AY$6,'Utility Functions'!$AZ$3:$AZ$6) -> 0.036 | AB56: =$AB$40*valuePL(AB15,'Utility Functions'!$BA$3:$BA$5,'Utility Functions'!$BB$3:$BB$5) -> 0.01 | AC56: =$AC$40*valuePL(AC15,'Utility Functions'!$BC$3:$BC$5,'Utility Functions'!$BD$3:$BD$5) -> 0.0075 | AD56: 0.4311611991 | AE56: 0.4291608786
A57: 15 | B57: =$B$40*(valueE(B16,'Utility Functions'!$B$3,'Utility Functions'!$B$4,'Utility Functions'!$B$5,'Utility Functions'!$B$6)) -> 0.02969848993 | C57: =$C$40*(valueE(C16,'Utility Functions'!$D$3,'Utility Functions'!$D$4,'Utility Functions'!$D$5,'Utility Functions'!$D$6)) -> 0.02140582792 | D57: =$D$40*(valuePL(D16,'Utility Functions'!$E$3:$E$5,'Utility Functions'!$F$3:$F$5)) -> 0.03 | E57: =$E$40*(valuePL(E16,'Utility Functions'!$G$3:$G$5,'Utility Functions'!$H$3:$H$5)) -> 0.015 | F57: =$F$40*(valuePL(F16,'Utility Functions'!$I$3:$I$4,'Utility Functions'!$J$3:$J$5)) -> 0.04 | G57: =$G$40*(valueE(G16,'Utility Functions'!$L$3,'Utility Functions'!$L$4,'Utility Functions'!$L$5,'Utility Functions'!$L$6)) -> 0 | H57: =$H$40*(valueE(H16,'Utility Functions'!$N$3,'Utility Functions'!$N$4,'Utility Functions'!$N$5,'Utility Functions'!$N$6)) -> 0 | I57: =$I$40*valuePL(I16,'Utility Functions'!$O$3:$O$6,'Utility Functions'!$P$3:$P$6) -> 0.00276 | J57: =$J$40*valuePL(J16,'Utility Functions'!$Q$3:$Q$6,'Utility Functions'!$R$3:$R$6) -> 0.0012 | K57: =$K$40*(valuePL(K16,'Utility Functions'!$S$3:$S$7,'Utility Functions'!$T$3:$T$7)) -> 0.0012 | L57: =$L$40*(valueE(L16,'Utility Functions'!$V$3,'Utility Functions'!$V$4,'Utility Functions'!$V$5,'Utility Functions'!$V$6)) -> 0.02 | M57: =$M$40*valuePL(M16,'Utility Functions'!$W$3:$W$6,'Utility Functions'!$X$3:$X$6) -> 0.0012 | N57: =$N$40*valueE(N16,'Utility Functions'!$Z$3,'Utility Functions'!$Z$4,'Utility Functions'!$Z$5,'Utility Functions'!$Z$6) -> 0.00375 | O57: =$O$40*valuePL(O16,'Utility Functions'!$AA$3:$AA$5,'Utility Functions'!$AB$3:$AB$5) -> 0.09 | P57: =$P$40*valuePL(P16,'Utility Functions'!$AC$3:$AC$7,'Utility Functions'!$AD$3:$AD$7) -> 0.02 | Q57: =$Q$40*valuePL(Q16,'Utility Functions'!$AE$3:$AE$6,'Utility Functions'!$AF$3:$AF$6) -> 0 | R57: =$R$40*valuePL(R16,'Utility Functions'!$AG$3:$AG$6,'Utility Functions'!$AH$3:$AH$6) -> 0.04 | S57: =$S$40*valuePL(S16,'Utility Functions'!$AI$3:$AI$6,'Utility Functions'!$AJ$3:$AJ$6) -> 0.05 | T57: =$T$40*valuePL(T16,'Utility Functions'!$AK$3:$AK$8,'Utility Functions'!$AL$3:$AL$8) -> 0.018 | U57: =$U$40*valuePL(U16,'Utility Functions'!$AM$3:$AM$5,'Utility Functions'!$AN$3:$AN$5) -> 0.03 | V57: =$V$40*valuePL(V16,'Utility Functions'!$AO$3:$AO$5,'Utility Functions'!$AP$3:$AP$5) -> 0 | W57: =$W$40*valuePL(W16,'Utility Functions'!$AQ$3:$AQ$6,'Utility Functions'!$AR$3:$AR$6) -> 0.04 | X57: =$X$40*valuePL(X16,'Utility Functions'!$AS$3:$AS$6,'Utility Functions'!$AT$3:$AT$6) -> 0.008 | Y57: =$Y$40*valuePL(Y16,'Utility Functions'!$AU$3:$AU$6,'Utility Functions'!$AV$3:$AV$6) -> 0.01 | Z57: =$Z$40*valuePL(Z16,'Utility Functions'!$AW$3:$AW$5,'Utility Functions'!$AX$3:$AX$5) -> 0.05 | AA57: =$AA$40*valuePL(AA16,'Utility Functions'!$AY$3:$AY$6,'Utility Functions'!$AZ$3:$AZ$6) -> 0.04 | AB57: =$AB$40*valuePL(AB16,'Utility Functions'!$BA$3:$BA$5,'Utility Functions'!$BB$3:$BB$5) -> 0.04 | AC57: =$AC$40*valuePL(AC16,'Utility Functions'!$BC$3:$BC$5,'Utility Functions'!$BD$3:$BD$5) -> 0.0075 | AD57: 0.6097143178 | AE57: 0.6093671218
A58: 16 | B58: =$B$40*(valueE(B17,'Utility Functions'!$B$3,'Utility Functions'!$B$4,'Utility Functions'!$B$5,'Utility Functions'!$B$6)) -> 0 | C58: =$C$40*(valueE(C17,'Utility Functions'!$D$3,'Utility Functions'!$D$4,'Utility Functions'!$D$5,'Utility Functions'!$D$6)) -> 0 | D58: =$D$40*(valuePL(D17,'Utility Functions'!$E$3:$E$5,'Utility Functions'!$F$3:$F$5)) -> 0 | E58: =$E$40*(valuePL(E17,'Utility Functions'!$G$3:$G$5,'Utility Functions'!$H$3:$H$5)) -> 0 | F58: =$F$40*(valuePL(F17,'Utility Functions'!$I$3:$I$4,'Utility Functions'!$J$3:$J$5)) -> 0 | G58: =$G$40*(valueE(G17,'Utility Functions'!$L$3,'Utility Functions'!$L$4,'Utility Functions'!$L$5,'Utility Functions'!$L$6)) -> 0 | H58: =$H$40*(valueE(H17,'Utility Functions'!$N$3,'Utility Functions'!$N$4,'Utility Functions'!$N$5,'Utility Functions'!$N$6)) -> 0 | I58: =$I$40*valuePL(I17,'Utility Functions'!$O$3:$O$6,'Utility Functions'!$P$3:$P$6) -> 0.03 | J58: =$J$40*valuePL(J17,'Utility Functions'!$Q$3:$Q$6,'Utility Functions'!$R$3:$R$6) -> 0.01836363636 | K58: =$K$40*(valuePL(K17,'Utility Functions'!$S$3:$S$7,'Utility Functions'!$T$3:$T$7)) -> 0.02 | L58: =$L$40*(valueE(L17,'Utility Functions'!$V$3,'Utility Functions'!$V$4,'Utility Functions'!$V$5,'Utility Functions'!$V$6)) -> 0.01666666667 | M58: =$M$40*valuePL(M17,'Utility Functions'!$W$3:$W$6,'Utility Functions'!$X$3:$X$6) -> 0.01836363636 | N58: =$N$40*valueE(N17,'Utility Functions'!$Z$3,'Utility Functions'!$Z$4,'Utility Functions'!$Z$5,'Utility Functions'!$Z$6) -> 0 | O58: =$O$40*valuePL(O17,'Utility Functions'!$AA$3:$AA$5,'Utility Functions'!$AB$3:$AB$5) -> 0 | P58: =$P$40*valuePL(P17,'Utility Functions'!$AC$3:$AC$7,'Utility Functions'!$AD$3:$AD$7) -> 0.03 | Q58: =$Q$40*valuePL(Q17,'Utility Functions'!$AE$3:$AE$6,'Utility Functions'!$AF$3:$AF$6) -> 0 | R58: =$R$40*valuePL(R17,'Utility Functions'!$AG$3:$AG$6,'Utility Functions'!$AH$3:$AH$6) -> 0.05 | S58: =$S$40*valuePL(S17,'Utility Functions'!$AI$3:$AI$6,'Utility Functions'!$AJ$3:$AJ$6) -> 0.05 | T58: =$T$40*valuePL(T17,'Utility Functions'!$AK$3:$AK$8,'Utility Functions'!$AL$3:$AL$8) -> 0.03 | U58: =$U$40*valuePL(U17,'Utility Functions'!$AM$3:$AM$5,'Utility Functions'!$AN$3:$AN$5) -> 0 | V58: =$V$40*valuePL(V17,'Utility Functions'!$AO$3:$AO$5,'Utility Functions'!$AP$3:$AP$5) -> 0.05 | W58: =$W$40*valuePL(W17,'Utility Functions'!$AQ$3:$AQ$6,'Utility Functions'!$AR$3:$AR$6) -> 0.03 | X58: =$X$40*valuePL(X17,'Utility Functions'!$AS$3:$AS$6,'Utility Functions'!$AT$3:$AT$6) -> 0.03 | Y58: =$Y$40*valuePL(Y17,'Utility Functions'!$AU$3:$AU$6,'Utility Functions'!$AV$3:$AV$6) -> 0.01 | Z58: =$Z$40*valuePL(Z17,'Utility Functions'!$AW$3:$AW$5,'Utility Functions'!$AX$3:$AX$5) -> 0.05 | AA58: =$AA$40*valuePL(AA17,'Utility Functions'!$AY$3:$AY$6,'Utility Functions'!$AZ$3:$AZ$6) -> 0.04 | AB58: =$AB$40*valuePL(AB17,'Utility Functions'!$BA$3:$BA$5,'Utility Functions'!$BB$3:$BB$5) -> 0.04 | AC58: =$AC$40*valuePL(AC17,'Utility Functions'!$BC$3:$BC$5,'Utility Functions'!$BD$3:$BD$5) -> 0.03 | AD58: 0.5433939394 | AE58: 0.5433939394
A59: 17 | B59: =$B$40*(valueE(B18,'Utility Functions'!$B$3,'Utility Functions'!$B$4,'Utility Functions'!$B$5,'Utility Functions'!$B$6)) -> 0.009890413604 | C59: =$C$40*(valueE(C18,'Utility Functions'!$D$3,'Utility Functions'!$D$4,'Utility Functions'!$D$5,'Utility Functions'!$D$6)) -> 0.02369699371 | D59: =$D$40*(valuePL(D18,'Utility Functions'!$E$3:$E$5,'Utility Functions'!$F$3:$F$5)) -> 0.03 | E59: =$E$40*(valuePL(E18,'Utility Functions'!$G$3:$G$5,'Utility Functions'!$H$3:$H$5)) -> 0.015 | F59: =$F$40*(valuePL(F18,'Utility Functions'!$I$3:$I$4,'Utility Functions'!$J$3:$J$5)) -> 0.04 | G59: =$G$40*(valueE(G18,'Utility Functions'!$L$3,'Utility Functions'!$L$4,'Utility Functions'!$L$5,'Utility Functions'!$L$6)) -> 0.004677419355 | H59: =$H$40*(valueE(H18,'Utility Functions'!$N$3,'Utility Functions'!$N$4,'Utility Functions'!$N$5,'Utility Functions'!$N$6)) -> 0.004127134725 | I59: =$I$40*valuePL(I18,'Utility Functions'!$O$3:$O$6,'Utility Functions'!$P$3:$P$6) -> 0 | J59: =$J$40*valuePL(J18,'Utility Functions'!$Q$3:$Q$6,'Utility Functions'!$R$3:$R$6) -> 0 | K59: =$K$40*(valuePL(K18,'Utility Functions'!$S$3:$S$7,'Utility Functions'!$T$3:$T$7)) -> 0 | L59: =$L$40*(valueE(L18,'Utility Functions'!$V$3,'Utility Functions'!$V$4,'Utility Functions'!$V$5,'Utility Functions'!$V$6)) -> 0.02 | M59: =$M$40*valuePL(M18,'Utility Functions'!$W$3:$W$6,'Utility Functions'!$X$3:$X$6) -> 0.0012 | N59: =$N$40*valueE(N18,'Utility Functions'!$Z$3,'Utility Functions'!$Z$4,'Utility Functions'!$Z$5,'Utility Functions'!$Z$6) -> 0 | O59: =$O$40*valuePL(O18,'Utility Functions'!$AA$3:$AA$5,'Utility Functions'!$AB$3:$AB$5) -> 0 | P59: =$P$40*valuePL(P18,'Utility Functions'!$AC$3:$AC$7,'Utility Functions'!$AD$3:$AD$7) -> 0 | Q59: =$Q$40*valuePL(Q18,'Utility Functions'!$AE$3:$AE$6,'Utility Functions'!$AF$3:$AF$6) -> 0 | R59: =$R$40*valuePL(R18,'Utility Functions'!$AG$3:$AG$6,'Utility Functions'!$AH$3:$AH$6) -> 0.05 | S59: =$S$40*valuePL(S18,'Utility Functions'!$AI$3:$AI$6,'Utility Functions'!$AJ$3:$AJ$6) -> 0.033 | T59: =$T$40*valuePL(T18,'Utility Functions'!$AK$3:$AK$8,'Utility Functions'!$AL$3:$AL$8) -> 0 | U59: =$U$40*valuePL(U18,'Utility Functions'!$AM$3:$AM$5,'Utility Functions'!$AN$3:$AN$5) -> 0 | V59: =$V$40*valuePL(V18,'Utility Functions'!$AO$3:$AO$5,'Utility Functions'!$AP$3:$AP$5) -> 0.05 | W59: =$W$40*valuePL(W18,'Utility Functions'!$AQ$3:$AQ$6,'Utility Functions'!$AR$3:$AR$6) -> 0.04 | X59: =$X$40*valuePL(X18,'Utility Functions'!$AS$3:$AS$6,'Utility Functions'!$AT$3:$AT$6) -> 0.008 | Y59: =$Y$40*valuePL(Y18,'Utility Functions'!$AU$3:$AU$6,'Utility Functions'!$AV$3:$AV$6) -> 0 | Z59: =$Z$40*valuePL(Z18,'Utility Functions'!$AW$3:$AW$5,'Utility Functions'!$AX$3:$AX$5) -> 0.025 | AA59: =$AA$40*valuePL(AA18,'Utility Functions'!$AY$3:$AY$6,'Utility Functions'!$AZ$3:$AZ$6) -> 0 | AB59: =$AB$40*valuePL(AB18,'Utility Functions'!$BA$3:$BA$5,'Utility Functions'!$BB$3:$BB$5) -> 0.04 | AC59: =$AC$40*valuePL(AC18,'Utility Functions'!$BC$3:$BC$5,'Utility Functions'!$BD$3:$BD$5) -> 0.0075 | AD59: 0.4020919614 | AE59: 0.4007057287
A60: 18 | B60: =$B$40*(valueE(B19,'Utility Functions'!$B$3,'Utility Functions'!$B$4,'Utility Functions'!$B$5,'Utility Functions'!$B$6)) -> 0 | C60: =$C$40*(valueE(C19,'Utility Functions'!$D$3,'Utility Functions'!$D$4,'Utility Functions'!$D$5,'Utility Functions'!$D$6)) -> 0 | D60: =$D$40*(valuePL(D19,'Utility Functions'!$E$3:$E$5,'Utility Functions'!$F$3:$F$5)) -> 0 | E60: =$E$40*(valuePL(E19,'Utility Functions'!$G$3:$G$5,'Utility Functions'!$H$3:$H$5)) -> 0 | F60: =$F$40*(valuePL(F19,'Utility Functions'!$I$3:$I$4,'Utility Functions'!$J$3:$J$5)) -> 0 | G60: =$G$40*(valueE(G19,'Utility Functions'!$L$3,'Utility Functions'!$L$4,'Utility Functions'!$L$5,'Utility Functions'!$L$6)) -> 0 | H60: =$H$40*(valueE(H19,'Utility Functions'!$N$3,'Utility Functions'!$N$4,'Utility Functions'!$N$5,'Utility Functions'!$N$6)) -> 0.0004269449715 | I60: =$I$40*valuePL(I19,'Utility Functions'!$O$3:$O$6,'Utility Functions'!$P$3:$P$6) -> 0 | J60: =$J$40*valuePL(J19,'Utility Functions'!$Q$3:$Q$6,'Utility Functions'!$R$3:$R$6) -> 0 | K60: =$K$40*(valuePL(K19,'Utility Functions'!$S$3:$S$7,'Utility Functions'!$T$3:$T$7)) -> 0 | L60: =$L$40*(valueE(L19,'Utility Functions'!$V$3,'Utility Functions'!$V$4,'Utility Functions'!$V$5,'Utility Functions'!$V$6)) -> 0 | M60: =$M$40*valuePL(M19,'Utility Functions'!$W$3:$W$6,'Utility Functions'!$X$3:$X$6) -> 0 | N60: =$N$40*valueE(N19,'Utility Functions'!$Z$3,'Utility Functions'!$Z$4,'Utility Functions'!$Z$5,'Utility Functions'!$Z$6) -> 0.03 | O60: =$O$40*valuePL(O19,'Utility Functions'!$AA$3:$AA$5,'Utility Functions'!$AB$3:$AB$5) -> 0.0225 | P60: =$P$40*valuePL(P19,'Utility Functions'!$AC$3:$AC$7,'Utility Functions'!$AD$3:$AD$7) -> 0.01 | Q60: =$Q$40*valuePL(Q19,'Utility Functions'!$AE$3:$AE$6,'Utility Functions'!$AF$3:$AF$6) -> 0.04 | R60: =$R$40*valuePL(R19,'Utility Functions'!$AG$3:$AG$6,'Utility Functions'!$AH$3:$AH$6) -> 0.05 | S60: =$S$40*valuePL(S19,'Utility Functions'!$AI$3:$AI$6,'Utility Functions'!$AJ$3:$AJ$6) -> 0.05 | T60: =$T$40*valuePL(T19,'Utility Functions'!$AK$3:$AK$8,'Utility Functions'!$AL$3:$AL$8) -> 0.03 | U60: =$U$40*valuePL(U19,'Utility Functions'!$AM$3:$AM$5,'Utility Functions'!$AN$3:$AN$5) -> 0.0075 | V60: =$V$40*valuePL(V19,'Utility Functions'!$AO$3:$AO$5,'Utility Functions'!$AP$3:$AP$5) -> 0.05 | W60: =$W$40*valuePL(W19,'Utility Functions'!$AQ$3:$AQ$6,'Utility Functions'!$AR$3:$AR$6) -> 0.03 | X60: =$X$40*valuePL(X19,'Utility Functions'!$AS$3:$AS$6,'Utility Functions'!$AT$3:$AT$6) -> 0.008 | Y60: =$Y$40*valuePL(Y19,'Utility Functions'!$AU$3:$AU$6,'Utility Functions'!$AV$3:$AV$6) -> 0.04 | Z60: =$Z$40*valuePL(Z19,'Utility Functions'!$AW$3:$AW$5,'Utility Functions'!$AX$3:$AX$5) -> 0.025 | AA60: =$AA$40*valuePL(AA19,'Utility Functions'!$AY$3:$AY$6,'Utility Functions'!$AZ$3:$AZ$6) -> 0.036 | AB60: =$AB$40*valuePL(AB19,'Utility Functions'!$BA$3:$BA$5,'Utility Functions'!$BB$3:$BB$5) -> 0.01 | AC60: =$AC$40*valuePL(AC19,'Utility Functions'!$BC$3:$BC$5,'Utility Functions'!$BD$3:$BD$5) -> 0 | AD60: 0.439426945 | AE60: 0.439426945
A61: 19 | B61: =$B$40*(valueE(B20,'Utility Functions'!$B$3,'Utility Functions'!$B$4,'Utility Functions'!$B$5,'Utility Functions'!$B$6)) -> 0.02394314074 | C61: =$C$40*(valueE(C20,'Utility Functions'!$D$3,'Utility Functions'!$D$4,'Utility Functions'!$D$5,'Utility Functions'!$D$6)) -> 0.008051896687 | D61: =$D$40*(valuePL(D20,'Utility Functions'!$E$3:$E$5,'Utility Functions'!$F$3:$F$5)) -> 0.015 | E61: =$E$40*(valuePL(E20,'Utility Functions'!$G$3:$G$5,'Utility Functions'!$H$3:$H$5)) -> 0.03 | F61: =$F$40*(valuePL(F20,'Utility Functions'!$I$3:$I$4,'Utility Functions'!$J$3:$J$5)) -> 0 | G61: =$G$40*(valueE(G20,'Utility Functions'!$L$3,'Utility Functions'!$L$4,'Utility Functions'!$L$5,'Utility Functions'!$L$6)) -> 0 | H61: =$H$40*(valueE(H20,'Utility Functions'!$N$3,'Utility Functions'!$N$4,'Utility Functions'!$N$5,'Utility Functions'!$N$6)) -> 0 | I61: =$I$40*valuePL(I20,'Utility Functions'!$O$3:$O$6,'Utility Functions'!$P$3:$P$6) -> 0 | J61: =$J$40*valuePL(J20,'Utility Functions'!$Q$3:$Q$6,'Utility Functions'!$R$3:$R$6) -> 0 | K61: =$K$40*(valuePL(K20,'Utility Functions'!$S$3:$S$7,'Utility Functions'!$T$3:$T$7)) -> 0 | L61: =$L$40*(valueE(L20,'Utility Functions'!$V$3,'Utility Functions'!$V$4,'Utility Functions'!$V$5,'Utility Functions'!$V$6)) -> 0 | M61: =$M$40*valuePL(M20,'Utility Functions'!$W$3:$W$6,'Utility Functions'!$X$3:$X$6) -> 0 | N61: =$N$40*valueE(N20,'Utility Functions'!$Z$3,'Utility Functions'!$Z$4,'Utility Functions'!$Z$5,'Utility Functions'!$Z$6) -> 0.03 | O61: =$O$40*valuePL(O20,'Utility Functions'!$AA$3:$AA$5,'Utility Functions'!$AB$3:$AB$5) -> 0.09 | P61: =$P$40*valuePL(P20,'Utility Functions'!$AC$3:$AC$7,'Utility Functions'!$AD$3:$AD$7) -> 0 | Q61: =$Q$40*valuePL(Q20,'Utility Functions'!$AE$3:$AE$6,'Utility Functions'!$AF$3:$AF$6) -> 0 | R61: =$R$40*valuePL(R20,'Utility Functions'!$AG$3:$AG$6,'Utility Functions'!$AH$3:$AH$6) -> 0.04 | S61: =$S$40*valuePL(S20,'Utility Functions'!$AI$3:$AI$6,'Utility Functions'!$AJ$3:$AJ$6) -> 0.05 | T61: =$T$40*valuePL(T20,'Utility Functions'!$AK$3:$AK$8,'Utility Functions'!$AL$3:$AL$8) -> 0 | U61: =$U$40*valuePL(U20,'Utility Functions'!$AM$3:$AM$5,'Utility Functions'!$AN$3:$AN$5) -> 0 | V61: =$V$40*valuePL(V20,'Utility Functions'!$AO$3:$AO$5,'Utility Functions'!$AP$3:$AP$5) -> 0.025 | W61: =$W$40*valuePL(W20,'Utility Functions'!$AQ$3:$AQ$6,'Utility Functions'!$AR$3:$AR$6) -> 0.008 | X61: =$X$40*valuePL(X20,'Utility Functions'!$AS$3:$AS$6,'Utility Functions'!$AT$3:$AT$6) -> 0.04 | Y61: =$Y$40*valuePL(Y20,'Utility Functions'!$AU$3:$AU$6,'Utility Functions'!$AV$3:$AV$6) -> 0.04 | Z61: =$Z$40*valuePL(Z20,'Utility Functions'!$AW$3:$AW$5,'Utility Functions'!$AX$3:$AX$5) -> 0 | AA61: =$AA$40*valuePL(AA20,'Utility Functions'!$AY$3:$AY$6,'Utility Functions'!$AZ$3:$AZ$6) -> 0.008 | AB61: =$AB$40*valuePL(AB20,'Utility Functions'!$BA$3:$BA$5,'Utility Functions'!$BB$3:$BB$5) -> 0 | AC61: =$AC$40*valuePL(AC20,'Utility Functions'!$BC$3:$BC$5,'Utility Functions'!$BD$3:$BD$5) -> 0.0075 | AD61: 0.4154950374 | AE61: 0.4136442949
A62: 20 | B62: =$B$40*(valueE(B21,'Utility Functions'!$B$3,'Utility Functions'!$B$4,'Utility Functions'!$B$5,'Utility Functions'!$B$6)) -> 0.02504107129 | C62: =$C$40*(valueE(C21,'Utility Functions'!$D$3,'Utility Functions'!$D$4,'Utility Functions'!$D$5,'Utility Functions'!$D$6)) -> 0.02369699371 | D62: =$D$40*(valuePL(D21,'Utility Functions'!$E$3:$E$5,'Utility Functions'!$F$3:$F$5)) -> 0.015 | E62: =$E$40*(valuePL(E21,'Utility Functions'!$G$3:$G$5,'Utility Functions'!$H$3:$H$5)) -> 0.03 | F62: =$F$40*(valuePL(F21,'Utility Functions'!$I$3:$I$4,'Utility Functions'!$J$3:$J$5)) -> 0 | G62: =$G$40*(valueE(G21,'Utility Functions'!$L$3,'Utility Functions'!$L$4,'Utility Functions'!$L$5,'Utility Functions'!$L$6)) -> 0 | H62: =$H$40*(valueE(H21,'Utility Functions'!$N$3,'Utility Functions'!$N$4,'Utility Functions'!$N$5,'Utility Functions'!$N$6)) -> 0.006190702087 | I62: =$I$40*valuePL(I21,'Utility Functions'!$O$3:$O$6,'Utility Functions'!$P$3:$P$6) -> 0.02803636364 | J62: =$J$40*valuePL(J21,'Utility Functions'!$Q$3:$Q$6,'Utility Functions'!$R$3:$R$6) -> 0.01018181818 | K62: =$K$40*(valuePL(K21,'Utility Functions'!$S$3:$S$7,'Utility Functions'!$T$3:$T$7)) -> 0.01869090909 | L62: =$L$40*(valueE(L21,'Utility Functions'!$V$3,'Utility Functions'!$V$4,'Utility Functions'!$V$5,'Utility Functions'!$V$6)) -> 0.01333333333 | M62: =$M$40*valuePL(M21,'Utility Functions'!$W$3:$W$6,'Utility Functions'!$X$3:$X$6) -> 0.01018181818 | N62: =$N$40*valueE(N21,'Utility Functions'!$Z$3,'Utility Functions'!$Z$4,'Utility Functions'!$Z$5,'Utility Functions'!$Z$6) -> 0.03 | O62: =$O$40*valuePL(O21,'Utility Functions'!$AA$3:$AA$5,'Utility Functions'!$AB$3:$AB$5) -> 0.09 | P62: =$P$40*valuePL(P21,'Utility Functions'!$AC$3:$AC$7,'Utility Functions'!$AD$3:$AD$7) -> 0.01 | Q62: =$Q$40*valuePL(Q21,'Utility Functions'!$AE$3:$AE$6,'Utility Functions'!$AF$3:$AF$6) -> 0 | R62: =$R$40*valuePL(R21,'Utility Functions'!$AG$3:$AG$6,'Utility Functions'!$AH$3:$AH$6) -> 0.05 | S62: =$S$40*valuePL(S21,'Utility Functions'!$AI$3:$AI$6,'Utility Functions'!$AJ$3:$AJ$6) -> 0.05 | T62: =$T$40*valuePL(T21,'Utility Functions'!$AK$3:$AK$8,'Utility Functions'!$AL$3:$AL$8) -> 0.018 | U62: =$U$40*valuePL(U21,'Utility Functions'!$AM$3:$AM$5,'Utility Functions'!$AN$3:$AN$5) -> 0.03 | V62: =$V$40*valuePL(V21,'Utility Functions'!$AO$3:$AO$5,'Utility Functions'!$AP$3:$AP$5) -> 0.025 | W62: =$W$40*valuePL(W21,'Utility Functions'!$AQ$3:$AQ$6,'Utility Functions'!$AR$3:$AR$6) -> 0 | X62: =$X$40*valuePL(X21,'Utility Functions'!$AS$3:$AS$6,'Utility Functions'!$AT$3:$AT$6) -> 0 | Y62: =$Y$40*valuePL(Y21,'Utility Functions'!$AU$3:$AU$6,'Utility Functions'!$AV$3:$AV$6) -> 0.01 | Z62: =$Z$40*valuePL(Z21,'Utility Functions'!$AW$3:$AW$5,'Utility Functions'!$AX$3:$AX$5) -> 0.05 | AA62: =$AA$40*valuePL(AA21,'Utility Functions'!$AY$3:$AY$6,'Utility Functions'!$AZ$3:$AZ$6) -> 0.008 | AB62: =$AB$40*valuePL(AB21,'Utility Functions'!$BA$3:$BA$5,'Utility Functions'!$BB$3:$BB$5) -> 0 | AC62: =$AC$40*valuePL(AC21,'Utility Functions'!$BC$3:$BC$5,'Utility Functions'!$BD$3:$BD$5) -> 0.0075 | AD62: 0.5588530095 | AE62: 0.5571183629
A63: =A22 -> 21 | B63: =$B$40*(valueE(B22,'Utility Functions'!$B$3,'Utility Functions'!$B$4,'Utility Functions'!$B$5,'Utility Functions'!$B$6)) -> 0 | C63: =$C$40*(valueE(C22,'Utility Functions'!$D$3,'Utility Functions'!$D$4,'Utility Functions'!$D$5,'Utility Functions'!$D$6)) -> 0 | D63: =$D$40*(valuePL(D22,'Utility Functions'!$E$3:$E$5,'Utility Functions'!$F$3:$F$5)) -> 0 | E63: =$E$40*(valuePL(E22,'Utility Functions'!$G$3:$G$5,'Utility Functions'!$H$3:$H$5)) -> 0 | F63: =$F$40*(valuePL(F22,'Utility Functions'!$I$3:$I$4,'Utility Functions'!$J$3:$J$5)) -> 0 | G63: =$G$40*(valueE(G22,'Utility Functions'!$L$3,'Utility Functions'!$L$4,'Utility Functions'!$L$5,'Utility Functions'!$L$6)) -> 0 | H63: =$H$40*(valueE(H22,'Utility Functions'!$N$3,'Utility Functions'!$N$4,'Utility Functions'!$N$5,'Utility Functions'!$N$6)) -> 0 | I63: =$I$40*valuePL(I22,'Utility Functions'!$O$3:$O$6,'Utility Functions'!$P$3:$P$6) -> 0 | J63: =$J$40*valuePL(J22,'Utility Functions'!$Q$3:$Q$6,'Utility Functions'!$R$3:$R$6) -> 0 | K63: =$K$40*(valuePL(K22,'Utility Functions'!$S$3:$S$7,'Utility Functions'!$T$3:$T$7)) -> 0 | L63: =$L$40*(valueE(L22,'Utility Functions'!$V$3,'Utility Functions'!$V$4,'Utility Functions'!$V$5,'Utility Functions'!$V$6)) -> 0 | M63: =$M$40*valuePL(M22,'Utility Functions'!$W$3:$W$6,'Utility Functions'!$X$3:$X$6) -> 0 | N63: =$N$40*valueE(N22,'Utility Functions'!$Z$3,'Utility Functions'!$Z$4,'Utility Functions'!$Z$5,'Utility Functions'!$Z$6) -> 0.03 | O63: =$O$40*valuePL(O22,'Utility Functions'!$AA$3:$AA$5,'Utility Functions'!$AB$3:$AB$5) -> 0.09 | P63: =$P$40*valuePL(P22,'Utility Functions'!$AC$3:$AC$7,'Utility Functions'!$AD$3:$AD$7) -> 0 | Q63: =$Q$40*valuePL(Q22,'Utility Functions'!$AE$3:$AE$6,'Utility Functions'!$AF$3:$AF$6) -> 0.004 | R63: =$R$40*valuePL(R22,'Utility Functions'!$AG$3:$AG$6,'Utility Functions'!$AH$3:$AH$6) -> 0.05 | S63: =$S$40*valuePL(S22,'Utility Functions'!$AI$3:$AI$6,'Utility Functions'!$AJ$3:$AJ$6) -> 0.05 | T63: =$T$40*valuePL(T22,'Utility Functions'!$AK$3:$AK$8,'Utility Functions'!$AL$3:$AL$8) -> 0.03 | U63: =$U$40*valuePL(U22,'Utility Functions'!$AM$3:$AM$5,'Utility Functions'!$AN$3:$AN$5) -> 0.0075 | V63: =$V$40*valuePL(V22,'Utility Functions'!$AO$3:$AO$5,'Utility Functions'!$AP$3:$AP$5) -> 0 | W63: =$W$40*valuePL(W22,'Utility Functions'!$AQ$3:$AQ$6,'Utility Functions'!$AR$3:$AR$6) -> 0.03 | X63: =$X$40*valuePL(X22,'Utility Functions'!$AS$3:$AS$6,'Utility Functions'!$AT$3:$AT$6) -> 0.04 | Y63: =$Y$40*valuePL(Y22,'Utility Functions'!$AU$3:$AU$6,'Utility Functions'!$AV$3:$AV$6) -> 0.01 | Z63: =$Z$40*valuePL(Z22,'Utility Functions'!$AW$3:$AW$5,'Utility Functions'!$AX$3:$AX$5) -> 0 | AA63: =$AA$40*valuePL(AA22,'Utility Functions'!$AY$3:$AY$6,'Utility Functions'!$AZ$3:$AZ$6) -> 0.04 | AB63: =$AB$40*valuePL(AB22,'Utility Functions'!$BA$3:$BA$5,'Utility Functions'!$BB$3:$BB$5) -> 0.01 | AC63: =$AC$40*valuePL(AC22,'Utility Functions'!$BC$3:$BC$5,'Utility Functions'!$BD$3:$BD$5) -> 0.03 | AD63: 0.4215 | AE63: 0.4215
A64: 22 | B64: =$B$40*(valueE(B23,'Utility Functions'!$B$3,'Utility Functions'!$B$4,'Utility Functions'!$B$5,'Utility Functions'!$B$6)) -> 0 | C64: =$C$40*(valueE(C23,'Utility Functions'!$D$3,'Utility Functions'!$D$4,'Utility Functions'!$D$5,'Utility Functions'!$D$6)) -> 0 | D64: =$D$40*(valuePL(D23,'Utility Functions'!$E$3:$E$5,'Utility Functions'!$F$3:$F$5)) -> 0 | E64: =$E$40*(valuePL(E23,'Utility Functions'!$G$3:$G$5,'Utility Functions'!$H$3:$H$5)) -> 0 | F64: =$F$40*(valuePL(F23,'Utility Functions'!$I$3:$I$4,'Utility Functions'!$J$3:$J$5)) -> 0 | G64: =$G$40*(valueE(G23,'Utility Functions'!$L$3,'Utility Functions'!$L$4,'Utility Functions'!$L$5,'Utility Functions'!$L$6)) -> 0.001290322581 | H64: =$H$40*(valueE(H23,'Utility Functions'!$N$3,'Utility Functions'!$N$4,'Utility Functions'!$N$5,'Utility Functions'!$N$6)) -> 0.0009108159393 | I64: =$I$40*valuePL(I23,'Utility Functions'!$O$3:$O$6,'Utility Functions'!$P$3:$P$6) -> 0 | J64: =$J$40*valuePL(J23,'Utility Functions'!$Q$3:$Q$6,'Utility Functions'!$R$3:$R$6) -> 0 | K64: =$K$40*(valuePL(K23,'Utility Functions'!$S$3:$S$7,'Utility Functions'!$T$3:$T$7)) -> 0 | L64: =$L$40*(valueE(L23,'Utility Functions'!$V$3,'Utility Functions'!$V$4,'Utility Functions'!$V$5,'Utility Functions'!$V$6)) -> 0 | M64: =$M$40*valuePL(M23,'Utility Functions'!$W$3:$W$6,'Utility Functions'!$X$3:$X$6) -> 0 | N64: =$N$40*valueE(N23,'Utility Functions'!$Z$3,'Utility Functions'!$Z$4,'Utility Functions'!$Z$5,'Utility Functions'!$Z$6) -> 0.00375 | O64: =$O$40*valuePL(O23,'Utility Functions'!$AA$3:$AA$5,'Utility Functions'!$AB$3:$AB$5) -> 0.09 | P64: =$P$40*valuePL(P23,'Utility Functions'!$AC$3:$AC$7,'Utility Functions'!$AD$3:$AD$7) -> 0.04 | Q64: =$Q$40*valuePL(Q23,'Utility Functions'!$AE$3:$AE$6,'Utility Functions'!$AF$3:$AF$6) -> 0.02 | R64: =$R$40*valuePL(R23,'Utility Functions'!$AG$3:$AG$6,'Utility Functions'!$AH$3:$AH$6) -> 0.04 | S64: =$S$40*valuePL(S23,'Utility Functions'!$AI$3:$AI$6,'Utility Functions'!$AJ$3:$AJ$6) -> 0.05 | T64: =$T$40*valuePL(T23,'Utility Functions'!$AK$3:$AK$8,'Utility Functions'!$AL$3:$AL$8) -> 0.03 | U64: =$U$40*valuePL(U23,'Utility Functions'!$AM$3:$AM$5,'Utility Functions'!$AN$3:$AN$5) -> 0 | V64: =$V$40*valuePL(V23,'Utility Functions'!$AO$3:$AO$5,'Utility Functions'!$AP$3:$AP$5) -> 0.025 | W64: =$W$40*valuePL(W23,'Utility Functions'!$AQ$3:$AQ$6,'Utility Functions'!$AR$3:$AR$6) -> 0.03 | X64: =$X$40*valuePL(X23,'Utility Functions'!$AS$3:$AS$6,'Utility Functions'!$AT$3:$AT$6) -> 0.008 | Y64: =$Y$40*valuePL(Y23,'Utility Functions'!$AU$3:$AU$6,'Utility Functions'!$AV$3:$AV$6) -> 0 | Z64: =$Z$40*valuePL(Z23,'Utility Functions'!$AW$3:$AW$5,'Utility Functions'!$AX$3:$AX$5) -> 0.05 | AA64: =$AA$40*valuePL(AA23,'Utility Functions'!$AY$3:$AY$6,'Utility Functions'!$AZ$3:$AZ$6) -> 0.008 | AB64: =$AB$40*valuePL(AB23,'Utility Functions'!$BA$3:$BA$5,'Utility Functions'!$BB$3:$BB$5) -> 0.04 | AC64: =$AC$40*valuePL(AC23,'Utility Functions'!$BC$3:$BC$5,'Utility Functions'!$BD$3:$BD$5) -> 0.0075 | AD64: 0.4444511385 | AE64: 0.4444511385
A65: 23 | B65: =$B$40*(valueE(B24,'Utility Functions'!$B$3,'Utility Functions'!$B$4,'Utility Functions'!$B$5,'Utility Functions'!$B$6)) -> 0.02504107129 | C65: =$C$40*(valueE(C24,'Utility Functions'!$D$3,'Utility Functions'!$D$4,'Utility Functions'!$D$5,'Utility Functions'!$D$6)) -> 0.02542345105 | D65: =$D$40*(valuePL(D24,'Utility Functions'!$E$3:$E$5,'Utility Functions'!$F$3:$F$5)) -> 0.03 | E65: =$E$40*(valuePL(E24,'Utility Functions'!$G$3:$G$5,'Utility Functions'!$H$3:$H$5)) -> 0 | F65: =$F$40*(valuePL(F24,'Utility Functions'!$I$3:$I$4,'Utility Functions'!$J$3:$J$5)) -> 0 | G65: =$G$40*(valueE(G24,'Utility Functions'!$L$3,'Utility Functions'!$L$4,'Utility Functions'!$L$5,'Utility Functions'!$L$6)) -> 0 | H65: =$H$40*(valueE(H24,'Utility Functions'!$N$3,'Utility Functions'!$N$4,'Utility Functions'!$N$5,'Utility Functions'!$N$6)) -> 0 | I65: =$I$40*valuePL(I24,'Utility Functions'!$O$3:$O$6,'Utility Functions'!$P$3:$P$6) -> 0 | J65: =$J$40*valuePL(J24,'Utility Functions'!$Q$3:$Q$6,'Utility Functions'!$R$3:$R$6) -> 0 | K65: =$K$40*(valuePL(K24,'Utility Functions'!$S$3:$S$7,'Utility Functions'!$T$3:$T$7)) -> 0 | L65: =$L$40*(valueE(L24,'Utility Functions'!$V$3,'Utility Functions'!$V$4,'Utility Functions'!$V$5,'Utility Functions'!$V$6)) -> 0 | M65: =$M$40*valuePL(M24,'Utility Functions'!$W$3:$W$6,'Utility Functions'!$X$3:$X$6) -> 0 | N65: =$N$40*valueE(N24,'Utility Functions'!$Z$3,'Utility Functions'!$Z$4,'Utility Functions'!$Z$5,'Utility Functions'!$Z$6) -> 0 | O65: =$O$40*valuePL(O24,'Utility Functions'!$AA$3:$AA$5,'Utility Functions'!$AB$3:$AB$5) -> 0 | P65: =$P$40*valuePL(P24,'Utility Functions'!$AC$3:$AC$7,'Utility Functions'!$AD$3:$AD$7) -> 0.03 | Q65: =$Q$40*valuePL(Q24,'Utility Functions'!$AE$3:$AE$6,'Utility Functions'!$AF$3:$AF$6) -> 0 | R65: =$R$40*valuePL(R24,'Utility Functions'!$AG$3:$AG$6,'Utility Functions'!$AH$3:$AH$6) -> 0.05 | S65: =$S$40*valuePL(S24,'Utility Functions'!$AI$3:$AI$6,'Utility Functions'!$AJ$3:$AJ$6) -> 0.05 | T65: =$T$40*valuePL(T24,'Utility Functions'!$AK$3:$AK$8,'Utility Functions'!$AL$3:$AL$8) -> 0.03 | U65: =$U$40*valuePL(U24,'Utility Functions'!$AM$3:$AM$5,'Utility Functions'!$AN$3:$AN$5) -> 0 | V65: =$V$40*valuePL(V24,'Utility Functions'!$AO$3:$AO$5,'Utility Functions'!$AP$3:$AP$5) -> 0.05 | W65: =$W$40*valuePL(W24,'Utility Functions'!$AQ$3:$AQ$6,'Utility Functions'!$AR$3:$AR$6) -> 0.008 | X65: =$X$40*valuePL(X24,'Utility Functions'!$AS$3:$AS$6,'Utility Functions'!$AT$3:$AT$6) -> 0.03 | Y65: =$Y$40*valuePL(Y24,'Utility Functions'!$AU$3:$AU$6,'Utility Functions'!$AV$3:$AV$6) -> 0.01 | Z65: =$Z$40*valuePL(Z24,'Utility Functions'!$AW$3:$AW$5,'Utility Functions'!$AX$3:$AX$5) -> 0.025 | AA65: =$AA$40*valuePL(AA24,'Utility Functions'!$AY$3:$AY$6,'Utility Functions'!$AZ$3:$AZ$6) -> 0.008 | AB65: =$AB$40*valuePL(AB24,'Utility Functions'!$BA$3:$BA$5,'Utility Functions'!$BB$3:$BB$5) -> 0 | AC65: =$AC$40*valuePL(AC24,'Utility Functions'!$BC$3:$BC$5,'Utility Functions'!$BD$3:$BD$5) -> 0.0075 | AD65: 0.3789645223 | AE65: 0.3772298757
A66: 24 | B66: =$B$40*(valueE(B25,'Utility Functions'!$B$3,'Utility Functions'!$B$4,'Utility Functions'!$B$5,'Utility Functions'!$B$6)) -> 0.0189636455 | C66: =$C$40*(valueE(C25,'Utility Functions'!$D$3,'Utility Functions'!$D$4,'Utility Functions'!$D$5,'Utility Functions'!$D$6)) -> 0.01394279015 | D66: =$D$40*(valuePL(D25,'Utility Functions'!$E$3:$E$5,'Utility Functions'!$F$3:$F$5)) -> 0.03 | E66: =$E$40*(valuePL(E25,'Utility Functions'!$G$3:$G$5,'Utility Functions'!$H$3:$H$5)) -> 0 | F66: =$F$40*(valuePL(F25,'Utility Functions'!$I$3:$I$4,'Utility Functions'!$J$3:$J$5)) -> 0 | G66: =$G$40*(valueE(G25,'Utility Functions'!$L$3,'Utility Functions'!$L$4,'Utility Functions'!$L$5,'Utility Functions'!$L$6)) -> 0 | H66: =$H$40*(valueE(H25,'Utility Functions'!$N$3,'Utility Functions'!$N$4,'Utility Functions'!$N$5,'Utility Functions'!$N$6)) -> 0 | I66: =$I$40*valuePL(I25,'Utility Functions'!$O$3:$O$6,'Utility Functions'!$P$3:$P$6) -> 0 | J66: =$J$40*valuePL(J25,'Utility Functions'!$Q$3:$Q$6,'Utility Functions'!$R$3:$R$6) -> 0 | K66: =$K$40*(valuePL(K25,'Utility Functions'!$S$3:$S$7,'Utility Functions'!$T$3:$T$7)) -> 0 | L66: =$L$40*(valueE(L25,'Utility Functions'!$V$3,'Utility Functions'!$V$4,'Utility Functions'!$V$5,'Utility Functions'!$V$6)) -> 0 | M66: =$M$40*valuePL(M25,'Utility Functions'!$W$3:$W$6,'Utility Functions'!$X$3:$X$6) -> 0 | N66: =$N$40*valueE(N25,'Utility Functions'!$Z$3,'Utility Functions'!$Z$4,'Utility Functions'!$Z$5,'Utility Functions'!$Z$6) -> 0 | O66: =$O$40*valuePL(O25,'Utility Functions'!$AA$3:$AA$5,'Utility Functions'!$AB$3:$AB$5) -> 0 | P66: =$P$40*valuePL(P25,'Utility Functions'!$AC$3:$AC$7,'Utility Functions'!$AD$3:$AD$7) -> 0 | Q66: =$Q$40*valuePL(Q25,'Utility Functions'!$AE$3:$AE$6,'Utility Functions'!$AF$3:$AF$6) -> 0 | R66: =$R$40*valuePL(R25,'Utility Functions'!$AG$3:$AG$6,'Utility Functions'!$AH$3:$AH$6) -> 0.05 | S66: =$S$40*valuePL(S25,'Utility Functions'!$AI$3:$AI$6,'Utility Functions'!$AJ$3:$AJ$6) -> 0.05 | T66: =$T$40*valuePL(T25,'Utility Functions'!$AK$3:$AK$8,'Utility Functions'!$AL$3:$AL$8) -> 0.03 | U66: =$U$40*valuePL(U25,'Utility Functions'!$AM$3:$AM$5,'Utility Functions'!$AN$3:$AN$5) -> 0 | V66: =$V$40*valuePL(V25,'Utility Functions'!$AO$3:$AO$5,'Utility Functions'!$AP$3:$AP$5) -> 0 | W66: =$W$40*valuePL(W25,'Utility Functions'!$AQ$3:$AQ$6,'Utility Functions'!$AR$3:$AR$6) -> 0.04 | X66: =$X$40*valuePL(X25,'Utility Functions'!$AS$3:$AS$6,'Utility Functions'!$AT$3:$AT$6) -> 0.008 | Y66: =$Y$40*valuePL(Y25,'Utility Functions'!$AU$3:$AU$6,'Utility Functions'!$AV$3:$AV$6) -> 0.05 | Z66: =$Z$40*valuePL(Z25,'Utility Functions'!$AW$3:$AW$5,'Utility Functions'!$AX$3:$AX$5) -> 0.05 | AA66: =$AA$40*valuePL(AA25,'Utility Functions'!$AY$3:$AY$6,'Utility Functions'!$AZ$3:$AZ$6) -> 0.008 | AB66: =$AB$40*valuePL(AB25,'Utility Functions'!$BA$3:$BA$5,'Utility Functions'!$BB$3:$BB$5) -> 0 | AC66: =$AC$40*valuePL(AC25,'Utility Functions'!$BC$3:$BC$5,'Utility Functions'!$BD$3:$BD$5) -> 0.03 | AD66: 0.3789064356 | AE66: 0.3769050837
A67: 25 | B67: =$B$40*(valueE(B26,'Utility Functions'!$B$3,'Utility Functions'!$B$4,'Utility Functions'!$B$5,'Utility Functions'!$B$6)) -> 0.02504107129 | C67: =$C$40*(valueE(C26,'Utility Functions'!$D$3,'Utility Functions'!$D$4,'Utility Functions'!$D$5,'Utility Functions'!$D$6)) -> 0.02542345105 | D67: =$D$40*(valuePL(D26,'Utility Functions'!$E$3:$E$5,'Utility Functions'!$F$3:$F$5)) -> 0.03 | E67: =$E$40*(valuePL(E26,'Utility Functions'!$G$3:$G$5,'Utility Functions'!$H$3:$H$5)) -> 0 | F67: =$F$40*(valuePL(F26,'Utility Functions'!$I$3:$I$4,'Utility Functions'!$J$3:$J$5)) -> 0 | G67: =$G$40*(valueE(G26,'Utility Functions'!$L$3,'Utility Functions'!$L$4,'Utility Functions'!$L$5,'Utility Functions'!$L$6)) -> 0.01419354839 | H67: =$H$40*(valueE(H26,'Utility Functions'!$N$3,'Utility Functions'!$N$4,'Utility Functions'!$N$5,'Utility Functions'!$N$6)) -> 0.004383301708 | I67: =$I$40*valuePL(I26,'Utility Functions'!$O$3:$O$6,'Utility Functions'!$P$3:$P$6) -> 0 | J67: =$J$40*valuePL(J26,'Utility Functions'!$Q$3:$Q$6,'Utility Functions'!$R$3:$R$6) -> 0 | K67: =$K$40*(valuePL(K26,'Utility Functions'!$S$3:$S$7,'Utility Functions'!$T$3:$T$7)) -> 0 | L67: =$L$40*(valueE(L26,'Utility Functions'!$V$3,'Utility Functions'!$V$4,'Utility Functions'!$V$5,'Utility Functions'!$V$6)) -> 0 | M67: =$M$40*valuePL(M26,'Utility Functions'!$W$3:$W$6,'Utility Functions'!$X$3:$X$6) -> 0 | N67: =$N$40*valueE(N26,'Utility Functions'!$Z$3,'Utility Functions'!$Z$4,'Utility Functions'!$Z$5,'Utility Functions'!$Z$6) -> 0.03 | O67: =$O$40*valuePL(O26,'Utility Functions'!$AA$3:$AA$5,'Utility Functions'!$AB$3:$AB$5) -> 0.0225 | P67: =$P$40*valuePL(P26,'Utility Functions'!$AC$3:$AC$7,'Utility Functions'!$AD$3:$AD$7) -> 0.02 | Q67: =$Q$40*valuePL(Q26,'Utility Functions'!$AE$3:$AE$6,'Utility Functions'!$AF$3:$AF$6) -> 0.02 | R67: =$R$40*valuePL(R26,'Utility Functions'!$AG$3:$AG$6,'Utility Functions'!$AH$3:$AH$6) -> 0.05 | S67: =$S$40*valuePL(S26,'Utility Functions'!$AI$3:$AI$6,'Utility Functions'!$AJ$3:$AJ$6) -> 0.05 | T67: =$T$40*valuePL(T26,'Utility Functions'!$AK$3:$AK$8,'Utility Functions'!$AL$3:$AL$8) -> 0 | U67: =$U$40*valuePL(U26,'Utility Functions'!$AM$3:$AM$5,'Utility Functions'!$AN$3:$AN$5) -> 0 | V67: =$V$40*valuePL(V26,'Utility Functions'!$AO$3:$AO$5,'Utility Functions'!$AP$3:$AP$5) -> 0.05 | W67: =$W$40*valuePL(W26,'Utility Functions'!$AQ$3:$AQ$6,'Utility Functions'!$AR$3:$AR$6) -> 0.008 | X67: =$X$40*valuePL(X26,'Utility Functions'!$AS$3:$AS$6,'Utility Functions'!$AT$3:$AT$6) -> 0.04 | Y67: =$Y$40*valuePL(Y26,'Utility Functions'!$AU$3:$AU$6,'Utility Functions'!$AV$3:$AV$6) -> 0.04 | Z67: =$Z$40*valuePL(Z26,'Utility Functions'!$AW$3:$AW$5,'Utility Functions'!$AX$3:$AX$5) -> 0.025 | AA67: =$AA$40*valuePL(AA26,'Utility Functions'!$AY$3:$AY$6,'Utility Functions'!$AZ$3:$AZ$6) -> 0.008 | AB67: =$AB$40*valuePL(AB26,'Utility Functions'!$BA$3:$BA$5,'Utility Functions'!$BB$3:$BB$5) -> 0.04 | AC67: =$AC$40*valuePL(AC26,'Utility Functions'!$BC$3:$BC$5,'Utility Functions'!$BD$3:$BD$5) -> 0.03 | AD67: 0.5325413724 | AE67: 0.5308067258
A68: 26 | B68: =$B$40*(valueE(B27,'Utility Functions'!$B$3,'Utility Functions'!$B$4,'Utility Functions'!$B$5,'Utility Functions'!$B$6)) -> 0.02899884584 | C68: =$C$40*(valueE(C27,'Utility Functions'!$D$3,'Utility Functions'!$D$4,'Utility Functions'!$D$5,'Utility Functions'!$D$6)) -> 0.02542345105 | D68: =$D$40*(valuePL(D27,'Utility Functions'!$E$3:$E$5,'Utility Functions'!$F$3:$F$5)) -> 0.03 | E68: =$E$40*(valuePL(E27,'Utility Functions'!$G$3:$G$5,'Utility Functions'!$H$3:$H$5)) -> 0.015 | F68: =$F$40*(valuePL(F27,'Utility Functions'!$I$3:$I$4,'Utility Functions'!$J$3:$J$5)) -> 0 | G68: =$G$40*(valueE(G27,'Utility Functions'!$L$3,'Utility Functions'!$L$4,'Utility Functions'!$L$5,'Utility Functions'!$L$6)) -> 0 | H68: =$H$40*(valueE(H27,'Utility Functions'!$N$3,'Utility Functions'!$N$4,'Utility Functions'!$N$5,'Utility Functions'!$N$6)) -> 0 | I68: =$I$40*valuePL(I27,'Utility Functions'!$O$3:$O$6,'Utility Functions'!$P$3:$P$6) -> 0 | J68: =$J$40*valuePL(J27,'Utility Functions'!$Q$3:$Q$6,'Utility Functions'!$R$3:$R$6) -> 0 | K68: =$K$40*(valuePL(K27,'Utility Functions'!$S$3:$S$7,'Utility Functions'!$T$3:$T$7)) -> 0 | L68: =$L$40*(valueE(L27,'Utility Functions'!$V$3,'Utility Functions'!$V$4,'Utility Functions'!$V$5,'Utility Functions'!$V$6)) -> 0 | M68: =$M$40*valuePL(M27,'Utility Functions'!$W$3:$W$6,'Utility Functions'!$X$3:$X$6) -> 0 | N68: =$N$40*valueE(N27,'Utility Functions'!$Z$3,'Utility Functions'!$Z$4,'Utility Functions'!$Z$5,'Utility Functions'!$Z$6) -> 0 | O68: =$O$40*valuePL(O27,'Utility Functions'!$AA$3:$AA$5,'Utility Functions'!$AB$3:$AB$5) -> 0 | P68: =$P$40*valuePL(P27,'Utility Functions'!$AC$3:$AC$7,'Utility Functions'!$AD$3:$AD$7) -> 0.03 | Q68: =$Q$40*valuePL(Q27,'Utility Functions'!$AE$3:$AE$6,'Utility Functions'!$AF$3:$AF$6) -> 0 | R68: =$R$40*valuePL(R27,'Utility Functions'!$AG$3:$AG$6,'Utility Functions'!$AH$3:$AH$6) -> 0.05 | S68: =$S$40*valuePL(S27,'Utility Functions'!$AI$3:$AI$6,'Utility Functions'!$AJ$3:$AJ$6) -> 0.05 | T68: =$T$40*valuePL(T27,'Utility Functions'!$AK$3:$AK$8,'Utility Functions'!$AL$3:$AL$8) -> 0.024 | U68: =$U$40*valuePL(U27,'Utility Functions'!$AM$3:$AM$5,'Utility Functions'!$AN$3:$AN$5) -> 0 | V68: =$V$40*valuePL(V27,'Utility Functions'!$AO$3:$AO$5,'Utility Functions'!$AP$3:$AP$5) -> 0.05 | W68: =$W$40*valuePL(W27,'Utility Functions'!$AQ$3:$AQ$6,'Utility Functions'!$AR$3:$AR$6) -> 0.008 | X68: =$X$40*valuePL(X27,'Utility Functions'!$AS$3:$AS$6,'Utility Functions'!$AT$3:$AT$6) -> 0 | Y68: =$Y$40*valuePL(Y27,'Utility Functions'!$AU$3:$AU$6,'Utility Functions'!$AV$3:$AV$6) -> 0.04 | Z68: =$Z$40*valuePL(Z27,'Utility Functions'!$AW$3:$AW$5,'Utility Functions'!$AX$3:$AX$5) -> 0 | AA68: =$AA$40*valuePL(AA27,'Utility Functions'!$AY$3:$AY$6,'Utility Functions'!$AZ$3:$AZ$6) -> 0.008 | AB68: =$AB$40*valuePL(AB27,'Utility Functions'!$BA$3:$BA$5,'Utility Functions'!$BB$3:$BB$5) -> 0.04 | AC68: =$AC$40*valuePL(AC27,'Utility Functions'!$BC$3:$BC$5,'Utility Functions'!$BD$3:$BD$5) -> 0.03 | AD68: 0.4294222969 | AE68: 0.4286593561
A69: 27 | B69: =$B$40*(valueE(B28,'Utility Functions'!$B$3,'Utility Functions'!$B$4,'Utility Functions'!$B$5,'Utility Functions'!$B$6)) -> 0 | C69: =$C$40*(valueE(C28,'Utility Functions'!$D$3,'Utility Functions'!$D$4,'Utility Functions'!$D$5,'Utility Functions'!$D$6)) -> 0.01394279015 | D69: =$D$40*(valuePL(D28,'Utility Functions'!$E$3:$E$5,'Utility Functions'!$F$3:$F$5)) -> 0.03 | E69: =$E$40*(valuePL(E28,'Utility Functions'!$G$3:$G$5,'Utility Functions'!$H$3:$H$5)) -> 0 | F69: =$F$40*(valuePL(F28,'Utility Functions'!$I$3:$I$4,'Utility Functions'!$J$3:$J$5)) -> 0 | G69: =$G$40*(valueE(G28,'Utility Functions'!$L$3,'Utility Functions'!$L$4,'Utility Functions'!$L$5,'Utility Functions'!$L$6)) -> 0 | H69: =$H$40*(valueE(H28,'Utility Functions'!$N$3,'Utility Functions'!$N$4,'Utility Functions'!$N$5,'Utility Functions'!$N$6)) -> 0 | I69: =$I$40*valuePL(I28,'Utility Functions'!$O$3:$O$6,'Utility Functions'!$P$3:$P$6) -> 0 | J69: =$J$40*valuePL(J28,'Utility Functions'!$Q$3:$Q$6,'Utility Functions'!$R$3:$R$6) -> 0 | K69: =$K$40*(valuePL(K28,'Utility Functions'!$S$3:$S$7,'Utility Functions'!$T$3:$T$7)) -> 0.02 | L69: =$L$40*(valueE(L28,'Utility Functions'!$V$3,'Utility Functions'!$V$4,'Utility Functions'!$V$5,'Utility Functions'!$V$6)) -> 0 | M69: =$M$40*valuePL(M28,'Utility Functions'!$W$3:$W$6,'Utility Functions'!$X$3:$X$6) -> 0.002 | N69: =$N$40*valueE(N28,'Utility Functions'!$Z$3,'Utility Functions'!$Z$4,'Utility Functions'!$Z$5,'Utility Functions'!$Z$6) -> 0 | O69: =$O$40*valuePL(O28,'Utility Functions'!$AA$3:$AA$5,'Utility Functions'!$AB$3:$AB$5) -> 0 | P69: =$P$40*valuePL(P28,'Utility Functions'!$AC$3:$AC$7,'Utility Functions'!$AD$3:$AD$7) -> 0.02 | Q69: =$Q$40*valuePL(Q28,'Utility Functions'!$AE$3:$AE$6,'Utility Functions'!$AF$3:$AF$6) -> 0.02 | R69: =$R$40*valuePL(R28,'Utility Functions'!$AG$3:$AG$6,'Utility Functions'!$AH$3:$AH$6) -> 0.05 | S69: =$S$40*valuePL(S28,'Utility Functions'!$AI$3:$AI$6,'Utility Functions'!$AJ$3:$AJ$6) -> 0.05 | T69: =$T$40*valuePL(T28,'Utility Functions'!$AK$3:$AK$8,'Utility Functions'!$AL$3:$AL$8) -> 0.03 | U69: =$U$40*valuePL(U28,'Utility Functions'!$AM$3:$AM$5,'Utility Functions'!$AN$3:$AN$5) -> 0 | V69: =$V$40*valuePL(V28,'Utility Functions'!$AO$3:$AO$5,'Utility Functions'!$AP$3:$AP$5) -> 0.025 | W69: =$W$40*valuePL(W28,'Utility Functions'!$AQ$3:$AQ$6,'Utility Functions'!$AR$3:$AR$6) -> 0.03 | X69: =$X$40*valuePL(X28,'Utility Functions'!$AS$3:$AS$6,'Utility Functions'!$AT$3:$AT$6) -> 0.04 | Y69: =$Y$40*valuePL(Y28,'Utility Functions'!$AU$3:$AU$6,'Utility Functions'!$AV$3:$AV$6) -> 0.01 | Z69: =$Z$40*valuePL(Z28,'Utility Functions'!$AW$3:$AW$5,'Utility Functions'!$AX$3:$AX$5) -> 0 | AA69: =$AA$40*valuePL(AA28,'Utility Functions'!$AY$3:$AY$6,'Utility Functions'!$AZ$3:$AZ$6) -> 0 | AB69: =$AB$40*valuePL(AB28,'Utility Functions'!$BA$3:$BA$5,'Utility Functions'!$BB$3:$BB$5) -> 0 | AC69: =$AC$40*valuePL(AC28,'Utility Functions'!$BC$3:$BC$5,'Utility Functions'!$BD$3:$BD$5) -> 0 | AD69: 0.3409427901 | AE69: 0.3409427901
A70: =A29 -> 28 | B70: =$B$40*(valueE(B29,'Utility Functions'!$B$3,'Utility Functions'!$B$4,'Utility Functions'!$B$5,'Utility Functions'!$B$6)) -> 0.01353567143 | C70: =$C$40*(valueE(C29,'Utility Functions'!$D$3,'Utility Functions'!$D$4,'Utility Functions'!$D$5,'Utility Functions'!$D$6)) -> 0.01394279015 | D70: =$D$40*(valuePL(D29,'Utility Functions'!$E$3:$E$5,'Utility Functions'!$F$3:$F$5)) -> 0.03 | E70: =$E$40*(valuePL(E29,'Utility Functions'!$G$3:$G$5,'Utility Functions'!$H$3:$H$5)) -> 0 | F70: =$F$40*(valuePL(F29,'Utility Functions'!$I$3:$I$4,'Utility Functions'!$J$3:$J$5)) -> 0.04 | G70: =$G$40*(valueE(G29,'Utility Functions'!$L$3,'Utility Functions'!$L$4,'Utility Functions'!$L$5,'Utility Functions'!$L$6)) -> 0 | H70: =$H$40*(valueE(H29,'Utility Functions'!$N$3,'Utility Functions'!$N$4,'Utility Functions'!$N$5,'Utility Functions'!$N$6)) -> 0 | I70: =$I$40*valuePL(I29,'Utility Functions'!$O$3:$O$6,'Utility Functions'!$P$3:$P$6) -> 0 | J70: =$J$40*valuePL(J29,'Utility Functions'!$Q$3:$Q$6,'Utility Functions'!$R$3:$R$6) -> 0 | K70: =$K$40*(valuePL(K29,'Utility Functions'!$S$3:$S$7,'Utility Functions'!$T$3:$T$7)) -> 0 | L70: =$L$40*(valueE(L29,'Utility Functions'!$V$3,'Utility Functions'!$V$4,'Utility Functions'!$V$5,'Utility Functions'!$V$6)) -> 0.006666666667 | M70: =$M$40*valuePL(M29,'Utility Functions'!$W$3:$W$6,'Utility Functions'!$X$3:$X$6) -> 0.002 | N70: =$N$40*valueE(N29,'Utility Functions'!$Z$3,'Utility Functions'!$Z$4,'Utility Functions'!$Z$5,'Utility Functions'!$Z$6) -> 0 | O70: =$O$40*valuePL(O29,'Utility Functions'!$AA$3:$AA$5,'Utility Functions'!$AB$3:$AB$5) -> 0 | P70: =$P$40*valuePL(P29,'Utility Functions'!$AC$3:$AC$7,'Utility Functions'!$AD$3:$AD$7) -> 0.04 | Q70: =$Q$40*valuePL(Q29,'Utility Functions'!$AE$3:$AE$6,'Utility Functions'!$AF$3:$AF$6) -> 0 | R70: =$R$40*valuePL(R29,'Utility Functions'!$AG$3:$AG$6,'Utility Functions'!$AH$3:$AH$6) -> 0.05 | S70: =$S$40*valuePL(S29,'Utility Functions'!$AI$3:$AI$6,'Utility Functions'!$AJ$3:$AJ$6) -> 0.05 | T70: =$T$40*valuePL(T29,'Utility Functions'!$AK$3:$AK$8,'Utility Functions'!$AL$3:$AL$8) -> 0.024 | U70: =$U$40*valuePL(U29,'Utility Functions'!$AM$3:$AM$5,'Utility Functions'!$AN$3:$AN$5) -> 0 | V70: =$V$40*valuePL(V29,'Utility Functions'!$AO$3:$AO$5,'Utility Functions'!$AP$3:$AP$5) -> 0.05 | W70: =$W$40*valuePL(W29,'Utility Functions'!$AQ$3:$AQ$6,'Utility Functions'!$AR$3:$AR$6) -> 0.04 | X70: =$X$40*valuePL(X29,'Utility Functions'!$AS$3:$AS$6,'Utility Functions'!$AT$3:$AT$6) -> 0.04 | Y70: =$Y$40*valuePL(Y29,'Utility Functions'!$AU$3:$AU$6,'Utility Functions'!$AV$3:$AV$6) -> 0.01 | Z70: =$Z$40*valuePL(Z29,'Utility Functions'!$AW$3:$AW$5,'Utility Functions'!$AX$3:$AX$5) -> 0 | AA70: =$AA$40*valuePL(AA29,'Utility Functions'!$AY$3:$AY$6,'Utility Functions'!$AZ$3:$AZ$6) -> 0.036 | AB70: =$AB$40*valuePL(AB29,'Utility Functions'!$BA$3:$BA$5,'Utility Functions'!$BB$3:$BB$5) -> 0.04 | AC70: =$AC$40*valuePL(AC29,'Utility Functions'!$BC$3:$BC$5,'Utility Functions'!$BD$3:$BD$5) -> 0.0075 | AD70: 0.4936451282 | AE70: 0.4919137039
A71: 29 | B71: =$B$40*(valueE(B30,'Utility Functions'!$B$3,'Utility Functions'!$B$4,'Utility Functions'!$B$5,'Utility Functions'!$B$6)) -> 0.02504107129 | C71: =$C$40*(valueE(C30,'Utility Functions'!$D$3,'Utility Functions'!$D$4,'Utility Functions'!$D$5,'Utility Functions'!$D$6)) -> 0.02140582792 | D71: =$D$40*(valuePL(D30,'Utility Functions'!$E$3:$E$5,'Utility Functions'!$F$3:$F$5)) -> 0.03 | E71: =$E$40*(valuePL(E30,'Utility Functions'!$G$3:$G$5,'Utility Functions'!$H$3:$H$5)) -> 0.015 | F71: =$F$40*(valuePL(F30,'Utility Functions'!$I$3:$I$4,'Utility Functions'!$J$3:$J$5)) -> 0 | G71: =$G$40*(valueE(G30,'Utility Functions'!$L$3,'Utility Functions'!$L$4,'Utility Functions'!$L$5,'Utility Functions'!$L$6)) -> 0 | H71: =$H$40*(valueE(H30,'Utility Functions'!$N$3,'Utility Functions'!$N$4,'Utility Functions'!$N$5,'Utility Functions'!$N$6)) -> 0 | I71: =$I$40*valuePL(I30,'Utility Functions'!$O$3:$O$6,'Utility Functions'!$P$3:$P$6) -> 0.0018 | J71: =$J$40*valuePL(J30,'Utility Functions'!$Q$3:$Q$6,'Utility Functions'!$R$3:$R$6) -> 0.01345454545 | K71: =$K$40*(valuePL(K30,'Utility Functions'!$S$3:$S$7,'Utility Functions'!$T$3:$T$7)) -> 0 | L71: =$L$40*(valueE(L30,'Utility Functions'!$V$3,'Utility Functions'!$V$4,'Utility Functions'!$V$5,'Utility Functions'!$V$6)) -> 0.02 | M71: =$M$40*valuePL(M30,'Utility Functions'!$W$3:$W$6,'Utility Functions'!$X$3:$X$6) -> 0.01345454545 | N71: =$N$40*valueE(N30,'Utility Functions'!$Z$3,'Utility Functions'!$Z$4,'Utility Functions'!$Z$5,'Utility Functions'!$Z$6) -> 0 | O71: =$O$40*valuePL(O30,'Utility Functions'!$AA$3:$AA$5,'Utility Functions'!$AB$3:$AB$5) -> 0 | P71: =$P$40*valuePL(P30,'Utility Functions'!$AC$3:$AC$7,'Utility Functions'!$AD$3:$AD$7) -> 0.01 | Q71: =$Q$40*valuePL(Q30,'Utility Functions'!$AE$3:$AE$6,'Utility Functions'!$AF$3:$AF$6) -> 0 | R71: =$R$40*valuePL(R30,'Utility Functions'!$AG$3:$AG$6,'Utility Functions'!$AH$3:$AH$6) -> 0.05 | S71: =$S$40*valuePL(S30,'Utility Functions'!$AI$3:$AI$6,'Utility Functions'!$AJ$3:$AJ$6) -> 0.05 | T71: =$T$40*valuePL(T30,'Utility Functions'!$AK$3:$AK$8,'Utility Functions'!$AL$3:$AL$8) -> 0.024 | U71: =$U$40*valuePL(U30,'Utility Functions'!$AM$3:$AM$5,'Utility Functions'!$AN$3:$AN$5) -> 0 | V71: =$V$40*valuePL(V30,'Utility Functions'!$AO$3:$AO$5,'Utility Functions'!$AP$3:$AP$5) -> 0.05 | W71: =$W$40*valuePL(W30,'Utility Functions'!$AQ$3:$AQ$6,'Utility Functions'!$AR$3:$AR$6) -> 0.008 | X71: =$X$40*valuePL(X30,'Utility Functions'!$AS$3:$AS$6,'Utility Functions'!$AT$3:$AT$6) -> 0 | Y71: =$Y$40*valuePL(Y30,'Utility Functions'!$AU$3:$AU$6,'Utility Functions'!$AV$3:$AV$6) -> 0.04 | Z71: =$Z$40*valuePL(Z30,'Utility Functions'!$AW$3:$AW$5,'Utility Functions'!$AX$3:$AX$5) -> 0.025 | AA71: =$AA$40*valuePL(AA30,'Utility Functions'!$AY$3:$AY$6,'Utility Functions'!$AZ$3:$AZ$6) -> 0.008 | AB71: =$AB$40*valuePL(AB30,'Utility Functions'!$BA$3:$BA$5,'Utility Functions'!$BB$3:$BB$5) -> 0.01 | AC71: =$AC$40*valuePL(AC30,'Utility Functions'!$BC$3:$BC$5,'Utility Functions'!$BD$3:$BD$5) -> 0.03 | AD71: 0.4451559901 | AE71: 0.4434213435
A72: 30 | B72: =$B$40*(valueE(B31,'Utility Functions'!$B$3,'Utility Functions'!$B$4,'Utility Functions'!$B$5,'Utility Functions'!$B$6)) -> 0.02995923435 | C72: =$C$40*(valueE(C31,'Utility Functions'!$D$3,'Utility Functions'!$D$4,'Utility Functions'!$D$5,'Utility Functions'!$D$6)) -> 0.02542345105 | D72: =$D$40*(valuePL(D31,'Utility Functions'!$E$3:$E$5,'Utility Functions'!$F$3:$F$5)) -> 0.03 | E72: =$E$40*(valuePL(E31,'Utility Functions'!$G$3:$G$5,'Utility Functions'!$H$3:$H$5)) -> 0 | F72: =$F$40*(valuePL(F31,'Utility Functions'!$I$3:$I$4,'Utility Functions'!$J$3:$J$5)) -> 0 | G72: =$G$40*(valueE(G31,'Utility Functions'!$L$3,'Utility Functions'!$L$4,'Utility Functions'!$L$5,'Utility Functions'!$L$6)) -> 0 | H72: =$H$40*(valueE(H31,'Utility Functions'!$N$3,'Utility Functions'!$N$4,'Utility Functions'!$N$5,'Utility Functions'!$N$6)) -> 0 | I72: =$I$40*valuePL(I31,'Utility Functions'!$O$3:$O$6,'Utility Functions'!$P$3:$P$6) -> 0 | J72: =$J$40*valuePL(J31,'Utility Functions'!$Q$3:$Q$6,'Utility Functions'!$R$3:$R$6) -> 0 | K72: =$K$40*(valuePL(K31,'Utility Functions'!$S$3:$S$7,'Utility Functions'!$T$3:$T$7)) -> 0 | L72: =$L$40*(valueE(L31,'Utility Functions'!$V$3,'Utility Functions'!$V$4,'Utility Functions'!$V$5,'Utility Functions'!$V$6)) -> 0.006666666667 | M72: =$M$40*valuePL(M31,'Utility Functions'!$W$3:$W$6,'Utility Functions'!$X$3:$X$6) -> 0.0008 | N72: =$N$40*valueE(N31,'Utility Functions'!$Z$3,'Utility Functions'!$Z$4,'Utility Functions'!$Z$5,'Utility Functions'!$Z$6) -> 0 | O72: =$O$40*valuePL(O31,'Utility Functions'!$AA$3:$AA$5,'Utility Functions'!$AB$3:$AB$5) -> 0 | P72: =$P$40*valuePL(P31,'Utility Functions'!$AC$3:$AC$7,'Utility Functions'!$AD$3:$AD$7) -> 0 | Q72: =$Q$40*valuePL(Q31,'Utility Functions'!$AE$3:$AE$6,'Utility Functions'!$AF$3:$AF$6) -> 0 | R72: =$R$40*valuePL(R31,'Utility Functions'!$AG$3:$AG$6,'Utility Functions'!$AH$3:$AH$6) -> 0.01 | S72: =$S$40*valuePL(S31,'Utility Functions'!$AI$3:$AI$6,'Utility Functions'!$AJ$3:$AJ$6) -> 0.0165 | T72: =$T$40*valuePL(T31,'Utility Functions'!$AK$3:$AK$8,'Utility Functions'!$AL$3:$AL$8) -> 0 | U72: =$U$40*valuePL(U31,'Utility Functions'!$AM$3:$AM$5,'Utility Functions'!$AN$3:$AN$5) -> 0 | V72: =$V$40*valuePL(V31,'Utility Functions'!$AO$3:$AO$5,'Utility Functions'!$AP$3:$AP$5) -> 0 | W72: =$W$40*valuePL(W31,'Utility Functions'!$AQ$3:$AQ$6,'Utility Functions'!$AR$3:$AR$6) -> 0.04 | X72: =$X$40*valuePL(X31,'Utility Functions'!$AS$3:$AS$6,'Utility Functions'!$AT$3:$AT$6) -> 0.008 | Y72: =$Y$40*valuePL(Y31,'Utility Functions'!$AU$3:$AU$6,'Utility Functions'!$AV$3:$AV$6) -> 0.04 | Z72: =$Z$40*valuePL(Z31,'Utility Functions'!$AW$3:$AW$5,'Utility Functions'!$AX$3:$AX$5) -> 0 | AA72: =$AA$40*valuePL(AA31,'Utility Functions'!$AY$3:$AY$6,'Utility Functions'!$AZ$3:$AZ$6) -> 0.036 | AB72: =$AB$40*valuePL(AB31,'Utility Functions'!$BA$3:$BA$5,'Utility Functions'!$BB$3:$BB$5) -> 0.04 | AC72: =$AC$40*valuePL(AC31,'Utility Functions'!$BC$3:$BC$5,'Utility Functions'!$BD$3:$BD$5) -> 0 | AD72: 0.2833493521 | AE72: 0.283267937
A73: 31 | B73: =$B$40*(valueE(B32,'Utility Functions'!$B$3,'Utility Functions'!$B$4,'Utility Functions'!$B$5,'Utility Functions'!$B$6)) -> 0.01652015611 | C73: =$C$40*(valueE(C32,'Utility Functions'!$D$3,'Utility Functions'!$D$4,'Utility Functions'!$D$5,'Utility Functions'!$D$6)) -> 0.02542345105 | D73: =$D$40*(valuePL(D32,'Utility Functions'!$E$3:$E$5,'Utility Functions'!$F$3:$F$5)) -> 0.015 | E73: =$E$40*(valuePL(E32,'Utility Functions'!$G$3:$G$5,'Utility Functions'!$H$3:$H$5)) -> 0 | F73: =$F$40*(valuePL(F32,'Utility Functions'!$I$3:$I$4,'Utility Functions'!$J$3:$J$5)) -> 0 | G73: =$G$40*(valueE(G32,'Utility Functions'!$L$3,'Utility Functions'!$L$4,'Utility Functions'!$L$5,'Utility Functions'!$L$6)) -> 0 | H73: =$H$40*(valueE(H32,'Utility Functions'!$N$3,'Utility Functions'!$N$4,'Utility Functions'!$N$5,'Utility Functions'!$N$6)) -> 0 | I73: =$I$40*valuePL(I32,'Utility Functions'!$O$3:$O$6,'Utility Functions'!$P$3:$P$6) -> 0.02263636364 | J73: =$J$40*valuePL(J32,'Utility Functions'!$Q$3:$Q$6,'Utility Functions'!$R$3:$R$6) -> 0.0016 | K73: =$K$40*(valuePL(K32,'Utility Functions'!$S$3:$S$7,'Utility Functions'!$T$3:$T$7)) -> 0 | L73: =$L$40*(valueE(L32,'Utility Functions'!$V$3,'Utility Functions'!$V$4,'Utility Functions'!$V$5,'Utility Functions'!$V$6)) -> 0.006666666667 | M73: =$M$40*valuePL(M32,'Utility Functions'!$W$3:$W$6,'Utility Functions'!$X$3:$X$6) -> 0.0016 | N73: =$N$40*valueE(N32,'Utility Functions'!$Z$3,'Utility Functions'!$Z$4,'Utility Functions'!$Z$5,'Utility Functions'!$Z$6) -> 0 | O73: =$O$40*valuePL(O32,'Utility Functions'!$AA$3:$AA$5,'Utility Functions'!$AB$3:$AB$5) -> 0 | P73: =$P$40*valuePL(P32,'Utility Functions'!$AC$3:$AC$7,'Utility Functions'!$AD$3:$AD$7) -> 0.02 | Q73: =$Q$40*valuePL(Q32,'Utility Functions'!$AE$3:$AE$6,'Utility Functions'!$AF$3:$AF$6) -> 0 | R73: =$R$40*valuePL(R32,'Utility Functions'!$AG$3:$AG$6,'Utility Functions'!$AH$3:$AH$6) -> 0.05 | S73: =$S$40*valuePL(S32,'Utility Functions'!$AI$3:$AI$6,'Utility Functions'!$AJ$3:$AJ$6) -> 0.033 | T73: =$T$40*valuePL(T32,'Utility Functions'!$AK$3:$AK$8,'Utility Functions'!$AL$3:$AL$8) -> 0.018 | U73: =$U$40*valuePL(U32,'Utility Functions'!$AM$3:$AM$5,'Utility Functions'!$AN$3:$AN$5) -> 0 | V73: =$V$40*valuePL(V32,'Utility Functions'!$AO$3:$AO$5,'Utility Functions'!$AP$3:$AP$5) -> 0.025 | W73: =$W$40*valuePL(W32,'Utility Functions'!$AQ$3:$AQ$6,'Utility Functions'!$AR$3:$AR$6) -> 0 | X73: =$X$40*valuePL(X32,'Utility Functions'!$AS$3:$AS$6,'Utility Functions'!$AT$3:$AT$6) -> 0.008 | Y73: =$Y$40*valuePL(Y32,'Utility Functions'!$AU$3:$AU$6,'Utility Functions'!$AV$3:$AV$6) -> 0.01 | Z73: =$Z$40*valuePL(Z32,'Utility Functions'!$AW$3:$AW$5,'Utility Functions'!$AX$3:$AX$5) -> 0.05 | AA73: =$AA$40*valuePL(AA32,'Utility Functions'!$AY$3:$AY$6,'Utility Functions'!$AZ$3:$AZ$6) -> 0.036 | AB73: =$AB$40*valuePL(AB32,'Utility Functions'!$BA$3:$BA$5,'Utility Functions'!$BB$3:$BB$5) -> 0.01 | AC73: =$AC$40*valuePL(AC32,'Utility Functions'!$BC$3:$BC$5,'Utility Functions'!$BD$3:$BD$5) -> 0.0075 | AD73: 0.3569466375 | AE73: 0.3550241742
A74: =A33 -> 32 | B74: =$B$40*(valueE(B33,'Utility Functions'!$B$3,'Utility Functions'!$B$4,'Utility Functions'!$B$5,'Utility Functions'!$B$6)) -> 0.0189636455 | C74: =$C$40*(valueE(C33,'Utility Functions'!$D$3,'Utility Functions'!$D$4,'Utility Functions'!$D$5,'Utility Functions'!$D$6)) -> 0.008051896687 | D74: =$D$40*(valuePL(D33,'Utility Functions'!$E$3:$E$5,'Utility Functions'!$F$3:$F$5)) -> 0.03 | E74: =$E$40*(valuePL(E33,'Utility Functions'!$G$3:$G$5,'Utility Functions'!$H$3:$H$5)) -> 0.03 | F74: =$F$40*(valuePL(F33,'Utility Functions'!$I$3:$I$4,'Utility Functions'!$J$3:$J$5)) -> 0.04 | G74: =$G$40*(valueE(G33,'Utility Functions'!$L$3,'Utility Functions'!$L$4,'Utility Functions'!$L$5,'Utility Functions'!$L$6)) -> 0.0004838709677 | H74: =$H$40*(valueE(H33,'Utility Functions'!$N$3,'Utility Functions'!$N$4,'Utility Functions'!$N$5,'Utility Functions'!$N$6)) -> 0.001451612903 | I74: =$I$40*valuePL(I33,'Utility Functions'!$O$3:$O$6,'Utility Functions'!$P$3:$P$6) -> 0.01036363636 | J74: =$J$40*valuePL(J33,'Utility Functions'!$Q$3:$Q$6,'Utility Functions'!$R$3:$R$6) -> 0.02 | K74: =$K$40*(valuePL(K33,'Utility Functions'!$S$3:$S$7,'Utility Functions'!$T$3:$T$7)) -> 0.006909090909 | L74: =$L$40*(valueE(L33,'Utility Functions'!$V$3,'Utility Functions'!$V$4,'Utility Functions'!$V$5,'Utility Functions'!$V$6)) -> 0.02 | M74: =$M$40*valuePL(M33,'Utility Functions'!$W$3:$W$6,'Utility Functions'!$X$3:$X$6) -> 0.02 | N74: =$N$40*valueE(N33,'Utility Functions'!$Z$3,'Utility Functions'!$Z$4,'Utility Functions'!$Z$5,'Utility Functions'!$Z$6) -> 0 | O74: =$O$40*valuePL(O33,'Utility Functions'!$AA$3:$AA$5,'Utility Functions'!$AB$3:$AB$5) -> 0 | P74: =$P$40*valuePL(P33,'Utility Functions'!$AC$3:$AC$7,'Utility Functions'!$AD$3:$AD$7) -> 0.02 | Q74: =$Q$40*valuePL(Q33,'Utility Functions'!$AE$3:$AE$6,'Utility Functions'!$AF$3:$AF$6) -> 0.04 | R74: =$R$40*valuePL(R33,'Utility Functions'!$AG$3:$AG$6,'Utility Functions'!$AH$3:$AH$6) -> 0.05 | S74: =$S$40*valuePL(S33,'Utility Functions'!$AI$3:$AI$6,'Utility Functions'!$AJ$3:$AJ$6) -> 0 | T74: =$T$40*valuePL(T33,'Utility Functions'!$AK$3:$AK$8,'Utility Functions'!$AL$3:$AL$8) -> 0.024 | U74: =$U$40*valuePL(U33,'Utility Functions'!$AM$3:$AM$5,'Utility Functions'!$AN$3:$AN$5) -> 0 | V74: =$V$40*valuePL(V33,'Utility Functions'!$AO$3:$AO$5,'Utility Functions'!$AP$3:$AP$5) -> 0 | W74: =$W$40*valuePL(W33,'Utility Functions'!$AQ$3:$AQ$6,'Utility Functions'!$AR$3:$AR$6) -> 0.03 | X74: =$X$40*valuePL(X33,'Utility Functions'!$AS$3:$AS$6,'Utility Functions'!$AT$3:$AT$6) -> 0.008 | Y74: =$Y$40*valuePL(Y33,'Utility Functions'!$AU$3:$AU$6,'Utility Functions'!$AV$3:$AV$6) -> 0.04 | Z74: =$Z$40*valuePL(Z33,'Utility Functions'!$AW$3:$AW$5,'Utility Functions'!$AX$3:$AX$5) -> 0.025 | AA74: =$AA$40*valuePL(AA33,'Utility Functions'!$AY$3:$AY$6,'Utility Functions'!$AZ$3:$AZ$6) -> 0 | AB74: =$AB$40*valuePL(AB33,'Utility Functions'!$BA$3:$BA$5,'Utility Functions'!$BB$3:$BB$5) -> 0.04 | AC74: =$AC$40*valuePL(AC33,'Utility Functions'!$BC$3:$BC$5,'Utility Functions'!$BD$3:$BD$5) -> 0.0075 | AD74: 0.4907237533 | AE74: 0.4887224014
A75: 33 | B75: =$B$40*(valueE(B34,'Utility Functions'!$B$3,'Utility Functions'!$B$4,'Utility Functions'!$B$5,'Utility Functions'!$B$6)) -> 0.02817574081 | C75: =$C$40*(valueE(C34,'Utility Functions'!$D$3,'Utility Functions'!$D$4,'Utility Functions'!$D$5,'Utility Functions'!$D$6)) -> 0.02542345105 | D75: =$D$40*(valuePL(D34,'Utility Functions'!$E$3:$E$5,'Utility Functions'!$F$3:$F$5)) -> 0.03 | E75: =$E$40*(valuePL(E34,'Utility Functions'!$G$3:$G$5,'Utility Functions'!$H$3:$H$5)) -> 0.015 | F75: =$F$40*(valuePL(F34,'Utility Functions'!$I$3:$I$4,'Utility Functions'!$J$3:$J$5)) -> 0 | G75: =$G$40*(valueE(G34,'Utility Functions'!$L$3,'Utility Functions'!$L$4,'Utility Functions'!$L$5,'Utility Functions'!$L$6)) -> 0 | H75: =$H$40*(valueE(H34,'Utility Functions'!$N$3,'Utility Functions'!$N$4,'Utility Functions'!$N$5,'Utility Functions'!$N$6)) -> 0 | I75: =$I$40*valuePL(I34,'Utility Functions'!$O$3:$O$6,'Utility Functions'!$P$3:$P$6) -> 0 | J75: =$J$40*valuePL(J34,'Utility Functions'!$Q$3:$Q$6,'Utility Functions'!$R$3:$R$6) -> 0 | K75: =$K$40*(valuePL(K34,'Utility Functions'!$S$3:$S$7,'Utility Functions'!$T$3:$T$7)) -> 0 | L75: =$L$40*(valueE(L34,'Utility Functions'!$V$3,'Utility Functions'!$V$4,'Utility Functions'!$V$5,'Utility Functions'!$V$6)) -> 0.01 | M75: =$M$40*valuePL(M34,'Utility Functions'!$W$3:$W$6,'Utility Functions'!$X$3:$X$6) -> 0 | N75: =$N$40*valueE(N34,'Utility Functions'!$Z$3,'Utility Functions'!$Z$4,'Utility Functions'!$Z$5,'Utility Functions'!$Z$6) -> 0 | O75: =$O$40*valuePL(O34,'Utility Functions'!$AA$3:$AA$5,'Utility Functions'!$AB$3:$AB$5) -> 0 | P75: =$P$40*valuePL(P34,'Utility Functions'!$AC$3:$AC$7,'Utility Functions'!$AD$3:$AD$7) -> 0.02 | Q75: =$Q$40*valuePL(Q34,'Utility Functions'!$AE$3:$AE$6,'Utility Functions'!$AF$3:$AF$6) -> 0 | R75: =$R$40*valuePL(R34,'Utility Functions'!$AG$3:$AG$6,'Utility Functions'!$AH$3:$AH$6) -> 0.05 | S75: =$S$40*valuePL(S34,'Utility Functions'!$AI$3:$AI$6,'Utility Functions'!$AJ$3:$AJ$6) -> 0.033 | T75: =$T$40*valuePL(T34,'Utility Functions'!$AK$3:$AK$8,'Utility Functions'!$AL$3:$AL$8) -> 0 | U75: =$U$40*valuePL(U34,'Utility Functions'!$AM$3:$AM$5,'Utility Functions'!$AN$3:$AN$5) -> 0 | V75: =$V$40*valuePL(V34,'Utility Functions'!$AO$3:$AO$5,'Utility Functions'!$AP$3:$AP$5) -> 0.025 | W75: =$W$40*valuePL(W34,'Utility Functions'!$AQ$3:$AQ$6,'Utility Functions'!$AR$3:$AR$6) -> 0.04 | X75: =$X$40*valuePL(X34,'Utility Functions'!$AS$3:$AS$6,'Utility Functions'!$AT$3:$AT$6) -> 0 | Y75: =$Y$40*valuePL(Y34,'Utility Functions'!$AU$3:$AU$6,'Utility Functions'!$AV$3:$AV$6) -> 0.04 | Z75: =$Z$40*valuePL(Z34,'Utility Functions'!$AW$3:$AW$5,'Utility Functions'!$AX$3:$AX$5) -> 0.05 | AA75: =$AA$40*valuePL(AA34,'Utility Functions'!$AY$3:$AY$6,'Utility Functions'!$AZ$3:$AZ$6) -> 0.04 | AB75: =$AB$40*valuePL(AB34,'Utility Functions'!$BA$3:$BA$5,'Utility Functions'!$BB$3:$BB$5) -> 0 | AC75: =$AC$40*valuePL(AC34,'Utility Functions'!$BC$3:$BC$5,'Utility Functions'!$BD$3:$BD$5) -> 0 | AD75: 0.4065991919 | AE75: 0.405514675
A76: 34 | B76: =$B$40*(valueE(B35,'Utility Functions'!$B$3,'Utility Functions'!$B$4,'Utility Functions'!$B$5,'Utility Functions'!$B$6)) -> 0 | C76: =$C$40*(valueE(C35,'Utility Functions'!$D$3,'Utility Functions'!$D$4,'Utility Functions'!$D$5,'Utility Functions'!$D$6)) -> 0 | D76: =$D$40*(valuePL(D35,'Utility Functions'!$E$3:$E$5,'Utility Functions'!$F$3:$F$5)) -> 0 | E76: =$E$40*(valuePL(E35,'Utility Functions'!$G$3:$G$5,'Utility Functions'!$H$3:$H$5)) -> 0 | F76: =$F$40*(valuePL(F35,'Utility Functions'!$I$3:$I$4,'Utility Functions'!$J$3:$J$5)) -> 0 | G76: =$G$40*(valueE(G35,'Utility Functions'!$L$3,'Utility Functions'!$L$4,'Utility Functions'!$L$5,'Utility Functions'!$L$6)) -> 0 | H76: =$H$40*(valueE(H35,'Utility Functions'!$N$3,'Utility Functions'!$N$4,'Utility Functions'!$N$5,'Utility Functions'!$N$6)) -> 0.0001707779886 | I76: =$I$40*valuePL(I35,'Utility Functions'!$O$3:$O$6,'Utility Functions'!$P$3:$P$6) -> 0.03 | J76: =$J$40*valuePL(J35,'Utility Functions'!$Q$3:$Q$6,'Utility Functions'!$R$3:$R$6) -> 0.01836363636 | K76: =$K$40*(valuePL(K35,'Utility Functions'!$S$3:$S$7,'Utility Functions'!$T$3:$T$7)) -> 0.02 | L76: =$L$40*(valueE(L35,'Utility Functions'!$V$3,'Utility Functions'!$V$4,'Utility Functions'!$V$5,'Utility Functions'!$V$6)) -> 0.02 | M76: =$M$40*valuePL(M35,'Utility Functions'!$W$3:$W$6,'Utility Functions'!$X$3:$X$6) -> 0.01836363636 | N76: =$N$40*valueE(N35,'Utility Functions'!$Z$3,'Utility Functions'!$Z$4,'Utility Functions'!$Z$5,'Utility Functions'!$Z$6) -> 0 | O76: =$O$40*valuePL(O35,'Utility Functions'!$AA$3:$AA$5,'Utility Functions'!$AB$3:$AB$5) -> 0 | P76: =$P$40*valuePL(P35,'Utility Functions'!$AC$3:$AC$7,'Utility Functions'!$AD$3:$AD$7) -> 0.02 | Q76: =$Q$40*valuePL(Q35,'Utility Functions'!$AE$3:$AE$6,'Utility Functions'!$AF$3:$AF$6) -> 0 | R76: =$R$40*valuePL(R35,'Utility Functions'!$AG$3:$AG$6,'Utility Functions'!$AH$3:$AH$6) -> 0.05 | S76: =$S$40*valuePL(S35,'Utility Functions'!$AI$3:$AI$6,'Utility Functions'!$AJ$3:$AJ$6) -> 0.05 | T76: =$T$40*valuePL(T35,'Utility Functions'!$AK$3:$AK$8,'Utility Functions'!$AL$3:$AL$8) -> 0.024 | U76: =$U$40*valuePL(U35,'Utility Functions'!$AM$3:$AM$5,'Utility Functions'!$AN$3:$AN$5) -> 0 | V76: =$V$40*valuePL(V35,'Utility Functions'!$AO$3:$AO$5,'Utility Functions'!$AP$3:$AP$5) -> 0.05 | W76: =$W$40*valuePL(W35,'Utility Functions'!$AQ$3:$AQ$6,'Utility Functions'!$AR$3:$AR$6) -> 0.04 | X76: =$X$40*valuePL(X35,'Utility Functions'!$AS$3:$AS$6,'Utility Functions'!$AT$3:$AT$6) -> 0.04 | Y76: =$Y$40*valuePL(Y35,'Utility Functions'!$AU$3:$AU$6,'Utility Functions'!$AV$3:$AV$6) -> 0 | Z76: =$Z$40*valuePL(Z35,'Utility Functions'!$AW$3:$AW$5,'Utility Functions'!$AX$3:$AX$5) -> 0.05 | AA76: =$AA$40*valuePL(AA35,'Utility Functions'!$AY$3:$AY$6,'Utility Functions'!$AZ$3:$AZ$6) -> 0.036 | AB76: =$AB$40*valuePL(AB35,'Utility Functions'!$BA$3:$BA$5,'Utility Functions'!$BB$3:$BB$5) -> 0.01 | AC76: =$AC$40*valuePL(AC35,'Utility Functions'!$BC$3:$BC$5,'Utility Functions'!$BD$3:$BD$5) -> 0 | AD76: 0.4768980507 | AE76: 0.4768980507
A77: 35 | B77: =$B$40*(valueE(B36,'Utility Functions'!$B$3,'Utility Functions'!$B$4,'Utility Functions'!$B$5,'Utility Functions'!$B$6)) -> 0.02394314074 | C77: =$C$40*(valueE(C36,'Utility Functions'!$D$3,'Utility Functions'!$D$4,'Utility Functions'!$D$5,'Utility Functions'!$D$6)) -> 0.01828199494 | D77: =$D$40*(valuePL(D36,'Utility Functions'!$E$3:$E$5,'Utility Functions'!$F$3:$F$5)) -> 0.015 | E77: =$E$40*(valuePL(E36,'Utility Functions'!$G$3:$G$5,'Utility Functions'!$H$3:$H$5)) -> 0.015 | F77: =$F$40*(valuePL(F36,'Utility Functions'!$I$3:$I$4,'Utility Functions'!$J$3:$J$5)) -> 0.04 | G77: =$G$40*(valueE(G36,'Utility Functions'!$L$3,'Utility Functions'!$L$4,'Utility Functions'!$L$5,'Utility Functions'!$L$6)) -> 0 | H77: =$H$40*(valueE(H36,'Utility Functions'!$N$3,'Utility Functions'!$N$4,'Utility Functions'!$N$5,'Utility Functions'!$N$6)) -> 0 | I77: =$I$40*valuePL(I36,'Utility Functions'!$O$3:$O$6,'Utility Functions'!$P$3:$P$6) -> 0 | J77: =$J$40*valuePL(J36,'Utility Functions'!$Q$3:$Q$6,'Utility Functions'!$R$3:$R$6) -> 0 | K77: =$K$40*(valuePL(K36,'Utility Functions'!$S$3:$S$7,'Utility Functions'!$T$3:$T$7)) -> 0.02 | L77: =$L$40*(valueE(L36,'Utility Functions'!$V$3,'Utility Functions'!$V$4,'Utility Functions'!$V$5,'Utility Functions'!$V$6)) -> 0.01333333333 | M77: =$M$40*valuePL(M36,'Utility Functions'!$W$3:$W$6,'Utility Functions'!$X$3:$X$6) -> 0.002 | N77: =$N$40*valueE(N36,'Utility Functions'!$Z$3,'Utility Functions'!$Z$4,'Utility Functions'!$Z$5,'Utility Functions'!$Z$6) -> 0.03 | O77: =$O$40*valuePL(O36,'Utility Functions'!$AA$3:$AA$5,'Utility Functions'!$AB$3:$AB$5) -> 0 | P77: =$P$40*valuePL(P36,'Utility Functions'!$AC$3:$AC$7,'Utility Functions'!$AD$3:$AD$7) -> 0 | Q77: =$Q$40*valuePL(Q36,'Utility Functions'!$AE$3:$AE$6,'Utility Functions'!$AF$3:$AF$6) -> 0 | R77: =$R$40*valuePL(R36,'Utility Functions'!$AG$3:$AG$6,'Utility Functions'!$AH$3:$AH$6) -> 0.05 | S77: =$S$40*valuePL(S36,'Utility Functions'!$AI$3:$AI$6,'Utility Functions'!$AJ$3:$AJ$6) -> 0.05 | T77: =$T$40*valuePL(T36,'Utility Functions'!$AK$3:$AK$8,'Utility Functions'!$AL$3:$AL$8) -> 0.018 | U77: =$U$40*valuePL(U36,'Utility Functions'!$AM$3:$AM$5,'Utility Functions'!$AN$3:$AN$5) -> 0 | V77: =$V$40*valuePL(V36,'Utility Functions'!$AO$3:$AO$5,'Utility Functions'!$AP$3:$AP$5) -> 0.05 | W77: =$W$40*valuePL(W36,'Utility Functions'!$AQ$3:$AQ$6,'Utility Functions'!$AR$3:$AR$6) -> 0.03 | X77: =$X$40*valuePL(X36,'Utility Functions'!$AS$3:$AS$6,'Utility Functions'!$AT$3:$AT$6) -> 0 | Y77: =$Y$40*valuePL(Y36,'Utility Functions'!$AU$3:$AU$6,'Utility Functions'!$AV$3:$AV$6) -> 0.01 | Z77: =$Z$40*valuePL(Z36,'Utility Functions'!$AW$3:$AW$5,'Utility Functions'!$AX$3:$AX$5) -> 0.05 | AA77: =$AA$40*valuePL(AA36,'Utility Functions'!$AY$3:$AY$6,'Utility Functions'!$AZ$3:$AZ$6) -> 0 | AB77: =$AB$40*valuePL(AB36,'Utility Functions'!$BA$3:$BA$5,'Utility Functions'!$BB$3:$BB$5) -> 0.01 | AC77: =$AC$40*valuePL(AC36,'Utility Functions'!$BC$3:$BC$5,'Utility Functions'!$BD$3:$BD$5) -> 0.0075 | AD77: 0.453058469 | AE77: 0.4512077265 | AG77: management | AH77: status | AI77: ecol_proc | AJ77: integration | AK77: rigor
A78: Portfolio total | B78: =SUMPRODUCT($B$82:$B$116,B$43:B$77) -> 0.08141087536 | C78: =SUMPRODUCT($B$82:$B$116,C$43:C$77) -> 0.09996734686 | D78: 0.105 | E78: 0.015 | F78: 0 | G78: 0.01419354839 | H78: 0.004810246679 | I78: 0.02263636364 | J78: 0.0016 | K78: 0 | L78: 0.01333333333 | M78: 0.0024 | N78: 0.06 | O78: 0.045 | P78: 0.05 | Q78: 0.064 | R78: 0.21 | S78: 0.1995 | T78: 0.066 | U78: 0.0075 | V78: 0.15 | W78: 0.086 | X78: 0.104 | Y78: 0.14 | Z78: 0.15 | AA78: 0.124 | AB78: 0.14 | AC78: 0.0375 | AD78: 1.993851714 | AE78: 1.988726957 | AG78: =SUM(B78:F78) -> 0.3013782222 | AH78: =SUM(G78:M78) -> 0.05897349204 | AI78: =SUM(N78:O78) -> 0.105 | AJ78: =SUM(P78:U78) -> 0.597 | AK78: =SUM(V78:AC78) -> 0.9315
B81: Decision variable | C81: Benefit | D81: Cost
A82: =A2 -> 1 | B82: 0 | C82: =AD43 -> 0.628529316 | D82: =AD2 -> 700000
A83: =A3 -> 2 | B83: 0 | C83: =AD44 -> 0.534248774 | D83: =AD3 -> 5400000
A84: 3 | B84: 0 | C84: 0.4589062433 | D84: 250000
A85: 4 | B85: 0 | C85: 0.3773808758 | D85: 150000
A86: 5 | B86: 0 | C86: 0.3735898378 | D86: 220000
A87: 6 | B87: 0 | C87: 0.2176254138 | D87: 110000
A88: 7 | B88: 0 | C88: 0.5588316744 | D88: 1000000
A89: 8 | B89: 0 | C89: 0.5265936679 | D89: 5000000
A90: 9 | B90: 0 | C90: 0.4583756362 | D90: 25000
A91: 10 | B91: 0 | C91: 0.4205 | D91: 900000
A92: 11 | B92: 0 | C92: 0.4880036657 | D92: 1500000
A93: 12 | B93: 1 | C93: 0.3815874073 | D93: 100000
A94: 13 | B94: 0 | C94: 0.3054753234 | D94: 250000
A95: 14 | B95: 0 | C95: 0.4311611991 | D95: 500000
A96: 15 | B96: 0 | C96: 0.6097143178 | D96: 800000
A97: 16 | B97: 0 | C97: 0.5433939394 | D97: 2000000
A98: 17 | B98: 0 | C98: 0.4020919614 | D98: 500000
A99: =A19 -> 18 | B99: 1 | C99: 0.439426945 | D99: 300000
A100: 19 | B100: 0 | C100: 0.4154950374 | D100: 750000
A101: 20 | B101: 0 | C101: 0.5588530095 | D101: 1500000
A102: 21 | B102: 0 | C102: 0.4215 | D102: 900000
A103: 22 | B103: 0 | C103: 0.4444511385 | D103: 750000
A104: 23 | B104: 0 | C104: 0.3789645223 | D104: 1000000
A105: 24 | B105: 0 | C105: 0.3789064356 | D105: 150000
A106: 25 | B106: 1 | C106: 0.5325413724 | D106: 250000
A107: 26 | B107: 0 | C107: 0.4294222969 | D107: 500000
A108: 27 | B108: 0 | C108: 0.3409427901 | D108: 1200000
A109: 28 | B109: 0 | C109: 0.4936451282 | D109: 500000
A110: =A30 -> 29 | B110: 0 | C110: 0.4451559901 | D110: 2000000
A111: 30 | B111: 1 | C111: 0.2833493521 | D111: 250000
A112: 31 | B112: 1 | C112: 0.3569466375 | D112: 650000
A113: 32 | B113: 0 | C113: 0.4907237533 | D113: 200000
A114: =A34 -> 33 | B114: 0 | C114: 0.4065991919 | D114: 400000
A115: 34 | B115: 0 | C115: 0.4768980507 | D115: 900000
A116: =A36 -> 35 | B116: 0 | C116: 0.453058469 | D116: 900000
B117: 5 | C117: =SUMPRODUCT(B82:B116,C82:C116) -> 1.993851714 | D117: =SUMPRODUCT(B82:B116,D82:D116) -> 1550000
C119: Cost constraint | D119: 15000000

Sheet Portfolio_B
A1: Project | B1: manage_species | C1: manage_spatial | D1: manage_uncertainty | E1: manage_currentpractices | F1: manage_adaptivemanagement | G1: pop_a | H1: pop_b | I1: pop_spatialscope | J1: pop_temporalscope | K1: hab_quantity | L1: hab_quality | M1: hab_temporal | N1: ecoprocess_spp | O1: ecoprocess_uncertainty | P1: datasharing | Q1: broaderimpacts | R1: exisitingpriorities | S1: partners | T1: leverage | U1: alignment | V1: objhyp | W1: response | X1: targettaxa | Y1: surveydesign | Z1: stats | AA1: datamanagement | AB1: budget | AC1: timeline | AD1: cost
A2: 1 | B2: 9 | C2: 6.25 | D2: 2 | E2: 2 | F2: 0 | G2: 186 | H2: 1054 | I2: 75 | J2: 5 | K2: 0 | L2: 2 | M2: 0 | N2: 0 | O2: 0 | P2: 4 | Q2: 0 | R2: 2 | S2: 3 | T2: 0 | U2: 0 | V2: 2 | W2: 3 | X2: 3 | Y2: 3 | Z2: 2 | AA2: 3 | AB2: 2 | AC2: 2 | AD2: 700000
A3: 2 | B3: 3 | C3: 28.2 | D3: 1 | E3: 0 | F3: 0 | G3: 0 | H3: 0 | I3: 0 | J3: 0 | K3: 0 | L3: 2 | M3: 0 | N3: 4 | O3: 1 | P3: 0 | Q3: 0 | R3: 3 | S3: 3 | T3: 0 | U3: 0 | V3: 2 | W3: 3 | X3: 3 | Y3: 3 | Z3: 2 | AA3: 3 | AB3: 2 | AC3: 2 | AD3: 5400000
A4: 3 | B4: 8 | C4: 28.2 | D4: 2 | E4: 0 | F4: 0 | G4: 0 | H4: 0 | I4: 0 | J4: 0 | K4: 0 | L4: 2 | M4: 0 | N4: 5 | O4: 1 | P4: 0 | Q4: 2 | R4: 0 | S4: 0 | T4: 0 | U4: 1 | V4: 2 | W4: 3 | X4: 3 | Y4: 3 | Z4: 2 | AA4: 1 | AB4: 2 | AC4: 2 | AD4: 250000
A5: 4 | B5: 1 | C5: 6.25 | D5: 2 | E5: 0 | F5: 0 | G5: 0 | H5: 0 | I5: 0 | J5: 0 | K5: 0 | L5: 2 | M5: 0 | N5: 4 | O5: 1 | P5: 0 | Q5: 1 | R5: 3 | S5: 3 | T5: 4 | U5: 0 | V5: 1 | W5: 3 | X5: 3 | Y5: 1 | Z5: 0 | AA5: 0 | AB5: 2 | AC5: 1 | AD5: 150000
A6: 5 | B6: 4 | C6: 3.1 | D6: 2 | E6: 0 | F6: 0 | G6: 0 | H6: 0 | I6: 50 | J6: 2 | K6: 0 | L6: 2 | M6: 0 | N6: 0 | O6: 0 | P6: 0 | Q6: 1 | R6: 3 | S6: 3 | T6: 4 | U6: 1 | V6: 0 | W6: 3 | X6: 3 | Y6: 2 | Z6: 0 | AA6: 0 | AB6: 2 | AC6: 1 | AD6: 220000
A7: 6 | B7: 10 | C7: 0.062 | D7: 2 | E7: 0 | F7: 0 | G7: 0 | H7: 0 | I7: 10 | J7: 2 | K7: 0 | L7: 2 | M7: 0 | N7: 0 | O7: 0 | P7: 0 | Q7: 1 | R7: 0 | S7: 3 | T7: 3 | U7: 0 | V7: 0 | W7: 0 | X7: 3 | Y7: 0 | Z7: 0 | AA7: 0 | AB7: 2 | AC7: 1 | AD7: 110000
A8: 7 | B8: 52 | C8: 18.8 | D8: 0 | E8: 2 | F8: 0 | G8: 0 | H8: 0 | I8: 85 | J8: 12 | K8: 85 | L8: 8 | M8: 12 | N8: 8 | O8: 1 | P8: 0 | Q8: 0 | R8: 3 | S8: 3 | T8: 0 | U8: 0 | V8: 2 | W8: 0 | X8: 1 | Y8: 3 | Z8: 2 | AA8: 2 | AB8: 0 | AC8: 2 | AD8: 1000000
A9: 8 | B9: 3 | C9: 18.8 | D9: 2 | E9: 1 | F9: 1 | G9: 0 | H9: 0 | I9: 14 | J9: 14 | K9: 14 | L9: 8 | M9: 14 | N9: 0 | O9: 0 | P9: 0 | Q9: 3 | R9: 1 | S9: 3 | T9: 0 | U9: 0 | V9: 2 | W9: 3 | X9: 3 | Y9: 3 | Z9: 2 | AA9: 0 | AB9: 1 | AC9: 1 | AD9: 5000000
A10: 9 | B10: 9 | C10: 15.6 | D10: 2 | E10: 1 | F10: 0 | G10: 70 | H10: 140 | I10: 0 | J10: 0 | K10: 0 | L10: 2 | M10: 0 | N10: 0 | O10: 0 | P10: 3 | Q10: 0 | R10: 3 | S10: 2 | T10: 1 | U10: 0 | V10: 2 | W10: 3 | X10: 3 | Y10: 1 | Z10: 2 | AA10: 1 | AB10: 1 | AC10: 2 | AD10: 25000
A11: 10 | B11: 0 | C11: 0 | D11: 0 | E11: 0 | F11: 0 | G11: 0 | H11: 0 | I11: 0 | J11: 0 | K11: 0 | L11: 2 | M11: 0 | N11: 6 | O11: 2 | P11: 1 | Q11: 2 | R11: 3 | S11: 2 | T11: 2 | U11: 0 | V11: 0 | W11: 2 | X11: 3 | Y11: 3 | Z11: 1 | AA11: 1 | AB11: 0 | AC11: 2 | AD11: 900000
A12: 11 | B12: 0 | C12: 0 | D12: 0 | E12: 0 | F12: 0 | G12: 6 | H12: 102 | I12: 52 | J12: 15 | K12: 52 | L12: 8 | M12: 15 | N12: 3 | O12: 1 | P12: 1 | Q12: 0 | R12: 3 | S12: 3 | T12: 2 | U12: 2 | V12: 2 | W12: 1 | X12: 3 | Y12: 3 | Z12: 1 | AA12: 2 | AB12: 0 | AC12: 1 | AD12: 1500000
A13: 12 | B13: 2 | C13: 15.6 | D13: 2 | E13: 1 | F13: 0 | G13: 0 | H13: 0 | I13: 0 | J13: 0 | K13: 0 | L13: 2 | M13: 0 | N13: 0 | O13: 0 | P13: 0 | Q13: 1 | R13: 3 | S13: 3 | T13: 3 | U13: 0 | V13: 1 | W13: 1 | X13: 3 | Y13: 1 | Z13: 2 | AA13: 1 | AB13: 2 | AC13: 0 | AD13: 100000
A14: 13 | B14: 0 | C14: 0 | D14: 0 | E14: 0 | F14: 0 | G14: 0 | H14: 12 | I14: 39 | J14: 2 | K14: 39 | L14: 8 | M14: 2 | N14: 7 | O14: 1 | P14: 1 | Q14: 0 | R14: 3 | S14: 3 | T14: 0 | U14: 0 | V14: 1 | W14: 0 | X14: 1 | Y14: 0 | Z14: 2 | AA14: 1 | AB14: 1 | AC14: 1 | AD14: 250000
A15: 14 | B15: 6 | C15: 15.6 | D15: 1 | E15: 1 | F15: 0 | G15: 0 | H15: 0 | I15: 0 | J15: 0 | K15: 0 | L15: 2 | M15: 0 | N15: 6 | O15: 1 | P15: 1 | Q15: 0 | R15: 3 | S15: 3 | T15: 0 | U15: 0 | V15: 1 | W15: 1 | X15: 3 | Y15: 3 | Z15: 1 | AA15: 2 | AB15: 1 | AC15: 1 | AD15: 500000
A16: 15 | B16: 23 | C16: 12.5 | D16: 2 | E16: 1 | F16: 1 | G16: 0 | H16: 0 | I16: 23 | J16: 3 | K16: 23 | L16: 8 | M16: 3 | N16: 1 | O16: 2 | P16: 2 | Q16: 0 | R16: 2 | S16: 3 | T16: 3 | U16: 2 | V16: 0 | W16: 3 | X16: 1 | Y16: 1 | Z16: 2 | AA16: 3 | AB16: 2 | AC16: 1 | AD16: 800000
A17: 16 | B17: 0 | C17: 0 | D17: 0 | E17: 0 | F17: 0 | G17: 0 | H17: 0 | I17: 100 | J17: 15 | K17: 100 | L17: 7 | M17: 15 | N17: 0 | O17: 0 | P17: 3 | Q17: 0 | R17: 3 | S17: 3 | T17: 5 | U17: 0 | V17: 2 | W17: 2 | X17: 2 | Y17: 1 | Z17: 2 | AA17: 3 | AB17: 2 | AC17: 2 | AD17: 2000000
A18: 17 | B18: 2 | C18: 15.6 | D18: 2 | E18: 1 | F18: 1 | G18: 58 | H18: 290 | I18: 0 | J18: 0 | K18: 0 | L18: 8 | M18: 3 | N18: 0 | O18: 0 | P18: 0 | Q18: 0 | R18: 3 | S18: 2 | T18: 0 | U18: 0 | V18: 2 | W18: 3 | X18: 1 | Y18: 0 | Z18: 1 | AA18: 0 | AB18: 2 | AC18: 1 | AD18: 500000
A19: 18 | B19: 0 | C19: 0 | D19: 0 | E19: 0 | F19: 0 | G19: 0 | H19: 30 | I19: 0 | J19: 0 | K19: 0 | L19: 2 | M19: 0 | N19: 8 | O19: 1 | P19: 1 | Q19: 3 | R19: 3 | S19: 3 | T19: 5 | U19: 1 | V19: 2 | W19: 2 | X19: 1 | Y19: 2 | Z19: 1 | AA19: 2 | AB19: 1 | AC19: 0 | AD19: 300000
A20: 19 | B20: 8 | C20: 3.125 | D20: 1 | E20: 2 | F20: 0 | G20: 0 | H20: 0 | I20: 0 | J20: 0 | K20: 0 | L20: 2 | M20: 0 | N20: 8 | O20: 2 | P20: 0 | Q20: 0 | R20: 2 | S20: 3 | T20: 0 | U20: 0 | V20: 1 | W20: 1 | X20: 3 | Y20: 2 | Z20: 0 | AA20: 1 | AB20: 0 | AC20: 1 | AD20: 750000
A21: 20 | B21: 9 | C21: 15.6 | D21: 1 | E21: 2 | F21: 0 | G21: 0 | H21: 435 | I21: 76 | J21: 10 | K21: 76 | L21: 6 | M21: 10 | N21: 8 | O21: 2 | P21: 1 | Q21: 0 | R21: 3 | S21: 3 | T21: 3 | U21: 2 | V21: 1 | W21: 0 | X21: 0 | Y21: 1 | Z21: 2 | AA21: 1 | AB21: 0 | AC21: 1 | AD21: 1500000
A22: 21 | B22: 0 | C22: 0 | D22: 0 | E22: 0 | F22: 0 | G22: 0 | H22: 0 | I22: 0 | J22: 0 | K22: 0 | L22: 2 | M22: 0 | N22: 8 | O22: 2 | P22: 0 | Q22: 1 | R22: 3 | S22: 3 | T22: 5 | U22: 1 | V22: 0 | W22: 2 | X22: 3 | Y22: 1 | Z22: 0 | AA22: 3 | AB22: 1 | AC22: 2 | AD22: 900000
A23: 22 | B23: 0 | C23: 0 | D23: 0 | E23: 0 | F23: 0 | G23: 16 | H23: 64 | I23: 0 | J23: 0 | K23: 0 | L23: 2 | M23: 0 | N23: 1 | O23: 2 | P23: 4 | Q23: 2 | R23: 2 | S23: 3 | T23: 5 | U23: 0 | V23: 1 | W23: 2 | X23: 1 | Y23: 0 | Z23: 2 | AA23: 1 | AB23: 2 | AC23: 1 | AD23: 750000
A24: 23 | B24: 9 | C24: 18.8 | D24: 2 | E24: 0 | F24: 0 | G24: 0 | H24: 0 | I24: 0 | J24: 0 | K24: 0 | L24: 2 | M24: 0 | N24: 0 | O24: 0 | P24: 3 | Q24: 0 | R24: 3 | S24: 3 | T24: 5 | U24: 0 | V24: 2 | W24: 1 | X24: 2 | Y24: 1 | Z24: 1 | AA24: 1 | AB24: 0 | AC24: 1 | AD24: 1000000
A25: 24 | B25: 5 | C25: 6.25 | D25: 2 | E25: 0 | F25: 0 | G25: 0 | H25: 0 | I25: 0 | J25: 0 | K25: 0 | L25: 2 | M25: 0 | N25: 0 | O25: 0 | P25: 0 | Q25: 0 | R25: 3 | S25: 3 | T25: 5 | U25: 0 | V25: 0 | W25: 3 | X25: 1 | Y25: 3 | Z25: 2 | AA25: 1 | AB25: 0 | AC25: 2 | AD25: 150000
A26: 25 | B26: 9 | C26: 18.8 | D26: 2 | E26: 0 | F26: 0 | G26: 176 | H26: 308 | I26: 0 | J26: 0 | K26: 0 | L26: 2 | M26: 0 | N26: 8 | O26: 1 | P26: 2 | Q26: 2 | R26: 3 | S26: 3 | T26: 0 | U26: 0 | V26: 2 | W26: 1 | X26: 3 | Y26: 2 | Z26: 1 | AA26: 1 | AB26: 2 | AC26: 2 | AD26: 250000
A27: 26 | B27: 17 | C27: 18.8 | D27: 2 | E27: 1 | F27: 0 | G27: 0 | H27: 0 | I27: 0 | J27: 0 | K27: 0 | L27: 2 | M27: 0 | N27: 0 | O27: 0 | P27: 3 | Q27: 0 | R27: 3 | S27: 3 | T27: 4 | U27: 0 | V27: 2 | W27: 1 | X27: 0 | Y27: 2 | Z27: 0 | AA27: 1 | AB27: 2 | AC27: 2 | AD27: 500000
A28: 27 | B28: 0 | C28: 6.25 | D28: 2 | E28: 0 | F28: 0 | G28: 0 | H28: 0 | I28: 0 | J28: 0 | K28: 80 | L28: 2 | M28: 5 | N28: 0 | O28: 0 | P28: 2 | Q28: 2 | R28: 3 | S28: 3 | T28: 5 | U28: 0 | V28: 1 | W28: 2 | X28: 3 | Y28: 1 | Z28: 0 | AA28: 0 | AB28: 0 | AC28: 0 | AD28: 1200000
A29: 28 | B29: 3 | C29: 6.25 | D29: 2 | E29: 0 | F29: 1 | G29: 0 | H29: 0 | I29: 0 | J29: 0 | K29: 0 | L29: 4 | M29: 5 | N29: 0 | O29: 0 | P29: 4 | Q29: 0 | R29: 3 | S29: 3 | T29: 4 | U29: 0 | V29: 2 | W29: 3 | X29: 3 | Y29: 1 | Z29: 0 | AA29: 2 | AB29: 2 | AC29: 1 | AD29: 500000
A30: 29 | B30: 9 | C30: 12.5 | D30: 2 | E30: 1 | F30: 0 | G30: 0 | H30: 0 | I30: 15 | J30: 12 | K30: 15 | L30: 8 | M30: 12 | N30: 0 | O30: 0 | P30: 1 | Q30: 0 | R30: 3 | S30: 3 | T30: 4 | U30: 0 | V30: 2 | W30: 1 | X30: 0 | Y30: 2 | Z30: 1 | AA30: 1 | AB30: 1 | AC30: 2 | AD30: 2000000
A31: 30 | B31: 33 | C31: 18.8 | D31: 2 | E31: 0 | F31: 0 | G31: 0 | H31: 0 | I31: 0 | J31: 0 | K31: 0 | L31: 4 | M31: 2 | N31: 0 | O31: 0 | P31: 0 | Q31: 0 | R31: 1 | S31: 1 | T31: 0 | U31: 0 | V31: 0 | W31: 3 | X31: 1 | Y31: 2 | Z31: 0 | AA31: 2 | AB31: 2 | AC31: 0 | AD31: 250000
A32: 31 | B32: 4 | C32: 18.8 | D32: 1 | E32: 0 | F32: 0 | G32: 0 | H32: 0 | I32: 65 | J32: 4 | K32: 0 | L32: 4 | M32: 4 | N32: 0 | O32: 0 | P32: 2 | Q32: 0 | R32: 3 | S32: 2 | T32: 3 | U32: 0 | V32: 1 | W32: 0 | X32: 1 | Y32: 1 | Z32: 2 | AA32: 2 | AB32: 1 | AC32: 1 | AD32: 650000
A33: 32 | B33: 5 | C33: 3.125 | D33: 2 | E33: 2 | F33: 1 | G33: 6 | H33: 102 | I33: 40 | J33: 16 | K33: 40 | L33: 8 | M33: 16 | N33: 0 | O33: 0 | P33: 2 | Q33: 3 | R33: 3 | S33: 0 | T33: 4 | U33: 0 | V33: 0 | W33: 2 | X33: 1 | Y33: 2 | Z33: 1 | AA33: 0 | AB33: 2 | AC33: 1 | AD33: 200000
A34: 33 | B34: 14 | C34: 18.8 | D34: 2 | E34: 1 | F34: 0 | G34: 0 | H34: 0 | I34: 0 | J34: 0 | K34: 0 | L34: 5 | M34: 0 | N34: 0 | O34: 0 | P34: 2 | Q34: 0 | R34: 3 | S34: 2 | T34: 0 | U34: 0 | V34: 1 | W34: 3 | X34: 0 | Y34: 2 | Z34: 2 | AA34: 3 | AB34: 0 | AC34: 0 | AD34: 400000
A35: 34 | B35: 0 | C35: 0 | D35: 0 | E35: 0 | F35: 0 | G35: 0 | H35: 12 | I35: 100 | J35: 15 | K35: 100 | L35: 8 | M35: 15 | N35: 0 | O35: 0 | P35: 2 | Q35: 0 | R35: 3 | S35: 3 | T35: 4 | U35: 0 | V35: 2 | W35: 3 | X35: 3 | Y35: 0 | Z35: 2 | AA35: 2 | AB35: 1 | AC35: 0 | AD35: 900000
A36: 35 | B36: 8 | C36: 9.4 | D36: 1 | E36: 1 | F36: 1 | G36: 0 | H36: 0 | I36: 0 | J36: 0 | K36: 100 | L36: 6 | M36: 5 | N36: 8 | O36: 0 | P36: 0 | Q36: 0 | R36: 3 | S36: 3 | T36: 3 | U36: 0 | V36: 2 | W36: 2 | X36: 0 | Y36: 1 | Z36: 2 | AA36: 0 | AB36: 1 | AC36: 1 | AD36: 900000
B37: =SUM(B2:B36) -> 265 | C37: =SUM(C2:C36) -> 359.862 | D37: 46 | E37: 20 | F37: 6 | G37: 518 | H37: 2549 | I37: 744 | J37: 127 | K37: 724 | L37: 146 | M37: 138 | N37: 93 | O37: 21 | P37: 45 | Q37: 24 | R37: 91 | S37: 92 | T37: 86 | U37: 10 | V37: 44 | W37: 66 | X37: 68 | Y37: 57 | Z37: 43 | AA37: 47 | AB37: 42 | AC37: 41
B38: =B1 -> manage_species | C38: =C1 -> manage_spatial | D38: manage_uncertainty | E38: manage_currentpractices | F38: manage_adaptivemanagement | G38: pop_a | H38: pop_b | I38: pop_spatialscope | J38: pop_temporalscope | K38: hab_quantity | L38: hab_quality | M38: hab_temporal | N38: ecoprocess_spp | O38: ecoprocess_uncertainty | P38: datasharing | Q38: broaderimpacts | R38: exisitingpriorities | S38: partners | T38: leverage | U38: alignment | V38: objhyp | W38: response | X38: targettaxa | Y38: surveydesign | Z38: stats | AA38: datamanagement | AB38: budget | AC38: timeline
B39: Metric 1 | C39: Metric 2 | D39: Metric 3 | E39: Metric 4 | F39: Metric 5 | G39: Metric 6a | H39: Metric 6b | I39: Metric 7 | J39: Metric 8 | K39: Metric 9 | L39: Metric 10 | M39: Metric 11 | N39: Metric 12 | O39: Metric 13 | P39: Metric 14 | Q39: Metric 15 | R39: Metric 16 | S39: Metric 17 | T39: Metric 18 | U39: Metric 19 | V39: Metric 20 | W39: Metric 21 | X39: Metric 22 | Y39: Metric 23 | Z39: Metric 24 | AA39: Metric 25 | AB39: Metric 26 | AC39: Metric 27
A40: Weights | B40: 0.03 | C40: 0.03 | D40: 0.03 | E40: 0.03 | F40: 0.04 | G40: 0.015 | H40: 0.015 | I40: 0.03 | J40: 0.02 | K40: 0.02 | L40: 0.02 | M40: 0.02 | N40: 0.03 | O40: 0.09 | P40: 0.04 | Q40: 0.04 | R40: 0.05 | S40: 0.05 | T40: 0.03 | U40: 0.03 | V40: 0.05 | W40: 0.04 | X40: 0.04 | Y40: 0.05 | Z40: 0.05 | AA40: 0.04 | AB40: 0.04 | AC40: 0.03
A42: Project | AD42: total | AE42: sdm_tool_excel
A43: =A2 -> 1 | B43: =$B$40*(valueE(B2,'Utility Functions'!$B$3,'Utility Functions'!$B$4,'Utility Functions'!$B$5,'Utility Functions'!$B$6)) -> 0.02504107129 | C43: =$C$40*(valueE(C2,'Utility Functions'!$D$3,'Utility Functions'!$D$4,'Utility Functions'!$D$5,'Utility Functions'!$D$6)) -> 0.01394279015 | D43: =$D$40*(valuePL(D2,'Utility Functions'!$E$3:$E$5,'Utility Functions'!$F$3:$F$5)) -> 0.03 | E43: =$E$40*(valuePL(E2,'Utility Functions'!$G$3:$G$5,'Utility Functions'!$H$3:$H$5)) -> 0.03 | F43: =$F$40*(valuePL(F2,'Utility Functions'!$I$3:$I$4,'Utility Functions'!$J$3:$J$5)) -> 0 | G43: =$G$40*(valueE(G2,'Utility Functions'!$L$3,'Utility Functions'!$L$4,'Utility Functions'!$L$5,'Utility Functions'!$L$6)) -> 0.015 | H43: =$H$40*(valueE(H2,'Utility Functions'!$N$3,'Utility Functions'!$N$4,'Utility Functions'!$N$5,'Utility Functions'!$N$6)) -> 0.015 | I43: =$I$40*valuePL(I2,'Utility Functions'!$O$3:$O$6,'Utility Functions'!$P$3:$P$6) -> 0.02754545455 | J43: =$J$40*valuePL(J2,'Utility Functions'!$Q$3:$Q$6,'Utility Functions'!$R$3:$R$6) -> 0.002 | K43: =$K$40*(valuePL(K2,'Utility Functions'!$S$3:$S$7,'Utility Functions'!$T$3:$T$7)) -> 0 | L43: =$L$40*(valueE(L2,'Utility Functions'!$V$3,'Utility Functions'!$V$4,'Utility Functions'!$V$5,'Utility Functions'!$V$6)) -> 0 | M43: =$M$40*valuePL(M2,'Utility Functions'!$W$3:$W$6,'Utility Functions'!$X$3:$X$6) -> 0 | N43: =$N$40*valueE(N2,'Utility Functions'!$Z$3,'Utility Functions'!$Z$4,'Utility Functions'!$Z$5,'Utility Functions'!$Z$6) -> 0 | O43: =$O$40*valuePL(O2,'Utility Functions'!$AA$3:$AA$5,'Utility Functions'!$AB$3:$AB$5) -> 0 | P43: =$P$40*valuePL(P2,'Utility Functions'!$AC$3:$AC$7,'Utility Functions'!$AD$3:$AD$7) -> 0.04 | Q43: =$Q$40*valuePL(Q2,'Utility Functions'!$AE$3:$AE$6,'Utility Functions'!$AF$3:$AF$6) -> 0 | R43: =$R$40*valuePL(R2,'Utility Functions'!$AG$3:$AG$6,'Utility Functions'!$AH$3:$AH$6) -> 0.04 | S43: =$S$40*valuePL(S2,'Utility Functions'!$AI$3:$AI$6,'Utility Functions'!$AJ$3:$AJ$6) -> 0.05 | T43: =$T$40*valuePL(T2,'Utility Functions'!$AK$3:$AK$8,'Utility Functions'!$AL$3:$AL$8) -> 0 | U43: =$U$40*valuePL(U2,'Utility Functions'!$AM$3:$AM$5,'Utility Functions'!$AN$3:$AN$5) -> 0 | V43: =$V$40*valuePL(V2,'Utility Functions'!$AO$3:$AO$5,'Utility Functions'!$AP$3:$AP$5) -> 0.05 | W43: =$W$40*valuePL(W2,'Utility Functions'!$AQ$3:$AQ$6,'Utility Functions'!$AR$3:$AR$6) -> 0.04 | X43: =$X$40*valuePL(X2,'Utility Functions'!$AS$3:$AS$6,'Utility Functions'!$AT$3:$AT$6) -> 0.04 | Y43: =$Y$40*valuePL(Y2,'Utility Functions'!$AU$3:$AU$6,'Utility Functions'!$AV$3:$AV$6) -> 0.05 | Z43: =$Z$40*valuePL(Z2,'Utility Functions'!$AW$3:$AW$5,'Utility Functions'!$AX$3:$AX$5) -> 0.05 | AA43: =$AA$40*valuePL(AA2,'Utility Functions'!$AY$3:$AY$6,'Utility Functions'!$AZ$3:$AZ$6) -> 0.04 | AB43: =$AB$40*valuePL(AB2,'Utility Functions'!$BA$3:$BA$5,'Utility Functions'!$BB$3:$BB$5) -> 0.04 | AC43: =$AC$40*valuePL(AC2,'Utility Functions'!$BC$3:$BC$5,'Utility Functions'!$BD$3:$BD$5) -> 0.03 | AD43: =SUM(B43:AC43) -> 0.628529316 | AE43: 0.6267946694
A44: =A3 -> 2 | B44: =$B$40*(valueE(B3,'Utility Functions'!$B$3,'Utility Functions'!$B$4,'Utility Functions'!$B$5,'Utility Functions'!$B$6)) -> 0.01353567143 | C44: =$C$40*(valueE(C3,'Utility Functions'!$D$3,'Utility Functions'!$D$4,'Utility Functions'!$D$5,'Utility Functions'!$D$6)) -> 0.02821310259 | D44: =$D$40*(valuePL(D3,'Utility Functions'!$E$3:$E$5,'Utility Functions'!$F$3:$F$5)) -> 0.015 | E44: =$E$40*(valuePL(E3,'Utility Functions'!$G$3:$G$5,'Utility Functions'!$H$3:$H$5)) -> 0 | F44: =$F$40*(valuePL(F3,'Utility Functions'!$I$3:$I$4,'Utility Functions'!$J$3:$J$5)) -> 0 | G44: =$G$40*(valueE(G3,'Utility Functions'!$L$3,'Utility Functions'!$L$4,'Utility Functions'!$L$5,'Utility Functions'!$L$6)) -> 0 | H44: =$H$40*(valueE(H3,'Utility Functions'!$N$3,'Utility Functions'!$N$4,'Utility Functions'!$N$5,'Utility Functions'!$N$6)) -> 0 | I44: =$I$40*valuePL(I3,'Utility Functions'!$O$3:$O$6,'Utility Functions'!$P$3:$P$6) -> 0 | J44: =$J$40*valuePL(J3,'Utility Functions'!$Q$3:$Q$6,'Utility Functions'!$R$3:$R$6) -> 0 | K44: =$K$40*(valuePL(K3,'Utility Functions'!$S$3:$S$7,'Utility Functions'!$T$3:$T$7)) -> 0 | L44: =$L$40*(valueE(L3,'Utility Functions'!$V$3,'Utility Functions'!$V$4,'Utility Functions'!$V$5,'Utility Functions'!$V$6)) -> 0 | M44: =$M$40*valuePL(M3,'Utility Functions'!$W$3:$W$6,'Utility Functions'!$X$3:$X$6) -> 0 | N44: =$N$40*valueE(N3,'Utility Functions'!$Z$3,'Utility Functions'!$Z$4,'Utility Functions'!$Z$5,'Utility Functions'!$Z$6) -> 0.015 | O44: =$O$40*valuePL(O3,'Utility Functions'!$AA$3:$AA$5,'Utility Functions'!$AB$3:$AB$5) -> 0.0225 | P44: =$P$40*valuePL(P3,'Utility Functions'!$AC$3:$AC$7,'Utility Functions'!$AD$3:$AD$7) -> 0 | Q44: =$Q$40*valuePL(Q3,'Utility Functions'!$AE$3:$AE$6,'Utility Functions'!$AF$3:$AF$6) -> 0 | R44: =$R$40*valuePL(R3,'Utility Functions'!$AG$3:$AG$6,'Utility Functions'!$AH$3:$AH$6) -> 0.05 | S44: =$S$40*valuePL(S3,'Utility Functions'!$AI$3:$AI$6,'Utility Functions'!$AJ$3:$AJ$6) -> 0.05 | T44: =$T$40*valuePL(T3,'Utility Functions'!$AK$3:$AK$8,'Utility Functions'!$AL$3:$AL$8) -> 0 | U44: =$U$40*valuePL(U3,'Utility Functions'!$AM$3:$AM$5,'Utility Functions'!$AN$3:$AN$5) -> 0 | V44: =$V$40*valuePL(V3,'Utility Functions'!$AO$3:$AO$5,'Utility Functions'!$AP$3:$AP$5) -> 0.05 | W44: =$W$40*valuePL(W3,'Utility Functions'!$AQ$3:$AQ$6,'Utility Functions'!$AR$3:$AR$6) -> 0.04 | X44: =$X$40*valuePL(X3,'Utility Functions'!$AS$3:$AS$6,'Utility Functions'!$AT$3:$AT$6) -> 0.04 | Y44: =$Y$40*valuePL(Y3,'Utility Functions'!$AU$3:$AU$6,'Utility Functions'!$AV$3:$AV$6) -> 0.05 | Z44: =$Z$40*valuePL(Z3,'Utility Functions'!$AW$3:$AW$5,'Utility Functions'!$AX$3:$AX$5) -> 0.05 | AA44: =$AA$40*valuePL(AA3,'Utility Functions'!$AY$3:$AY$6,'Utility Functions'!$AZ$3:$AZ$6) -> 0.04 | AB44: =$AB$40*valuePL(AB3,'Utility Functions'!$BA$3:$BA$5,'Utility Functions'!$BB$3:$BB$5) -> 0.04 | AC44: =$AC$40*valuePL(AC3,'Utility Functions'!$BC$3:$BC$5,'Utility Functions'!$BD$3:$BD$5) -> 0.03 | AD44: =SUM(B44:AC44) -> 0.534248774 | AE44: 0.5325173497
